Workbook

Sheet Index
B2: Pulmonary Rehabilitation Impact Model on Exacerbations (PRIME)
B3: Please use the hyperlinks below to navigate the workbook or click on the button to the right to show the navigation window
B4: Workbook created by: Dr Torquil Pyper (PHAST)
C6: Getting Started
C7: User Guide | E7: Click on this Hyperlink for more information on using the workbook
C10: User Interface
C11: User Input | E11: Set input values to reflect your local area
C13: Results | E13: Use this sheet to look up results for your region and estimate PR Cost
C16: Information
C17: Project Info | E17: Information on the calculations, assumptions and data sources used
C18: Exacerbation & PR Costs | E18: Information on how the default cost values have been calculated
C19: Recommendations | E19: Recommendations on improvements to PR Services
C20: Links | E20: Links to key reports and findings in PR
C21: References | E21: Studies included in the Systematic Review
C24: Data Tables
C25: Practice Data | E25: This is the master input data sheet with values that can be modified
C26: CCG Data | E26: Values from the practice data sheet are aggregated into CCGs
C27: Area Team Data | E27: Values from the practice data sheet are aggregated into area teams
C28: Region Data | E28: Values from the practice data sheet are aggregated into regions
C29: Country Data | E29: Values from the practice data sheet are aggregated into country's
C33: This workbook was commissioned by the Chartered Society for Physiotherapy (CSP) and developed by the Department of Primary Care & Public Health in the School of Public Health in Imperial College London. It aims to use available evidence and data to model the impact of pulmonary rehabilitation (PR) on exacerbations of chronic obstructive pulmonary disease (COPD). A variable proportion of COPD cases have been diagnosed by their general practice. The model takes as a starting point the overall prevalence of COPD in 2012, estimated by an epidemiologic model, and the prevalence of COPD diagnosed and registered by general practices. PR can only be delivered to known cases of COPD, therefore the model estimates the benefits of PR in known cases, and the potential benefit if a variable proportion of the estimated cases had been diagnosed and registered. Note, at present this model uses England only data and PHE disease prevalence figures from 2012. It is expected that an update in 2018 will include Scotland and Wales data and the 2016 PHE prevalence figures.
B36: We analysed data from the Clinical Practice Research Datalink (CPRD) on over 200,000 patients with diagnosed COPD to obtain national data about PR eligibility and referral. This demonstrated that 67% of patients were recorded as eligible for PR (see User Input sheet). We also used CPRD data to determine the average number of COPD exacerbations in patients not receiving PR. The National COPD Audit shows that only about 40% of patients referred for PR actually complete a course, so we used this figure as a baseline to estimate the effects of PR, and assumed that patients who failed to complete experienced no benefit. There have been several systematic reviews of the impact of PR on outcomes such as health-related quality of life. However, none have reviewed the effects of PR on acute exacerbation rates, so we undertook one, including a meta-analysis, for this project (published in CHEST). The randomised controlled trials (RCTs) in our meta-analysis demonstrated that a full course of PR reduced acute exacerbations of COPD by 36.4% in the year after a course of PR is completed. This "ideal" value has been used as the effect of a completed course PR in the Results sheet. However, our analysis of CPRD data shows that the effects demonstrated in RCTs are NOT being replicated in routine clinical practice (please review the Recommendations worksheet where this is discussed further). The benefits shown in this model will only be achieved if CCGs ensure that PR is delivered as it was in the RCTS. On 1 April 2013, a new structure of health geographies in England came into force, consisting of clinical commissioning groups (CCGs), NHS area teams (NHSAT) and NHS commissioning regions (NHSCRs). There are four NHSCRs and 25 NHSATs in England (see map). The 211 CCGs are NHS organisations set up by the Health and Social Care Act 2012 to organise the delivery of NHS services in England, and include all of the general practice groups in their geographical area. We have used these geographies for the English estimates.

Sheet User Guide
B2: =MID(CELL("filename",B1),FIND("]",CELL("filename",B1))+1,256) -> User Guide
B4: 1 | C4: Opening the workbook
B5: 1.1 | C5: When you open the model you may need to enable macros by clicking the button in the task bar at the top of the screen.
B6: 1.2 | C6: If you are having trouble enabling macros then please view the MS office support document below or follow steps 1-4 below.
C7: https://support.office.com/en-gb/article/Enable-or-disable-macros-in-Office-documents-7b4fdd2e-174f-47e2-9611-9efe4f860b12
C8: 1. Click the Microsoft Office Button or the File Tab and then click Excel Options.
C9: 2. Click Trust Centre, click Trust Centre Settings, and then click Macro Settings.
C10: 3. Click on Enable all macros.
C11: 4. Restart excel and reopen the file.
B13: 2 | C13: Index worksheet
B14: 2.1 | C14: The workbook will open on the Index worksheet which provides an overview of all worksheets in the model. The index can be used to navigate the workbook using the hyperlinks.
B15: 2.2 | C15: This worksheet also provides introductory text about the model and information about the main data sources.
B16: 2.3 | C16: The current version of the model only contains data for England but future versions will contain data for other countries once it is available.
B17: 2.4 | C17: The workbook contains 5 hierarchical levels of data:
B20: 2.5 | C20: The master data table is the practice level data which is where all input data is stored. This sheet has been locked as it includes published data from a range of sources e.g. Quality & Outcomes Framework. The COPD prevalence estimates are from the Public Health England (PHE) 2012 estimates. These are currently being re-developed. New data will be incorporated when released by PHE. User input data is imported into this sheet from the User Input sheet so is not editable here.
B21: 2.6 | C21: Values from the practice level data tables are then automatically aggregated to Clinical Commissioning Groups, NHS Area Teams, NHS Commissioning Regions and UK Countries. Resident-based data e.g. for local authorities has not been included as PR provision is an NHS responsibility.
B22: 2.7 | C22: The workbook also uses QOF 2014-15 practice level data, results from the randomised control trials (RCTs) in the accompanying systematic review, and Clinical Practice Research Datalink (CPRD) primary care data. National CPRD data has been used to estimate baseline exacerbation rates but not to calculate the exacerbation rate for people receiving PR. This is derived from the meta-analysis of RCT data (see Recommendations).
B25: 3 | C25: User Input Worksheet
B26: 3.1 | C26: The input worksheet is used to set input values for the local area, benchmark and forecast calculations.
B29: 3.2 | C29: All values are initially set to default values, with documentation on how these default values have been calculated.
B30: 3.3 | C30: Changes to the local area values in the User Input sheet will affect the output results for the local area and all smaller geographic areas.
B31: 3.4 | C31: The benchmark values have been set to national average values and should only be changed if you have better data available.
B32: 3.5 | C32: Users should change the local area values to reflect the current local situation in the last 12 months.
B33: 3.6 | C33: Users should change the forecast values to reflect the predicted local situation in the next 12 months.
B34: 3.7 | C34: If any values are changed the output data sheets should be recalculated by clicking the calculate button at the top of the window.
B35: 3.8 | C35: If a value is changed and the user leaves this page the output worksheets will automatically be calculated.
B36: 3.9 | C36: If the value entered is not in the correct format or is outside the range allowed then an error message will be given and the value must be changed.
B38: 4 | C38: Results Worksheet - selection pane
B39: 4.1 | C39: The results worksheet loads data from the 5 data worksheets and from the User Input worksheet. It uses these values to calculate output results.
B40: 4.2 | C40: Results can be viewed in three formats, which can be selected using the drop down list at the top of the window:
C41: 1. Benchmark Results - Comparing your areas performance against a specific benchmark area
C42: 2. Forecast Results - Comparing your areas current performance against forecast performance (this years performance against next years performance)
C43: 3. QOF Results - compare your areas QOF performance against a specific benchmark area, with that areas max and min values.
B44: 4.3 | C44: At the top of the results worksheet is the selection pane that allows the user to select the data they want to view.
B46: 4.4 | C46: The green boxes should be used to select your area:
C47: 1. Use the green option buttons to select your area type
C48: 2. Select your area from the drop down list
B49: 4.5 | C49: The blue boxes can be used to select a filter and make the selection process easier. Use the filter in the blue box to only show the possible selection for a specific area in the green box. E.g. if NHS Ashford CCG is selected in the filter drop down list (blue box) then only the 14 practices in NHS Ashford will be shown in the selection drop down list (green box).
B50: 4.6 | C50: Select a benchmark to compare your performance to other areas.
B51: 4.7 | C51: As an example, the workbook is currently set to select data from the practice level with a filter to show all practices in all countries. The results will benchmark against the country that practice belongs to, which in this case is England.
B52: 4.8 | C52: Because the population type is set to practice level the look-up list in the green box will contain a list of all practices.
B53: 4.9 | C53: The user can use the look-up list to select the data they would like to view and the benchmark population will automatically be found.
B54: 4.1 | C54: The table to the right contains details about the current selection. As an example the current selected practice is Drs Williams and Oliver. The CCG, area team, region and country that this practice belongs to is then shown below, because country is selected as the benchmark region.
B55: 4.11 | C55: The number of each area type in the selected filter area is shown on the far right, for example there are 7779 practices in the chosen filter area of England, 209 CCGs, 25 area teams, 4 regions and 1 country.
B57: 5 | C57: Results Worksheet - Forecast Results
B58: 5.1 | C58: Once the input values have been set and the area type selected the results for the selected area and benchmark population can be viewed.
C59: If Forecast Results is selected in section 4.2 of the user guide then the following results will be displayed:
B61: 5.2 | C61: For each selected area there is a numerator, denominator and percentage value.
B62: 5.3 | C62: The results for the selected area (last 12 months) are shown on the left and the results for the selected area (next 12 months) are shown on the right.
B63: 5.4 | C63: A change chart is displayed to the right that shows the trend from current to forecast performance.
B64: 5.5 | C64: At the bottom of the results page is the COPD Cost data.
B65: 5.6 | C65: This demonstrates how exacerbation, PR and total costs will change as forecast input values are changed from current input values
B69: 6 | C69: Results Worksheet - Benchmark Results
B70: 6.1 | C70: Once the input values have been set and the area type selected, the results for the selected area and benchmark population can be viewed.
C71: If Benchmark Results is selected in section 4.2 of the user guide then the following results will be displayed
B73: 6.2 | C73: For each selected area there is a numerator, denominator and percentage value.
B74: 6.3 | C74: The results for the selected area (last 12 months) are shown on the left and the results for the benchmark area (last 12 months) are shown on the right.
B75: 6.4 | C75: A Range chart is displayed to the right that shows the selected practices performance against the benchmark.
B76: 6.5 | C76: The average benchmark value is always displayed at the centre of the range and the chart scaled to fit the max and min values.
B77: 6.6 | C77: The area type value is shown as a circle with colour coding that shows if the value is better similar or worse to the benchmark average value.
B78: 6.7 | C78: At the bottom of the results page is the COPD Cost data.
B79: 6.8 | C79: This demonstrates if increasing PR will decrease the combined cost of PR and exacerbations.
B83: 7 | C83: Results Worksheet - QOF Results
B84: 7.1 | C84: If QOF Results is selected in section 4.2 of the user guide then, some different results will be displayed.
B86: 7.2 | C86: The current results for the selected area are compared to the forecast results for the coming year and any changes in values calculated.
C87: Results are displayed twice in two tables, the first sorted by location and the second sorted by value type.
C88: The forecasting tool does not reference any benchmark area and so is simpler to use for a single area.

Sheet User Input
B2: =MID(CELL("filename",B1),FIND("]",CELL("filename",B1))+1,256) -> User Input
C5: Please update values in columns F to reflect your local area and then click calculate | K5: =IF(O5=11,"Calculations are up to date","Please recalculate output data") -> Calculations are up to date | O5: =O10+O14+O16+O18+O23+O25+O27+O32+O34+O36+O38 -> 11 | T5: =T10+T14+T16+T18+T23+T25+T27+T32+T34+T36+T38 -> 11 | U5: =U10+U14+U16+U18+U23+U25+U27+U32+U34+U36+U38 -> 11 | V5: =V10+V14+V16+V18+V23+V25+V27+V32+V34+V36+V38 -> 11
B8: Pulmonary Rehab | K8: Click for Info | N8: Update
F9: Local Area | G9: Benchmark | H9: Forecast | Q9: Local Area | R9: Benchmark | S9: Forecast
C10: Estimated % of COPD population who are MRC3 and above (some of these may be eligible for PR) | F10: 0.4 | G10: 0.4 | H10: 0.4 | I10: % | K10: CPRD Data | O10: =IF(T10+U10+V10=3,1,0) -> 1 | Q10: 0.4 | R10: 0.4 | S10: 0.4 | T10: =IF(F10=Q10,1,0) -> 1 | U10: =IF(G10=R10,1,0) -> 1 | V10: =IF(H10=S10,1,0) -> 1
C11: Of the national COPD diagnosed population in England and Wales, 40% are deemed MRC3 and above. Of this 40%, it is believed that 40% will be eligible for PR.
F13: Local Area | G13: Benchmark | H13: Forecast | Q13: Local Area | R13: Benchmark | S13: Forecast
C14: Percentage of MRC3 and above COPD population currently referred to PR per year | F14: 0.15 | G14: 0.15 | H14: 0.15 | I14: % | K14: BTS Audit | O14: =IF(T14+U14+V14=3,1,0) -> 1 | Q14: 0.15 | R14: 0.15 | S14: 0.15 | T14: =IF(F14=Q14,1,0) -> 1 | U14: =IF(G14=R14,1,0) -> 1 | V14: =IF(H14=S14,1,0) -> 1
C16: Percentage of MRC3 and above COPD population currently referred to PR that start PR per year | F16: 0.59 | G16: 0.59 | H16: 0.59 | I16: % | K16: BTS Audit | O16: =IF(T16+U16+V16=3,1,0) -> 1 | Q16: 0.59 | R16: 0.59 | S16: 0.59 | T16: =IF(F16=Q16,1,0) -> 1 | U16: =IF(G16=R16,1,0) -> 1 | V16: =IF(H16=S16,1,0) -> 1
C18: Percentage of MRC3 and above COPD population currently starting PR that complete PR per year | F18: 0.71 | G18: 0.71 | H18: 0.71 | I18: % | K18: BTS Audit | O18: =IF(T18+U18+V18=3,1,0) -> 1 | Q18: 0.71 | R18: 0.71 | S18: 0.71 | T18: =IF(F18=Q18,1,0) -> 1 | U18: =IF(G18=R18,1,0) -> 1 | V18: =IF(H18=S18,1,0) -> 1
C19: See the table on the Links page for detail of this calculation
B21: COPD Exacerbations
F22: Local Area | G22: Benchmark | H22: Forecast | Q22: Local Area | R22: Benchmark | S22: Forecast
C23: Exacerbation rate for MRC3 and above COPD patients not completing PR (cases per person per year) | F23: 3.311 | G23: 3.311 | H23: 3.311 | K23: CPRD Data | O23: =IF(T23+U23+V23=3,1,0) -> 1 | Q23: 3.311 | R23: 3.311 | S23: 3.311 | T23: =IF(F23=Q23,1,0) -> 1 | U23: =IF(G23=R23,1,0) -> 1 | V23: =IF(H23=S23,1,0) -> 1
C25: Exacerbation rate for MRC3 and above COPD patients completing PR (cases per person per year) | F25: 2.106 | G25: 2.106 | H25: 2.106 | K25: RCT | O25: =IF(T25+U25+V25=3,1,0) -> 1 | Q25: 2.106 | R25: 2.106 | S25: 2.106 | T25: =IF(F25=Q25,1,0) -> 1 | U25: =IF(G25=R25,1,0) -> 1 | V25: =IF(H25=S25,1,0) -> 1
C27: % of COPD exacerbations (MRC3 and above) that result in a hospital admission | F27: 0.15 | G27: 0.15 | H27: 0.15 | I27: % | K27: CPRD Data | O27: =IF(T27+U27+V27=3,1,0) -> 1 | Q27: 0.15 | R27: 0.15 | S27: 0.15 | T27: =IF(F27=Q27,1,0) -> 1 | U27: =IF(G27=R27,1,0) -> 1 | V27: =IF(H27=S27,1,0) -> 1
B30: COPD Cost
F31: Local Area | G31: Benchmark | H31: Forecast | Q31: Local Area | R31: Benchmark | S31: Forecast
C32: Cost per exacerbation resulting in hospital admission | F32: ='Exacerbation & PR Costs'!C11 -> 1593.64686 | G32: ='Exacerbation & PR Costs'!C11 -> 1593.64686 | H32: ='Exacerbation & PR Costs'!C11 -> 1593.64686 | I32: £ | K32: Info | O32: =IF(T32+U32+V32=3,1,0) -> 1 | Q32: 1593.65 | R32: 1593.65 | S32: 1593.65 | T32: =IF(ROUND(F32,2)=ROUND(Q32,2),1,0) -> 1 | U32: =IF(ROUND(G32,2)=ROUND(R32,2),1,0) -> 1 | V32: =IF(ROUND(H32,2)=ROUND(S32,2),1,0) -> 1
C34: Cost per exacerbation managed in primary care, including social care costs | F34: ='Exacerbation & PR Costs'!C12 -> 175.89 | G34: ='Exacerbation & PR Costs'!C12 -> 175.89 | H34: ='Exacerbation & PR Costs'!C12 -> 175.89 | I34: £ | K34: Info | O34: =IF(T34+U34+V34=3,1,0) -> 1 | Q34: 175.89 | R34: 175.89 | S34: 175.89 | T34: =IF(ROUND(F34,2)=ROUND(Q34,2),1,0) -> 1 | U34: =IF(ROUND(G34,2)=ROUND(R34,2),1,0) -> 1 | V34: =IF(ROUND(H34,2)=ROUND(S34,2),1,0) -> 1
C36: PR cost per person completing PR | F36: 343.95 | G36: 343.95 | H36: 343.95 | I36: £ | K36: Info | O36: =IF(T36+U36+V36=3,1,0) -> 1 | Q36: 343.95 | R36: 343.95 | S36: 343.95 | T36: =IF(ROUND(F36,2)=ROUND(Q36,2),1,0) -> 1 | U36: =IF(ROUND(G36,2)=ROUND(R36,2),1,0) -> 1 | V36: =IF(ROUND(H36,2)=ROUND(S36,2),1,0) -> 1
C38: PR cost per person starting but not completing PR | F38: 171.98 | G38: 171.98 | H38: 171.98 | I38: £ | K38: Info | O38: =IF(T38+U38+V38=3,1,0) -> 1 | Q38: 171.98 | R38: 171.98 | S38: 171.98 | T38: =IF(ROUND(F38,2)=ROUND(Q38,2),1,0) -> 1 | U38: =IF(ROUND(G38,2)=ROUND(R38,2),1,0) -> 1 | V38: =IF(ROUND(H38,2)=ROUND(S38,2),1,0) -> 1
B42: Data Tables
C44: This look up table confirms which data tables are calculated using the local area values and which data tables are calculated using the benchmark values. This will change as diferent area selections are made on the results page. Data tables for the selected area and all smaller areas are calcuated using local area values . Data tables for all larger geographic areas are calculated using benchmark values. | D44: Data Table | F44: Local Area | G44: Benchmark | I44: After updating and calculating values please select the Results worksheet to see the outcome of your changes. | R44: Sum
D45: Practice | F45: =IF(ROUND($R45,2)=ROUND(F$50,2),1,0) -> 1 | G45: =IF(ROUND($R45,2)=ROUND(G$50,2),1,0) -> 1 | R45: =SUM('Practice Data'!Q10:CJ7788) -> 256449873.6
D46: CCG | F46: 1 | G46: 1 | R46: =SUM(CCG_F_Data) -> 256449873.6
D47: Area Team | F47: 1 | G47: 1 | R47: =SUM(Area_Team_F_Data) -> 256449873.6
D48: Region | F48: 1 | G48: 1 | R48: =SUM(Region_F_Data) -> 256449873.6
D49: Country | F49: 1 | G49: 1 | R49: =SUM(Country_F_Data) -> 256449873.6
F50: =SUM('CCG Select'!Q10:CJ218) -> 256449873.6 | G50: =SUM('CCG Benchmark'!Q10:CJ218) -> 256449873.6

Sheet Results
B2: =MID(CELL("filename",B1),FIND("]",CELL("filename",B1))+1,256) -> Results | D2: Benchmark Results | E2: =IF(D2="Benchmark Results","Results are optimised to compare your areas performance against a specific benchmark area",IF(D2="Forecast Results","Results are optimised to compare your areas current performance against its future forecast performance","Results are optimised to o compare your areas QOF performance against a specific benchmark area")) -> Results are optimised to compare your areas performance against a specific benchmark area | R2: Draft workbook for Review
G3: =IF(T8="","",T8) ->  | H3: =IF(T9="","",T9) ->  | I3: =IF(T10="","",T10) ->  | J3: =IF(T11="","",T11) ->  | K3: =IF(T12="","",T12) -> 4 Countries
B4: Selection Pane
C6: Area Selection | D6: Selection your area type and area that you would like to see results for 1. Use the green option buttons to select the area type 2. Select your area from the drop down list | M6: Selected Area- Look Up List
M7: Area Category | N7: Code | O7: Name | T7: Filter Count
M8: Practice
M9: CCG
M10: Area Team
C11: Filter Selection | D11: Use the filter to reduce the possible selection to a specific area. E.g. if NHS Ashford CCG is selected in the filter drop down list (blue box) then only the 14 practices in NHS Ashford will be shown in the selection drop down list (green box). | M11: Region
M12: Country | N12: =VLOOKUP($N$15,Country_Data,1,FALSE) -> Eng | O12: =VLOOKUP($N$15,Country_Data,2,FALSE) -> England | T12: =IF(LEFT(N16,3)="All","4 Countries","1 Country") -> 4 Countries
M14: Selection | N14: Code | O14: Name | T14: Area Type
M15: Area | N15: Eng | O15: =VLOOKUP($N$15,Country_Data,2,FALSE) -> England | T15: Country
C16: Benchmark | D16: Select a benchmark to compare your areas performance to. Use the option buttons to compare your area to a larger geographic areas that your selection belong to. Or select filter and use the drop down list to compare your area to another area at the same geographic level. | M16: Filter | N16: All Countries | O16: =IF(LEFT(N16,3)="All", N16, VLOOKUP(N16,'Country Data'!$B$10:$C$13,2,FALSE)) -> All Countries | T16: Country
M17: Benchmark | N17: Eng | O17: =IF(T17="Practice",VLOOKUP($N$17,Practice_Data,2,FALSE),IF(T17="CCG",VLOOKUP($N$17,CCG_Data,2,FALSE),IF(T17="Area Team",VLOOKUP($N$17,Area_Team_Data,2,FALSE),IF(T17="Region",VLOOKUP($N$17,Region_Data,2,FALSE),IF(T17="Country",VLOOKUP($N$17,Country_Data,2,FALSE),0))))) -> England | T17: =T15 -> Country
T18: Filter
BB21: 1
C22: Benchmark Results | G22: Selected Area - Last 12 Months | M22: Benchmark Area - Last 12 Months
B24: Population Data | BA24: High | BB24: 2
AT25: 1 | AW25: 2 | AZ25: 3 | BA25: Low | BB25: 3
C26: Population Data (click for info) | G26: ="Selected "&$T$15&" - "&$O$15&" - Last 12 Months" -> Selected Country - England - Last 12 Months | M26: =IF($O$17="","No Benchmark Selected","Benchmark - Comparison to "&$O$17&" - Last 12 Months") -> Benchmark - Comparison to England - Last 12 Months | U26: Selection % of Benchmark
G27: Numerator | H27: Denominator | I27: Exceptions | J27: % of Total Population | M27: Numerator | N27: Denominator | O27: Exceptions | P27: % of Total Population | U27: Percentage
C28: Population estimated by model to have COPD (2012 model, being updated) | G28: =IFERROR(SUMIFS('Country Data'!$W$10:$W$14,'Country Data'!$B$10:$B$14,$N$15),0) -> 1667599.939 | H28: =IFERROR(SUMIFS('Country Data'!$X$10:$X$14,'Country Data'!$B$10:$B$14,$N$15),0) -> 56817654 | I28: =IFERROR(SUMIFS('Country Data'!$Y$10:$Y$14,'Country Data'!$B$10:$B$14,$N$15),0) -> 0 | J28: =G28/H28 -> 0.02935003158 | K28: =J28 -> 0.02935003158 | M28: =IFERROR(SUMIFS('Country Data'!$W$10:$W$14,'Country Data'!$B$10:$B$14,$N$17),0) -> 1667599.939 | N28: =IFERROR(SUMIFS('Country Data'!$X$10:$X$14,'Country Data'!$B$10:$B$14,$N$17),0) -> 56817654 | O28: =IFERROR(SUMIFS('Country Data'!$Y$10:$Y$14,'Country Data'!$B$10:$B$14,$N$17),0) -> 0 | P28: =IFERROR(M28/N28,"") -> 0.02935003158 | Q28: =P28 -> 0.02935003158 | U28: =G28/M28 -> 1 | V28: =U28 -> 1
C29: Registered population diagnosed with COPD (QOF) | G29: =IFERROR(SUMIFS('Country Data'!$Q$10:$Q$14,'Country Data'!$B$10:$B$14,$N$15),0) -> 1034578 | H29: =IFERROR(SUMIFS('Country Data'!$R$10:$R$14,'Country Data'!$B$10:$B$14,$N$15),0) -> 56817654 | I29: =IFERROR(SUMIFS('Country Data'!$S$10:$S$14,'Country Data'!$B$10:$B$14,$N$15),0) -> 477392 | J29: =G29/H29 -> 0.01820874195 | K29: =J29 -> 0.01820874195 | M29: =IFERROR(SUMIFS('Country Data'!$Q$10:$Q$14,'Country Data'!$B$10:$B$14,$N$17),0) -> 1034578 | N29: =IFERROR(SUMIFS('Country Data'!$R$10:$R$14,'Country Data'!$B$10:$B$14,$N$17),0) -> 56817654 | O29: =IFERROR(SUMIFS('Country Data'!$S$10:$S$14,'Country Data'!$B$10:$B$14,$N$17),0) -> 477392 | P29: =IFERROR(M29/N29,"") -> 0.01820874195 | Q29: =P29 -> 0.01820874195 | U29: =G29/M29 -> 1 | V29: =U29 -> 1
C30: Population estimated to be undiagnosed COPD | G30: =IFERROR(SUMIFS('Country Data'!$Z$10:$Z$14,'Country Data'!$B$10:$B$14,$N$15),0) -> 652259.0681 | H30: =IFERROR(SUMIFS('Country Data'!$AA$10:$AA$14,'Country Data'!$B$10:$B$14,$N$15),0) -> 56817654 | I30: =IFERROR(SUMIFS('Country Data'!$AB$10:$AB$14,'Country Data'!$B$10:$B$14,$N$15),0) -> 0 | J30: =G30/H30 -> 0.01147986624 | K30: =J30 -> 0.01147986624 | M30: =IFERROR(SUMIFS('Country Data'!$Z$10:$Z$14,'Country Data'!$B$10:$B$14,$N$17),0) -> 652259.0681 | N30: =IFERROR(SUMIFS('Country Data'!$AA$10:$AA$14,'Country Data'!$B$10:$B$14,$N$17),0) -> 56817654 | O30: =IFERROR(SUMIFS('Country Data'!$AB$10:$AB$14,'Country Data'!$B$10:$B$14,$N$17),0) -> 0 | P30: =IFERROR(M30/N30,"") -> 0.01147986624 | Q30: =P30 -> 0.01147986624 | U30: =G30/M30 -> 1 | V30: =U30 -> 1
B33: Pulmonary Rehab
C35: Pulmonary Rehab (click for info) | G35: ="Selected "&$T$15&" - "&$O$15&" - Last 12 Months" -> Selected Country - England - Last 12 Months | M35: =IF($O$17="","No Benchmark Selected","Benchmark - Comparison to "&$O$17&" - Last 12 Months") -> Benchmark - Comparison to England - Last 12 Months | U35: Selection % of Benchmark
G36: Population | H36: Denominator | I36: Percentage | J36: % of referrals to completion | M36: Numerator | N36: Denominator | O36: Percentage | P36: % of referrals to completion | U36: Percentage
C37: Estimated COPD population MRC3 and above - (last 12 months, % of population may be eligible for PR) | G37: =H37*I37 -> 413831.2 | H37: =G29 -> 1034578 | I37: ='User Input'!$F$10 -> 0.4 | K37: =J37 -> 0 | M37: =N37*O37 -> 413831.2 | N37: =M29 -> 1034578 | O37: ='User Input'!$G$10 -> 0.4 | Q37: =P37 -> 0 | U37: =G37/M37 -> 1 | V37: =U37 -> 1
C38: Diagnosed COPD population MRC3 and above - referred to PR (last 12 months) | G38: =H38*I38 -> 62074.68 | H38: =G37 -> 413831.2 | I38: ='User Input'!$F$14 -> 0.15 | J38: 1 | K38: =J38 -> 1 | M38: =N38*O38 -> 62074.68 | N38: =M37 -> 413831.2 | O38: ='User Input'!$G$14 -> 0.15 | P38: 1 | Q38: =P38 -> 1 | U38: =G38/M38 -> 1 | V38: =U38 -> 1
C39: Diagnosed COPD population MRC3 and above - starting PR (last 12 months) | G39: =H39*I39 -> 36624.0612 | H39: =G38 -> 62074.68 | I39: ='User Input'!$F$16 -> 0.59 | J39: =I39*J38 -> 0.59 | K39: =J39 -> 0.59 | M39: =N39*O39 -> 36624.0612 | N39: =M38 -> 62074.68 | O39: ='User Input'!$G$16 -> 0.59 | P39: =O39*P38 -> 0.59 | Q39: =P39 -> 0.59 | U39: =G39/M39 -> 1 | V39: =U39 -> 1
C40: Diagnosed COPD population MRC3 and above - completing PR (last 12 months) | G40: =H40*I40 -> 26003.08345 | H40: =G39 -> 36624.0612 | I40: ='User Input'!$F$18 -> 0.71 | J40: =I40*J39 -> 0.4189 | K40: =J40 -> 0.4189 | M40: =N40*O40 -> 26003.08345 | N40: =M39 -> 36624.0612 | O40: ='User Input'!$G$18 -> 0.71 | P40: =O40*P39 -> 0.4189 | Q40: =P40 -> 0.4189 | U40: =G40/M40 -> 1 | V40: =U40 -> 1
B43: COPD Exacerbations
J44: 80
C45: Hospital - Exacerbations (click for info) | G45: ="Selected "&$T$15&" - "&$O$15&" - Last 12 Months" -> Selected Country - England - Last 12 Months | M45: =IF($O$17="","No Benchmark Selected","Benchmark - Comparison to "&$O$17&" - Last 12 Months") -> Benchmark - Comparison to England - Last 12 Months | U45: Selection % of Benchmark
G46: Population | H46: % Hospital | I46: Ex Rate | J46: Total Admissions per year | M46: Population | N46: % Hospital | O46: Ex Rate | P46: Total Exacerbations per year | U46: Percentage
C47: Hospital Exacerbations for estimated COPD population MRC3 and above - completing PR | G47: =G40 -> 26003.08345 | H47: ='User Input'!$F$27 -> 0.15 | I47: ='User Input'!$F$25 -> 2.106 | J47: =G47*H47*I47 -> 8214.374062 | K47: =J47 -> 8214.374062 | M47: =M40 -> 26003.08345 | N47: ='User Input'!$G$27 -> 0.15 | O47: ='User Input'!$G$25 -> 2.106 | P47: =M47*N47*O47 -> 8214.374062 | Q47: =P47 -> 8214.374062 | U47: =J47/P47 -> 1 | V47: =U47 -> 1
C48: Hospital Exacerbations for estimated COPD population MRC3 and above - not completing PR | G48: =G37-G40 -> 387828.1165 | H48: ='User Input'!$F$27 -> 0.15 | I48: ='User Input'!$F$23 -> 3.311 | J48: =G48*H48*I48 -> 192614.8341 | K48: =J48 -> 192614.8341 | M48: =M37-M40 -> 387828.1165 | N48: ='User Input'!$G$27 -> 0.15 | O48: ='User Input'!$G$23 -> 3.311 | P48: =M48*N48*O48 -> 192614.8341 | Q48: =P48 -> 192614.8341 | U48: =J48/P48 -> 1 | V48: =U48 -> 1
C49: Hospital exacerbations - Total | G49: =G37 -> 413831.2 | H49: ='User Input'!$F$27 -> 0.15 | I49: =J49/(G49*H49) -> 3.235283825 | J49: =J47+J48 -> 200829.2081 | K49: =J49 -> 200829.2081 | M49: =M37 -> 413831.2 | N49: ='User Input'!$G$27 -> 0.15 | O49: =IF(M49>0,P49/(M49*N49),"") -> 3.235283825 | P49: =P47+P48 -> 200829.2081 | Q49: =P49 -> 200829.2081 | U49: =J49/P49 -> 1 | V49: =U49 -> 1
C51: Primary Care - Exacerbations (click for info) | G51: ="Selected "&$T$15&" - "&$O$15&" - Last 12 Months" -> Selected Country - England - Last 12 Months | M51: =IF($O$17="","No Benchmark Selected","Benchmark - Comparison to "&$O$17&" - Last 12 Months") -> Benchmark - Comparison to England - Last 12 Months | U51: Selection % of Benchmark
G52: Population | H52: % GP | I52: Ex Rate | J52: Number of Exacerbations manged in primary care per year | M52: Population | N52: % Hospital | O52: Ex Rate | P52: Total Exacerbations per year | U52: Percentage
C53: Primary Care Exacerbations for estimated COPD population MRC3 and above - completing PR | G53: =G40 -> 26003.08345 | H53: =1-'User Input'!$F$27 -> 0.85 | I53: ='User Input'!$F$25 -> 2.106 | J53: =G53*H53*I53 -> 46548.11969 | K53: =J53 -> 46548.11969 | M53: =M40 -> 26003.08345 | N53: =1-'User Input'!$G$27 -> 0.85 | O53: ='User Input'!$G$25 -> 2.106 | P53: =M53*N53*O53 -> 46548.11969 | Q53: =P53 -> 46548.11969 | U53: =J53/P53 -> 1 | V53: =U53 -> 1
C54: Primary Care Exacerbations for estimated COPD population MRC3 and above - not completing PR | G54: =G37-G40 -> 387828.1165 | H54: =1-'User Input'!$F$27 -> 0.85 | I54: ='User Input'!$F$23 -> 3.311 | J54: =G54*H54*I54 -> 1091484.06 | K54: =J54 -> 1091484.06 | M54: =M37-M40 -> 387828.1165 | N54: =1-'User Input'!$G$27 -> 0.85 | O54: ='User Input'!$G$23 -> 3.311 | P54: =M54*N54*O54 -> 1091484.06 | Q54: =P54 -> 1091484.06 | U54: =J54/P54 -> 1 | V54: =U54 -> 1
C55: Primary Care exacerbations - Total | G55: =G37 -> 413831.2 | H55: =1-'User Input'!$F$27 -> 0.85 | I55: =J55/(G55*H55) -> 3.235283825 | J55: =J53+J54 -> 1138032.179 | K55: =J55 -> 1138032.179 | M55: =M37 -> 413831.2 | N55: =1-'User Input'!$G$27 -> 0.85 | O55: =IF(M55>0,P55/(M55*N55),"") -> 3.235283825 | P55: =P53+P54 -> 1138032.179 | Q55: =P55 -> 1138032.179 | U55: =J55/P55 -> 1 | V55: =U55 -> 1
V57: =MAX(U37:U40,U47:U49,U53:U55) -> 1
B58: COPD Cost (The cost of exacerbations and PR only) | V58: =MIN(U37:U40,U47:U49,U53:U55) -> 1
C60: Exacerbation Costs (click for info) | G60: ="Selected "&$T$15&" - "&$O$15&" - Last 12 Months" -> Selected Country - England - Last 12 Months | M60: =IF($O$17="","No Benchmark Selected","Benchmark - Comparison to "&$O$17&" - Last 12 Months") -> Benchmark - Comparison to England - Last 12 Months | U60: Selection % of Benchmark
G61: Exacerbations | H61: Unit Cost (£) | I61: Annual Cost (£) | J61: % of Grand Total Cost | M61: Exacerbations | N61: Unit Cost | O61: Annual Cost (£) | P61: % of Grand Total Forecast Cost | U61: Percentage
C62: Exacerbation cost - Hospital | G62: =J49 -> 200829.2081 | H62: ='User Input'!$F$32 -> 1593.64686 | I62: =G62*H62 -> 320050837.1 | J62: =I62/I72 -> 0.602743995 | K62: =J62 -> 0.602743995 | M62: =P49 -> 200829.2081 | N62: ='User Input'!$G$32 -> 1593.64686 | O62: =M62*N62 -> 320050837.1 | P62: =IFERROR(O62/O72,"") -> 0.602743995 | Q62: =P62 -> 0.602743995 | U62: =I62/O62 -> 1 | V62: =U62 -> 1
C63: Exacerbation cost - Primary Care | G63: =J55 -> 1138032.179 | H63: ='User Input'!$F$34 -> 175.89 | I63: =G63*H63 -> 200168480.1 | J63: =I63/I72 -> 0.3769724537 | K63: =J63 -> 0.3769724537 | M63: =P55 -> 1138032.179 | N63: ='User Input'!$G$34 -> 175.89 | O63: =M63*N63 -> 200168480.1 | P63: =IFERROR(O63/O72,"") -> 0.3769724537 | Q63: =P63 -> 0.3769724537 | U63: =I63/O63 -> 1 | V63: =U63 -> 1
C64: Total exacerbation cost | I64: =I62+I63 -> 520219317.1 | J64: =I64/I72 -> 0.9797164487 | K64: =J64 -> 0.9797164487 | O64: =O62+O63 -> 520219317.1 | P64: =IFERROR(O64/O72,"") -> 0.9797164487 | Q64: =P64 -> 0.9797164487 | U64: =I64/O64 -> 1 | V64: =U64 -> 1
C66: Pulmonary Rehab Costs (click for info) | G66: ="Selected "&$T$15&" - "&$O$15&" - Last 12 Months" -> Selected Country - England - Last 12 Months | M66: =IF($O$17="","No Benchmark Selected","Benchmark - Comparison to "&$O$17&" - Last 12 Months") -> Benchmark - Comparison to England - Last 12 Months | U66: Selection % of Benchmark
G67: Persons | H67: Unit Cost (£) | I67: Annual Cost (£) | J67: % of Grand Total Cost | M67: Persons | N67: Unit Cost | O67: Annual Cost (£) | P67: % of Grand Total Forecast Cost | U67: Percentage
C68: PR cost - completing PR (last 12 months) | G68: =G40 -> 26003.08345 | H68: ='User Input'!$F$36 -> 343.95 | I68: =G68*H68 -> 8943760.553 | J68: =I68/I72 -> 0.01684356778 | K68: =J68 -> 0.01684356778 | M68: =M40 -> 26003.08345 | N68: ='User Input'!$G$36 -> 343.95 | O68: =M68*N68 -> 8943760.553 | P68: =IFERROR(O68/O72,"") -> 0.01684356778 | Q68: =P68 -> 0.01684356778 | U68: =I68/O68 -> 1 | V68: =U68 -> 1
C69: PR cost - starting PR but not completing PR (last 12 months) | G69: =G39-G40 -> 10620.97775 | H69: ='User Input'!$F$38 -> 171.98 | I69: =G69*H69 -> 1826595.753 | J69: =I69/I72 -> 0.003439983571 | K69: =J69 -> 0.003439983571 | M69: =M39-M40 -> 10620.97775 | N69: ='User Input'!$G$38 -> 171.98 | O69: =M69*N69 -> 1826595.753 | P69: =IFERROR(O69/O72,"") -> 0.003439983571 | Q69: =P69 -> 0.003439983571 | U69: =I69/O69 -> 1 | V69: =U69 -> 1
C70: Total PR cost | I70: =I68+I69 -> 10770356.31 | J70: =I70/I72 -> 0.02028355135 | K70: =J70 -> 0.02028355135 | O70: =O68+O69 -> 10770356.31 | P70: =IFERROR(O70/O72,"") -> 0.02028355135 | Q70: =P70 -> 0.02028355135 | U70: =I70/O70 -> 1 | V70: =U70 -> 1
C72: Grand Total Annual Cost | I72: =$I$164+$I$170 -> 530989673.4 | O72: =O64+O70 -> 530989673.4 | U72: =I70/O70 -> 1 | V72: =U72 -> 1
B75: Summary
C77: =IF(M28=0,"","Exacerbation and PR total costs for your selected area are £"&ROUND(I72,0)&" Exacerbation and PR total costs in your benchmark area are £"&ROUND(O72,0)&" Area total costs are "&ROUND(I72/O72,2)&"% of benchmark total costs.") -> Exacerbation and PR total costs for your selected area are £530989673 Exacerbation and PR total costs in your benchmark area are £530989673 Area total costs are 1% of benchmark total costs. | G77: ="In your selected area it is estimated that "&ROUND(G28,0)&" people have COPD, with "&ROUND(G37,0)&" people graded as MRC3 and above, of these "&ROUND(G38,0)&" ("&ROUND(J38*100,0)&"%) are offered PR "&ROUND(G40,0)&" ("&ROUND(J40*100,0)&"%) people graded MRC3 or above complete PR. In a year this population will have "&ROUND(J49,0)&" hospital and "&ROUND(J55,0)&" primare care exacerbations. Exacerbations will cost £ "&ROUND(I64,0)&" and PR will cost £ "&ROUND(I70,0)&" with a total cost of £ "&ROUND(I72,0)&". PR annual cost accounts for "&ROUND(J70*100,1)&"% of total annual costs." -> In your selected area it is estimated that 1667600 people have COPD, with 413831 people graded as MRC3 and above, of these 62075 (100%) are offered PR 26003 (42%) people graded MRC3 or above complete PR. In a year this population will have 200829 hospital and 1138032 primare care exacerbations. Exacerbations will cost £ 520219317 and PR will cost £ 10770356 with a total cost of £ 530989673. PR annual cost accounts for 2% of total annual costs. | M77: =IF(M28=0,"","In your benchmark area it is estimated that "&ROUND(M28,0)&" people have COPD, with "&ROUND(M37,0)&" people graded as MRC3 and above, of these "&ROUND(M38,0)&" ("&ROUND(P38*100,0)&"%) are offered PR "&ROUND(M40,0)&" ("&ROUND(P40*100,0)&"%) people graded MRC3 or above complete PR. In a year this population will have "&ROUND(P49,0)&" hospital and "&ROUND(P55,0)&" primare care exacerbations. Exacerbations will cost £ "&ROUND(O64,0)&" and PR will cost £ "&ROUND(O70,0)&" with a total cost of £ "&ROUND(O72,0)&". PR annual cost accounts for "&ROUND(P70*100,1)&"% of total annual costs.") -> In your benchmark area it is estimated that 1667600 people have COPD, with 413831 people graded as MRC3 and above, of these 62075 (100%) are offered PR 26003 (42%) people graded MRC3 or above complete PR. In a year this population will have 200829 hospital and 1138032 primare care exacerbations. Exacerbations will cost £ 520219317 and PR will cost £ 10770356 with a total cost of £ 530989673. PR annual cost accounts for 2% of total annual costs.
C121: Forecast Results | G121: Current Values - Last 12 Months | M121: Forecast Values - Next 12 Months
B124: Population Data | BA124: High | BB124: 2
AT125: 1 | AW125: 2 | AZ125: 3 | BA125: Low | BB125: 3
C126: Population Data (click for info) | G126: ="Selected "&$T$15&" - "&$O$15&" - Last 12 Months" -> Selected Country - England - Last 12 Months | M126: ="Selected "&$T$15&" - "&$O$15&" - Next 12 Months" -> Selected Country - England - Next 12 Months | AN126: Range Graph Data Table
G127: Population | H127: Denominator | I127: Exceptions | J127: Average % | M127: Population | N127: Denominator | O127: Percentage | P127: % of Estimated COPD Population | AN127: Range | AO127: Start | AP127: Min | AQ127: Boundary | AR127: Max | AS127: End | AT127: Better | AU127: Similar | AV127: Worse | AW127: Lower | AX127: Similar | AY127: Higher | AZ127: Not Compared | BA127: Positive Result | BB127: Shading
C128: Population estimated by model to have COPD (2012 model, being updated) | G128: =IFERROR(SUMIFS('Country Data'!$W$10:$W$14,'Country Data'!$B$10:$B$14,$N$15),0) -> 1667599.939 | H128: =IFERROR(SUMIFS('Country Data'!$X$10:$X$14,'Country Data'!$B$10:$B$14,$N$15),0) -> 56817654 | I128: =IFERROR(SUMIFS('Country Data'!$Y$10:$Y$14,'Country Data'!$B$10:$B$14,$N$15),0) -> 0 | J128: =G128/H128 -> 0.02935003158 | K128: =J128 -> 0.02935003158 | M128: =G128 -> 1667599.939 | N128: 56817654 | O128: 0 | P128: 0.02935003158 | Q128: 0.02935003158 | AN128: =MAX(ABS(Q128-M128),ABS(M128-N128))*2 -> 110300108.1 | AO128: =IF(AN128<=0.001,0.4995,((AN128/2)-ABS(M128-N128))/AN128) -> 0 | AP128: =0.4995-AO128 -> 0.4995 | AQ128: 0.001 | AR128: =IF(AN128<=0.001,0,((Q128-M128)/AN128)-0.0005) -> -0.01561875136 | AS128: =0.4995-AR128 -> 0.5151187514 | AT128: =IF(AN128<=0.001,0.5,IF(BB128=1,IF(ABS(M128-J128)/AN128<=10%,-0.01,IF(BA128="High",IF(J128>=M128,(J128-(M128-AN128/2))/AN128,-0.01),IF(J128<=M128,(J128-(M128-AN128/2))/AN128,-0.01))),-0.01)) -> -0.01 | AU128: =IF(AN128<=0.001,-0.01,IF(BB128=1,IF(ABS(M128-J128)/AN128<=10%,(J128-(M128-AN128/2))/AN128,-0.01),-0.01)) -> 0.4848812486 | AV128: =IF(AN128<=0.001,-0.01,IF(BB128=1,IF(ABS(M128-J128)/AN128<=10%,-0.01,IF(BA128="High",IF(J128<=M128,(J128-(M128-AN128/2))/AN128,-0.01),IF(J128>=M128,(J128-(M128-AN128/2))/AN128,-0.01))),-0.01)) -> -0.01 | AW128: =IF(AN128<=0.001,-0.01,IF(BB128=2,IF(ABS(M128-J128)/AN128<=10%,-0.01,IF(BA128="High",IF(J128>=M128,(J128-(M128-AN128/2))/AN128,-0.01),IF(J128<=M128,(J128-(M128-AN128/2))/AN128,-0.01))),-0.01)) -> -0.01 | AX128: =IF(AN128<=0.001,-0.01,IF(BB128=2,IF(ABS(M128-J128)/AN128<=10%,(J128-(M128-AN128/2))/AN128,-0.01),-0.01)) -> -0.01 | AY128: =IF(AN128<=0.001,-0.01,IF(BB128=2,IF(ABS(M128-J128)/AN128<=10%,-0.01,IF(BA128="High",IF(J128<=M128,(J128-(M128-AN128/2))/AN128,-0.01),IF(J128>=M128,(J128-(M128-AN128/2))/AN128,-0.01))),-0.01)) -> -0.01 | AZ128: =IF(AN128<=0.001,-0.01,IF(BB128=3,(J128-(M128-AN128/2))/AN128,-0.01)) -> -0.01 | BA128: High | BB128: 1
C129: Registered population diagnosed with COPD (QOF) | G129: =IFERROR(SUMIFS('Country Data'!$Q$10:$Q$14,'Country Data'!$B$10:$B$14,$N$15),0) -> 1034578 | H129: =IFERROR(SUMIFS('Country Data'!$R$10:$R$14,'Country Data'!$B$10:$B$14,$N$15),0) -> 56817654 | I129: =IFERROR(SUMIFS('Country Data'!$S$10:$S$14,'Country Data'!$B$10:$B$14,$N$15),0) -> 477392 | J129: =G129/H129 -> 0.01820874195 | K129: =J129 -> 0.01820874195 | M129: 1034578 | N129: 56817654 | O129: 477392 | P129: 0.01820874195 | Q129: 0.01820874195 | AN129: =MAX(ABS(Q129-M129),ABS(M129-N129))*2 -> 111566152 | AO129: =IF(AN129<=0.001,0.4995,((AN129/2)-ABS(M129-N129))/AN129) -> 0 | AP129: =0.4995-AO129 -> 0.4995 | AQ129: 0.001 | AR129: =IF(AN129<=0.001,0,((Q129-M129)/AN129)-0.0005) -> -0.009773224569 | AS129: =0.4995-AR129 -> 0.5092732246 | AT129: =IF(AN129<=0.001,0.5,IF(BB129=1,IF(ABS(M129-J129)/AN129<=10%,-0.01,IF(BA129="High",IF(J129>=M129,(J129-(M129-AN129/2))/AN129,-0.01),IF(J129<=M129,(J129-(M129-AN129/2))/AN129,-0.01))),-0.01)) -> -0.01 | AU129: =IF(AN129<=0.001,-0.01,IF(BB129=1,IF(ABS(M129-J129)/AN129<=10%,(J129-(M129-AN129/2))/AN129,-0.01),-0.01)) -> 0.4907267754 | AV129: =IF(AN129<=0.001,-0.01,IF(BB129=1,IF(ABS(M129-J129)/AN129<=10%,-0.01,IF(BA129="High",IF(J129<=M129,(J129-(M129-AN129/2))/AN129,-0.01),IF(J129>=M129,(J129-(M129-AN129/2))/AN129,-0.01))),-0.01)) -> -0.01 | AW129: =IF(AN129<=0.001,-0.01,IF(BB129=2,IF(ABS(M129-J129)/AN129<=10%,-0.01,IF(BA129="High",IF(J129>=M129,(J129-(M129-AN129/2))/AN129,-0.01),IF(J129<=M129,(J129-(M129-AN129/2))/AN129,-0.01))),-0.01)) -> -0.01 | AX129: =IF(AN129<=0.001,-0.01,IF(BB129=2,IF(ABS(M129-J129)/AN129<=10%,(J129-(M129-AN129/2))/AN129,-0.01),-0.01)) -> -0.01 | AY129: =IF(AN129<=0.001,-0.01,IF(BB129=2,IF(ABS(M129-J129)/AN129<=10%,-0.01,IF(BA129="High",IF(J129<=M129,(J129-(M129-AN129/2))/AN129,-0.01),IF(J129>=M129,(J129-(M129-AN129/2))/AN129,-0.01))),-0.01)) -> -0.01 | AZ129: =IF(AN129<=0.001,-0.01,IF(BB129=3,(J129-(M129-AN129/2))/AN129,-0.01)) -> -0.01 | BA129: High | BB129: 1
C130: Registered population estimated to be undiagnosed COPD | G130: =IFERROR(SUMIFS('Country Data'!$Z$10:$Z$14,'Country Data'!$B$10:$B$14,$N$15),0) -> 652259.0681 | H130: =IFERROR(SUMIFS('Country Data'!$AA$10:$AA$14,'Country Data'!$B$10:$B$14,$N$15),0) -> 56817654 | I130: =IFERROR(SUMIFS('Country Data'!$AB$10:$AB$14,'Country Data'!$B$10:$B$14,$N$15),0) -> 0 | J130: =G130/H130 -> 0.01147986624 | K130: =J130 -> 0.01147986624 | M130: 652259.0681 | N130: 56817654 | O130: 0 | P130: 0.01147986624 | Q130: 0.01147986624 | AN130: =MAX(ABS(Q130-M130),ABS(M130-N130))*2 -> 112330789.9 | AO130: =IF(AN130<=0.001,0.4995,((AN130/2)-ABS(M130-N130))/AN130) -> 0 | AP130: =0.4995-AO130 -> 0.4995 | AQ130: 0.001 | AR130: =IF(AN130<=0.001,0,((Q130-M130)/AN130)-0.0005) -> -0.006306591918 | AS130: =0.4995-AR130 -> 0.5058065919 | AT130: =IF(AN130<=0.001,0.5,IF(BB130=1,IF(ABS(M130-J130)/AN130<=10%,-0.01,IF(BA130="High",IF(J130>=M130,(J130-(M130-AN130/2))/AN130,-0.01),IF(J130<=M130,(J130-(M130-AN130/2))/AN130,-0.01))),-0.01)) -> -0.01 | AU130: =IF(AN130<=0.001,-0.01,IF(BB130=1,IF(ABS(M130-J130)/AN130<=10%,(J130-(M130-AN130/2))/AN130,-0.01),-0.01)) -> 0.4941934081 | AV130: =IF(AN130<=0.001,-0.01,IF(BB130=1,IF(ABS(M130-J130)/AN130<=10%,-0.01,IF(BA130="High",IF(J130<=M130,(J130-(M130-AN130/2))/AN130,-0.01),IF(J130>=M130,(J130-(M130-AN130/2))/AN130,-0.01))),-0.01)) -> -0.01 | AW130: =IF(AN130<=0.001,-0.01,IF(BB130=2,IF(ABS(M130-J130)/AN130<=10%,-0.01,IF(BA130="High",IF(J130>=M130,(J130-(M130-AN130/2))/AN130,-0.01),IF(J130<=M130,(J130-(M130-AN130/2))/AN130,-0.01))),-0.01)) -> -0.01 | AX130: =IF(AN130<=0.001,-0.01,IF(BB130=2,IF(ABS(M130-J130)/AN130<=10%,(J130-(M130-AN130/2))/AN130,-0.01),-0.01)) -> -0.01 | AY130: =IF(AN130<=0.001,-0.01,IF(BB130=2,IF(ABS(M130-J130)/AN130<=10%,-0.01,IF(BA130="High",IF(J130<=M130,(J130-(M130-AN130/2))/AN130,-0.01),IF(J130>=M130,(J130-(M130-AN130/2))/AN130,-0.01))),-0.01)) -> -0.01 | AZ130: =IF(AN130<=0.001,-0.01,IF(BB130=3,(J130-(M130-AN130/2))/AN130,-0.01)) -> -0.01 | BA130: Low | BB130: 1
B133: Pulmonary Rehab | D133: `
C135: Pulmonary Rehab (click for info) | G135: ="Selected "&$T$15&" - "&$O$15&" - Last 12 Months" -> Selected Country - England - Last 12 Months | M135: ="Selected "&$T$15&" - "&$O$15&" - Next 12 Months" -> Selected Country - England - Next 12 Months | U135: Change
G136: Population | H136: Denominator | I136: Percentage | J136: % of referrals to completion | M136: Population | N136: Denominator | O136: Percentage | P136: % of referrals to completion | U136: Population | V136: Percentage
C137: Diagnosed COPD population MRC3 and above - % of population may be eligible for PR (last 12 months) | G137: =H137*I137 -> 413831.2 | H137: =G129 -> 1034578 | I137: ='User Input'!$F$10 -> 0.4 | K137: =J137 -> 0 | M137: =N137*O137 -> 413831.2 | N137: =M129 -> 1034578 | O137: ='User Input'!$H$10 -> 0.4 | Q137: =P137 -> 0 | U137: =M137-G137 -> 0 | V137: =(U137/G137) -> 0 | W137: =V137 -> 0 | AN137: =MAX(ABS(Q137-M137),ABS(M137-N137))*2 -> 1241493.6 | AO137: =IF(AN137<=0.001,0.4995,((AN137/2)-ABS(M137-N137))/AN137) -> 0 | AP137: =0.4995-AO137 -> 0.4995 | AQ137: 0.001 | AR137: =IF(AN137<=0.001,0,((Q137-M137)/AN137)-0.0005) -> -0.3338333333 | AS137: =0.4995-AR137 -> 0.8333333333 | AT137: =IF(AN137<=0.001,0.5,IF(BB137=1,IF(ABS(M137-I137)/AN137<=10%,-0.01,IF(BA137="High",IF(I137>=M137,(I137-(M137-AN137/2))/AN137,-0.01),IF(I137<=M137,(I137-(M137-AN137/2))/AN137,-0.01))),-0.01)) -> -0.01 | AU137: =IF(AN137<=0.001,-0.01,IF(BB137=1,IF(ABS(M137-I137)/AN137<=10%,(I137-(M137-AN137/2))/AN137,-0.01),-0.01)) -> -0.01 | AV137: =IF(AN137<=0.001,-0.01,IF(BB137=1,IF(ABS(M137-I137)/AN137<=10%,-0.01,IF(BA137="High",IF(I137<=M137,(I137-(M137-AN137/2))/AN137,-0.01),IF(I137>=M137,(I137-(M137-AN137/2))/AN137,-0.01))),-0.01)) -> 0.1666669889 | AW137: =IF(AN137<=0.001,-0.01,IF(BB137=2,IF(ABS(M137-I137)/AN137<=10%,-0.01,IF(BA137="High",IF(I137>=M137,(I137-(M137-AN137/2))/AN137,-0.01),IF(I137<=M137,(I137-(M137-AN137/2))/AN137,-0.01))),-0.01)) -> -0.01 | AX137: =IF(AN137<=0.001,-0.01,IF(BB137=2,IF(ABS(M137-I137)/AN137<=10%,(I137-(M137-AN137/2))/AN137,-0.01),-0.01)) -> -0.01 | AY137: =IF(AN137<=0.001,-0.01,IF(BB137=2,IF(ABS(M137-I137)/AN137<=10%,-0.01,IF(BA137="High",IF(I137<=M137,(I137-(M137-AN137/2))/AN137,-0.01),IF(I137>=M137,(I137-(M137-AN137/2))/AN137,-0.01))),-0.01)) -> -0.01 | AZ137: =IF(AN137<=0.001,-0.01,IF(BB137=3,(I137-(M137-AN137/2))/AN137,-0.01)) -> -0.01 | BA137: High | BB137: 1
C138: Diagnosed COPD population MRC3 and above - referred to PR (last 12 months) | G138: =H138*I138 -> 62074.68 | H138: =G137 -> 413831.2 | I138: ='User Input'!$F$14 -> 0.15 | J138: 1 | K138: =J138 -> 1 | M138: =N138*O138 -> 62074.68 | N138: =M137 -> 413831.2 | O138: ='User Input'!$H$14 -> 0.15 | P138: 1 | Q138: =P138 -> 1 | U138: =M138-G138 -> 0 | V138: =(U138/G138) -> 0 | W138: =V138 -> 0 | AN138: =MAX(ABS(Q138-M138),ABS(M138-N138))*2 -> 703513.04 | AO138: =IF(AN138<=0.001,0.4995,((AN138/2)-ABS(M138-N138))/AN138) -> 0 | AP138: =0.4995-AO138 -> 0.4995 | AQ138: 0.001 | AR138: =IF(AN138<=0.001,0,((Q138-M138)/AN138)-0.0005) -> -0.08873387268 | AS138: =0.4995-AR138 -> 0.5882338727 | AT138: =IF(AN138<=0.001,0.5,IF(BB138=1,IF(ABS(M138-I138)/AN138<=10%,-0.01,IF(BA138="High",IF(I138>=M138,(I138-(M138-AN138/2))/AN138,-0.01),IF(I138<=M138,(I138-(M138-AN138/2))/AN138,-0.01))),-0.01)) -> -0.01 | AU138: =IF(AN138<=0.001,-0.01,IF(BB138=1,IF(ABS(M138-I138)/AN138<=10%,(I138-(M138-AN138/2))/AN138,-0.01),-0.01)) -> 0.4117649191 | AV138: =IF(AN138<=0.001,-0.01,IF(BB138=1,IF(ABS(M138-I138)/AN138<=10%,-0.01,IF(BA138="High",IF(I138<=M138,(I138-(M138-AN138/2))/AN138,-0.01),IF(I138>=M138,(I138-(M138-AN138/2))/AN138,-0.01))),-0.01)) -> -0.01 | AW138: =IF(AN138<=0.001,-0.01,IF(BB138=2,IF(ABS(M138-I138)/AN138<=10%,-0.01,IF(BA138="High",IF(I138>=M138,(I138-(M138-AN138/2))/AN138,-0.01),IF(I138<=M138,(I138-(M138-AN138/2))/AN138,-0.01))),-0.01)) -> -0.01 | AX138: =IF(AN138<=0.001,-0.01,IF(BB138=2,IF(ABS(M138-I138)/AN138<=10%,(I138-(M138-AN138/2))/AN138,-0.01),-0.01)) -> -0.01 | AY138: =IF(AN138<=0.001,-0.01,IF(BB138=2,IF(ABS(M138-I138)/AN138<=10%,-0.01,IF(BA138="High",IF(I138<=M138,(I138-(M138-AN138/2))/AN138,-0.01),IF(I138>=M138,(I138-(M138-AN138/2))/AN138,-0.01))),-0.01)) -> -0.01 | AZ138: =IF(AN138<=0.001,-0.01,IF(BB138=3,(I138-(M138-AN138/2))/AN138,-0.01)) -> -0.01 | BA138: High | BB138: 1
C139: Diagnosed COPD population MRC3 and above - starting PR (last 12 months) | G139: =H139*I139 -> 36624.0612 | H139: =G138 -> 62074.68 | I139: ='User Input'!$F$16 -> 0.59 | J139: =I139*J138 -> 0.59 | K139: =J139 -> 0.59 | M139: =N139*O139 -> 36624.0612 | N139: =M138 -> 62074.68 | O139: ='User Input'!$H$16 -> 0.59 | P139: =O139*P138 -> 0.59 | Q139: =P139 -> 0.59 | U139: =M139-G139 -> 0 | V139: =(U139/G139) -> 0 | W139: =V139 -> 0 | AN139: =MAX(ABS(Q139-M139),ABS(M139-N139))*2 -> 73246.9424 | AO139: =IF(AN139<=0.001,0.4995,((AN139/2)-ABS(M139-N139))/AN139) -> 0.1525367754 | AP139: =0.4995-AO139 -> 0.3469632246 | AQ139: 0.001 | AR139: =IF(AN139<=0.001,0,((Q139-M139)/AN139)-0.0005) -> -0.5005 | AS139: =0.4995-AR139 -> 1 | AT139: =IF(AN139<=0.001,0.5,IF(BB139=1,IF(ABS(M139-I139)/AN139<=10%,-0.01,IF(BA139="High",IF(I139>=M139,(I139-(M139-AN139/2))/AN139,-0.01),IF(I139<=M139,(I139-(M139-AN139/2))/AN139,-0.01))),-0.01)) -> -0.01 | AU139: =IF(AN139<=0.001,-0.01,IF(BB139=1,IF(ABS(M139-I139)/AN139<=10%,(I139-(M139-AN139/2))/AN139,-0.01),-0.01)) -> -0.01 | AV139: =IF(AN139<=0.001,-0.01,IF(BB139=1,IF(ABS(M139-I139)/AN139<=10%,-0.01,IF(BA139="High",IF(I139<=M139,(I139-(M139-AN139/2))/AN139,-0.01),IF(I139>=M139,(I139-(M139-AN139/2))/AN139,-0.01))),-0.01)) -> 4.768019598e-17 | AW139: =IF(AN139<=0.001,-0.01,IF(BB139=2,IF(ABS(M139-I139)/AN139<=10%,-0.01,IF(BA139="High",IF(I139>=M139,(I139-(M139-AN139/2))/AN139,-0.01),IF(I139<=M139,(I139-(M139-AN139/2))/AN139,-0.01))),-0.01)) -> -0.01 | AX139: =IF(AN139<=0.001,-0.01,IF(BB139=2,IF(ABS(M139-I139)/AN139<=10%,(I139-(M139-AN139/2))/AN139,-0.01),-0.01)) -> -0.01 | AY139: =IF(AN139<=0.001,-0.01,IF(BB139=2,IF(ABS(M139-I139)/AN139<=10%,-0.01,IF(BA139="High",IF(I139<=M139,(I139-(M139-AN139/2))/AN139,-0.01),IF(I139>=M139,(I139-(M139-AN139/2))/AN139,-0.01))),-0.01)) -> -0.01 | AZ139: =IF(AN139<=0.001,-0.01,IF(BB139=3,(I139-(M139-AN139/2))/AN139,-0.01)) -> -0.01 | BA139: High | BB139: 1
C140: Diagnosed COPD population MRC3 and above - completing PR (last 12 months) | G140: =H140*I140 -> 26003.08345 | H140: =G139 -> 36624.0612 | I140: ='User Input'!$F$18 -> 0.71 | J140: =I140*J139 -> 0.4189 | K140: =J140 -> 0.4189 | M140: =N140*O140 -> 26003.08345 | N140: =M139 -> 36624.0612 | O140: ='User Input'!$H$18 -> 0.71 | P140: =O140*P139 -> 0.4189 | Q140: =P140 -> 0.4189 | U140: =M140-G140 -> 0 | V140: =(U140/G140) -> 0 | W140: =V140 -> 0 | AN140: =MAX(ABS(Q140-M140),ABS(M140-N140))*2 -> 52005.3291 | AO140: =IF(AN140<=0.001,0.4995,((AN140/2)-ABS(M140-N140))/AN140) -> 0.2957713578 | AP140: =0.4995-AO140 -> 0.2037286422 | AQ140: 0.001 | AR140: =IF(AN140<=0.001,0,((Q140-M140)/AN140)-0.0005) -> -0.5005 | AS140: =0.4995-AR140 -> 1 | AT140: =IF(AN140<=0.001,0.5,IF(BB140=1,IF(ABS(M140-I140)/AN140<=10%,-0.01,IF(BA140="High",IF(I140>=M140,(I140-(M140-AN140/2))/AN140,-0.01),IF(I140<=M140,(I140-(M140-AN140/2))/AN140,-0.01))),-0.01)) -> -0.01 | AU140: =IF(AN140<=0.001,-0.01,IF(BB140=1,IF(ABS(M140-I140)/AN140<=10%,(I140-(M140-AN140/2))/AN140,-0.01),-0.01)) -> -0.01 | AV140: =IF(AN140<=0.001,-0.01,IF(BB140=1,IF(ABS(M140-I140)/AN140<=10%,-0.01,IF(BA140="High",IF(I140<=M140,(I140-(M140-AN140/2))/AN140,-0.01),IF(I140>=M140,(I140-(M140-AN140/2))/AN140,-0.01))),-0.01)) -> 5.597503275e-06 | AW140: =IF(AN140<=0.001,-0.01,IF(BB140=2,IF(ABS(M140-I140)/AN140<=10%,-0.01,IF(BA140="High",IF(I140>=M140,(I140-(M140-AN140/2))/AN140,-0.01),IF(I140<=M140,(I140-(M140-AN140/2))/AN140,-0.01))),-0.01)) -> -0.01 | AX140: =IF(AN140<=0.001,-0.01,IF(BB140=2,IF(ABS(M140-I140)/AN140<=10%,(I140-(M140-AN140/2))/AN140,-0.01),-0.01)) -> -0.01 | AY140: =IF(AN140<=0.001,-0.01,IF(BB140=2,IF(ABS(M140-I140)/AN140<=10%,-0.01,IF(BA140="High",IF(I140<=M140,(I140-(M140-AN140/2))/AN140,-0.01),IF(I140>=M140,(I140-(M140-AN140/2))/AN140,-0.01))),-0.01)) -> -0.01 | AZ140: =IF(AN140<=0.001,-0.01,IF(BB140=3,(I140-(M140-AN140/2))/AN140,-0.01)) -> -0.01 | BA140: High | BB140: 1
B143: COPD Exacerbations
J144: 80
C145: Hospital - Exacerbations (click for info) | G145: ="Selected "&$T$15&" - "&$O$15&" - Last 12 Months" -> Selected Country - England - Last 12 Months | M145: ="Selected "&$T$15&" - "&$O$15&" - Next 12 Months" -> Selected Country - England - Next 12 Months | U145: Change
G146: Population | H146: % Hospital | I146: Ex Rate | J146: Total Exacerbations per year | M146: Population | N146: % Hospital | O146: Ex Rate | P146: Total Exacerbations per year | U146: Total Ex | V146: Percentage
C147: Hospital Exacerbations for estimated COPD population MRC3 and above - completing PR | G147: =G140 -> 26003.08345 | H147: ='User Input'!$F$27 -> 0.15 | I147: ='User Input'!$F$25 -> 2.106 | J147: =G147*H147*I147 -> 8214.374062 | K147: =J147 -> 8214.374062 | M147: =M140 -> 26003.08345 | N147: ='User Input'!$H$27 -> 0.15 | O147: ='User Input'!$H$25 -> 2.106 | P147: =M147*N147*O147 -> 8214.374062 | Q147: =P147 -> 8214.374062 | U147: =P147-J147 -> 0 | V147: =(U147/J147) -> 0 | W147: =V147 -> 0 | AN147: =MAX(ABS(Q147-M147),ABS(M147-N147))*2 -> 52005.8669 | AO147: =IF(AN147<=0.001,0.4995,((AN147/2)-ABS(M147-N147))/AN147) -> 0 | AP147: =0.4995-AO147 -> 0.4995 | AQ147: 0.001 | AR147: =IF(AN147<=0.001,0,((Q147-M147)/AN147)-0.0005) -> -0.3425519731 | AS147: =0.4995-AR147 -> 0.8420519731 | AT147: =IF(AN147<=0.001,0.5,IF(BB147=1,IF(ABS(M147-I147)/AN147<=10%,-0.01,IF(BA147="High",IF(I147>=M147,(I147-(M147-AN147/2))/AN147,-0.01),IF(I147<=M147,(I147-(M147-AN147/2))/AN147,-0.01))),-0.01)) -> 3.761114114e-05 | AU147: =IF(AN147<=0.001,-0.01,IF(BB147=1,IF(ABS(M147-I147)/AN147<=10%,(I147-(M147-AN147/2))/AN147,-0.01),-0.01)) -> -0.01 | AV147: =IF(AN147<=0.001,-0.01,IF(BB147=1,IF(ABS(M147-I147)/AN147<=10%,-0.01,IF(BA147="High",IF(I147<=M147,(I147-(M147-AN147/2))/AN147,-0.01),IF(I147>=M147,(I147-(M147-AN147/2))/AN147,-0.01))),-0.01)) -> -0.01 | AW147: =IF(AN147<=0.001,-0.01,IF(BB147=2,IF(ABS(M147-I147)/AN147<=10%,-0.01,IF(BA147="High",IF(I147>=M147,(I147-(M147-AN147/2))/AN147,-0.01),IF(I147<=M147,(I147-(M147-AN147/2))/AN147,-0.01))),-0.01)) -> -0.01 | AX147: =IF(AN147<=0.001,-0.01,IF(BB147=2,IF(ABS(M147-I147)/AN147<=10%,(I147-(M147-AN147/2))/AN147,-0.01),-0.01)) -> -0.01 | AY147: =IF(AN147<=0.001,-0.01,IF(BB147=2,IF(ABS(M147-I147)/AN147<=10%,-0.01,IF(BA147="High",IF(I147<=M147,(I147-(M147-AN147/2))/AN147,-0.01),IF(I147>=M147,(I147-(M147-AN147/2))/AN147,-0.01))),-0.01)) -> -0.01 | AZ147: =IF(AN147<=0.001,-0.01,IF(BB147=3,(I147-(M147-AN147/2))/AN147,-0.01)) -> -0.01 | BA147: low | BB147: 1
C148: Hospital Exacerbations for estimated COPD population MRC3 and above - not completing PR | G148: =G137-G140 -> 387828.1165 | H148: ='User Input'!$F$27 -> 0.15 | I148: ='User Input'!$F$23 -> 3.311 | J148: =G148*H148*I148 -> 192614.8341 | K148: =J148 -> 192614.8341 | M148: =M137-M140 -> 387828.1165 | N148: ='User Input'!$H$27 -> 0.15 | O148: ='User Input'!$H$23 -> 3.311 | P148: =M148*N148*O148 -> 192614.8341 | Q148: =P148 -> 192614.8341 | U148: =P148-J148 -> 0 | V148: =(U148/J148) -> 0 | W148: =V148 -> 0 | AN148: =MAX(ABS(Q148-M148),ABS(M148-N148))*2 -> 775655.9331 | AO148: =IF(AN148<=0.001,0.4995,((AN148/2)-ABS(M148-N148))/AN148) -> 0 | AP148: =0.4995-AO148 -> 0.4995 | AQ148: 0.001 | AR148: =IF(AN148<=0.001,0,((Q148-M148)/AN148)-0.0005) -> -0.2521750973 | AS148: =0.4995-AR148 -> 0.7516750973 | AT148: =IF(AN148<=0.001,0.5,IF(BB148=1,IF(ABS(M148-I148)/AN148<=10%,-0.01,IF(BA148="High",IF(I148>=M148,(I148-(M148-AN148/2))/AN148,-0.01),IF(I148<=M148,(I148-(M148-AN148/2))/AN148,-0.01))),-0.01)) -> 4.075260518e-06 | AU148: =IF(AN148<=0.001,-0.01,IF(BB148=1,IF(ABS(M148-I148)/AN148<=10%,(I148-(M148-AN148/2))/AN148,-0.01),-0.01)) -> -0.01 | AV148: =IF(AN148<=0.001,-0.01,IF(BB148=1,IF(ABS(M148-I148)/AN148<=10%,-0.01,IF(BA148="High",IF(I148<=M148,(I148-(M148-AN148/2))/AN148,-0.01),IF(I148>=M148,(I148-(M148-AN148/2))/AN148,-0.01))),-0.01)) -> -0.01 | AW148: =IF(AN148<=0.001,-0.01,IF(BB148=2,IF(ABS(M148-I148)/AN148<=10%,-0.01,IF(BA148="High",IF(I148>=M148,(I148-(M148-AN148/2))/AN148,-0.01),IF(I148<=M148,(I148-(M148-AN148/2))/AN148,-0.01))),-0.01)) -> -0.01 | AX148: =IF(AN148<=0.001,-0.01,IF(BB148=2,IF(ABS(M148-I148)/AN148<=10%,(I148-(M148-AN148/2))/AN148,-0.01),-0.01)) -> -0.01 | AY148: =IF(AN148<=0.001,-0.01,IF(BB148=2,IF(ABS(M148-I148)/AN148<=10%,-0.01,IF(BA148="High",IF(I148<=M148,(I148-(M148-AN148/2))/AN148,-0.01),IF(I148>=M148,(I148-(M148-AN148/2))/AN148,-0.01))),-0.01)) -> -0.01 | AZ148: =IF(AN148<=0.001,-0.01,IF(BB148=3,(I148-(M148-AN148/2))/AN148,-0.01)) -> -0.01 | BA148: low | BB148: 1
C149: Hospital exacerbations - Total | G149: =G137 -> 413831.2 | H149: ='User Input'!$F$27 -> 0.15 | I149: =J149/(G149*H149) -> 3.235283825 | J149: =J147+J148 -> 200829.2081 | K149: =J149 -> 200829.2081 | M149: =M137 -> 413831.2 | N149: ='User Input'!$H$27 -> 0.15 | O149: =P149/(M149*N149) -> 3.235283825 | P149: =P147+P148 -> 200829.2081 | Q149: =P149 -> 200829.2081 | U149: =P149-J149 -> 0 | V149: =(U149/J149) -> 0 | W149: =V149 -> 0 | AN149: =MAX(ABS(Q149-M149),ABS(M149-N149))*2 -> 827662.1 | AO149: =IF(AN149<=0.001,0.4995,((AN149/2)-ABS(M149-N149))/AN149) -> 0 | AP149: =0.4995-AO149 -> 0.4995 | AQ149: 0.001 | AR149: =IF(AN149<=0.001,0,((Q149-M149)/AN149)-0.0005) -> -0.2578538064 | AS149: =0.4995-AR149 -> 0.7573538064 | AT149: =IF(AN149<=0.001,0.5,IF(BB149=1,IF(ABS(M149-I149)/AN149<=10%,-0.01,IF(BA149="High",IF(I149>=M149,(I149-(M149-AN149/2))/AN149,-0.01),IF(I149<=M149,(I149-(M149-AN149/2))/AN149,-0.01))),-0.01)) -> 3.727709442e-06 | AU149: =IF(AN149<=0.001,-0.01,IF(BB149=1,IF(ABS(M149-I149)/AN149<=10%,(I149-(M149-AN149/2))/AN149,-0.01),-0.01)) -> -0.01 | AV149: =IF(AN149<=0.001,-0.01,IF(BB149=1,IF(ABS(M149-I149)/AN149<=10%,-0.01,IF(BA149="High",IF(I149<=M149,(I149-(M149-AN149/2))/AN149,-0.01),IF(I149>=M149,(I149-(M149-AN149/2))/AN149,-0.01))),-0.01)) -> -0.01 | AW149: =IF(AN149<=0.001,-0.01,IF(BB149=2,IF(ABS(M149-I149)/AN149<=10%,-0.01,IF(BA149="High",IF(I149>=M149,(I149-(M149-AN149/2))/AN149,-0.01),IF(I149<=M149,(I149-(M149-AN149/2))/AN149,-0.01))),-0.01)) -> -0.01 | AX149: =IF(AN149<=0.001,-0.01,IF(BB149=2,IF(ABS(M149-I149)/AN149<=10%,(I149-(M149-AN149/2))/AN149,-0.01),-0.01)) -> -0.01 | AY149: =IF(AN149<=0.001,-0.01,IF(BB149=2,IF(ABS(M149-I149)/AN149<=10%,-0.01,IF(BA149="High",IF(I149<=M149,(I149-(M149-AN149/2))/AN149,-0.01),IF(I149>=M149,(I149-(M149-AN149/2))/AN149,-0.01))),-0.01)) -> -0.01 | AZ149: =IF(AN149<=0.001,-0.01,IF(BB149=3,(I149-(M149-AN149/2))/AN149,-0.01)) -> -0.01 | BA149: low | BB149: 1
C151: Primary Care - Exacerbations (click for info) | G151: ="Selected "&$T$15&" - "&$O$15&" - Last 12 Months" -> Selected Country - England - Last 12 Months | M151: ="Selected "&$T$15&" - "&$O$15&" - Next 12 Months" -> Selected Country - England - Next 12 Months | U151: Change
G152: Population | H152: % GP | I152: Ex Rate | J152: Total Exacerbations per year | M152: Population | N152: % Hospital | O152: Ex Rate | P152: Total Exacerbations per year | U152: Total Ex | V152: Percentage
C153: Primary Care Exacerbations for estimated COPD population MRC3 and above - completing PR | G153: =G140 -> 26003.08345 | H153: =1-'User Input'!$F$27 -> 0.85 | I153: ='User Input'!$F$25 -> 2.106 | J153: =G153*H153*I153 -> 46548.11969 | K153: =J153 -> 46548.11969 | M153: =M140 -> 26003.08345 | N153: =1-'User Input'!$H$27 -> 0.85 | O153: ='User Input'!$H$25 -> 2.106 | P153: =M153*N153*O153 -> 46548.11969 | Q153: =P153 -> 46548.11969 | U153: =P153-J153 -> 0 | V153: =(U153/J153) -> 0 | W153: =V153 -> 0 | AN153: =MAX(ABS(Q153-M153),ABS(M153-N153))*2 -> 52004.4669 | AO153: =IF(AN153<=0.001,0.4995,((AN153/2)-ABS(M153-N153))/AN153) -> 0 | AP153: =0.4995-AO153 -> 0.4995 | AQ153: 0.001 | AR153: =IF(AN153<=0.001,0,((Q153-M153)/AN153)-0.0005) -> 0.394562914 | AS153: =0.4995-AR153 -> 0.104937086 | AT153: =IF(AN153<=0.001,0.5,IF(BB153=1,IF(ABS(M153-I153)/AN153<=10%,-0.01,IF(BA153="High",IF(I153>=M153,(I153-(M153-AN153/2))/AN153,-0.01),IF(I153<=M153,(I153-(M153-AN153/2))/AN153,-0.01))),-0.01)) -> 2.415177147e-05 | AU153: =IF(AN153<=0.001,-0.01,IF(BB153=1,IF(ABS(M153-I153)/AN153<=10%,(I153-(M153-AN153/2))/AN153,-0.01),-0.01)) -> -0.01 | AV153: =IF(AN153<=0.001,-0.01,IF(BB153=1,IF(ABS(M153-I153)/AN153<=10%,-0.01,IF(BA153="High",IF(I153<=M153,(I153-(M153-AN153/2))/AN153,-0.01),IF(I153>=M153,(I153-(M153-AN153/2))/AN153,-0.01))),-0.01)) -> -0.01 | AW153: =IF(AN153<=0.001,-0.01,IF(BB153=2,IF(ABS(M153-I153)/AN153<=10%,-0.01,IF(BA153="High",IF(I153>=M153,(I153-(M153-AN153/2))/AN153,-0.01),IF(I153<=M153,(I153-(M153-AN153/2))/AN153,-0.01))),-0.01)) -> -0.01 | AX153: =IF(AN153<=0.001,-0.01,IF(BB153=2,IF(ABS(M153-I153)/AN153<=10%,(I153-(M153-AN153/2))/AN153,-0.01),-0.01)) -> -0.01 | AY153: =IF(AN153<=0.001,-0.01,IF(BB153=2,IF(ABS(M153-I153)/AN153<=10%,-0.01,IF(BA153="High",IF(I153<=M153,(I153-(M153-AN153/2))/AN153,-0.01),IF(I153>=M153,(I153-(M153-AN153/2))/AN153,-0.01))),-0.01)) -> -0.01 | AZ153: =IF(AN153<=0.001,-0.01,IF(BB153=3,(I153-(M153-AN153/2))/AN153,-0.01)) -> -0.01 | BA153: low | BB153: 1
C154: Primary Care Exacerbations for estimated COPD population MRC3 and above - not completing PR | G154: =G137-G140 -> 387828.1165 | H154: =1-'User Input'!$F$27 -> 0.85 | I154: ='User Input'!$F$23 -> 3.311 | J154: =G154*H154*I154 -> 1091484.06 | K154: =J154 -> 1091484.06 | M154: =M137-M140 -> 387828.1165 | N154: =1-'User Input'!$H$27 -> 0.85 | O154: ='User Input'!$H$23 -> 3.311 | P154: =M154*N154*O154 -> 1091484.06 | Q154: =P154 -> 1091484.06 | U154: =P154-J154 -> 0 | V154: =(U154/J154) -> 0 | W154: =V154 -> 0 | AN154: =MAX(ABS(Q154-M154),ABS(M154-N154))*2 -> 1407311.887 | AO154: =IF(AN154<=0.001,0.4995,((AN154/2)-ABS(M154-N154))/AN154) -> 0.2244198175 | AP154: =0.4995-AO154 -> 0.2750801825 | AQ154: 0.001 | AR154: =IF(AN154<=0.001,0,((Q154-M154)/AN154)-0.0005) -> 0.4995 | AS154: =0.4995-AR154 -> 0 | AT154: =IF(AN154<=0.001,0.5,IF(BB154=1,IF(ABS(M154-I154)/AN154<=10%,-0.01,IF(BA154="High",IF(I154>=M154,(I154-(M154-AN154/2))/AN154,-0.01),IF(I154<=M154,(I154-(M154-AN154/2))/AN154,-0.01))),-0.01)) -> 0.2244215662 | AU154: =IF(AN154<=0.001,-0.01,IF(BB154=1,IF(ABS(M154-I154)/AN154<=10%,(I154-(M154-AN154/2))/AN154,-0.01),-0.01)) -> -0.01 | AV154: =IF(AN154<=0.001,-0.01,IF(BB154=1,IF(ABS(M154-I154)/AN154<=10%,-0.01,IF(BA154="High",IF(I154<=M154,(I154-(M154-AN154/2))/AN154,-0.01),IF(I154>=M154,(I154-(M154-AN154/2))/AN154,-0.01))),-0.01)) -> -0.01 | AW154: =IF(AN154<=0.001,-0.01,IF(BB154=2,IF(ABS(M154-I154)/AN154<=10%,-0.01,IF(BA154="High",IF(I154>=M154,(I154-(M154-AN154/2))/AN154,-0.01),IF(I154<=M154,(I154-(M154-AN154/2))/AN154,-0.01))),-0.01)) -> -0.01 | AX154: =IF(AN154<=0.001,-0.01,IF(BB154=2,IF(ABS(M154-I154)/AN154<=10%,(I154-(M154-AN154/2))/AN154,-0.01),-0.01)) -> -0.01 | AY154: =IF(AN154<=0.001,-0.01,IF(BB154=2,IF(ABS(M154-I154)/AN154<=10%,-0.01,IF(BA154="High",IF(I154<=M154,(I154-(M154-AN154/2))/AN154,-0.01),IF(I154>=M154,(I154-(M154-AN154/2))/AN154,-0.01))),-0.01)) -> -0.01 | AZ154: =IF(AN154<=0.001,-0.01,IF(BB154=3,(I154-(M154-AN154/2))/AN154,-0.01)) -> -0.01 | BA154: low | BB154: 1
C155: Primary Care exacerbations - Total | G155: =G137 -> 413831.2 | H155: =1-'User Input'!$F$27 -> 0.85 | I155: =J155/(G155*H155) -> 3.235283825 | J155: =J153+J154 -> 1138032.179 | K155: =J155 -> 1138032.179 | M155: =M137 -> 413831.2 | N155: =1-'User Input'!$F$27 -> 0.85 | O155: =P155/(M155*N155) -> 3.235283825 | P155: =P153+P154 -> 1138032.179 | Q155: =P155 -> 1138032.179 | U155: =P155-J155 -> 0 | V155: =(U155/J155) -> 0 | W155: =V155 -> 0 | AN155: =MAX(ABS(Q155-M155),ABS(M155-N155))*2 -> 1448401.959 | AO155: =IF(AN155<=0.001,0.4995,((AN155/2)-ABS(M155-N155))/AN155) -> 0.2142848728 | AP155: =0.4995-AO155 -> 0.2852151272 | AQ155: 0.001 | AR155: =IF(AN155<=0.001,0,((Q155-M155)/AN155)-0.0005) -> 0.4995 | AS155: =0.4995-AR155 -> 0 | AT155: =IF(AN155<=0.001,0.5,IF(BB155=1,IF(ABS(M155-I155)/AN155<=10%,-0.01,IF(BA155="High",IF(I155>=M155,(I155-(M155-AN155/2))/AN155,-0.01),IF(I155<=M155,(I155-(M155-AN155/2))/AN155,-0.01))),-0.01)) -> 0.2142865196 | AU155: =IF(AN155<=0.001,-0.01,IF(BB155=1,IF(ABS(M155-I155)/AN155<=10%,(I155-(M155-AN155/2))/AN155,-0.01),-0.01)) -> -0.01 | AV155: =IF(AN155<=0.001,-0.01,IF(BB155=1,IF(ABS(M155-I155)/AN155<=10%,-0.01,IF(BA155="High",IF(I155<=M155,(I155-(M155-AN155/2))/AN155,-0.01),IF(I155>=M155,(I155-(M155-AN155/2))/AN155,-0.01))),-0.01)) -> -0.01 | AW155: =IF(AN155<=0.001,-0.01,IF(BB155=2,IF(ABS(M155-I155)/AN155<=10%,-0.01,IF(BA155="High",IF(I155>=M155,(I155-(M155-AN155/2))/AN155,-0.01),IF(I155<=M155,(I155-(M155-AN155/2))/AN155,-0.01))),-0.01)) -> -0.01 | AX155: =IF(AN155<=0.001,-0.01,IF(BB155=2,IF(ABS(M155-I155)/AN155<=10%,(I155-(M155-AN155/2))/AN155,-0.01),-0.01)) -> -0.01 | AY155: =IF(AN155<=0.001,-0.01,IF(BB155=2,IF(ABS(M155-I155)/AN155<=10%,-0.01,IF(BA155="High",IF(I155<=M155,(I155-(M155-AN155/2))/AN155,-0.01),IF(I155>=M155,(I155-(M155-AN155/2))/AN155,-0.01))),-0.01)) -> -0.01 | AZ155: =IF(AN155<=0.001,-0.01,IF(BB155=3,(I155-(M155-AN155/2))/AN155,-0.01)) -> -0.01 | BA155: low | BB155: 1
W157: =MAX(V137:V140,V147:V149,V153:V155) -> 0
B158: COPD Cost | W158: =MIN(V137:V140,V147:V149,V153:V155) -> 0
C160: Exacerbation Costs (click for info) | G160: ="Selected "&$T$15&" - "&$O$15&" - Last 12 Months" -> Selected Country - England - Last 12 Months | M160: ="Selected "&$T$15&" - "&$O$15&" - Next 12 Months" -> Selected Country - England - Next 12 Months | U160: Change
G161: Exacerbations | H161: Unit Cost (£) | I161: Annual Cost (£) | J161: % of Grand Total Current Cost | M161: Number | N161: Unit Cost | O161: Annual Cost (£) | P161: % of Grand Total Forecast Cost | U161: Annual Cost | V161: Percentage of Total cost
C162: Exacerbation cost - Hospital | G162: =J149 -> 200829.2081 | H162: ='User Input'!$F$32 -> 1593.64686 | I162: =G162*H162 -> 320050837.1 | J162: =I162/I172 -> 0.602743995 | K162: =J162 -> 0.602743995 | M162: =P149 -> 200829.2081 | N162: ='User Input'!$H$32 -> 1593.64686 | O162: =M162*N162 -> 320050837.1 | P162: =O162/O172 -> 0.602743995 | Q162: =P162 -> 0.602743995 | U162: =O162-I162 -> 0 | V162: =(U162/$I$172) -> 0 | W162: =V162 -> 0
C163: Exacerbation cost - Primary Care | G163: =J155 -> 1138032.179 | H163: ='User Input'!$F$34 -> 175.89 | I163: =G163*H163 -> 200168480.1 | J163: =I163/I172 -> 0.3769724537 | K163: =J163 -> 0.3769724537 | M163: =P155 -> 1138032.179 | N163: ='User Input'!$H$34 -> 175.89 | O163: =M163*N163 -> 200168480.1 | P163: =O163/O172 -> 0.3769724537 | Q163: =P163 -> 0.3769724537 | U163: =O163-I163 -> 0 | V163: =(U163/$I$172) -> 0 | W163: =V163 -> 0
C164: Total exacerbation cost | I164: =I162+I163 -> 520219317.1 | J164: =I164/I172 -> 0.9797164487 | K164: =J164 -> 0.9797164487 | O164: =O162+O163 -> 520219317.1 | P164: =O164/O172 -> 0.9797164487 | Q164: =P164 -> 0.9797164487 | U164: =O164-I164 -> 0 | V164: =(U164/$I$172) -> 0 | W164: =V164 -> 0
C166: Pulmonary Rehab Costs (click for info) | G166: ="Selected "&$T$15&" - "&$O$15&" - Last 12 Months" -> Selected Country - England - Last 12 Months | M166: ="Selected "&$T$15&" - "&$O$15&" - Next 12 Months" -> Selected Country - England - Next 12 Months | U166: Change
G167: Exacerbations | H167: Unit Cost (£) | I167: Annual Cost (£) | J167: % of Grand Total Current Cost | M167: Number | N167: Unit Cost | O167: Annual Cost (£) | P167: % of Grand Total Forecast Cost | U167: Annual Cost | V167: Percentage of Total cost
C168: PR cost - completing PR (last 12 months) | G168: =G140 -> 26003.08345 | H168: ='User Input'!$F$36 -> 343.95 | I168: =G168*H168 -> 8943760.553 | J168: =I168/I172 -> 0.01684356778 | K168: =J168 -> 0.01684356778 | M168: =M140 -> 26003.08345 | N168: ='User Input'!$H$36 -> 343.95 | O168: =M168*N168 -> 8943760.553 | P168: =O168/O172 -> 0.01684356778 | Q168: =P168 -> 0.01684356778 | U168: =O168-I168 -> 0 | V168: =(U168/$I$172) -> 0 | W168: =V168 -> 0
C169: PR cost - starting PR but not completing PR (last 12 months) | G169: =G139-G140 -> 10620.97775 | H169: ='User Input'!$F$38 -> 171.98 | I169: =G169*H169 -> 1826595.753 | J169: =I169/I172 -> 0.003439983571 | K169: =J169 -> 0.003439983571 | M169: =M139-M140 -> 10620.97775 | N169: ='User Input'!$H$38 -> 171.98 | O169: =M169*N169 -> 1826595.753 | P169: =O169/O172 -> 0.003439983571 | Q169: =P169 -> 0.003439983571 | U169: =O169-I169 -> 0 | V169: =(U169/$I$172) -> 0 | W169: =V169 -> 0
C170: Total PR cost | I170: =I168+I169 -> 10770356.31 | J170: =I170/I172 -> 0.02028355135 | K170: =J170 -> 0.02028355135 | O170: =O168+O169 -> 10770356.31 | P170: =O170/O172 -> 0.02028355135 | Q170: =P170 -> 0.02028355135 | U170: =O170-I170 -> 0 | V170: =(U170/$I$172) -> 0 | W170: =V170 -> 0
C172: Grand Total Annual Cost | I172: =$I$164+$I$170 -> 530989673.4 | O172: =O164+O170 -> 530989673.4 | U172: =O172-I172 -> 0 | V172: =(U172/$I$172) -> 0 | W172: =V172 -> 0
B175: Change in Cost
C177: COPD Exacerbation and PR Costs (click for info) | G177: ="Selected "&$T$15&" - "&$O$15&" - Last and Next 12 Months" -> Selected Country - England - Last and Next 12 Months | M177: ="By "&IF(M140>=G140,"increasing", "decreasing")&" the proportion of the eligible COPD population that complete PR in your area from "&ROUND(G140,0)&" people ("&J140*100&"%) to "&ROUND(M140,0)&" People ("&P140*100&"%) will: " & IF(J149>=P149,"Decrease Hospital exacerbation by "&ROUND(J149-P149,0)&" Decrease primary care exacerbations by "&ROUND(J155-P155,0)," Increase hospital exacerbation by "&ROUND(P149-J149,0)&" Increase primary care exacerbations by "&ROUND(P155-J155,0))& " " & IF(J179>0,"Increase exacerbation costs by £"&ROUND(I179,0)&" (+"&ROUND(J181*100,1)&"%)","Decrease exacerbation costs by -£"&ROUND(I179,0)*-1&" ("&ROUND(J179*100,1)&"%) ") & " " & IF(J180>0,"Increase pulminary rehab costs by £"&ROUND(I180,0)&" (+"&ROUND(J180*100,1)&"%)","Decrease pulminary rehab costs by -£"&ROUND(I180,0)*-1&" ("&ROUND(J180*100,1)&"%) ") & " " & IF(J181>0,"Increase the total costs by £"&ROUND(I181,0)&" (+"&ROUND(J181*100,1)&"%)","Decrease the total costs by -£"&ROUND(I181,0)*-1&" ("&ROUND(J181*100,1)&"%)") -> By increasing the proportion of the eligible COPD population that complete PR in your area from 26003 people (41.89%) to 26003 People (41.89%) will: Decrease Hospital exacerbation by 0 Decrease primary care exacerbations by 0 Decrease exacerbation costs by -£0 (0%) Decrease pulminary rehab costs by -£0 (0%) Decrease the total costs by -£0 (0%)
G178: Current Total Cost (£) | H178: ="Forecast Total Cost (£)" -> Forecast Total Cost (£) | I178: Change in Cost (£) | J178: Percentage Change of Total Cost (%)
C179: Total exacerbation cost | G179: =I164 -> 520219317.1 | H179: =O164 -> 520219317.1 | I179: =H179-G179 -> 0 | J179: =(I179)/$G$181 -> 0 | K179: =J179 -> 0
C180: Total PR cost | G180: =I170 -> 10770356.31 | H180: =O170 -> 10770356.31 | I180: =H180-G180 -> 0 | J180: =(I180)/$G$181 -> 0 | K180: =J180 -> 0
C181: Total cost | G181: =I172 -> 530989673.4 | H181: =O172 -> 530989673.4 | I181: =H181-G181 -> 0 | J181: =(I181)/$G$181 -> 0 | K181: =J181 -> 0
B224: Population Data | BA224: High | BB224: 2
AT225: 1 | AW225: 2 | AZ225: 3 | BA225: Low | BB225: 3
C226: Population Data (click for info) | G226: =$O$15&" - "&$T$15 -> England - Country | M226: =IF($O$17="","No Benchmark Selected","Comparison to "&$O$17) -> Comparison to England | AN226: Range Graph Data Table
G227: Numerator | H227: Denominator | I227: Exceptions | J227: Average % | M227: Average % | N227: Min | O227: Range | Q227: Max | AN227: Range | AO227: Start | AP227: Min | AQ227: Boundary | AR227: Max | AS227: End | AT227: Better | AU227: Similar | AV227: Worse | AW227: Lower | AX227: Similar | AY227: Higher | AZ227: Not Compared | BA227: Positive Result | BB227: Shading
C228: Registered population diagnosed with COPD (QOF) | G228: =IFERROR(SUMIFS('Country Data'!$W$10:$W$14,'Country Data'!$B$10:$B$14,$N$15),0) -> 1667599.939 | H228: =IFERROR(SUMIFS('Country Data'!$X$10:$X$14,'Country Data'!$B$10:$B$14,$N$15),0) -> 56817654 | I228: =IFERROR(SUMIFS('Country Data'!$Y$10:$Y$14,'Country Data'!$B$10:$B$14,$N$15),0) -> 0 | J228: =G228/H228 -> 0.02935003158 | K228: =J228 -> 0.02935003158 | M228: =IFERROR(SUMIFS('Country Data'!$W$10:$W$14,'Country Data'!$B$10:$B$14,$N$17)/SUMIFS('Country Data'!$X$10:$X$14,'Country Data'!$B$10:$B$14,$N$17),0) -> 0.02935003158 | N228: =MIN(IF('Country Data'!$B$10:$B$14=$N$17,IF(IFERROR(('Country Data'!$W$10:$W$14/'Country Data'!$X$10:$X$14),-1)>0,('Country Data'!$W$10:$W$14/'Country Data'!$X$10:$X$14)))) -> 0.02935003158 | Q228: =MAX(IF('Country Data'!$B$10:$B$14=$N$17,IF(IFERROR(('Country Data'!$W$10:$W$14/'Country Data'!$X$10:$X$14),101)<=1,('Country Data'!$W$10:$W$14/'Country Data'!$X$10:$X$14)))) -> 0.02935003158 | AN228: =MAX(ABS(Q228-M228),ABS(M228-N228))*2 -> 0 | AO228: =IF(AN228<=0.001,0.4995,((AN228/2)-ABS(M228-N228))/AN228) -> 0.4995 | AP228: =0.4995-AO228 -> 0 | AQ228: 0.001 | AR228: =IF(AN228<=0.001,0,((Q228-M228)/AN228)-0.0005) -> 0 | AS228: =0.4995-AR228 -> 0.4995 | AT228: =IF(AN228<=0.001,0.5,IF(BB228=1,IF(ABS(M228-J228)/AN228<=10%,-0.01,IF(BA228="High",IF(J228>=M228,(J228-(M228-AN228/2))/AN228,-0.01),IF(J228<=M228,(J228-(M228-AN228/2))/AN228,-0.01))),-0.01)) -> 0.5 | AU228: =IF(AN228<=0.001,-0.01,IF(BB228=1,IF(ABS(M228-J228)/AN228<=10%,(J228-(M228-AN228/2))/AN228,-0.01),-0.01)) -> -0.01 | AV228: =IF(AN228<=0.001,-0.01,IF(BB228=1,IF(ABS(M228-J228)/AN228<=10%,-0.01,IF(BA228="High",IF(J228<=M228,(J228-(M228-AN228/2))/AN228,-0.01),IF(J228>=M228,(J228-(M228-AN228/2))/AN228,-0.01))),-0.01)) -> -0.01 | AW228: =IF(AN228<=0.001,-0.01,IF(BB228=2,IF(ABS(M228-J228)/AN228<=10%,-0.01,IF(BA228="High",IF(J228>=M228,(J228-(M228-AN228/2))/AN228,-0.01),IF(J228<=M228,(J228-(M228-AN228/2))/AN228,-0.01))),-0.01)) -> -0.01 | AX228: =IF(AN228<=0.001,-0.01,IF(BB228=2,IF(ABS(M228-J228)/AN228<=10%,(J228-(M228-AN228/2))/AN228,-0.01),-0.01)) -> -0.01 | AY228: =IF(AN228<=0.001,-0.01,IF(BB228=2,IF(ABS(M228-J228)/AN228<=10%,-0.01,IF(BA228="High",IF(J228<=M228,(J228-(M228-AN228/2))/AN228,-0.01),IF(J228>=M228,(J228-(M228-AN228/2))/AN228,-0.01))),-0.01)) -> -0.01 | AZ228: =IF(AN228<=0.001,-0.01,IF(BB228=3,(J228-(M228-AN228/2))/AN228,-0.01)) -> -0.01 | BA228: High | BB228: 1
C229: Registered population estimated by model to have COPD (2012 model, being updated) | G229: =IFERROR(SUMIFS('Country Data'!$Q$10:$Q$14,'Country Data'!$B$10:$B$14,$N$15),0) -> 1034578 | H229: =IFERROR(SUMIFS('Country Data'!$R$10:$R$14,'Country Data'!$B$10:$B$14,$N$15),0) -> 56817654 | I229: =IFERROR(SUMIFS('Country Data'!$S$10:$S$14,'Country Data'!$B$10:$B$14,$N$15),0) -> 477392 | J229: =G229/H229 -> 0.01820874195 | K229: =J229 -> 0.01820874195 | M229: =IFERROR(SUMIFS('Country Data'!$Q$10:$Q$14,'Country Data'!$B$10:$B$14,$N$17)/SUMIFS('Country Data'!$R$10:$R$14,'Country Data'!$B$10:$B$14,$N$17),0) -> 0.01820874195 | N229: =MIN(IF('Country Data'!$B$10:$B$14=$N$17,IF(IFERROR(('Country Data'!$Q$10:$Q$14/'Country Data'!$R$10:$R$14),-1)>0,('Country Data'!$Q$10:$Q$14/'Country Data'!$R$10:$R$14)))) -> 0.01820874195 | Q229: =MAX(IF('Country Data'!$B$10:$B$14=$N$17,IF(IFERROR(('Country Data'!$Q$10:$Q$14/'Country Data'!$R$10:$R$14),101)<=1,('Country Data'!$Q$10:$Q$14/'Country Data'!$R$10:$R$14)))) -> 0.01820874195 | AN229: =MAX(ABS(Q229-M229),ABS(M229-N229))*2 -> 0 | AO229: =IF(AN229<=0.001,0.4995,((AN229/2)-ABS(M229-N229))/AN229) -> 0.4995 | AP229: =0.4995-AO229 -> 0 | AQ229: 0.001 | AR229: =IF(AN229<=0.001,0,((Q229-M229)/AN229)-0.0005) -> 0 | AS229: =0.4995-AR229 -> 0.4995 | AT229: =IF(AN229<=0.001,0.5,IF(BB229=1,IF(ABS(M229-J229)/AN229<=10%,-0.01,IF(BA229="High",IF(J229>=M229,(J229-(M229-AN229/2))/AN229,-0.01),IF(J229<=M229,(J229-(M229-AN229/2))/AN229,-0.01))),-0.01)) -> 0.5 | AU229: =IF(AN229<=0.001,-0.01,IF(BB229=1,IF(ABS(M229-J229)/AN229<=10%,(J229-(M229-AN229/2))/AN229,-0.01),-0.01)) -> -0.01 | AV229: =IF(AN229<=0.001,-0.01,IF(BB229=1,IF(ABS(M229-J229)/AN229<=10%,-0.01,IF(BA229="High",IF(J229<=M229,(J229-(M229-AN229/2))/AN229,-0.01),IF(J229>=M229,(J229-(M229-AN229/2))/AN229,-0.01))),-0.01)) -> -0.01 | AW229: =IF(AN229<=0.001,-0.01,IF(BB229=2,IF(ABS(M229-J229)/AN229<=10%,-0.01,IF(BA229="High",IF(J229>=M229,(J229-(M229-AN229/2))/AN229,-0.01),IF(J229<=M229,(J229-(M229-AN229/2))/AN229,-0.01))),-0.01)) -> -0.01 | AX229: =IF(AN229<=0.001,-0.01,IF(BB229=2,IF(ABS(M229-J229)/AN229<=10%,(J229-(M229-AN229/2))/AN229,-0.01),-0.01)) -> -0.01 | AY229: =IF(AN229<=0.001,-0.01,IF(BB229=2,IF(ABS(M229-J229)/AN229<=10%,-0.01,IF(BA229="High",IF(J229<=M229,(J229-(M229-AN229/2))/AN229,-0.01),IF(J229>=M229,(J229-(M229-AN229/2))/AN229,-0.01))),-0.01)) -> -0.01 | AZ229: =IF(AN229<=0.001,-0.01,IF(BB229=3,(J229-(M229-AN229/2))/AN229,-0.01)) -> -0.01 | BA229: High | BB229: 1
C230: Registered population estimated to be undiagnosed COPD | G230: =IFERROR(SUMIFS('Country Data'!$Z$10:$Z$14,'Country Data'!$B$10:$B$14,$N$15),0) -> 652259.0681 | H230: =IFERROR(SUMIFS('Country Data'!$AA$10:$AA$14,'Country Data'!$B$10:$B$14,$N$15),0) -> 56817654 | I230: =IFERROR(SUMIFS('Country Data'!$AB$10:$AB$14,'Country Data'!$B$10:$B$14,$N$15),0) -> 0 | J230: =G230/H230 -> 0.01147986624 | K230: =J230 -> 0.01147986624 | M230: =IFERROR(SUMIFS('Country Data'!$Z$10:$Z$14,'Country Data'!$B$10:$B$14,$N$17)/SUMIFS('Country Data'!$AA$10:$AA$14,'Country Data'!$B$10:$B$14,$N$17),0) -> 0.01147986624 | N230: =MIN(IF('Country Data'!$B$10:$B$14=$N$17,IF(IFERROR(('Country Data'!$Z$10:$Z$14/'Country Data'!$AA$10:$AA$14),-1)>0,('Country Data'!$Z$10:$Z$14/'Country Data'!$AA$10:$AA$14)))) -> 0.01147986624 | Q230: =MAX(IF('Country Data'!$B$10:$B$14=$N$17,IF(IFERROR(('Country Data'!$Z$10:$Z$14/'Country Data'!$AA$10:$AA$14),101)<=1,('Country Data'!$Z$10:$Z$14/'Country Data'!$AA$10:$AA$14)))) -> 0.01147986624 | AN230: =MAX(ABS(Q230-M230),ABS(M230-N230))*2 -> 0 | AO230: =IF(AN230<=0.001,0.4995,((AN230/2)-ABS(M230-N230))/AN230) -> 0.4995 | AP230: =0.4995-AO230 -> 0 | AQ230: 0.001 | AR230: =IF(AN230<=0.001,0,((Q230-M230)/AN230)-0.0005) -> 0 | AS230: =0.4995-AR230 -> 0.4995 | AT230: =IF(AN230<=0.001,0.5,IF(BB230=1,IF(ABS(M230-J230)/AN230<=10%,-0.01,IF(BA230="High",IF(J230>=M230,(J230-(M230-AN230/2))/AN230,-0.01),IF(J230<=M230,(J230-(M230-AN230/2))/AN230,-0.01))),-0.01)) -> 0.5 | AU230: =IF(AN230<=0.001,-0.01,IF(BB230=1,IF(ABS(M230-J230)/AN230<=10%,(J230-(M230-AN230/2))/AN230,-0.01),-0.01)) -> -0.01 | AV230: =IF(AN230<=0.001,-0.01,IF(BB230=1,IF(ABS(M230-J230)/AN230<=10%,-0.01,IF(BA230="High",IF(J230<=M230,(J230-(M230-AN230/2))/AN230,-0.01),IF(J230>=M230,(J230-(M230-AN230/2))/AN230,-0.01))),-0.01)) -> -0.01 | AW230: =IF(AN230<=0.001,-0.01,IF(BB230=2,IF(ABS(M230-J230)/AN230<=10%,-0.01,IF(BA230="High",IF(J230>=M230,(J230-(M230-AN230/2))/AN230,-0.01),IF(J230<=M230,(J230-(M230-AN230/2))/AN230,-0.01))),-0.01)) -> -0.01 | AX230: =IF(AN230<=0.001,-0.01,IF(BB230=2,IF(ABS(M230-J230)/AN230<=10%,(J230-(M230-AN230/2))/AN230,-0.01),-0.01)) -> -0.01 | AY230: =IF(AN230<=0.001,-0.01,IF(BB230=2,IF(ABS(M230-J230)/AN230<=10%,-0.01,IF(BA230="High",IF(J230<=M230,(J230-(M230-AN230/2))/AN230,-0.01),IF(J230>=M230,(J230-(M230-AN230/2))/AN230,-0.01))),-0.01)) -> -0.01 | AZ230: =IF(AN230<=0.001,-0.01,IF(BB230=3,(J230-(M230-AN230/2))/AN230,-0.01)) -> -0.01 | BA230: Low | BB230: 1
B233: Quality & Outcomes Framework (QOF) results 2014-2015
C235: QOF 2014-2015 (click for info) | G235: =$O$15&" - "&$T$15 -> England - Country | M235: =IF($O$17="","No Benchmark Selected","Comparison to "&$O$17) -> Comparison to England
G236: Numerator | H236: Denominator | I236: Exceptions | J236: Average % | M236: Average % | N236: Min | O236: Range | Q236: Max
C237: COPD002: Diagnosis confirmed by spirometry | G237: =IFERROR(SUMIFS('Country Data'!$AC$10:$AC$14,'Country Data'!$B$10:$B$14,$N$15),0) -> 304998 | H237: =IFERROR(SUMIFS('Country Data'!$AD$10:$AD$14,'Country Data'!$B$10:$B$14,$N$15),0) -> 339378 | I237: =IFERROR(SUMIFS('Country Data'!$AE$10:$AE$14,'Country Data'!$B$10:$B$14,$N$15),0) -> 36523 | J237: =IFERROR(G237/H237,"") -> 0.8986970281 | K237: =IFERROR(J237,"") -> 0.8986970281 | M237: =IFERROR(SUMIFS('Country Data'!$AC$10:$AC$14,'Country Data'!$B$10:$B$14,$N$17)/SUMIFS('Country Data'!$AD$10:$AD$14,'Country Data'!$B$10:$B$14,$N$17),0) -> 0.8986970281 | N237: =MIN(IF('Country Data'!$B$10:$B$14=$N$17,IF(IFERROR(('Country Data'!$AC$10:$AC$14/'Country Data'!$AD$10:$AD$14),-1)>0,('Country Data'!$AC$10:$AC$14/'Country Data'!$AD$10:$AD$14)))) -> 0.8986970281 | Q237: =MAX(IF('Country Data'!$B$10:$B$14=$N$17,IF(IFERROR(('Country Data'!$AC$10:$AC$14/'Country Data'!$AD$10:$AD$14),101)<=1,('Country Data'!$AC$10:$AC$14/'Country Data'!$AD$10:$AD$14)))) -> 0.8986970281 | AN237: =MAX(ABS(Q237-M237),ABS(M237-N237))*2 -> 0 | AO237: =IF(AN237<=0.001,0.4995,((AN237/2)-ABS(M237-N237))/AN237) -> 0.4995 | AP237: =0.4995-AO237 -> 0 | AQ237: 0.001 | AR237: =IF(AN237<=0.001,0,((Q237-M237)/AN237)-0.0005) -> 0 | AS237: =0.4995-AR237 -> 0.4995 | AT237: =IF(AN237<=0.001,0.5,IF(BB237=1,IF(ABS(M237-J237)/AN237<=10%,-0.01,IF(BA237="High",IF(J237>=M237,(J237-(M237-AN237/2))/AN237,-0.01),IF(J237<=M237,(J237-(M237-AN237/2))/AN237,-0.01))),-0.01)) -> 0.5 | AU237: =IF(AN237<=0.001,-0.01,IF(BB237=1,IF(ABS(M237-J237)/AN237<=10%,(J237-(M237-AN237/2))/AN237,-0.01),-0.01)) -> -0.01 | AV237: =IF(AN237<=0.001,-0.01,IF(BB237=1,IF(ABS(M237-J237)/AN237<=10%,-0.01,IF(BA237="High",IF(J237<=M237,(J237-(M237-AN237/2))/AN237,-0.01),IF(J237>=M237,(J237-(M237-AN237/2))/AN237,-0.01))),-0.01)) -> -0.01 | AW237: =IF(AN237<=0.001,-0.01,IF(BB237=2,IF(ABS(M237-J237)/AN237<=10%,-0.01,IF(BA237="High",IF(J237>=M237,(J237-(M237-AN237/2))/AN237,-0.01),IF(J237<=M237,(J237-(M237-AN237/2))/AN237,-0.01))),-0.01)) -> -0.01 | AX237: =IF(AN237<=0.001,-0.01,IF(BB237=2,IF(ABS(M237-J237)/AN237<=10%,(J237-(M237-AN237/2))/AN237,-0.01),-0.01)) -> -0.01 | AY237: =IF(AN237<=0.001,-0.01,IF(BB237=2,IF(ABS(M237-J237)/AN237<=10%,-0.01,IF(BA237="High",IF(J237<=M237,(J237-(M237-AN237/2))/AN237,-0.01),IF(J237>=M237,(J237-(M237-AN237/2))/AN237,-0.01))),-0.01)) -> -0.01 | AZ237: =IF(AN237<=0.001,-0.01,IF(BB237=3,(J237-(M237-AN237/2))/AN237,-0.01)) -> -0.01 | BA237: High | BB237: 1
C238: COPD003: Reviewed using MRC dyspnoea score last 12mths | G238: =IFERROR(SUMIFS('Country Data'!$AF$10:$AF$14,'Country Data'!$B$10:$B$14,$N$15),0) -> 821014 | H238: =IFERROR(SUMIFS('Country Data'!$AG$10:$AG$14,'Country Data'!$B$10:$B$14,$N$15),0) -> 913719 | I238: =IFERROR(SUMIFS('Country Data'!$AH$10:$AH$14,'Country Data'!$B$10:$B$14,$N$15),0) -> 113782 | J238: 0.8985410175 | K238: 0.8985410175 | M238: =IFERROR(SUMIFS('Country Data'!$AF$10:$AF$14,'Country Data'!$B$10:$B$14,$N$17)/SUMIFS('Country Data'!$AG$10:$AG$14,'Country Data'!$B$10:$B$14,$N$17),0) -> 0.8985410175 | N238: =MIN(IF('Country Data'!$B$10:$B$14=$N$17,IF(IFERROR(('Country Data'!$AF$10:$AF$14/'Country Data'!$AG$10:$AG$14),-1)>0,('Country Data'!$AF$10:$AF$14/'Country Data'!$AG$10:$AG$14)))) -> 0.8985410175 | Q238: =MAX(IF('Country Data'!$B$10:$B$14=$N$17,IF(IFERROR(('Country Data'!$AF$10:$AF$14/'Country Data'!$AG$10:$AG$14),101)<=1,('Country Data'!$AF$10:$AF$14/'Country Data'!$AG$10:$AG$14)))) -> 0.8985410175 | AN238: 0 | AO238: 0.4995 | AP238: 0 | AQ238: 0.001 | AR238: 0 | AS238: 0.4995 | AT238: 0.5 | AU238: -0.01 | AV238: -0.01 | AW238: -0.01 | AX238: -0.01 | AY238: -0.01 | AZ238: -0.01 | BA238: High | BB238: 1
C239: COPD004: Record of FEV1 in last 12mths | G239: =IFERROR(SUMIFS('Country Data'!$AI$10:$AI$14,'Country Data'!$B$10:$B$14,$N$15),0) -> 752742 | H239: =IFERROR(SUMIFS('Country Data'!$AJ$10:$AJ$14,'Country Data'!$B$10:$B$14,$N$15),0) -> 872473 | I239: =IFERROR(SUMIFS('Country Data'!$AK$10:$AK$14,'Country Data'!$B$10:$B$14,$N$15),0) -> 154875 | J239: 0.8627682461 | K239: 0.8627682461 | M239: =IFERROR(SUMIFS('Country Data'!$AI$10:$AI$14,'Country Data'!$B$10:$B$14,$N$17)/SUMIFS('Country Data'!$AJ$10:$AJ$14,'Country Data'!$B$10:$B$14,$N$17),0) -> 0.8627682461 | N239: =MIN(IF('Country Data'!$B$10:$B$14=$N$17,IF(IFERROR(('Country Data'!$AI$10:$AI$14/'Country Data'!$AJ$10:$AJ$14),-1)>0,('Country Data'!$AI$10:$AI$14/'Country Data'!$AJ$10:$AJ$14)))) -> 0.8627682461 | Q239: =MAX(IF('Country Data'!$B$10:$B$14=$N$17,IF(IFERROR(('Country Data'!$AI$10:$AI$14/'Country Data'!$AJ$10:$AJ$14),101)<=1,('Country Data'!$AI$10:$AI$14/'Country Data'!$AJ$10:$AJ$14)))) -> 0.8627682461 | AN239: 0 | AO239: 0.4995 | AP239: 0 | AQ239: 0.001 | AR239: 0 | AS239: 0.4995 | AT239: 0.5 | AU239: -0.01 | AV239: -0.01 | AW239: -0.01 | AX239: -0.01 | AY239: -0.01 | AZ239: -0.01 | BA239: High | BB239: 1
C240: COPD005: Patients with MRC dyspnoea score >=3 | G240: =IFERROR(SUMIFS('Country Data'!$AL$10:$AL$14,'Country Data'!$B$10:$B$14,$N$15),0) -> 374417 | H240: =IFERROR(SUMIFS('Country Data'!$AM$10:$AM$14,'Country Data'!$B$10:$B$14,$N$15),0) -> 390321 | I240: =IFERROR(SUMIFS('Country Data'!$AN$10:$AN$14,'Country Data'!$B$10:$B$14,$N$15),0) -> 5758 | J240: 0.9592540499 | K240: 0.9592540499 | M240: =IFERROR(SUMIFS('Country Data'!$AL$10:$AL$14,'Country Data'!$B$10:$B$14,$N$17)/SUMIFS('Country Data'!$AM$10:$AM$14,'Country Data'!$B$10:$B$14,$N$17),0) -> 0.9592540499 | N240: =MIN(IF('Country Data'!$B$10:$B$14=$N$17,IF(IFERROR(('Country Data'!$AL$10:$AL$14/'Country Data'!$AM$10:$AM$14),-1)>0,('Country Data'!$AL$10:$AL$14/'Country Data'!$AM$10:$AM$14)))) -> 0.9592540499 | Q240: =MAX(IF('Country Data'!$B$10:$B$14=$N$17,IF(IFERROR(('Country Data'!$AL$10:$AL$14/'Country Data'!$AM$10:$AM$14),101)<=1,('Country Data'!$AL$10:$AL$14/'Country Data'!$AM$10:$AM$14)))) -> 0.9592540499 | AN240: 0 | AO240: 0.4995 | AP240: 0 | AQ240: 0.001 | AR240: 0 | AS240: 0.4995 | AT240: 0.5 | AU240: -0.01 | AV240: -0.01 | AW240: -0.01 | AX240: -0.01 | AY240: -0.01 | AZ240: -0.01 | BA240: High | BB240: 1
C241: COPD007: Influenza immunisation given 1 Aug - 31 Mar | G241: =IFERROR(SUMIFS('Country Data'!$AO$10:$AO$14,'Country Data'!$B$10:$B$14,$N$15),0) -> 837444 | H241: =IFERROR(SUMIFS('Country Data'!$AP$10:$AP$14,'Country Data'!$B$10:$B$14,$N$15),0) -> 865055 | I241: =IFERROR(SUMIFS('Country Data'!$AQ$10:$AQ$14,'Country Data'!$B$10:$B$14,$N$15),0) -> 162221 | J241: 0.9680817983 | K241: 0.9680817983 | M241: =IFERROR(SUMIFS('Country Data'!$AO$10:$AO$14,'Country Data'!$B$10:$B$14,$N$17)/SUMIFS('Country Data'!$AP$10:$AP$14,'Country Data'!$B$10:$B$14,$N$17),0) -> 0.9680817983 | N241: =MIN(IF('Country Data'!$B$10:$B$14=$N$17,IF(IFERROR(('Country Data'!$AO$10:$AO$14/'Country Data'!$AP$10:$AP$14),-1)>0,('Country Data'!$AO$10:$AO$14/'Country Data'!$AP$10:$AP$14)))) -> 0.9680817983 | Q241: =MAX(IF('Country Data'!$B$10:$B$14=$N$17,IF(IFERROR(('Country Data'!$AO$10:$AO$14/'Country Data'!$AP$10:$AP$14),101)<=1,('Country Data'!$AO$10:$AO$14/'Country Data'!$AP$10:$AP$14)))) -> 0.9680817983 | AN241: 0 | AO241: 0.4995 | AP241: 0 | AQ241: 0.001 | AR241: 0 | AS241: 0.4995 | AT241: 0.5 | AU241: -0.01 | AV241: -0.01 | AW241: -0.01 | AX241: -0.01 | AY241: -0.01 | AZ241: -0.01 | BA241: High | BB241: 1
C242: COPD008: Patients with MRC dyspnoea score >=3 offered referral to PR | G242: =IFERROR(SUMIFS('Country Data'!$AR$10:$AR$14,'Country Data'!$B$10:$B$14,$N$15),0) -> 0 | H242: =IFERROR(SUMIFS('Country Data'!$AS$10:$AS$14,'Country Data'!$B$10:$B$14,$N$15),0) -> 0 | I242: =IFERROR(SUMIFS('Country Data'!$AT$10:$AT$14,'Country Data'!$B$10:$B$14,$N$15),0) -> 0 | M242: =IFERROR(SUMIFS('Country Data'!$AR$10:$AR$14,'Country Data'!$B$10:$B$14,$N$17)/SUMIFS('Country Data'!$AS$10:$AS$14,'Country Data'!$B$10:$B$14,$N$17),0) -> 0 | N242: =MIN(IF('Country Data'!$B$10:$B$14=$N$17,IF(IFERROR(('Country Data'!$AR$10:$AR$14/'Country Data'!$AS$10:$AS$14),-1)>0,('Country Data'!$AR$10:$AR$14/'Country Data'!$AS$10:$AS$14)))) -> 0 | Q242: =MAX(IF('Country Data'!$B$10:$B$14=$N$17,IF(IFERROR(('Country Data'!$AR$10:$AR$14/'Country Data'!$AS$10:$AS$14),101)<=1,('Country Data'!$AR$10:$AR$14/'Country Data'!$AS$10:$AS$14)))) -> 0 | AN242: 0 | AO242: 0.4995 | AP242: 0 | AQ242: 0.001 | AR242: 0 | AS242: 0.4995 | AT242: 0.5 | AU242: -0.01 | AV242: -0.01 | AW242: -0.01 | AX242: -0.01 | AY242: -0.01 | AZ242: -0.01 | BA242: High | BB242: 1

Sheet Project Info
B2: Assumptions and Calculations within the model
B4: Pulmonary Rehab
C6: Percentage of COPD population MRC3 and above
C7: National average percentage of COPD population eligible for PR from CPRD data.
C9: Percentage of MRC3 and above COPD population currently offered PR
C10: The local proportion is not available in CPRD. BTS Audit report figures have been entered. We recommend you use your local data here, if available.
C12: Percentage of MRC3 and above COPD population currently starting PR
C13: The local proportion is not available in CPRD. BTS Audit report figures have been entered. We recommend you use your local data here, if available.
C15: Percentage of MRC3 and above COPD population currently completing PR
C16: The proportion of eligible population completing PR is obtained from the RCP & BTS report Pulmonary Rehabilitation Audit: Steps to breathe better https://www.rcplondon.ac.uk/file/2767/download?token=HK0AKTbi
B19: COPD Exacerbations
C21: Exacerbation rate for MRC3 and above COPD patients not completing PR
C22: National average exacerbations per case per year for eligible patients not on PR from CPRD data
C24: Exacerbation rate for MRC3 and above COPD patients completing PR
C25: RCT data from the associated systematic review (as of June 2016 accepted for publication in Chest journal, http://www.journals.elsevier.com/chest/) shows that exacerbations are reduced by 36.4% when PR is completed by eligible COPD patients.
C27: Percentage of total COPD exacerbations that result in a hospital admission from CPRD data
C28: National average of proportion of exacerbations resulting in a hospital admission, using Hospital Episode Statistics (HES)-linked CPRD data
B31: COPD Cost
C33: Cost per exacerbation resulting in hospital admission
C34: Values are calculated using the 'Exacerbation & PR Costs' worksheet. See this worksheet for the basis of this estimate. (Row 69)
C36: Cost per exacerbation managed in primary care
C37: Values are calculated using the 'Exacerbation & PR Costs' worksheet. See this worksheet for the basis of this estimate. (Row 117)
C39: PR cost per person completing PR
C40: Values are calculated using the 'Exacerbation & PR Costs' worksheet. See this worksheet for the basis of this estimate. (Row 46)
C42: PR cost per person starting but not completing PR
C43: It is assumed that the patient receives 50% of the PR treatment and so cost is reduced to 50% of total.
B46: Population Data
C48: Registered population estimated to have COPD (2012 model, being updated)
C49: Numerator = whichever is larger of max value of registered population diagnosed with COPD (QOF) OR modelled population estimated to have COPD Denominator = Registered practice population (QOF)
C51: Registered population diagnosed with COPD (QOF)
C52: Quality and Outcomes Framework (QOF) for April 2014 - March 2015, England, Data source: GPES and CQRS database - 2014-15 data extracted 10th July 2015, Copyright © 2015 Health and Social Care Information Centre. All rights reserved, http://www.hscic.gov.uk/catalogue/PUB18887 Denominator = Registered practice population (QOF)
C54: Registered population estimated to be undiagnosed COPD
C55: Numerator = population estimated to have COPD - registered population diagnosed with COPD Denominator = Registered practice population (QOF)
B58: Pulmonary Rehab
C60: Estimated COPD population MRC3 and above (last 12 months)
C61: Numerator = Percentage of COPD population eligible for PR (User Input F10) * Registered population estimated to have COPD (Results G29) Denominator = Registered population estimated to have COPD (Results G29) Value = Numerator/Denominator
C63: Estimated COPD population MRC3 and above - offered PR (last 12 months)
C64: Numerator = Percentage of eligible COPD population currently offered PR (User Input F12) * Estimated COPD population MRC3 and above (Results G37) Denominator = Estimated COPD population MRC3 and above(Results G37) Value = Numerator/Denominator
C66: Estimated COPD population MRC3 and above - starting PR (last 12 months)
C67: Numerator = Percentage of eligible COPD population currently starting PR (User Input F14) * Estimated COPD population offered PR (Results G38) Denominator = Estimated COPD population offered PR (Results G38) Value = Numerator/Denominator
C69: Estimated COPD population MRC3 and above - completing PR (last 12 months)
C70: Numerator = Percentage of eligible COPD population currently completing PR (User Input F16) * Estimated COPD population starting PR (Results G39) Denominator = Estimated COPD population starting PR (Results G39) Value = Numerator/Denominator
C72: Estimated COPD population MRC3 and above - not completing PR (last 12 months)
C73: Numerator = Estimated COPD population MRC3 and above (Results G37) - Estimated COPD population completing PR (last 12 months)(Results G40) Denominator = Estimated COPD population MRC3 and above (Results G37) Value = Numerator/Denominator
B76: COPD Exacerbations
C78: Hospital - Exacerbations
C79: Hospital Exacerbations for estimated COPD population completing PR
C80: Total Exacerbations per year = Percentage of total COPD exacerbations that result in a hospital admission (User Input F25) * Exacerbation rate for eligible COPD patients completing PR (User Input F23) * Estimated COPD population completing PR (last 12 months) (Results G40)
C82: Hospital Exacerbations for estimated COPD population not completing PR
C83: Total Exacerbations per year
C85: Hospital exacerbations Total
C86: Total Exacerbations per year = Hospital Exacerbations for estimated COPD population completing PR (Results G47) + Hospital Exacerbations for estimated COPD population not completing PR (Results G48)
C88: Primary Care - Exacerbations
C89: Primary Care exacerbations for estimated COPD population completing PR
C90: Total Exacerbations per year = (1-Percentage of total COPD exacerbations that result in a hospital admission (User Input F26)) * Exacerbation rate for eligible COPD patients completing PR (User Input F23) * Estimated COPD population completing PR (last 12 months) (Results G40)
C92: Primary care exacerbations for estimated COPD population not completing PR
C95: Primary Care Exacerbations - Total
C96: Total Exacerbations per year = Primary care Exacerbations for estimated COPD population completing PR (Results G53) + Primary care Exacerbations for estimated COPD population not completing PR (Results G54)
C99: COPD Cost
C101: Exacerbation cost - Hospital
C102: Annual Cost = Hospital exacerbations Total (Results J49) * Cost per exacerbation resulting in hospital admission (User Input F30)
C104: Exacerbation cost - Primary Care
C105: Annual Cost = Primary care exacerbations Total (Results J55) * Cost per exacerbation managed in primary care (User Input F32)
C107: Total exacerbation cost
C108: Total Annual Cost = Exacerbation cost Hospital (Results I62) + Exacerbation cost Primary Care (Results I64)
C110: PR cost - completing PR
C111: Annual Cost = Estimated population completing PR (Results G40) * PR cost per person completing PR (User Input F34)
C113: PR cost - starting PR but not completing PR
C114: Annual Cost = Estimated population starting but not completing PR (Results G39-G40) * PR cost per person not completing PR (User Input F36)
C116: Total PR cost
C117: Total Annual Cost = PR cost - completing PR (Results I68) + PR cost - starting PR but not completing PR (Results I69)
C119: Total cost
C120: Value = Total exacerbation cost (Results I64) + Total PR cost (Results I70)
B123: Quality & Outcomes Framework (QOF) results 2014-2015
C125: COPD002: Diagnosis confirmed by spirometry
C126: COPD002: The percentage of patients with COPD (diagnosed on or after 1 April 2011) in whom the diagnosis has been confirmed by post bronchodilator spirometry between 3 months before and 12 months after entering on to the register Quality and Outcomes Framework (QOF) for April 2014 - March 2015, England, Data source: GPES and CQRS database - 2014-15 data extracted 10th July 2015, Copyright © 2015 Health and Social Care Information Centre. All rights reserved.
C128: COPD003: Reviewed using MRC dyspnoea score last 12mths
C129: COPD003: The percentage of patients with COPD who have had a review, undertaken by a healthcare professional, including an assessment of breathlessness using the Medical Research Council dyspnoea scale in the preceding 12 months Quality and Outcomes Framework (QOF) for April 2014 - March 2015, England, Data source: GPES and CQRS database - 2014-15 data extracted 10th July 2015, Copyright © 2015 Health and Social Care Information Centre. All rights reserved.
C131: COPD004: Record of FEV1 in last 12mths
C132: COPD004: The percentage of patients with COPD with a record of FEV1 in the preceding 12 months Quality and Outcomes Framework (QOF) for April 2014 - March 2015, England, Data source: GPES and CQRS database - 2014-15 data extracted 10th July 2015, Copyright © 2015 Health and Social Care Information Centre. All rights reserved.
C134: COPD005: Patients with MRC dyspnoea score >=3
C135: COPD005: The percentage of patients with COPD and Medical Research Council dyspnoea grade >3 at any time in the preceding 12 months, with a record of oxygen saturation value within the preceding 12 months Quality and Outcomes Framework (QOF) for April 2014 - March 2015, England, Data source: GPES and CQRS database - 2014-15 data extracted 10th July 2015, Copyright © 2015 Health and Social Care Information Centre. All rights reserved.
C137: COPD007: Influenza immunisation given 1 Aug - 31 Mar
C138: COPD007: The percentage of patients with COPD who have had influenza immunisation in the preceding 1 August to 31 March. Quality and Outcomes Framework (QOF) for April 2014 - March 2015, England, Data source: GPES and CQRS database - 2014-15 data extracted 10th July 2015, Copyright © 2015 Health and Social Care Information Centre. All rights reserved.
C140: COPD008: Patients with MRC dyspnoea score >=3 offered referral to PR
C141: COPD008: The percentage of patients with COPD and Medical Research Council dyspnoea grade 3 or greater at any time in the preceding 15 months, with a subsequent record of an offer of referral to a pulmonary rehabilitation programme within the preceding 15 months. Quality and Outcomes Framework (QOF) for April 2014 - March 2015, England, Data source: GPES and CQRS database - 2014-15 data extracted 10th July 2015, Copyright © 2015 Health and Social Care Information Centre. All rights reserved.

Sheet Exacerbation & PR Costs
B2: =MID(CELL("filename",B1),FIND("]",CELL("filename",B1))+1,256) -> Exacerbation & PR Costs
B3: The costs used in this model are relatively simple, and as they are an attempt to give a national picture, they cannot take into account the great variation in services that exists across regions and countries. Users of this model are encouraged to identify the costs for their local services to input in order to give the results greater accuracy and relevance. Details of where costs are sourced is given below.
B4: It should be noted that the 50% estimated cost for patients that drop-out of PR used in this model does not take into account the hidden costs in wasted time, additional clinical and administrative costs that are incurred. Informally, it is widely thought that drop-outs increase the costs of PR but without studies or audit data in this area to refer to, a more accurate cost cannot be found. Users of this model are encouraged to identify the percentage of costs expended on drop-outs in their local service to input.
B6: Summary
B8: PR Cost per patient | C8: =C27 -> 343.9502572 | D8: There is no national collection of local data on PR costs. The current costs come from the National COPD Audit and NHS staff group costs.
B10: Exacerbation Costs
B11: Admissions | C11: =+C79+D88+G96 -> 1593.64686
B12: Primary Care | C12: =+E119 -> 175.89
B13: Social care | C13: 0
B14: Proportion treated in primary care | C14: =1-0.15 -> 0.85
B15: Proportion requiring social care | C15: 0
B16: AVERAGE EXACERBATION COST | C16: =(C14*C12)+((1-C14)*C11)+(C15*C13) -> 388.5535291
B19: PR COSTS
E20: Notes
B21: Expense | C21: Costs per patient
B22: Staffing | C22: =C45 -> 295.9502572 | E22: Derived below
B23: Patient transport | C23: 0 | E23: 66% of programmes do not fund (National Audit)
B24: Staff travel | C24: 26 | E24: Figure from KSS Survey
B25: Facilities hire | C25: 22 | E25: Figure from KSS Survey
B26: Other overheads | C26: 0 | E26: Data not available. Can be input
B27: Total Costs Per Patient | C27: =SUM(C22:C26) -> 343.9502572
B29: Staff Costs (Derived From National Audit)
B30: Band | C30: WTE | D30: Band Midpoint salary | E30: Cost
B31: 2 | C31: =((20*0.125)+(8*0.375)+(32*0.75)+(7*1.5))/224 -> 0.1785714286 | D31: 16210 | E31: =C31*D31 -> 2894.642857
B32: 3 | C32: =((20*0.125)+(18*0.375)+(77*0.75)+(26*1.5)+(14*2.5))/224 -> 0.6294642857 | D32: 17972 | E32: 11312.73214
B33: 4 | C33: =((4*0.125)+(14*0.375)+(41*0.75)+(10*1.5)+(2*2.5))/224 -> 0.2522321429 | D33: 20844 | E33: 5257.526786
B34: 5 | C34: =((10*0.125)+(7*0.375)+(30*0.75)+(10*1.5)+(3*2.5))/224 -> 0.2181919643 | D34: =(24063+25047)/2 -> 24555 | E34: 5357.703683
B35: 6 | C35: =((19*0.125)+(13*0.375)+(69*0.75)+(38*1.5)+(15*2.5))/224 -> 0.6852678571 | D35: 30057 | E35: 20597.09598
B36: 7 | C36: =((24*0.125)+(36*0.375)+(80*0.75)+(25*1.5)+(7*2.5))/224 -> 0.5870535714 | D36: 35891 | E36: 21069.93973
B37: 8a | C37: =((17*0.125)+(12*0.375)+(24*0.75)+(1*1.5)+(0*2.5))/224 -> 0.1166294643 | D37: =(42612+44261)/2 -> 43436.5 | E37: 5065.975725
B38: 8b | C38: =((11*0.125)+(1*0.375)+(1*0.75)+(0*1.5)+(0*2.5))/224 -> 0.01116071429 | D38: =(49968+52757)/2 -> 51362.5 | E38: 573.2421875
B39: Total | C39: =SUM(C31:C38) -> 2.678571429 | E39: =SUM(E31:E38) -> 72128.8591
B41: Pension contribution | C41: 0.143
B42: Total Cost with pension | C42: =E39*(1+C41) -> 82443.28595
B43: Referrals per 1.0 WTE | C43: 104 | E43: Source: National Audit
B44: Referrals per total WTE | C44: =C43*C39 -> 278.5714286 | E44: Referrals per 1 WTE * Total WTE
B45: Cost per patient, staffing | C45: =C42/C44 -> 295.9502572 | E45: Cost with pension/Referral per total WTE
B48: ADMISSION COST
B50: Total Cost per Admission | C50: =+C79+D88+G96 -> 1593.64686
B52: HRG Code | C52: Number of patients | D52: Cost | E52: Proportion of total incidents | F52: Proportion Weighted Cost | G52: HRG Description
B53: Non-elective Short Stay
B54: DZ65K | C54: 93756 | D54: 432 | E54: =C54/SUM(C54:C76) -> 0.435052551 | F54: =E54*D54 -> 187.942702 | G54: Chronic Obstructive Pulmonary Disease or Bronchitis, with length of stay 1 day or less, discharged home
B55: DZ65J | C55: 6584 | D55: 463.0077521 | E55: =C55/SUM(C54:C76) -> 0.03055149532 | F55: =E55*D55 -> 14.14557917 | G55: Chronic Obstructive Pulmonary Disease or Bronchitis, without Interventions, with CC Score 0-4
B56: DZ65H | C56: 4906 | D56: 482.4114859 | E56: =C56/SUM(C54:C76) -> 0.02276513306 | F56: 10.98216167 | G56: Chronic Obstructive Pulmonary Disease or Bronchitis, without Interventions, with CC Score 5-8
B57: DZ65G | C57: 1619 | D57: 525.7809697 | E57: =C57/SUM(C54:C76) -> 0.007512586715 | F57: 3.949975128 | G57: Chronic Obstructive Pulmonary Disease or Bronchitis, without Interventions, with CC Score 9-12
B58: DZ65F | C58: 271 | D58: 492.301476 | E58: =C58/SUM(C54:C76) -> 0.001257511427 | F58: 0.6190747314 | G58: Chronic Obstructive Pulmonary Disease or Bronchitis, without Interventions, with CC Score 13+
B59: DZ65E | C59: 390 | D59: 629.2863077 | E59: =C59/SUM(C54:C76) -> 0.001809702791 | F59: 1.138821187 | G59: Chronic Obstructive Pulmonary Disease or Bronchitis, with Single Intervention, with CC Score 0-4
B60: DZ65D | C60: 369 | D60: 678.2121951 | E60: =C60/SUM(C54:C76) -> 0.001712257256 | F60: 1.161273752 | G60: Chronic Obstructive Pulmonary Disease or Bronchitis, with Single Intervention, with CC Score 5-8
B61: DZ65C | C61: 159 | D61: 816.39 | E61: =C61/SUM(C54:C76) -> 0.0007378019071 | F61: 0.602334099 | G61: Chronic Obstructive Pulmonary Disease or Bronchitis, with Single Intervention, with CC Score 9+
B62: DZ65B | C62: 46 | D62: 1065.223478 | E62: =C62/SUM(C54:C76) -> 0.0002134521241 | F62: 0.2273742141 | G62: Chronic Obstructive Pulmonary Disease or Bronchitis, with Multiple Interventions, with CC Score 0-8
B63: DZ65A | C63: 25 | D63: 2762.3076 | E63: =C63/SUM(C54:C76) -> 0.0001160065892 | F63: 0.3204458829 | G63: Chronic Obstructive Pulmonary Disease or Bronchitis, with Multiple Interventions, with CC Score 9+
B66: Non-elective Long Stay | C66: Number of patients | D66: Cost | E66: Proportion of total incidents | F66: Excess Bed Days | G66: Excess Bed Days per Patient | H66: Cost per day | I66: Cost per patient | J66: Total Cost | K66: Proportion Weighted Cost | L66: Description
B67: DZ65A | C67: 424 | D67: 5826.073538 | E67: =C67/SUM(C54:C76) -> 0.001967471752 | F67: 377 | G67: =F67/C67 -> 0.8891509434 | H67: 234.9845889 | I67: =H67*G67 -> 208.9367689 | J67: =D67+I67 -> 6035.010307 | K67: =J67*E67 -> 11.8737123 | L67: Chronic Obstructive Pulmonary Disease or Bronchitis, with Multiple Interventions, with CC Score 9+
B68: DZ65B | C68: 622 | D68: 3375.691029 | E68: =C68/SUM(C54:C76) -> 0.002886243939 | F68: 334 | G68: =F68/C68 -> 0.536977492 | H68: 248.9705988 | I68: =H68*G68 -> 133.6916077 | J68: =D68+I68 -> 3509.382637 | K68: =J68*E68 -> 10.12893436 | L68: Chronic Obstructive Pulmonary Disease or Bronchitis, with Multiple Interventions, with CC Score 0-8
B69: DZ65C | C69: 1844 | D69: 3706.452858 | E69: =C69/SUM(C54:C76) -> 0.008556646017 | F69: 770 | G69: 0.4175704989 | H69: 242.7922468 | I69: 101.3828796 | J69: 3807.835738 | K69: 32.5823025 | L69: Chronic Obstructive Pulmonary Disease or Bronchitis, with Single Intervention, with CC Score 9+
B70: DZ65D | C70: 3410 | D70: 2667.548545 | E70: =C70/SUM(C54:C76) -> 0.01582329876 | F70: 1361 | G70: 0.3991202346 | H70: 268.3036297 | I70: 107.0854076 | J70: 2774.633953 | K70: 43.903862 | L70: Chronic Obstructive Pulmonary Disease or Bronchitis, with Single Intervention, with CC Score 5-8
B71: DZ65E | C71: 3222 | D71: 2152.639339 | E71: =C71/SUM(C54:C76) -> 0.01495092921 | F71: 1362 | G71: 0.4227188082 | H71: 267.9338473 | I71: 113.2606766 | J71: 2265.900016 | K71: 33.87731074 | L71: Chronic Obstructive Pulmonary Disease or Bronchitis, with Single Intervention, with CC Score 0-4
B72: DZ65F | C72: 1699 | D72: 3503.19425 | E72: =C72/SUM(C54:C76) -> 0.0078838078 | F72: 1184 | G72: 0.696880518 | H72: 228.615853 | I72: 159.3179341 | J72: 3662.512184 | K72: 28.87454212 | L72: Chronic Obstructive Pulmonary Disease or Bronchitis, without Interventions, with CC Score 13+
B73: DZ65G | C73: 11081 | D73: 2565.206103 | E73: =C73/SUM(C54:C76) -> 0.05141876059 | F73: 7429 | G73: 0.6704268568 | H73: 254.191023 | I73: 170.4164886 | J73: 2735.622592 | K73: 140.6623231 | L73: Chronic Obstructive Pulmonary Disease or Bronchitis, without Interventions, with CC Score 9-12
B74: DZ65H | C74: 34706 | D74: 1953.499955 | E74: =C74/SUM(C54:C76) -> 0.1610449874 | F74: 17784 | G74: 0.512418602 | H74: 254.3839862 | I74: 130.3510866 | J74: 2083.851042 | K74: 335.5937647 | L74: Chronic Obstructive Pulmonary Disease or Bronchitis, without Interventions, with CC Score 5-8
B75: DZ65J | C75: 49122 | D75: 1551.585081 | E75: =C75/SUM(C54:C76) -> 0.2279390269 | F75: 22757 | G75: 0.4632751109 | H75: 249.334131 | I75: 115.5102972 | J75: 1667.095378 | K75: 379.9960984 | L75: Chronic Obstructive Pulmonary Disease or Bronchitis, without Interventions, with CC Score 0-4
B76: DZ65K | C76: 1250 | D76: 1217.692776 | E76: =C76/SUM(C54:C76) -> 0.005800329459 | F76: 1 | G76: 0.0008 | H76: 269.2 | I76: 0.21536 | J76: 1217.908136 | K76: 7.064268439 | L76: Chronic Obstructive Pulmonary Disease or Bronchitis, with length of stay 1 day or less, discharged home
B78: TOTAL Short and Long stay
B79: Average cost per admission | C79: =SUM(F54:F63)+SUM(K67:K76) -> 1245.64686 | E79: Sum of proportion weighted costs
B82: Ambulance and Emergency department | D82: Cost
B83: ASC1 | C83: Calls | D83: 7
B84: ASS02 | C84: See, treat, convey | D84: 233
B85: Mean for all services | C85: Emergency medicine | D85: 132
C86: Total | D86: =SUM(D83:D85) -> 372
C87: Proportion arriving by ambulance | D87: 0.9
C88: Average cost per A&E attendance | D88: =+D85+(D87*(D84+D83)) -> 348
C90: Resource | D90: Time | E90: Unit cost per hour /visit | F90: % Referred | G90: Total costs
B91: Referral post discharge | C91: Review by community pharmacist (band 6) | D91: 10 minutes | E91: 42 | G91: =+E91*F91 -> 0
B92: User to define frequency | C92: Referral to respiratory nurse (band 5) | D92: 15 minutes | E92: 36 | G92: =+E92*F92 -> 0
C93: Referral to OPD Physiotherapist | D93: Enter Local Figures as applicable | G93: 0
C94: Referral to consultant led respiratory medicine outpatients | D94: 1 | E94: 163.7 | G94: =+E94*F94 -> 0
C95: Home visits by nurse or physiotherapist | D95: 60 minutes | E95: 39 | G95: =+E95*F95 -> 0
C96: Average cost post discharge | G96: =SUM(G91:G95) -> 0
B99: Primary Care Cost (EXACERBATION COST IN PRIMARY CARE)
B101: Primary care attendance | C101: Cost | D101: Number | E101: Total cost | F101: Assumption
B102: GP attendances | C102: 31 | D102: =0.3*3+0.2*1 -> 1.1 | E102: =+C102*D102 -> 34.1 | F102: 50% self-manage; 30% have tests & mean of 3 attendances; 20% 1 attendance
B103: Bronchial tests | C103: 108 | D103: 0.15 | E103: =+D103*C103 -> 16.2 | F103: 15% referred for tests and costed as 'Bronchial challenge tests' Code DA07
B104: Average GP cost | E104: =SUM(E102:E103) -> 50.3
B105: Medicine costs | C105: Dosage | D105: Cost per unit per day | E105: Average cost per exacerbation
B106: Amoxicillin average use 5 days | C106: 40mg | D106: 0.26 | E106: =5*D106 -> 1.3 | F106: Source Hertel et al and BNF
B107: Prednisolone average use 10 days | C107: 250mg | D107: 0.57 | E107: =10*D107 -> 5.7 | F107: Source Hertel et al and BNF
B108: Step up bronchial medicines by adding a LAMA (tiotropium) | C108: 18 micrograms inhalation capsule | D108: =395.3/365 -> 1.083013699 | E108: =+D108*365*2*0.15 -> 118.59 | F108: Assume 15% with exacerbations receive step-up treatment with a LAMA (tiotropium) in line with NICE clinical guideline on COPD and for 2 years duration. Cost from NICE Costing Report £395.30 per year.
B109: Additional medicine costs | E109: =SUM(E106:E108) -> 125.59
B110: Additional prescription costs | C110: 1 additional prescription every 3 months | D110: 1.13 | E110: 0 | F110: Assume no additional prescriptions required. However if they are incurred fee is £1.13 per prescription (source Drug Tariff 2017)
D111: Total drug costs | E111: =+E109+E110 -> 125.59
B112: Other potential costs include:
D113: Time/visits | E113: Unit cost | F113: % Referred | G113: Total costs
B114: Medicine review | C114: Community pharmacist | D114: 10 minutes | E114: =+E91*10/60 -> 7 | F114: 0 | G114: =+E114*F114 -> 0
B115: Referral to consultant | C115: Referral to consultant led respiratory medicine outpatients | D115: 1 | E115: =+E94 -> 163.7 | F115: 0 | G115: =+E115*F115 -> 0
B116: Referral for physiotherapy (A08A1) | C116: Community physiotherapy 1 to 1 | E116: 52 | F116: 0 | G116: =+E116*F116 -> 0
B117: Average cost | G117: =SUM(G114:G116) -> 0
D119: Total cost primary care | E119: =+G117+E111+E104 -> 175.89
B121: Additional social care support
B123: Some people experiencing acute exacerbations may require additional support from social services on discharge from hospital or whilst living at home.
B124: PSSRU (http://www.pssru.ac.uk/project-pages/unit-costs/2016/#sections) provides costs for care packages. A sample of such costs is provided below:
B125: - Home care provision face-to-face: £24 per hour weekday (£25 per day-time weekend, £25 per night-time weekday, £25 per night-time weekend).
B126: - £152 is the cost of local authority provided residential care in the event that the person cannot be discharged home.
B127: - Community occupational therapist (local authority) cost £40 per hour.
B128: - Day care costs £61 per client attendance; £13 per client hour; £46 per client session lasting 3.5 hours.
D130: Total cost of social care | E130: 0
B132: Metadata
B134: Admissions costs | E134: Notes
B135: NHS Reference Costs 14/15 | E135: For costs of short and long stay non-elective hospital admissions for COPD HRGs, emergency admissions ambulance costs and diagnostic tests
B136: PR Staff costs
B137: National Audit 2015 | E137: For the WTE staffing of PR programmes
B138: Agenda for Change Pay scales | E138: For the cost of staffing of PR programmes
B139: PR Other Costs
B140: KSS PR Survey | E140: For staff travel and facilities hire costs
B141: Primary care costs and prescription costs
B142: PSSRU Unit costs 2016 | E142: For the cost of GP appointments
B143: Incidence Rates
B144: Original Analysis | E144: For healthcare utilisation, a combination of systematic review results and CPRD analysis (?)
B145: Prescribing Costs
B146: MIMMS | E146: NICE clinical guideline on COPD and Costing report for typical step-up therapies and costs from MIMMS.
B147: British National Formulary 2011 | E147: For amoxicillin and prednisolone with doses derived from Hertel et al (2012)
B148: Drug Tariff | E148: Cost to dispense prescription
B149: Ambulance rate
B150: N. Hertel, R.W. Kotchie, Y. Samyshkin, M. Radford, S. Humphreys, K. Jameson Cost-effectiveness of available treatment options for patients suffering from severe COPD in the UK: a fully incremental analysis Int J Chron Obstruct Pulmon Dis, 7 (2012), pp. 183–199
B151: https://www.ncbi.nlm.nih.gov/pmc/articles/PMC3325000/

Sheet Recommendations
B2: =MID(CELL("filename",B1),FIND("]",CELL("filename",B1))+1,256) -> Recommendations
B4: Introduction This document outlines suggestions for the delivery of pulmonary rehabilitation (PR) for people with chronic obstructive pulmonary disease (COPD). This paper was produced by the Steering Group of the Physiotherapy Works project on COPD (see appendix one for Steering Group members), with a specific focus on pulmonary rehabilitation (PR) for COPD. At the start of the project, Imperial College London (ICL) were commissioned to undertake a systematic review of PR with respect to its effect on exacerbation rates, both community and hospital managed1. The expectation was that we would be able to evidence a cost saving from PR for COPD through reduction of exacerbation rates and healthcare utilisation, which could be used within an economic model. This expected cost saving was shown in the randomised controlled trials (see appendix two for list of RCTs with summary results), but was less evident in the cohort studies, and was not seen in a Clinical Practice Research Data (CPRD) analysis also undertaken (by Dr Jenni Quint, ICL). The recent Healthcare Quality Improvement Partnership commissioned the Royal College of Physicians (RCP)/ British Thoracic Society (BTS) national PR audit2 which demonstrated that participating programmes had wide variation in outcomes. The COPD economic model that has been developed is based primarily on results from RCT data on COPD patients undertaking PR, to illustrate the potential benefits of a PR service on COPD exacerbation rates and healthcare utilisation. RCTs frequently represent a ‘standardised world’ in which as many sources of variability as possible are accounted for, and they generally use inclusion and exclusion criteria that result in the recruitment of a more homogeneous sample of people, with fewer (or less severe) co-morbidities than occur within the wider population. In trials, patients receive additional attention and may be actively encouraged to participate and complete PR programmes more than in routine clinical settings. This means that RCT outcomes cannot always be replicated outside the trial setting. They do provide useful insights, however, into areas that could be addressed to improve service outcomes. These insights have been used to develop the COPD model and to inform the recommendations within this paper. The COPD model can be downloaded from the Physiotherapy Works pages on the CSP website, at: https://csp.org.uk/copdmodel
B5: Purpose and target audience These recommendations are aimed at local decision makers and physiotherapy and other staff involved in funding or delivering PR services. The Steering Group has developed them to enable physiotherapists and others to maximise the number of eligible COPD patients undergoing PR and to optimise patient outcomes. The recommendations have been informed primarily by the RCTs upon which the new economic model is based, as well as existing national guidelines3 and quality standards4.
B8: 1 | C8: Service delivery
B9: 1.1 | C9: Services should be delivered in accordance with the BTS Quality Standards for PR4.
B10: 1.2 | C10: Provision should be made to ensure there are adequate resources to enable services to provide PR to the BTS Quality Standards and these recommendations3.
B11: 1.3 | C11: The PR rehabilitation team should be supported by administration and clerical input, to avoid inefficiencies in staff work schedules.
B12: 1.4 | C12: A physiotherapist needs to be integral to the PR rehabilitation team. Physiotherapists are uniquely qualified to individually prescribe and progress the training regimen, and to teach appropriate breathing techniques to enable exercise in those with altered lung pathology and/ or respiratory mechanics. This is particularly important in the complex breathless patient and for those with co-morbidities requiring exercise modification.
B13: 1.5 | C13: Physiotherapists should ensure that comprehensive assessments are performed at baseline and upon completion of the PR programme. This should include validated measures of exercise capacity (including measures of strength), health status and dyspnoea, and should include practice walks for field walking tests3, 5, 6.
B14: 1.6 | C14: The ‘home exercise’ regimen is an important component of an individual’s PR programme. Adherence to both the ‘face-to-face’ programme and the home programme should be supported.
B15: 1.7 | C15: PR programmes should have Standard Operating Procedures for PR. These could be created locally or shared among multiple providers, for example, within a region.
B17: 2 | C17: Referrals & Uptake
B18: Intro | C18: Poor referral and uptake greatly affect the efficiency of any PR programme, as highlighted in the recent RCP/BTS Audit2. Referral issues need to be addressed by a) encouraging local referrers to refer all MRC grade 3-5 COPD patients to a PR programme, plus MRC grade 2 patients if they are experiencing functional limitation due to their COPD, and b) ensuring the referral process is as simple as possible for the referrer. Uptake issues can be addressed: by PR services triaging patients for eligibility (referring on, or back, ineligible patients, with constructive suggestions on the appropriate healthcare pathway for that individual); by actively encouraging all those eligible to attend PR; and by identifying barriers to uptake, then seeking local solutions to any barriers identified.
B19: 2.1 | C19: Referrers and potential participants all need to be made aware of the value and benefits of PR for COPD1,3.
B20: 2.2 | C20: The referral process needs to be as simple as possible.
B21: 2.3 | C21: Consideration needs to be given to increasing access to PR and uptake through improved referral pathways and effective triage.
B22: 2.4 | C22: There should be a clear and integrated pathway to recruit patients to PR programmes, including those patients post hospitalisation for an acute exacerbation of COPD3,4.
B23: 2.5 | C23: Methods for improving referral and uptake should be tested within local populations and evaluated for effectiveness.
B25: 3 | C25: Drop-outs
B26: Intro | C26: Recent BTS/RCP audit data show a variation in drop-out rates across PR programmes2. Drop-outs can occur at various time points: from initial referral to PR baseline assessment, from baseline assessment to first PR attendance, or at any time during the PR programme. Drop-outs at each of these time-points will have different causes and solutions. Understanding and addressing the reasons for drop-out rates within each local service should help towards reducing drop-outs and ultimately improving PR completion rates and outcomes.
B27: 3.1 | C27: All PR services should conduct internal audit and evaluation to assess drop-out rates at each time-point and consider methods to reduce drop-outs.
B29: 4 | C29: Measuring and evaluating your service
B30: 4.1 | C30: All PR services should contribute to BTS audits.
B31: 4.2 | C31: All PR services should carry out local service evaluation to assess clinical and service outcomes 3,4,5.
B32: 4.3 | C32: All PR services should ensure continuing quality improvement is built into this process
B34: 5 | C34: References | D34: References
B35: 1 | C35: Moore E et al. Pulmonary rehabilitation as a mechanism to reduce hospitalisations for acute exacerbations of chronic obstructive pulmonary disease: A systematic review and meta-analysis. London; Chest; 2016
B36: 2 | C36: Steiner M, Holzhauer-Barrie J, Lowe D et al. Pulmonary Rehabilitation: Steps to breathe better. London; RCP & BTS; 2015
B37: 3 | C37: Steiner M, Holzhauer-Barrie J, Lowe D et al. Pulmonary Rehabilitation: Time to breathe better. London: RCP, November 2015.British Thoracic Society. Guidelines for Pulmonary Rehabilitation in Adults. London; Thorax; September 2013
B38: 4 | C38: British Thoracic Society. Quality Standards for Pulmonary Rehabilitation in Adults. London; BTS; 2014
B39: 5 | C39: Holland A, Spruit M, Troosters T, et al. An official European Respiratory Society/American Thoracic Society technical standard: field walking tests in chronic respiratory disease
B40: 6 | C40: Department of Health (DH) commissioning toolkits

Sheet Links
B2: Links
B3: We recommend that you make use of the following reports, guidance and standards in establishing or developing a PR service.
B5: ID | C5: Description/Organisation | D5: Hyperlink
B6: L1 | C6: BTS Audit | D6: https://www.brit-thoracic.org.uk/audit-and-quality-improvement/national-copd-audit-programme/
B7: L2 | C7: BTS PR Guidelines and Quality Standards | D7: https://www.brit-thoracic.org.uk/guidelines-and-quality-standards/pulmonary-rehabilitation-guideline/
B8: L3 | C8: Department of Health (DH) commissioning toolkits | D8: https://www.gov.uk/government/publications/commissioning-toolkit-for-respiratory-services
B9: L4 | C9: European Respiratory Society (ERS) | D9: Increasing implementation and delivery of pulmonary rehabilitation: key messages from the new ATS/ERS policy statement http://erj.ersjournals.com/content/47/5/1336
B10: L5 | C10: ERS/ATS Exercise Tests Technical Standards | D10: An official European Respiratory Society/ American Thoracic Society technical standard: field walking tests in chronic respiratory disease https://www.thoracic.org/statements/resources/copd/FWT-Tech-Std.pdf
B11: L6 | C11: Inspire | D11: http://www.csp.org.uk/professional-union/practice/evidence-base/inspire-respiratory-guidelines
B12: L7 | C12: Hertel et al | D12: Cost-effectiveness of available treatment options for patients suffering from severe COPD in the UK: a fully incremental analysis https://www.ncbi.nlm.nih.gov/pmc/articles/PMC3325000/
C15: From BTS/RCP Audit, National organisational audit report November 2015 (page 14)
C16: The audit estimates that for 2013/2014 around 68,000 referrals were received by PR programmes for patients with COPD across England and Wales. The estimated prevalence of COPD patients that should be offered PR (MRC grades 3 to 5) for the same period was about 446,000 across England and Wales (4, 5). It is clear, therefore, that there is significant under-referral of patients for treatment. Given the strong evidence base for the effectiveness and economic value of PR, addressing this deficiency should be a high priority for commissioners and for primary and secondary care providers. The low attendance rate for PR assessment among patients who have been referred indicates significant patient factors contributing to suboptimal uptake of treatment.
C19: From BTS/RCP Clinical Audit, National clinical audit report February 2016 (page 13)

Sheet References
B2: =MID(CELL("filename",B1),FIND("]",CELL("filename",B1))+1,256) -> References
B4: No. | C4: Studies included in the Systematic Review
B5: 1 | C5: Behnke M, Jorres RA, Kirsten D, Magnussen H. Clinical benefits of a combined hospital and home-based exercise programme over 18 months in patients with severe COPD. Monaldi Archives for Chest Disease - Pulmonary Series. 2003;59(1):44-51.
B6: 2 | C6: Boxall AM, Barclay L, Sayers A, Caplan GA. Managing chronic obstructive pulmonary disease in the community. A randomized controlled trial of home-based pulmonary rehabilitation for elderly housebound patients. Journal of cardiopulmonary rehabilitation. 2005;25(6):378-385.
B7: 3 | C7: Cecins N, Geelhoed E, Jenkins SC. Reduction in hospitalisation following pulmonary rehabilitation in patients with COPD. Australian Health Review. 2008;32(3):415-422.
B8: 4 | C8: Eaton T, Young P, Fergusson W, et al. Does early pulmonary rehabilitation reduce acute health-care utilization in COPD patients admitted with an exacerbation? A randomized controlled study. Respirology. 2009;14(2):230-238.
B9: 5 | C9: Foglio K, Bianchi L, Bruletti G, Battista L, Pagani M, Ambrosino N. Long-term effectiveness of pulmonary rehabilitation in patients with chronic airway obstruction. European Respiratory Journal. 1999;13(1):125-132.
B10: 6 | C10: Golmohammadi K, Jacobs P, Sin DD. Economic evaluation of a community-based pulmonary rehabilitation program for chronic obstructive pulmonary disease. Lung. 2004;182(3):187-196.
B11: 7 | C11: Guell R, Casan P, Belda J, et al. Long-term effects of outpatient rehabilitation of COPD: A randomized trial. Chest. 2000;117(4):976-983.
B12: 8 | C12: Hui KP, Hewitt AB. A simple pulmonary rehabilitation program improves health outcomes and reduces hospital utilization in patients with COPD. Chest. 2003;124(1):94-97.
B13: 9 | C13: Ko FW, Dai DL, Ngai J, et al. Effect of early pulmonary rehabilitation on health care utilization and health status in patients hospitalized with acute exacerbations of COPD. Respirology. 2011;16(4):617-624.
B14: 10 | C14: Sudo E, Tanuma S, Haraguchi N, et al. A case of chronic obstructive pulmonary disease (COPD) followed by pulmonary rehabilitation. [Japanese]. Nippon Ronen Igakkai zasshi. 2002; Japanese journal of geriatrics. 39(4):439-443.
B15: 11 | C15: Liu XD JH, Ng BHP, Gu YH, Wu YC, Lu G. Therapeutic effects of qigong in patients with COPD: a randomized controlled trial. Hong Kong J Occup Ther. 2012;22(1):8.
B16: 12 | C16: Major S, Moreno M, Shelton J, Panos RJ. Veterans with chronic obstructive pulmonary disease achieve clinically relevant improvements in respiratory health after pulmonary rehabilitation. Journal of Cardiopulmonary Rehabilitation & Prevention. 2014;34(6):420-429.
B17: 13 | C17: Man WD, Polkey MI, Donaldson N, Gray BJ, Moxham J. Community pulmonary rehabilitation after hospitalisation for acute exacerbations of chronic obstructive pulmonary disease: randomised controlled study. BMJ. 2004;329(7476):1209.
B18: 14 | C18: Murphy N, Bell C, Costello RW. Extending a home from hospital care programme for COPD exacerbations to include pulmonary rehabilitation. Respiratory Medicine. 2005;99(10):1297-1302.
B19: 15 | C19: Nguyen HQ, Harrington A, Liu ILA, Lee JS, Gould MK. Impact of pulmonary rehabilitation on hospitalizations for chronic obstructive pulmonary disease among members of an integrated health care system. Journal of Cardiopulmonary Rehabilitation and Prevention. 2015;35(5):356-366.
B20: 16 | C20: Rasekaba TM, Williams E, Hsu-Hage B. Can a chronic disease management pulmonary rehabilitation program for COPD reduce acute rural hospital utilization? Chronic Respiratory Disease. 2009;6(3):157-163.
B21: 17 | C21: Revitt O, Sewell L, Morgan MDL, Steiner M, Singh S. Short outpatient pulmonary rehabilitation programme reduces readmission following a hospitalization for an exacerbation of chronic obstructive pulmonary disease. Respirology. 2013;18(7):1063-1068.
B22: 18 | C22: Roman M, Larraz C, Gomez A, et al. Efficacy of pulmonary rehabilitation in patients with moderate chronic obstructive pulmonary disease: a randomized controlled trial. BMC family practice. 2013;14:21.
B23: 19 | C23: Rubi M, Renom F, Ramis F, et al. Effectiveness of Pulmonary Rehabilitation in Reducing Health Resources Use in Chronic Obstructive Pulmonary Disease. Archives of Physical Medicine and Rehabilitation. 2010;91(3):364-368.
B24: 20 | C24: Scherer YK, Schmieder LE. Pulmonary rehabilitation: is it cost effective? The Journal of the New York State Nurses' Association. 1998;29(3-4):16-20.
B25: 21 | C25: Seymour JM, Moore L, Jolley CJ, et al. Outpatient pulmonary rehabilitation following acute exacerbations of COPD. Thorax. 2010;65(5):423-428.
B26: 22 | C26: Wright RW, Larsen DF, Monie RG, Aldred RA. Benefits of a community-hospital pulmonary rehabilitation program. Respiratory Care. 1983;28(11):1474-1479.

Sheet Practice Data
B2: =MID(CELL("filename",B1),FIND("]",CELL("filename",B1))+1,256) -> Practice Data
B3: This sheet includes the underlying data for each general practice population (please refer to User Guide for more detail)
J4: 10 | K4: 11 | L4: 12
E5: All Data Sheets can be filtered to only show results for the filtered area selected in the results sheet (blue box)
B7: Location
B8: Practice | D8: CCG | F8: Area Team | H8: Region | J8: Country | M8: Filters | Q8: Registered Population diagnosed with COPD (QOF) | T8: Model Population estimated to have COPD (Model) | W8: Registered Population estimated to have COPD | Z8: Registered Population estimated to be undiagnosed with COPD | AC8: COPD002: Diagnosis conf. by spirometry (den. incl. exc.) | AF8: COPD003: assessed using MRC dyspnoea score last 12mths (den. incl. exc.) | AI8: COPD004: Record of FEV1 in last 12mths (den. incl. exc.) | AL8: COPD005: Patients w. MRC dyspnoea score >=3 w.oxygen saturation value (last 12mths) (den.incl.exc.) | AO8: COPD006: Influenza immunisation given 1 Sep - 31 Mar (den. incl. exc.) | AR8: COPD008: Referral to a pulmonary rehabilitation programme within the preceding 15 months. | AU8: Estimated COPD population MRC3 and above (last 12 months) | AX8: Estimated COPD population MRC3 and above - offered PR (last 12 months) | BA8: Estimated COPD population MRC3 and above - starting PR (last 12 months) | BD8: Estimated COPD population MRC3 and above - completing PR (last 12 months) | BG8: Estimated COPD population MRC3 and above - not completing PR (last 12 months) | BJ8: Estimated COPD population MRC3 and above - forecast to complete PR | BM8: Hospital Exacerbations for Estimated COPD population Completing PR | BP8: Hospital Exacerbations for Estimated COPD population Not Completing PR | BS8: Hospital Exacerbations - Total | BV8: Forecast Hospital Exacerbations Total | BY8: Primary Care Exacerbations for Estimated COPD population Completing PR | CB8: Primary Care Exacerbations for Estimated COPD population Not Completing PR | CE8: Primary Care Exacerbations - Total | CH8: Forecast Primary Care Exacerbations total
B9: Practice Code | C9: Practice Name | D9: CCG Code | E9: CCG Name | F9: Area Team Code | G9: Area Team Name | H9: Region Code | I9: Region Name | J9: Country Code | K9: Country Name | L9: UK | M9: Filter 1 | Q9: Numerator | R9: Denominator | S9: Exceptions | T9: Numerator | U9: Denominator | V9: Exceptions | W9: Numerator | X9: Denominator | Y9: Exceptions | Z9: Numerator | AA9: Denominator | AB9: Exceptions | AC9: Numerator | AD9: Denominator | AE9: Exceptions | AF9: Numerator | AG9: Denominator | AH9: Exceptions | AI9: Numerator | AJ9: Denominator | AK9: Exceptions | AL9: Numerator | AM9: Denominator | AN9: Exceptions | AO9: Numerator | AP9: Denominator | AQ9: Exceptions | AR9: Numerator | AS9: Denominator | AT9: Exceptions | AU9: Numerator | AV9: Eligible for PR Denominator | AW9: Category Denominator | AX9: Numerator | AY9: Eligible for PR Denominator | AZ9: Category Denominator | BA9: Numerator | BB9: Eligible for PR Denominator | BC9: Category Denominator | BD9: Numerator | BE9: Eligible for PR Denominator | BF9: Category Denominator | BG9: Numerator | BH9: Eligible for PR Denominator | BI9: Category Denominator | BJ9: Numerator | BK9: Denominator | BL9: Exceptions | BM9: Exacerbations | BN9: People | BP9: Exacerbations | BQ9: People | BS9: Exacerbations | BT9: People | BV9: Exacerbations | BW9: People | BX9: Exceptions | BY9: Numerator | BZ9: Denominator | CA9: Exceptions | CB9: Numerator | CC9: Denominator | CD9: Exceptions | CE9: Numerator | CF9: Denominator | CG9: Exceptions | CH9: Numerator | CI9: Denominator | CJ9: Exceptions
B10: A81001 | C10: THE DENSHAM SURGERY | D10: E38000075 | E10: NHS HARTLEPOOL AND STOCKTON-ON-TEES CCG | F10: E39000002 | G10: DURHAM, DARLINGTON AND TEES AREA TEAM | H10: E40000001 | I10: NORTH OF ENGLAND COMMISSIONING REGION | J10: Eng | K10: England | L10: UK | M10: =IF(LEFT(Results!$N$16,3)="All",1,IF(Results!$N$16=D10,1,IF(Results!$N$16=F10,1,IF(Results!$N$16=H10,1,IF(Results!$N$16=J10,1,0))))) -> 1 | Q10: 111 | R10: 4182 | S10: 99 | T10: 189 | U10: 4186 | W10: 189 | X10: 4182 | Z10: 78 | AA10: 4182 | AC10: 28 | AD10: 34 | AE10: 2 | AF10: 99 | AG10: 108 | AH10: 5 | AI10: 90 | AJ10: 99 | AK10: 14 | AL10: 44 | AM10: 44 | AN10: 2 | AO10: 98 | AP10: 104 | AQ10: 9 | AR10: 0 | AS10: 0 | AT10: 0 | AU10: 75.6 | AV10: 75.6 | AW10: 189 | AX10: 11.34 | AY10: 75.6 | AZ10: 75.6 | BA10: 6.6906 | BB10: 75.6 | BC10: 11.34 | BD10: 4.750326 | BE10: 75.6 | BF10: 6.6906 | BG10: 70.849674 | BH10: 75.6 | BI10: 75.6 | BJ10: 4.750326 | BK10: 75.6 | BL10: 75.6 | BM10: 1.500627983 | BN10: 4.750326 | BP10: 37.54674 | BQ10: 70.849674 | BS10: 39.04736798 | BT10: 75.6 | BV10: 36.68811858 | BW10: 75.6 | BY10: 8.503558573 | BZ10: 4.750326 | CB10: 199.39578 | CC10: 70.849674 | CE10: 207.8993386 | CF10: 75.6 | CH10: 207.8993386 | CI10: 75.6 | CJ10: 0
B11: A81002 | C11: QUEENS PARK MEDICAL CENTRE | D11: E38000075 | E11: NHS HARTLEPOOL AND STOCKTON-ON-TEES CCG | F11: E39000002 | G11: DURHAM, DARLINGTON AND TEES AREA TEAM | H11: E40000001 | I11: NORTH OF ENGLAND COMMISSIONING REGION | J11: Eng | K11: England | L11: UK | M11: =IF(LEFT(Results!$N$16,3)="All",1,IF(Results!$N$16=D11,1,IF(Results!$N$16=F11,1,IF(Results!$N$16=H11,1,IF(Results!$N$16=J11,1,0))))) -> 1 | Q11: 600 | R11: 19618 | S11: 213 | T11: 867 | U11: 20517 | W11: 867 | X11: 19618 | Z11: 267 | AA11: 19618 | AC11: 81 | AD11: 89 | AE11: 29 | AF11: 185 | AG11: 197 | AH11: 28 | AI11: 140 | AJ11: 168 | AK11: 57 | AL11: 92 | AM11: 97 | AN11: 7 | AO11: 173 | AP11: 177 | AQ11: 48 | AR11: 0 | AS11: 0 | AT11: 0 | AU11: 346.8 | AV11: 346.8 | AW11: 867 | AX11: 52.02 | AY11: 346.8 | AZ11: 346.8 | BA11: 30.6918 | BB11: 346.8 | BC11: 52.02 | BD11: 21.791178 | BE11: 346.8 | BF11: 30.6918 | BG11: 325.008822 | BH11: 346.8 | BI11: 346.8 | BJ11: 21.791178 | BK11: 346.8 | BL11: 346.8 | BM11: 6.88383313 | BN11: 21.791178 | BP11: 172.23822 | BQ11: 325.008822 | BS11: 179.1220531 | BT11: 346.8 | BV11: 168.2994646 | BW11: 346.8 | BY11: 39.00838774 | BZ11: 21.791178 | CB11: 914.6885782 | CC11: 325.008822 | CE11: 953.6969659 | CF11: 346.8 | CH11: 953.6969659 | CI11: 346.8 | CJ11: 0
B12: A81003 | C12: THE GALLAGHER PRACTICE | D12: E38000075 | E12: NHS HARTLEPOOL AND STOCKTON-ON-TEES CCG | F12: E39000002 | G12: DURHAM, DARLINGTON AND TEES AREA TEAM | H12: E40000001 | I12: NORTH OF ENGLAND COMMISSIONING REGION | J12: Eng | K12: England | L12: UK | M12: =IF(LEFT(Results!$N$16,3)="All",1,IF(Results!$N$16=D12,1,IF(Results!$N$16=F12,1,IF(Results!$N$16=H12,1,IF(Results!$N$16=J12,1,0))))) -> 1 | Q12: 142 | R12: 3469 | S12: 33 | T12: 110 | U12: 3662 | W12: 110 | X12: 3469 | Z12: 0 | AA12: 3469 | AC12: 66 | AD12: 74 | AE12: 3 | AF12: 142 | AG12: 144 | AH12: 17 | AI12: 149 | AJ12: 150 | AK12: 11 | AL12: 92 | AM12: 94 | AN12: 0 | AO12: 148 | AP12: 148 | AQ12: 13 | AR12: 0 | AS12: 0 | AT12: 0 | AU12: 44 | AV12: 44 | AW12: 110 | AX12: 6.6 | AY12: 44 | AZ12: 44 | BA12: 3.894 | BB12: 44 | BC12: 6.6 | BD12: 2.76474 | BE12: 44 | BF12: 3.894 | BG12: 41.23526 | BH12: 44 | BI12: 44 | BJ12: 2.76474 | BK12: 44 | BL12: 44 | BM12: 0.873381366 | BN12: 2.76474 | BP12: 21.8526 | BQ12: 41.23526 | BS12: 22.72598137 | BT12: 44 | BV12: 21.35287325 | BW12: 44 | BY12: 4.949161074 | BZ12: 2.76474 | CB12: 116.050454 | CC12: 41.23526 | CE12: 120.9996151 | CF12: 44 | CH12: 120.9996151 | CI12: 44 | CJ12: 0
B13: A81004 | C13: WOODLANDS SURGERY | D13: E38000162 | E13: NHS SOUTH TEES CCG | F13: E39000002 | G13: DURHAM, DARLINGTON AND TEES AREA TEAM | H13: E40000001 | I13: NORTH OF ENGLAND COMMISSIONING REGION | J13: Eng | K13: England | L13: UK | M13: =IF(LEFT(Results!$N$16,3)="All",1,IF(Results!$N$16=D13,1,IF(Results!$N$16=F13,1,IF(Results!$N$16=H13,1,IF(Results!$N$16=J13,1,0))))) -> 1 | Q13: 279 | R13: 9078 | S13: 171 | T13: 363 | U13: 7963 | W13: 413.8282055 | X13: 9078 | Z13: 134.8282055 | AA13: 9078 | AC13: 27 | AD13: 27 | AE13: 1 | AF13: 62 | AG13: 67 | AH13: 8 | AI13: 62 | AJ13: 68 | AK13: 7 | AL13: 13 | AM13: 13 | AN13: 0 | AO13: 61 | AP13: 62 | AQ13: 13 | AR13: 0 | AS13: 0 | AT13: 0 | AU13: 165.5312822 | AV13: 165.5312822 | AW13: 413.8282055 | AX13: 24.82969233 | AY13: 165.5312822 | AZ13: 165.5312822 | BA13: 14.64951847 | BB13: 165.5312822 | BC13: 24.82969233 | BD13: 10.40115812 | BE13: 165.5312822 | BF13: 14.64951847 | BG13: 155.1301241 | BH13: 165.5312822 | BI13: 165.5312822 | BJ13: 10.40115812 | BK13: 165.5312822 | BL13: 165.5312822 | BM13: 3.285725849 | BN13: 10.40115812 | BP13: 82.21111129 | BQ13: 155.1301241 | BS13: 85.49683714 | BT13: 165.5312822 | BV13: 80.33110197 | BW13: 165.5312822 | BY13: 18.61911314 | BZ13: 10.40115812 | CB13: 436.5904647 | CC13: 155.1301241 | CE13: 455.2095778 | CF13: 165.5312822 | CH13: 455.2095778 | CI13: 165.5312822 | CJ13: 0
B14: A81005 | C14: SPRINGWOOD SURGERY | D14: E38000162 | E14: NHS SOUTH TEES CCG | F14: E39000002 | G14: DURHAM, DARLINGTON AND TEES AREA TEAM | H14: E40000001 | I14: NORTH OF ENGLAND COMMISSIONING REGION | J14: Eng | K14: England | L14: UK | M14: =IF(LEFT(Results!$N$16,3)="All",1,IF(Results!$N$16=D14,1,IF(Results!$N$16=F14,1,IF(Results!$N$16=H14,1,IF(Results!$N$16=J14,1,0))))) -> 1 | Q14: 180 | R14: 7916 | S14: 120 | T14: 249 | U14: 7993 | W14: 249 | X14: 7916 | Z14: 69 | AA14: 7916 | AC14: 41 | AD14: 44 | AE14: 22 | AF14: 144 | AG14: 159 | AH14: 42 | AI14: 133 | AJ14: 143 | AK14: 58 | AL14: 93 | AM14: 99 | AN14: 1 | AO14: 160 | AP14: 172 | AQ14: 29 | AR14: 0 | AS14: 0 | AT14: 0 | AU14: 99.6 | AV14: 99.6 | AW14: 249 | AX14: 14.94 | AY14: 99.6 | AZ14: 99.6 | BA14: 8.8146 | BB14: 99.6 | BC14: 14.94 | BD14: 6.258366 | BE14: 99.6 | BF14: 8.8146 | BG14: 93.341634 | BH14: 99.6 | BI14: 99.6 | BJ14: 6.258366 | BK14: 99.6 | BL14: 99.6 | BM14: 1.977017819 | BN14: 6.258366 | BP14: 49.46634 | BQ14: 93.341634 | BS14: 51.44335782 | BT14: 99.6 | BV14: 48.33514035 | BW14: 99.6 | BY14: 11.20310098 | BZ14: 6.258366 | CB14: 262.6960276 | CC14: 93.341634 | CE14: 273.8991286 | CF14: 99.6 | CH14: 273.8991286 | CI14: 99.6 | CJ14: 0
B15: A81006 | C15: TENNANT STREET MEDICAL PRACTICE | D15: E38000075 | E15: NHS HARTLEPOOL AND STOCKTON-ON-TEES CCG | F15: E39000002 | G15: DURHAM, DARLINGTON AND TEES AREA TEAM | H15: E40000001 | I15: NORTH OF ENGLAND COMMISSIONING REGION | J15: Eng | K15: England | L15: UK | M15: =IF(LEFT(Results!$N$16,3)="All",1,IF(Results!$N$16=D15,1,IF(Results!$N$16=F15,1,IF(Results!$N$16=H15,1,IF(Results!$N$16=J15,1,0))))) -> 1 | Q15: 347 | R15: 12202 | S15: 151 | T15: 480 | U15: 12209 | W15: 480 | X15: 12202 | Z15: 133 | AA15: 12202 | AC15: 52 | AD15: 55 | AE15: 10 | AF15: 177 | AG15: 185 | AH15: 59 | AI15: 141 | AJ15: 156 | AK15: 88 | AL15: 62 | AM15: 65 | AN15: 1 | AO15: 200 | AP15: 200 | AQ15: 44 | AR15: 0 | AS15: 0 | AT15: 0 | AU15: 192 | AV15: 192 | AW15: 480 | AX15: 28.8 | AY15: 192 | AZ15: 192 | BA15: 16.992 | BB15: 192 | BC15: 28.8 | BD15: 12.06432 | BE15: 192 | BF15: 16.992 | BG15: 179.93568 | BH15: 192 | BI15: 192 | BJ15: 12.06432 | BK15: 192 | BL15: 192 | BM15: 3.811118688 | BN15: 12.06432 | BP15: 95.3568 | BQ15: 179.93568 | BS15: 99.16791869 | BT15: 192 | BV15: 93.17617416 | BW15: 192 | BY15: 21.59633923 | BZ15: 12.06432 | CB15: 506.401981 | CC15: 179.93568 | CE15: 527.9983202 | CF15: 192 | CH15: 527.9983202 | CI15: 192 | CJ15: 0
B16: A81007 | C16: BANKHOUSE SURGERY | D16: E38000075 | E16: NHS HARTLEPOOL AND STOCKTON-ON-TEES CCG | F16: E39000002 | G16: DURHAM, DARLINGTON AND TEES AREA TEAM | H16: E40000001 | I16: NORTH OF ENGLAND COMMISSIONING REGION | J16: Eng | K16: England | L16: UK | M16: =IF(LEFT(Results!$N$16,3)="All",1,IF(Results!$N$16=D16,1,IF(Results!$N$16=F16,1,IF(Results!$N$16=H16,1,IF(Results!$N$16=J16,1,0))))) -> 1 | Q16: 321 | R16: 9517 | S16: 133 | T16: 267 | U16: 9718 | W16: 267 | X16: 9517 | Z16: 0 | AA16: 9517 | AC16: 47 | AD16: 52 | AE16: 8 | AF16: 134 | AG16: 139 | AH16: 45 | AI16: 120 | AJ16: 131 | AK16: 53 | AL16: 63 | AM16: 67 | AN16: 1 | AO16: 149 | AP16: 150 | AQ16: 34 | AR16: 0 | AS16: 0 | AT16: 0 | AU16: 106.8 | AV16: 106.8 | AW16: 267 | AX16: 16.02 | AY16: 106.8 | AZ16: 106.8 | BA16: 9.4518 | BB16: 106.8 | BC16: 16.02 | BD16: 6.710778 | BE16: 106.8 | BF16: 9.4518 | BG16: 100.089222 | BH16: 106.8 | BI16: 106.8 | BJ16: 6.710778 | BK16: 106.8 | BL16: 106.8 | BM16: 2.11993477 | BN16: 6.710778 | BP16: 53.04222 | BQ16: 100.089222 | BS16: 55.16215477 | BT16: 106.8 | BV16: 51.82924688 | BW16: 106.8 | BY16: 12.0129637 | BZ16: 6.710778 | CB16: 281.6861019 | CC16: 100.089222 | CE16: 293.6990656 | CF16: 106.8 | CH16: 293.6990656 | CI16: 106.8 | CJ16: 0
B17: A81008 | C17: ALBERT HOUSE CLINIC | D17: E38000162 | E17: NHS SOUTH TEES CCG | F17: E39000002 | G17: DURHAM, DARLINGTON AND TEES AREA TEAM | H17: E40000001 | I17: NORTH OF ENGLAND COMMISSIONING REGION | J17: Eng | K17: England | L17: UK | M17: =IF(LEFT(Results!$N$16,3)="All",1,IF(Results!$N$16=D17,1,IF(Results!$N$16=F17,1,IF(Results!$N$16=H17,1,IF(Results!$N$16=J17,1,0))))) -> 1 | Q17: 204 | R17: 4127 | S17: 91 | T17: 140 | U17: 4345 | W17: 140 | X17: 4127 | Z17: 0 | AA17: 4127 | AC17: 31 | AD17: 31 | AE17: 10 | AF17: 121 | AG17: 125 | AH17: 28 | AI17: 91 | AJ17: 105 | AK17: 48 | AL17: 49 | AM17: 51 | AN17: 2 | AO17: 134 | AP17: 134 | AQ17: 19 | AR17: 0 | AS17: 0 | AT17: 0 | AU17: 56 | AV17: 56 | AW17: 140 | AX17: 8.4 | AY17: 56 | AZ17: 56 | BA17: 4.956 | BB17: 56 | BC17: 8.4 | BD17: 3.51876 | BE17: 56 | BF17: 4.956 | BG17: 52.48124 | BH17: 56 | BI17: 56 | BJ17: 3.51876 | BK17: 56 | BL17: 56 | BM17: 1.111576284 | BN17: 3.51876 | BP17: 27.8124 | BQ17: 52.48124 | BS17: 28.92397628 | BT17: 56 | BV17: 27.17638413 | BW17: 56 | BY17: 6.298932276 | BZ17: 3.51876 | CB17: 147.7005778 | CC17: 52.48124 | CE17: 153.9995101 | CF17: 56 | CH17: 153.9995101 | CI17: 56 | CJ17: 0
B18: A81009 | C18: THE VILLAGE MEDICAL CENTRE | D18: E38000162 | E18: NHS SOUTH TEES CCG | F18: E39000002 | G18: DURHAM, DARLINGTON AND TEES AREA TEAM | H18: E40000001 | I18: NORTH OF ENGLAND COMMISSIONING REGION | J18: Eng | K18: England | L18: UK | M18: =IF(LEFT(Results!$N$16,3)="All",1,IF(Results!$N$16=D18,1,IF(Results!$N$16=F18,1,IF(Results!$N$16=H18,1,IF(Results!$N$16=J18,1,0))))) -> 1 | Q18: 204 | R18: 9247 | S18: 93 | T18: 340 | U18: 9370 | W18: 340 | X18: 9247 | Z18: 136 | AA18: 9247 | AC18: 84 | AD18: 91 | AE18: 10 | AF18: 145 | AG18: 164 | AH18: 22 | AI18: 104 | AJ18: 146 | AK18: 40 | AL18: 126 | AM18: 134 | AN18: 0 | AO18: 160 | AP18: 165 | AQ18: 21 | AR18: 0 | AS18: 0 | AT18: 0 | AU18: 136 | AV18: 136 | AW18: 340 | AX18: 20.4 | AY18: 136 | AZ18: 136 | BA18: 12.036 | BB18: 136 | BC18: 20.4 | BD18: 8.54556 | BE18: 136 | BF18: 12.036 | BG18: 127.45444 | BH18: 136 | BI18: 136 | BJ18: 8.54556 | BK18: 136 | BL18: 136 | BM18: 2.699542404 | BN18: 8.54556 | BP18: 67.5444 | BQ18: 127.45444 | BS18: 70.2439424 | BT18: 136 | BV18: 65.99979003 | BW18: 136 | BY18: 15.29740696 | BZ18: 8.54556 | CB18: 358.7014032 | CC18: 127.45444 | CE18: 373.9988102 | CF18: 136 | CH18: 373.9988102 | CI18: 136 | CJ18: 0
B19: A81011 | C19: CHADWICK PRACTICE | D19: E38000075 | E19: NHS HARTLEPOOL AND STOCKTON-ON-TEES CCG | F19: E39000002 | G19: DURHAM, DARLINGTON AND TEES AREA TEAM | H19: E40000001 | I19: NORTH OF ENGLAND COMMISSIONING REGION | J19: Eng | K19: England | L19: UK | M19: =IF(LEFT(Results!$N$16,3)="All",1,IF(Results!$N$16=D19,1,IF(Results!$N$16=F19,1,IF(Results!$N$16=H19,1,IF(Results!$N$16=J19,1,0))))) -> 1 | Q19: 468 | R19: 11220 | S19: 252 | T19: 342 | U19: 10449 | W19: 367.2351421 | X19: 11220 | Z19: 0 | AA19: 11220 | AC19: 119 | AD19: 121 | AE19: 8 | AF19: 235 | AG19: 251 | AH19: 26 | AI19: 234 | AJ19: 250 | AK19: 27 | AL19: 85 | AM19: 85 | AN19: 2 | AO19: 221 | AP19: 227 | AQ19: 50 | AR19: 0 | AS19: 0 | AT19: 0 | AU19: 146.8940568 | AV19: 146.8940568 | AW19: 367.2351421 | AX19: 22.03410853 | AY19: 146.8940568 | AZ19: 146.8940568 | BA19: 13.00012403 | BB19: 146.8940568 | BC19: 22.03410853 | BD19: 9.230088062 | BE19: 146.8940568 | BF19: 13.00012403 | BG19: 137.6639688 | BH19: 146.8940568 | BI19: 146.8940568 | BJ19: 9.230088062 | BK19: 146.8940568 | BL19: 146.8940568 | BM19: 2.915784819 | BN19: 9.230088062 | BP19: 72.95493333 | BQ19: 137.6639688 | BS19: 75.87071815 | BT19: 146.8940568 | BV19: 71.28659492 | BW19: 146.8940568 | BY19: 16.52278064 | BZ19: 9.230088062 | CB19: 387.4345906 | CC19: 137.6639688 | CE19: 403.9573712 | CF19: 146.8940568 | CH19: 403.9573712 | CI19: 146.8940568 | CJ19: 0
B20: A81012 | C20: WESTBOURNE MEDICAL CENTRE | D20: E38000162 | E20: NHS SOUTH TEES CCG | F20: E39000002 | G20: DURHAM, DARLINGTON AND TEES AREA TEAM | H20: E40000001 | I20: NORTH OF ENGLAND COMMISSIONING REGION | J20: Eng | K20: England | L20: UK | M20: =IF(LEFT(Results!$N$16,3)="All",1,IF(Results!$N$16=D20,1,IF(Results!$N$16=F20,1,IF(Results!$N$16=H20,1,IF(Results!$N$16=J20,1,0))))) -> 1 | Q20: 237 | R20: 4729 | S20: 180 | T20: 210 | U20: 4977 | W20: 210 | X20: 4729 | Z20: 0 | AA20: 4729 | AC20: 41 | AD20: 42 | AE20: 12 | AF20: 120 | AG20: 126 | AH20: 18 | AI20: 122 | AJ20: 129 | AK20: 15 | AL20: 77 | AM20: 77 | AN20: 2 | AO20: 124 | AP20: 126 | AQ20: 18 | AR20: 0 | AS20: 0 | AT20: 0 | AU20: 84 | AV20: 84 | AW20: 210 | AX20: 12.6 | AY20: 84 | AZ20: 84 | BA20: 7.434 | BB20: 84 | BC20: 12.6 | BD20: 5.27814 | BE20: 84 | BF20: 7.434 | BG20: 78.72186 | BH20: 84 | BI20: 84 | BJ20: 5.27814 | BK20: 84 | BL20: 84 | BM20: 1.667364426 | BN20: 5.27814 | BP20: 41.7186 | BQ20: 78.72186 | BS20: 43.38596443 | BT20: 84 | BV20: 40.76457619 | BW20: 84 | BY20: 9.448398414 | BZ20: 5.27814 | CB20: 221.5508667 | CC20: 78.72186 | CE20: 230.9992651 | CF20: 84 | CH20: 230.9992651 | CI20: 84 | CJ20: 0
B21: A81013 | C21: BROTTON SURGERY | D21: E38000162 | E21: NHS SOUTH TEES CCG | F21: E39000002 | G21: DURHAM, DARLINGTON AND TEES AREA TEAM | H21: E40000001 | I21: NORTH OF ENGLAND COMMISSIONING REGION | J21: Eng | K21: England | L21: UK | M21: =IF(LEFT(Results!$N$16,3)="All",1,IF(Results!$N$16=D21,1,IF(Results!$N$16=F21,1,IF(Results!$N$16=H21,1,IF(Results!$N$16=J21,1,0))))) -> 1 | Q21: 168 | R21: 6033 | S21: 111 | T21: 158 | U21: 5570 | W21: 171.1335727 | X21: 6033 | Z21: 3.133572711 | AA21: 6033 | AC21: 128 | AD21: 128 | AE21: 7 | AF21: 221 | AG21: 240 | AH21: 41 | AI21: 196 | AJ21: 214 | AK21: 67 | AL21: 144 | AM21: 145 | AN21: 2 | AO21: 229 | AP21: 234 | AQ21: 47 | AR21: 0 | AS21: 0 | AT21: 0 | AU21: 68.45342908 | AV21: 68.45342908 | AW21: 171.1335727 | AX21: 10.26801436 | AY21: 68.45342908 | AZ21: 68.45342908 | BA21: 6.058128474 | BB21: 68.45342908 | BC21: 10.26801436 | BD21: 4.301271217 | BE21: 68.45342908 | BF21: 6.058128474 | BG21: 64.15215787 | BH21: 68.45342908 | BI21: 68.45342908 | BJ21: 4.301271217 | BK21: 68.45342908 | BL21: 68.45342908 | BM21: 1.358771577 | BN21: 4.301271217 | BP21: 33.99739555 | BQ21: 64.15215787 | BS21: 35.35616713 | BT21: 68.45342908 | BV21: 33.21994078 | BW21: 68.45342908 | BY21: 7.699705605 | BZ21: 4.301271217 | CB21: 180.5466255 | CC21: 64.15215787 | CE21: 188.2463311 | CF21: 68.45342908 | CH21: 188.2463311 | CI21: 68.45342908 | CJ21: 0
B22: A81014 | C22: QUEENSTREE PRACTICE | D22: E38000075 | E22: NHS HARTLEPOOL AND STOCKTON-ON-TEES CCG | F22: E39000002 | G22: DURHAM, DARLINGTON AND TEES AREA TEAM | H22: E40000001 | I22: NORTH OF ENGLAND COMMISSIONING REGION | J22: Eng | K22: England | L22: UK | M22: =IF(LEFT(Results!$N$16,3)="All",1,IF(Results!$N$16=D22,1,IF(Results!$N$16=F22,1,IF(Results!$N$16=H22,1,IF(Results!$N$16=J22,1,0))))) -> 1 | Q22: 166 | R22: 3777 | S22: 62 | T22: 178 | U22: 3967 | W22: 178 | X22: 3777 | Z22: 12 | AA22: 3777 | AC22: 46 | AD22: 55 | AE22: 3 | AF22: 87 | AG22: 134 | AH22: 9 | AI22: 97 | AJ22: 134 | AK22: 9 | AL22: 34 | AM22: 35 | AN22: 1 | AO22: 118 | AP22: 131 | AQ22: 12 | AR22: 0 | AS22: 0 | AT22: 0 | AU22: 71.2 | AV22: 71.2 | AW22: 178 | AX22: 10.68 | AY22: 71.2 | AZ22: 71.2 | BA22: 6.3012 | BB22: 71.2 | BC22: 10.68 | BD22: 4.473852 | BE22: 71.2 | BF22: 6.3012 | BG22: 66.726148 | BH22: 71.2 | BI22: 71.2 | BJ22: 4.473852 | BK22: 71.2 | BL22: 71.2 | BM22: 1.413289847 | BN22: 4.473852 | BP22: 35.36148 | BQ22: 66.726148 | BS22: 36.77476985 | BT22: 71.2 | BV22: 34.55283125 | BW22: 71.2 | BY22: 8.008642465 | BZ22: 4.473852 | CB22: 187.7907346 | CC22: 66.726148 | CE22: 195.7993771 | CF22: 71.2 | CH22: 195.7993771 | CI22: 71.2 | CJ22: 0
B23: A81015 | C23: LAGAN SURGERY | D23: E38000162 | E23: NHS SOUTH TEES CCG | F23: E39000002 | G23: DURHAM, DARLINGTON AND TEES AREA TEAM | H23: E40000001 | I23: NORTH OF ENGLAND COMMISSIONING REGION | J23: Eng | K23: England | L23: UK | M23: =IF(LEFT(Results!$N$16,3)="All",1,IF(Results!$N$16=D23,1,IF(Results!$N$16=F23,1,IF(Results!$N$16=H23,1,IF(Results!$N$16=J23,1,0))))) -> 1 | Q23: 70 | R23: 3003 | S23: 35 | T23: 89 | U23: 3146 | W23: 89 | X23: 3003 | Z23: 19 | AA23: 3003 | AC23: 25 | AD23: 31 | AE23: 4 | AF23: 114 | AG23: 122 | AH23: 13 | AI23: 112 | AJ23: 122 | AK23: 13 | AL23: 59 | AM23: 61 | AN23: 1 | AO23: 116 | AP23: 116 | AQ23: 19 | AR23: 0 | AS23: 0 | AT23: 0 | AU23: 35.6 | AV23: 35.6 | AW23: 89 | AX23: 5.34 | AY23: 35.6 | AZ23: 35.6 | BA23: 3.1506 | BB23: 35.6 | BC23: 5.34 | BD23: 2.236926 | BE23: 35.6 | BF23: 3.1506 | BG23: 33.363074 | BH23: 35.6 | BI23: 35.6 | BJ23: 2.236926 | BK23: 35.6 | BL23: 35.6 | BM23: 0.7066449234 | BN23: 2.236926 | BP23: 17.68074 | BQ23: 33.363074 | BS23: 18.38738492 | BT23: 35.6 | BV23: 17.27641563 | BW23: 35.6 | BY23: 4.004321233 | BZ23: 2.236926 | CB23: 93.89536731 | CC23: 33.363074 | CE23: 97.89968854 | CF23: 35.6 | CH23: 97.89968854 | CI23: 35.6 | CJ23: 0
B24: A81016 | C24: PARK SURGERY | D24: E38000162 | E24: NHS SOUTH TEES CCG | F24: E39000002 | G24: DURHAM, DARLINGTON AND TEES AREA TEAM | H24: E40000001 | I24: NORTH OF ENGLAND COMMISSIONING REGION | J24: Eng | K24: England | L24: UK | M24: =IF(LEFT(Results!$N$16,3)="All",1,IF(Results!$N$16=D24,1,IF(Results!$N$16=F24,1,IF(Results!$N$16=H24,1,IF(Results!$N$16=J24,1,0))))) -> 1 | Q24: 235 | R24: 9600 | S24: 163 | T24: 367 | U24: 9424 | W24: 373.8539898 | X24: 9600 | Z24: 138.8539898 | AA24: 9600 | AC24: 30 | AD24: 37 | AE24: 9 | AF24: 131 | AG24: 139 | AH24: 24 | AI24: 135 | AJ24: 137 | AK24: 26 | AL24: 63 | AM24: 66 | AN24: 0 | AO24: 142 | AP24: 146 | AQ24: 17 | AR24: 0 | AS24: 0 | AT24: 0 | AU24: 149.5415959 | AV24: 149.5415959 | AW24: 373.8539898 | AX24: 22.43123939 | AY24: 149.5415959 | AZ24: 149.5415959 | BA24: 13.23443124 | BB24: 149.5415959 | BC24: 22.43123939 | BD24: 9.39644618 | BE24: 149.5415959 | BF24: 13.23443124 | BG24: 140.1451497 | BH24: 149.5415959 | BI24: 149.5415959 | BJ24: 9.39644618 | BK24: 149.5415959 | BL24: 149.5415959 | BM24: 2.968337348 | BN24: 9.39644618 | BP24: 74.26983362 | BQ24: 140.1451497 | BS24: 77.23817096 | BT24: 149.5415959 | BV24: 72.57142597 | BW24: 149.5415959 | BY24: 16.82057831 | BZ24: 9.39644618 | CB24: 394.4175022 | CC24: 140.1451497 | CE24: 411.2380805 | CF24: 149.5415959 | CH24: 411.2380805 | CI24: 149.5415959 | CJ24: 0
B25: A81017 | C25: WOODBRIDGE PRACTICE | D25: E38000075 | E25: NHS HARTLEPOOL AND STOCKTON-ON-TEES CCG | F25: E39000002 | G25: DURHAM, DARLINGTON AND TEES AREA TEAM | H25: E40000001 | I25: NORTH OF ENGLAND COMMISSIONING REGION | J25: Eng | K25: England | L25: UK | M25: =IF(LEFT(Results!$N$16,3)="All",1,IF(Results!$N$16=D25,1,IF(Results!$N$16=F25,1,IF(Results!$N$16=H25,1,IF(Results!$N$16=J25,1,0))))) -> 1 | Q25: 380 | R25: 21219 | S25: 302 | T25: 615 | U25: 20914 | W25: 623.9688725 | X25: 21219 | Z25: 243.9688725 | AA25: 21219 | AC25: 18 | AD25: 19 | AE25: 3 | AF25: 33 | AG25: 51 | AH25: 8 | AI25: 37 | AJ25: 51 | AK25: 8 | AL25: 15 | AM25: 18 | AN25: 1 | AO25: 42 | AP25: 49 | AQ25: 10 | AR25: 0 | AS25: 0 | AT25: 0 | AU25: 249.587549 | AV25: 249.587549 | AW25: 623.9688725 | AX25: 37.43813235 | AY25: 249.587549 | AZ25: 249.587549 | BA25: 22.08849809 | BB25: 249.587549 | BC25: 37.43813235 | BD25: 15.68283364 | BE25: 249.587549 | BF25: 22.08849809 | BG25: 233.9047154 | BH25: 249.587549 | BI25: 249.587549 | BJ25: 15.68283364 | BK25: 249.587549 | BL25: 249.587549 | BM25: 4.954207148 | BN25: 15.68283364 | BP25: 123.9576562 | BQ25: 233.9047154 | BS25: 128.9118634 | BT25: 249.587549 | BV25: 121.122984 | BW25: 249.587549 | BY25: 28.0738405 | BZ25: 15.68283364 | CB25: 658.2897357 | CC25: 233.9047154 | CE25: 686.3635762 | CF25: 249.587549 | CH25: 686.3635762 | CI25: 249.587549 | CJ25: 0
B26: A81018 | C26: BENTLEY MEDICAL PRACTICE | D26: E38000162 | E26: NHS SOUTH TEES CCG | F26: E39000002 | G26: DURHAM, DARLINGTON AND TEES AREA TEAM | H26: E40000001 | I26: NORTH OF ENGLAND COMMISSIONING REGION | J26: Eng | K26: England | L26: UK | M26: =IF(LEFT(Results!$N$16,3)="All",1,IF(Results!$N$16=D26,1,IF(Results!$N$16=F26,1,IF(Results!$N$16=H26,1,IF(Results!$N$16=J26,1,0))))) -> 1 | Q26: 267 | R26: 5419 | S26: 111 | T26: 169 | U26: 5412 | W26: 169.2185883 | X26: 5419 | Z26: 0 | AA26: 5419 | AC26: 25 | AD26: 30 | AE26: 4 | AF26: 66 | AG26: 71 | AH26: 4 | AI26: 66 | AJ26: 71 | AK26: 4 | AL26: 10 | AM26: 10 | AN26: 0 | AO26: 61 | AP26: 61 | AQ26: 14 | AR26: 0 | AS26: 0 | AT26: 0 | AU26: 67.68743533 | AV26: 67.68743533 | AW26: 169.2185883 | AX26: 10.1531153 | AY26: 67.68743533 | AZ26: 67.68743533 | BA26: 5.990338027 | BB26: 67.68743533 | BC26: 10.1531153 | BD26: 4.253139999 | BE26: 67.68743533 | BF26: 5.990338027 | BG26: 63.43429533 | BH26: 67.68743533 | BI26: 67.68743533 | BJ26: 4.253139999 | BK26: 67.68743533 | BL26: 67.68743533 | BM26: 1.343566926 | BN26: 4.253139999 | BP26: 33.61696476 | BQ26: 63.43429533 | BS26: 34.96053168 | BT26: 67.68743533 | BV26: 32.8482097 | BW26: 67.68743533 | BY26: 7.613545912 | BZ26: 4.253139999 | CB26: 178.5263091 | CC26: 63.43429533 | CE26: 186.139855 | CF26: 67.68743533 | CH26: 186.139855 | CI26: 67.68743533 | CJ26: 0
B27: A81019 | C27: CROSSFELL HEALTH CENTRE | D27: E38000162 | E27: NHS SOUTH TEES CCG | F27: E39000002 | G27: DURHAM, DARLINGTON AND TEES AREA TEAM | H27: E40000001 | I27: NORTH OF ENGLAND COMMISSIONING REGION | J27: Eng | K27: England | L27: UK | M27: =IF(LEFT(Results!$N$16,3)="All",1,IF(Results!$N$16=D27,1,IF(Results!$N$16=F27,1,IF(Results!$N$16=H27,1,IF(Results!$N$16=J27,1,0))))) -> 1 | Q27: 350 | R27: 10504 | S27: 199 | T27: 417 | U27: 10243 | W27: 427.6255003 | X27: 10504 | Z27: 77.62550034 | AA27: 10504 | AC27: 103 | AD27: 111 | AE27: 9 | AF27: 246 | AG27: 268 | AH27: 9 | AI27: 238 | AJ27: 266 | AK27: 11 | AL27: 144 | AM27: 146 | AN27: 0 | AO27: 249 | AP27: 252 | AQ27: 25 | AR27: 0 | AS27: 0 | AT27: 0 | AU27: 171.0502001 | AV27: 171.0502001 | AW27: 427.6255003 | AX27: 25.65753002 | AY27: 171.0502001 | AZ27: 171.0502001 | BA27: 15.13794271 | BB27: 171.0502001 | BC27: 25.65753002 | BD27: 10.74793933 | BE27: 171.0502001 | BF27: 15.13794271 | BG27: 160.3022608 | BH27: 171.0502001 | BI27: 171.0502001 | BJ27: 10.74793933 | BK27: 171.0502001 | BL27: 171.0502001 | BM27: 3.395274033 | BN27: 10.74793933 | BP27: 84.9520819 | BQ27: 160.3022608 | BS27: 88.34735593 | BT27: 171.0502001 | BV27: 83.00939186 | BW27: 171.0502001 | BY27: 19.23988619 | BZ27: 10.74793933 | CB27: 451.1466677 | CC27: 160.3022608 | CE27: 470.3865539 | CF27: 171.0502001 | CH27: 470.3865539 | CI27: 171.0502001 | CJ27: 0
B28: A81020 | C28: MARTONSIDE MEDICAL CENTRE | D28: E38000162 | E28: NHS SOUTH TEES CCG | F28: E39000002 | G28: DURHAM, DARLINGTON AND TEES AREA TEAM | H28: E40000001 | I28: NORTH OF ENGLAND COMMISSIONING REGION | J28: Eng | K28: England | L28: UK | M28: =IF(LEFT(Results!$N$16,3)="All",1,IF(Results!$N$16=D28,1,IF(Results!$N$16=F28,1,IF(Results!$N$16=H28,1,IF(Results!$N$16=J28,1,0))))) -> 1 | Q28: 178 | R28: 7931 | S28: 137 | T28: 348 | U28: 7877 | W28: 350.3856798 | X28: 7931 | Z28: 172.3856798 | AA28: 7931 | AC28: 56 | AD28: 61 | AE28: 6 | AF28: 119 | AG28: 127 | AH28: 30 | AI28: 97 | AJ28: 106 | AK28: 51 | AL28: 55 | AM28: 55 | AN28: 3 | AO28: 133 | AP28: 134 | AQ28: 23 | AR28: 0 | AS28: 0 | AT28: 0 | AU28: 140.1542719 | AV28: 140.1542719 | AW28: 350.3856798 | AX28: 21.02314079 | AY28: 140.1542719 | AZ28: 140.1542719 | BA28: 12.40365307 | BB28: 140.1542719 | BC28: 21.02314079 | BD28: 8.806593677 | BE28: 140.1542719 | BF28: 12.40365307 | BG28: 131.3476783 | BH28: 140.1542719 | BI28: 140.1542719 | BJ28: 8.806593677 | BK28: 140.1542719 | BL28: 140.1542719 | BM28: 2.782002942 | BN28: 8.806593677 | BP28: 69.60761915 | BQ28: 131.3476783 | BS28: 72.3896221 | BT28: 140.1542719 | BV28: 68.01582735 | BW28: 140.1542719 | BY28: 15.76468334 | BZ28: 8.806593677 | CB28: 369.6583383 | CC28: 131.3476783 | CE28: 385.4230216 | CF28: 140.1542719 | CH28: 385.4230216 | CI28: 140.1542719 | CJ28: 0
B29: A81021 | C29: NORMANBY MEDICAL CENTRE | D29: E38000162 | E29: NHS SOUTH TEES CCG | F29: E39000002 | G29: DURHAM, DARLINGTON AND TEES AREA TEAM | H29: E40000001 | I29: NORTH OF ENGLAND COMMISSIONING REGION | J29: Eng | K29: England | L29: UK | M29: =IF(LEFT(Results!$N$16,3)="All",1,IF(Results!$N$16=D29,1,IF(Results!$N$16=F29,1,IF(Results!$N$16=H29,1,IF(Results!$N$16=J29,1,0))))) -> 1 | Q29: 324 | R29: 13349 | S29: 107 | T29: 392 | U29: 13244 | W29: 395.1078224 | X29: 13349 | Z29: 71.10782241 | AA29: 13349 | AC29: 13 | AD29: 13 | AE29: 0 | AF29: 33 | AG29: 34 | AH29: 3 | AI29: 24 | AJ29: 26 | AK29: 11 | AL29: 24 | AM29: 24 | AN29: 0 | AO29: 35 | AP29: 36 | AQ29: 1 | AR29: 0 | AS29: 0 | AT29: 0 | AU29: 158.043129 | AV29: 158.043129 | AW29: 395.1078224 | AX29: 23.70646934 | AY29: 158.043129 | AZ29: 158.043129 | BA29: 13.98681691 | BB29: 158.043129 | BC29: 23.70646934 | BD29: 9.930640008 | BE29: 158.043129 | BF29: 13.98681691 | BG29: 148.112489 | BH29: 158.043129 | BI29: 158.043129 | BJ29: 9.930640008 | BK29: 158.043129 | BL29: 158.043129 | BM29: 3.137089179 | BN29: 9.930640008 | BP29: 78.49212 | BQ29: 148.112489 | BS29: 81.62920918 | BT29: 158.043129 | BV29: 76.69715682 | BW29: 158.043129 | BY29: 17.77683868 | BZ29: 9.930640008 | CB29: 416.8403833 | CC29: 148.112489 | CE29: 434.617222 | CF29: 158.043129 | CH29: 434.617222 | CI29: 158.043129 | CJ29: 0
B30: A81022 | C30: HILLSIDE PRACTICE | D30: E38000162 | E30: NHS SOUTH TEES CCG | F30: E39000002 | G30: DURHAM, DARLINGTON AND TEES AREA TEAM | H30: E40000001 | I30: NORTH OF ENGLAND COMMISSIONING REGION | J30: Eng | K30: England | L30: UK | M30: =IF(LEFT(Results!$N$16,3)="All",1,IF(Results!$N$16=D30,1,IF(Results!$N$16=F30,1,IF(Results!$N$16=H30,1,IF(Results!$N$16=J30,1,0))))) -> 1 | Q30: 307 | R30: 10758 | S30: 154 | T30: 322 | U30: 10447 | W30: 331.5857184 | X30: 10758 | Z30: 24.58571839 | AA30: 10758 | AC30: 16 | AD30: 19 | AE30: 0 | AF30: 43 | AG30: 45 | AH30: 13 | AI30: 42 | AJ30: 44 | AK30: 14 | AL30: 23 | AM30: 23 | AN30: 0 | AO30: 47 | AP30: 51 | AQ30: 7 | AR30: 0 | AS30: 0 | AT30: 0 | AU30: 132.6342874 | AV30: 132.6342874 | AW30: 331.5857184 | AX30: 19.8951431 | AY30: 132.6342874 | AZ30: 132.6342874 | BA30: 11.73813443 | BB30: 132.6342874 | BC30: 19.8951431 | BD30: 8.334075446 | BE30: 132.6342874 | BF30: 11.73813443 | BG30: 124.3002119 | BH30: 132.6342874 | BI30: 132.6342874 | BJ30: 8.334075446 | BK30: 132.6342874 | BL30: 132.6342874 | BM30: 2.632734433 | BN30: 8.334075446 | BP30: 65.87281881 | BQ30: 124.3002119 | BS30: 68.50555325 | BT30: 132.6342874 | BV30: 64.36643468 | BW30: 132.6342874 | BY30: 14.91882846 | BZ30: 8.334075446 | CB30: 349.8243014 | CC30: 124.3002119 | CE30: 364.7431298 | CF30: 132.6342874 | CH30: 364.7431298 | CI30: 132.6342874 | CJ30: 0
B31: A81023 | C31: THE ENDEAVOUR PRACTICE | D31: E38000162 | E31: NHS SOUTH TEES CCG | F31: E39000002 | G31: DURHAM, DARLINGTON AND TEES AREA TEAM | H31: E40000001 | I31: NORTH OF ENGLAND COMMISSIONING REGION | J31: Eng | K31: England | L31: UK | M31: =IF(LEFT(Results!$N$16,3)="All",1,IF(Results!$N$16=D31,1,IF(Results!$N$16=F31,1,IF(Results!$N$16=H31,1,IF(Results!$N$16=J31,1,0))))) -> 1 | Q31: 195 | R31: 7713 | S31: 147 | T31: 261 | U31: 7171 | W31: 280.7269558 | X31: 7713 | Z31: 85.72695579 | AA31: 7713 | AC31: 61 | AD31: 63 | AE31: 7 | AF31: 127 | AG31: 153 | AH31: 12 | AI31: 124 | AJ31: 150 | AK31: 15 | AL31: 56 | AM31: 56 | AN31: 1 | AO31: 141 | AP31: 141 | AQ31: 24 | AR31: 0 | AS31: 0 | AT31: 0 | AU31: 112.2907823 | AV31: 112.2907823 | AW31: 280.7269558 | AX31: 16.84361735 | AY31: 112.2907823 | AZ31: 112.2907823 | BA31: 9.937734235 | BB31: 112.2907823 | BC31: 16.84361735 | BD31: 7.055791307 | BE31: 112.2907823 | BF31: 9.937734235 | BG31: 105.234991 | BH31: 112.2907823 | BI31: 112.2907823 | BJ31: 7.055791307 | BK31: 112.2907823 | BL31: 112.2907823 | BM31: 2.228924474 | BN31: 7.055791307 | BP31: 55.76921704 | BQ31: 105.234991 | BS31: 57.99814151 | BT31: 112.2907823 | BV31: 54.49388276 | BW31: 112.2907823 | BY31: 12.63057202 | BZ31: 7.055791307 | CB31: 296.168097 | CC31: 105.234991 | CE31: 308.798669 | CF31: 112.2907823 | CH31: 308.798669 | CI31: 112.2907823 | CJ31: 0
B32: A81025 | C32: THE DOVECOT SURGERY | D32: E38000075 | E32: NHS HARTLEPOOL AND STOCKTON-ON-TEES CCG | F32: E39000002 | G32: DURHAM, DARLINGTON AND TEES AREA TEAM | H32: E40000001 | I32: NORTH OF ENGLAND COMMISSIONING REGION | J32: Eng | K32: England | L32: UK | M32: =IF(LEFT(Results!$N$16,3)="All",1,IF(Results!$N$16=D32,1,IF(Results!$N$16=F32,1,IF(Results!$N$16=H32,1,IF(Results!$N$16=J32,1,0))))) -> 1 | Q32: 104 | R32: 4199 | S32: 83 | T32: 179 | U32: 4298 | W32: 179 | X32: 4199 | Z32: 75 | AA32: 4199 | AC32: 42 | AD32: 49 | AE32: 5 | AF32: 108 | AG32: 128 | AH32: 8 | AI32: 103 | AJ32: 128 | AK32: 8 | AL32: 35 | AM32: 37 | AN32: 0 | AO32: 123 | AP32: 129 | AQ32: 7 | AR32: 0 | AS32: 0 | AT32: 0 | AU32: 71.6 | AV32: 71.6 | AW32: 179 | AX32: 10.74 | AY32: 71.6 | AZ32: 71.6 | BA32: 6.3366 | BB32: 71.6 | BC32: 10.74 | BD32: 4.498986 | BE32: 71.6 | BF32: 6.3366 | BG32: 67.101014 | BH32: 71.6 | BI32: 71.6 | BJ32: 4.498986 | BK32: 71.6 | BL32: 71.6 | BM32: 1.421229677 | BN32: 4.498986 | BP32: 35.56014 | BQ32: 67.101014 | BS32: 36.98136968 | BT32: 71.6 | BV32: 34.74694828 | BW32: 71.6 | BY32: 8.053634839 | BZ32: 4.498986 | CB32: 188.8457388 | CC32: 67.101014 | CE32: 196.8993736 | CF32: 71.6 | CH32: 196.8993736 | CI32: 71.6 | CJ32: 0
B33: A81026 | C33: THE LINTHORPE SURGERY | D33: E38000162 | E33: NHS SOUTH TEES CCG | F33: E39000002 | G33: DURHAM, DARLINGTON AND TEES AREA TEAM | H33: E40000001 | I33: NORTH OF ENGLAND COMMISSIONING REGION | J33: Eng | K33: England | L33: UK | M33: =IF(LEFT(Results!$N$16,3)="All",1,IF(Results!$N$16=D33,1,IF(Results!$N$16=F33,1,IF(Results!$N$16=H33,1,IF(Results!$N$16=J33,1,0))))) -> 1 | Q33: 413 | R33: 13621 | S33: 154 | T33: 603 | U33: 13665 | W33: 603 | X33: 13621 | Z33: 190 | AA33: 13621 | AC33: 47 | AD33: 52 | AE33: 9 | AF33: 117 | AG33: 175 | AH33: 18 | AI33: 95 | AJ33: 155 | AK33: 38 | AL33: 53 | AM33: 59 | AN33: 1 | AO33: 158 | AP33: 163 | AQ33: 30 | AR33: 0 | AS33: 0 | AT33: 0 | AU33: 241.2 | AV33: 241.2 | AW33: 603 | AX33: 36.18 | AY33: 241.2 | AZ33: 241.2 | BA33: 21.3462 | BB33: 241.2 | BC33: 36.18 | BD33: 15.155802 | BE33: 241.2 | BF33: 21.3462 | BG33: 226.044198 | BH33: 241.2 | BI33: 241.2 | BJ33: 15.155802 | BK33: 241.2 | BL33: 241.2 | BM33: 4.787717852 | BN33: 15.155802 | BP33: 119.79198 | BQ33: 226.044198 | BS33: 124.5796979 | BT33: 241.2 | BV33: 117.0525688 | BW33: 241.2 | BY33: 27.13040116 | BZ33: 15.155802 | CB33: 636.1674886 | CC33: 226.044198 | CE33: 663.2978898 | CF33: 241.2 | CH33: 663.2978898 | CI33: 241.2 | CJ33: 0
B34: A81027 | C34: YARM MEDICAL CENTRE | D34: E38000075 | E34: NHS HARTLEPOOL AND STOCKTON-ON-TEES CCG | F34: E39000002 | G34: DURHAM, DARLINGTON AND TEES AREA TEAM | H34: E40000001 | I34: NORTH OF ENGLAND COMMISSIONING REGION | J34: Eng | K34: England | L34: UK | M34: =IF(LEFT(Results!$N$16,3)="All",1,IF(Results!$N$16=D34,1,IF(Results!$N$16=F34,1,IF(Results!$N$16=H34,1,IF(Results!$N$16=J34,1,0))))) -> 1 | Q34: 176 | R34: 12916 | S34: 177 | T34: 378 | U34: 12408 | W34: 393.4758221 | X34: 12916 | Z34: 217.4758221 | AA34: 12916 | AC34: 71 | AD34: 72 | AE34: 4 | AF34: 158 | AG34: 174 | AH34: 21 | AI34: 171 | AJ34: 182 | AK34: 13 | AL34: 84 | AM34: 86 | AN34: 0 | AO34: 171 | AP34: 177 | AQ34: 18 | AR34: 0 | AS34: 0 | AT34: 0 | AU34: 157.3903288 | AV34: 157.3903288 | AW34: 393.4758221 | AX34: 23.60854932 | AY34: 157.3903288 | AZ34: 157.3903288 | BA34: 13.9290441 | BB34: 157.3903288 | BC34: 23.60854932 | BD34: 9.889621311 | BE34: 157.3903288 | BF34: 13.9290441 | BG34: 147.5007075 | BH34: 157.3903288 | BI34: 157.3903288 | BJ34: 9.889621311 | BK34: 157.3903288 | BL34: 157.3903288 | BM34: 3.124131372 | BN34: 9.889621311 | BP34: 78.16790681 | BQ34: 147.5007075 | BS34: 81.29203818 | BT34: 157.3903288 | BV34: 76.38035776 | BW34: 157.3903288 | BY34: 17.70341111 | BZ34: 9.889621311 | CB34: 415.1186162 | CC34: 147.5007075 | CE34: 432.8220273 | CF34: 157.3903288 | CH34: 432.8220273 | CI34: 157.3903288 | CJ34: 0
B35: A81029 | C35: PROSPECT SURGERY | D35: E38000162 | E35: NHS SOUTH TEES CCG | F35: E39000002 | G35: DURHAM, DARLINGTON AND TEES AREA TEAM | H35: E40000001 | I35: NORTH OF ENGLAND COMMISSIONING REGION | J35: Eng | K35: England | L35: UK | M35: =IF(LEFT(Results!$N$16,3)="All",1,IF(Results!$N$16=D35,1,IF(Results!$N$16=F35,1,IF(Results!$N$16=H35,1,IF(Results!$N$16=J35,1,0))))) -> 1 | Q35: 207 | R35: 5761 | S35: 76 | T35: 266 | U35: 6801 | W35: 266 | X35: 5761 | Z35: 59 | AA35: 5761 | AC35: 79 | AD35: 83 | AE35: 10 | AF35: 214 | AG35: 237 | AH35: 22 | AI35: 195 | AJ35: 229 | AK35: 30 | AL35: 85 | AM35: 90 | AN35: 1 | AO35: 226 | AP35: 229 | AQ35: 30 | AR35: 0 | AS35: 0 | AT35: 0 | AU35: 106.4 | AV35: 106.4 | AW35: 266 | AX35: 15.96 | AY35: 106.4 | AZ35: 106.4 | BA35: 9.4164 | BB35: 106.4 | BC35: 15.96 | BD35: 6.685644 | BE35: 106.4 | BF35: 9.4164 | BG35: 99.714356 | BH35: 106.4 | BI35: 106.4 | BJ35: 6.685644 | BK35: 106.4 | BL35: 106.4 | BM35: 2.11199494 | BN35: 6.685644 | BP35: 52.84356 | BQ35: 99.714356 | BS35: 54.95555494 | BT35: 106.4 | BV35: 51.63512985 | BW35: 106.4 | BY35: 11.96797132 | BZ35: 6.685644 | CB35: 280.6310978 | CC35: 99.714356 | CE35: 292.5990691 | CF35: 106.4 | CH35: 292.5990691 | CI35: 106.4 | CJ35: 0
B36: A81030 | C36: BOROUGH ROAD & NUNTHORPE MEDICAL GROUP | D36: E38000162 | E36: NHS SOUTH TEES CCG | F36: E39000002 | G36: DURHAM, DARLINGTON AND TEES AREA TEAM | H36: E40000001 | I36: NORTH OF ENGLAND COMMISSIONING REGION | J36: Eng | K36: England | L36: UK | M36: =IF(LEFT(Results!$N$16,3)="All",1,IF(Results!$N$16=D36,1,IF(Results!$N$16=F36,1,IF(Results!$N$16=H36,1,IF(Results!$N$16=J36,1,0))))) -> 1 | Q36: 247 | R36: 11846 | S36: 75 | T36: 450 | U36: 10923 | W36: 488.0252678 | X36: 11846 | Z36: 241.0252678 | AA36: 11846 | AC36: 55 | AD36: 57 | AE36: 2 | AF36: 118 | AG36: 127 | AH36: 22 | AI36: 113 | AJ36: 128 | AK36: 21 | AL36: 55 | AM36: 55 | AN36: 1 | AO36: 122 | AP36: 129 | AQ36: 20 | AR36: 0 | AS36: 0 | AT36: 0 | AU36: 195.2101071 | AV36: 195.2101071 | AW36: 488.0252678 | AX36: 29.28151607 | AY36: 195.2101071 | AZ36: 195.2101071 | BA36: 17.27609448 | BB36: 195.2101071 | BC36: 29.28151607 | BD36: 12.26602708 | BE36: 195.2101071 | BF36: 17.27609448 | BG36: 182.94408 | BH36: 195.2101071 | BI36: 195.2101071 | BJ36: 12.26602708 | BK36: 195.2101071 | BL36: 195.2101071 | BM36: 3.874837955 | BN36: 12.26602708 | BP36: 96.9510997 | BQ36: 182.94408 | BS36: 100.8259377 | BT36: 195.2101071 | BV36: 94.7340153 | BW36: 195.2101071 | BY36: 21.95741508 | BZ36: 12.26602708 | CB36: 514.8686716 | CC36: 182.94408 | CE36: 536.8260867 | CF36: 195.2101071 | CH36: 536.8260867 | CI36: 195.2101071 | CJ36: 0
B37: A81031 | C37: HAVELOCK GRANGE PRACTICE | D37: E38000075 | E37: NHS HARTLEPOOL AND STOCKTON-ON-TEES CCG | F37: E39000002 | G37: DURHAM, DARLINGTON AND TEES AREA TEAM | H37: E40000001 | I37: NORTH OF ENGLAND COMMISSIONING REGION | J37: Eng | K37: England | L37: UK | M37: =IF(LEFT(Results!$N$16,3)="All",1,IF(Results!$N$16=D37,1,IF(Results!$N$16=F37,1,IF(Results!$N$16=H37,1,IF(Results!$N$16=J37,1,0))))) -> 1 | Q37: 397 | R37: 12667 | S37: 146 | T37: 406 | U37: 12755 | W37: 406 | X37: 12667 | Z37: 9 | AA37: 12667 | AC37: 40 | AD37: 46 | AE37: 5 | AF37: 113 | AG37: 121 | AH37: 20 | AI37: 112 | AJ37: 120 | AK37: 21 | AL37: 42 | AM37: 43 | AN37: 0 | AO37: 117 | AP37: 126 | AQ37: 15 | AR37: 0 | AS37: 0 | AT37: 0 | AU37: 162.4 | AV37: 162.4 | AW37: 406 | AX37: 24.36 | AY37: 162.4 | AZ37: 162.4 | BA37: 14.3724 | BB37: 162.4 | BC37: 24.36 | BD37: 10.204404 | BE37: 162.4 | BF37: 14.3724 | BG37: 152.195596 | BH37: 162.4 | BI37: 162.4 | BJ37: 10.204404 | BK37: 162.4 | BL37: 162.4 | BM37: 3.223571224 | BN37: 10.204404 | BP37: 80.65596 | BQ37: 152.195596 | BS37: 83.87953122 | BT37: 162.4 | BV37: 78.81151398 | BW37: 162.4 | BY37: 18.2669036 | BZ37: 10.204404 | CB37: 428.3316756 | CC37: 152.195596 | CE37: 446.5985792 | CF37: 162.4 | CH37: 446.5985792 | CI37: 162.4 | CJ37: 0
B38: A81032 | C38: THE GARTH | D38: E38000162 | E38: NHS SOUTH TEES CCG | F38: E39000002 | G38: DURHAM, DARLINGTON AND TEES AREA TEAM | H38: E40000001 | I38: NORTH OF ENGLAND COMMISSIONING REGION | J38: Eng | K38: England | L38: UK | M38: =IF(LEFT(Results!$N$16,3)="All",1,IF(Results!$N$16=D38,1,IF(Results!$N$16=F38,1,IF(Results!$N$16=H38,1,IF(Results!$N$16=J38,1,0))))) -> 1 | Q38: 254 | R38: 10475 | S38: 122 | T38: 303 | U38: 10438 | W38: 304.0740563 | X38: 10475 | Z38: 50.07405633 | AA38: 10475 | AC38: 71 | AD38: 83 | AE38: 10 | AF38: 198 | AG38: 208 | AH38: 30 | AI38: 181 | AJ38: 210 | AK38: 28 | AL38: 79 | AM38: 83 | AN38: 2 | AO38: 198 | AP38: 200 | AQ38: 38 | AR38: 0 | AS38: 0 | AT38: 0 | AU38: 121.6296225 | AV38: 121.6296225 | AW38: 304.0740563 | AX38: 18.24444338 | AY38: 121.6296225 | AZ38: 121.6296225 | BA38: 10.76422159 | BB38: 121.6296225 | BC38: 18.24444338 | BD38: 7.642597332 | BE38: 121.6296225 | BF38: 10.76422159 | BG38: 113.9870252 | BH38: 121.6296225 | BI38: 121.6296225 | BJ38: 7.642597332 | BK38: 121.6296225 | BL38: 121.6296225 | BM38: 2.414296497 | BN38: 7.642597332 | BP38: 60.40735203 | BQ38: 113.9870252 | BS38: 62.82164853 | BT38: 121.6296225 | BV38: 59.02595256 | BW38: 121.6296225 | BY38: 13.68101348 | BZ38: 7.642597332 | CB38: 320.7993844 | CC38: 113.9870252 | CE38: 334.4803979 | CF38: 121.6296225 | CH38: 334.4803979 | CI38: 121.6296225 | CJ38: 0
B39: A81033 | C39: OAKFIELD MEDICAL PRACTICE | D39: E38000162 | E39: NHS SOUTH TEES CCG | F39: E39000002 | G39: DURHAM, DARLINGTON AND TEES AREA TEAM | H39: E40000001 | I39: NORTH OF ENGLAND COMMISSIONING REGION | J39: Eng | K39: England | L39: UK | M39: =IF(LEFT(Results!$N$16,3)="All",1,IF(Results!$N$16=D39,1,IF(Results!$N$16=F39,1,IF(Results!$N$16=H39,1,IF(Results!$N$16=J39,1,0))))) -> 1 | Q39: 168 | R39: 3468 | S39: 126 | T39: 164 | U39: 3863 | W39: 164 | X39: 3468 | Z39: 0 | AA39: 3468 | AC39: 60 | AD39: 63 | AE39: 14 | AF39: 129 | AG39: 149 | AH39: 22 | AI39: 134 | AJ39: 153 | AK39: 18 | AL39: 54 | AM39: 54 | AN39: 0 | AO39: 141 | AP39: 143 | AQ39: 28 | AR39: 0 | AS39: 0 | AT39: 0 | AU39: 65.6 | AV39: 65.6 | AW39: 164 | AX39: 9.84 | AY39: 65.6 | AZ39: 65.6 | BA39: 5.8056 | BB39: 65.6 | BC39: 9.84 | BD39: 4.121976 | BE39: 65.6 | BF39: 5.8056 | BG39: 61.478024 | BH39: 65.6 | BI39: 65.6 | BJ39: 4.121976 | BK39: 65.6 | BL39: 65.6 | BM39: 1.302132218 | BN39: 4.121976 | BP39: 32.58024 | BQ39: 61.478024 | BS39: 33.88237222 | BT39: 65.6 | BV39: 31.83519284 | BW39: 65.6 | BY39: 7.378749238 | BZ39: 4.121976 | CB39: 173.0206768 | CC39: 61.478024 | CE39: 180.3994261 | CF39: 65.6 | CH39: 180.3994261 | CI39: 65.6 | CJ39: 0
B40: A81034 | C40: THORNABY & BARWICK MEDICAL GROUP | D40: E38000075 | E40: NHS HARTLEPOOL AND STOCKTON-ON-TEES CCG | F40: E39000002 | G40: DURHAM, DARLINGTON AND TEES AREA TEAM | H40: E40000001 | I40: NORTH OF ENGLAND COMMISSIONING REGION | J40: Eng | K40: England | L40: UK | M40: =IF(LEFT(Results!$N$16,3)="All",1,IF(Results!$N$16=D40,1,IF(Results!$N$16=F40,1,IF(Results!$N$16=H40,1,IF(Results!$N$16=J40,1,0))))) -> 1 | Q40: 496 | R40: 21678 | S40: 107 | T40: 638 | U40: 20520 | W40: 674.0040936 | X40: 21678 | Z40: 178.0040936 | AA40: 21678 | AC40: 41 | AD40: 46 | AE40: 6 | AF40: 131 | AG40: 139 | AH40: 26 | AI40: 128 | AJ40: 133 | AK40: 32 | AL40: 44 | AM40: 44 | AN40: 0 | AO40: 146 | AP40: 148 | AQ40: 17 | AR40: 0 | AS40: 0 | AT40: 0 | AU40: 269.6016374 | AV40: 269.6016374 | AW40: 674.0040936 | AX40: 40.44024561 | AY40: 269.6016374 | AZ40: 269.6016374 | BA40: 23.85974491 | BB40: 269.6016374 | BC40: 40.44024561 | BD40: 16.94041889 | BE40: 269.6016374 | BF40: 23.85974491 | BG40: 252.6612185 | BH40: 269.6016374 | BI40: 269.6016374 | BJ40: 16.94041889 | BK40: 269.6016374 | BL40: 269.6016374 | BM40: 5.351478327 | BN40: 16.94041889 | BP40: 133.8976532 | BQ40: 252.6612185 | BS40: 139.2491316 | BT40: 269.6016374 | BV40: 130.8356725 | BW40: 269.6016374 | BY40: 30.32504385 | BZ40: 16.94041889 | CB40: 711.0771004 | CC40: 252.6612185 | CE40: 741.4021442 | CF40: 269.6016374 | CH40: 741.4021442 | CI40: 269.6016374 | CJ40: 0
B41: A81035 | C41: NEWLANDS MEDICAL CENTRE | D41: E38000162 | E41: NHS SOUTH TEES CCG | F41: E39000002 | G41: DURHAM, DARLINGTON AND TEES AREA TEAM | H41: E40000001 | I41: NORTH OF ENGLAND COMMISSIONING REGION | J41: Eng | K41: England | L41: UK | M41: =IF(LEFT(Results!$N$16,3)="All",1,IF(Results!$N$16=D41,1,IF(Results!$N$16=F41,1,IF(Results!$N$16=H41,1,IF(Results!$N$16=J41,1,0))))) -> 1 | Q41: 308 | R41: 10700 | S41: 267 | T41: 464 | U41: 11153 | W41: 464 | X41: 10700 | Z41: 156 | AA41: 10700 | AC41: 38 | AD41: 44 | AE41: 5 | AF41: 82 | AG41: 89 | AH41: 17 | AI41: 83 | AJ41: 88 | AK41: 18 | AL41: 37 | AM41: 38 | AN41: 0 | AO41: 95 | AP41: 95 | AQ41: 11 | AR41: 0 | AS41: 0 | AT41: 0 | AU41: 185.6 | AV41: 185.6 | AW41: 464 | AX41: 27.84 | AY41: 185.6 | AZ41: 185.6 | BA41: 16.4256 | BB41: 185.6 | BC41: 27.84 | BD41: 11.662176 | BE41: 185.6 | BF41: 16.4256 | BG41: 173.937824 | BH41: 185.6 | BI41: 185.6 | BJ41: 11.662176 | BK41: 185.6 | BL41: 185.6 | BM41: 3.684081398 | BN41: 11.662176 | BP41: 92.17824 | BQ41: 173.937824 | BS41: 95.8623214 | BT41: 185.6 | BV41: 90.07030169 | BW41: 185.6 | BY41: 20.87646126 | BZ41: 11.662176 | CB41: 489.521915 | CC41: 173.937824 | CE41: 510.3983762 | CF41: 185.6 | CH41: 510.3983762 | CI41: 185.6 | CJ41: 0
B42: A81036 | C42: NORTON MEDICAL CENTRE | D42: E38000075 | E42: NHS HARTLEPOOL AND STOCKTON-ON-TEES CCG | F42: E39000002 | G42: DURHAM, DARLINGTON AND TEES AREA TEAM | H42: E40000001 | I42: NORTH OF ENGLAND COMMISSIONING REGION | J42: Eng | K42: England | L42: UK | M42: =IF(LEFT(Results!$N$16,3)="All",1,IF(Results!$N$16=D42,1,IF(Results!$N$16=F42,1,IF(Results!$N$16=H42,1,IF(Results!$N$16=J42,1,0))))) -> 1 | Q42: 453 | R42: 17296 | S42: 495 | T42: 677 | U42: 16933 | W42: 691.51314 | X42: 17296 | Z42: 238.51314 | AA42: 17296 | AC42: 28 | AD42: 37 | AE42: 7 | AF42: 87 | AG42: 91 | AH42: 13 | AI42: 86 | AJ42: 88 | AK42: 16 | AL42: 36 | AM42: 36 | AN42: 0 | AO42: 71 | AP42: 89 | AQ42: 15 | AR42: 0 | AS42: 0 | AT42: 0 | AU42: 276.605256 | AV42: 276.605256 | AW42: 691.51314 | AX42: 41.4907884 | AY42: 276.605256 | AZ42: 276.605256 | BA42: 24.47956516 | BB42: 276.605256 | BC42: 41.4907884 | BD42: 17.38049126 | BE42: 276.605256 | BF42: 24.47956516 | BG42: 259.2247647 | BH42: 276.605256 | BI42: 276.605256 | BJ42: 17.38049126 | BK42: 276.605256 | BL42: 276.605256 | BM42: 5.490497189 | BN42: 17.38049126 | BP42: 137.3760004 | BQ42: 259.2247647 | BS42: 142.8664976 | BT42: 276.605256 | BV42: 134.2344766 | BW42: 276.605256 | BY42: 31.11281741 | BZ42: 17.38049126 | CB42: 729.5492167 | CC42: 259.2247647 | CE42: 760.6620341 | CF42: 276.605256 | CH42: 760.6620341 | CI42: 276.605256 | CJ42: 0
B43: A81037 | C43: THE ERIMUS PRACTICE | D43: E38000162 | E43: NHS SOUTH TEES CCG | F43: E39000002 | G43: DURHAM, DARLINGTON AND TEES AREA TEAM | H43: E40000001 | I43: NORTH OF ENGLAND COMMISSIONING REGION | J43: Eng | K43: England | L43: UK | M43: =IF(LEFT(Results!$N$16,3)="All",1,IF(Results!$N$16=D43,1,IF(Results!$N$16=F43,1,IF(Results!$N$16=H43,1,IF(Results!$N$16=J43,1,0))))) -> 1 | Q43: 230 | R43: 7185 | S43: 131 | T43: 292 | U43: 7823 | W43: 292 | X43: 7185 | Z43: 62 | AA43: 7185 | AC43: 81 | AD43: 85 | AE43: 10 | AF43: 164 | AG43: 179 | AH43: 18 | AI43: 126 | AJ43: 147 | AK43: 50 | AL43: 80 | AM43: 86 | AN43: 1 | AO43: 176 | AP43: 180 | AQ43: 17 | AR43: 0 | AS43: 0 | AT43: 0 | AU43: 116.8 | AV43: 116.8 | AW43: 292 | AX43: 17.52 | AY43: 116.8 | AZ43: 116.8 | BA43: 10.3368 | BB43: 116.8 | BC43: 17.52 | BD43: 7.339128 | BE43: 116.8 | BF43: 10.3368 | BG43: 109.460872 | BH43: 116.8 | BI43: 116.8 | BJ43: 7.339128 | BK43: 116.8 | BL43: 116.8 | BM43: 2.318430535 | BN43: 7.339128 | BP43: 58.00872 | BQ43: 109.460872 | BS43: 60.32715054 | BT43: 116.8 | BV43: 56.68217261 | BW43: 116.8 | BY43: 13.13777303 | BZ43: 7.339128 | CB43: 308.0612051 | CC43: 109.460872 | CE43: 321.1989781 | CF43: 116.8 | CH43: 321.1989781 | CI43: 116.8 | CJ43: 0
B44: A81038 | C44: HIRSEL MEDICAL CENTRE | D44: E38000162 | E44: NHS SOUTH TEES CCG | F44: E39000002 | G44: DURHAM, DARLINGTON AND TEES AREA TEAM | H44: E40000001 | I44: NORTH OF ENGLAND COMMISSIONING REGION | J44: Eng | K44: England | L44: UK | M44: =IF(LEFT(Results!$N$16,3)="All",1,IF(Results!$N$16=D44,1,IF(Results!$N$16=F44,1,IF(Results!$N$16=H44,1,IF(Results!$N$16=J44,1,0))))) -> 1 | Q44: 126 | R44: 3338 | S44: 75 | T44: 122 | U44: 3521 | W44: 122 | X44: 3338 | Z44: 0 | AA44: 3338 | AC44: 75 | AD44: 75 | AE44: 3 | AF44: 153 | AG44: 155 | AH44: 14 | AI44: 117 | AJ44: 120 | AK44: 49 | AL44: 54 | AM44: 54 | AN44: 1 | AO44: 146 | AP44: 146 | AQ44: 23 | AR44: 0 | AS44: 0 | AT44: 0 | AU44: 48.8 | AV44: 48.8 | AW44: 122 | AX44: 7.32 | AY44: 48.8 | AZ44: 48.8 | BA44: 4.3188 | BB44: 48.8 | BC44: 7.32 | BD44: 3.066348 | BE44: 48.8 | BF44: 4.3188 | BG44: 45.733652 | BH44: 48.8 | BI44: 48.8 | BJ44: 3.066348 | BK44: 48.8 | BL44: 48.8 | BM44: 0.9686593332 | BN44: 3.066348 | BP44: 24.23652 | BQ44: 45.733652 | BS44: 25.20517933 | BT44: 48.8 | BV44: 23.6822776 | BW44: 48.8 | BY44: 5.489069555 | BZ44: 3.066348 | CB44: 128.7105035 | CC44: 45.733652 | CE44: 134.1995731 | CF44: 48.8 | CH44: 134.1995731 | CI44: 48.8 | CJ44: 0
B45: A81039 | C45: EAGLESCLIFFE MEDICAL PRACTICE | D45: E38000075 | E45: NHS HARTLEPOOL AND STOCKTON-ON-TEES CCG | F45: E39000002 | G45: DURHAM, DARLINGTON AND TEES AREA TEAM | H45: E40000001 | I45: NORTH OF ENGLAND COMMISSIONING REGION | J45: Eng | K45: England | L45: UK | M45: =IF(LEFT(Results!$N$16,3)="All",1,IF(Results!$N$16=D45,1,IF(Results!$N$16=F45,1,IF(Results!$N$16=H45,1,IF(Results!$N$16=J45,1,0))))) -> 1 | Q45: 95 | R45: 8964 | S45: 41 | T45: 232 | U45: 8426 | W45: 246.8131972 | X45: 8964 | Z45: 151.8131972 | AA45: 8964 | AC45: 33 | AD45: 35 | AE45: 8 | AF45: 90 | AG45: 99 | AH45: 10 | AI45: 93 | AJ45: 105 | AK45: 4 | AL45: 43 | AM45: 45 | AN45: 1 | AO45: 87 | AP45: 87 | AQ45: 22 | AR45: 0 | AS45: 0 | AT45: 0 | AU45: 98.7252789 | AV45: 98.7252789 | AW45: 246.8131972 | AX45: 14.80879183 | AY45: 98.7252789 | AZ45: 98.7252789 | BA45: 8.737187183 | BB45: 98.7252789 | BC45: 14.80879183 | BD45: 6.2034029 | BE45: 98.7252789 | BF45: 8.737187183 | BG45: 92.521876 | BH45: 98.7252789 | BI45: 98.7252789 | BJ45: 6.2034029 | BK45: 98.7252789 | BL45: 98.7252789 | BM45: 1.959654976 | BN45: 6.2034029 | BP45: 49.03190977 | BQ45: 92.521876 | BS45: 50.99156474 | BT45: 98.7252789 | BV45: 47.91064469 | BW45: 98.7252789 | BY45: 11.10471153 | BZ45: 6.2034029 | CB45: 260.3889417 | CC45: 92.521876 | CE45: 271.4936532 | CF45: 98.7252789 | CH45: 271.4936532 | CI45: 98.7252789 | CJ45: 0
B46: A81040 | C46: MARSH HOUSE MEDICAL PRACTICE | D46: E38000075 | E46: NHS HARTLEPOOL AND STOCKTON-ON-TEES CCG | F46: E39000002 | G46: DURHAM, DARLINGTON AND TEES AREA TEAM | H46: E40000001 | I46: NORTH OF ENGLAND COMMISSIONING REGION | J46: Eng | K46: England | L46: UK | M46: =IF(LEFT(Results!$N$16,3)="All",1,IF(Results!$N$16=D46,1,IF(Results!$N$16=F46,1,IF(Results!$N$16=H46,1,IF(Results!$N$16=J46,1,0))))) -> 1 | Q46: 230 | R46: 8551 | S46: 154 | T46: 317 | U46: 8343 | W46: 324.9031523 | X46: 8551 | Z46: 94.90315234 | AA46: 8551 | AC46: 61 | AD46: 70 | AE46: 10 | AF46: 188 | AG46: 195 | AH46: 24 | AI46: 201 | AJ46: 204 | AK46: 15 | AL46: 77 | AM46: 79 | AN46: 1 | AO46: 191 | AP46: 194 | AQ46: 25 | AR46: 0 | AS46: 0 | AT46: 0 | AU46: 129.9612609 | AV46: 129.9612609 | AW46: 324.9031523 | AX46: 19.49418914 | AY46: 129.9612609 | AZ46: 129.9612609 | BA46: 11.50157159 | BB46: 129.9612609 | BC46: 19.49418914 | BD46: 8.166115831 | BE46: 129.9612609 | BF46: 11.50157159 | BG46: 121.7951451 | BH46: 129.9612609 | BI46: 129.9612609 | BJ46: 8.166115831 | BK46: 129.9612609 | BL46: 129.9612609 | BM46: 2.579675991 | BN46: 8.166115831 | BP46: 64.54526024 | BQ46: 121.7951451 | BS46: 67.12493624 | BT46: 129.9612609 | BV46: 63.06923481 | BW46: 129.9612609 | BY46: 14.61816395 | BZ46: 8.166115831 | CB46: 342.7741666 | CC46: 121.7951451 | CE46: 357.3923306 | CF46: 129.9612609 | CH46: 357.3923306 | CI46: 129.9612609 | CJ46: 0
B47: A81041 | C47: HART MEDICAL PRACTICE | D47: E38000075 | E47: NHS HARTLEPOOL AND STOCKTON-ON-TEES CCG | F47: E39000002 | G47: DURHAM, DARLINGTON AND TEES AREA TEAM | H47: E40000001 | I47: NORTH OF ENGLAND COMMISSIONING REGION | J47: Eng | K47: England | L47: UK | M47: =IF(LEFT(Results!$N$16,3)="All",1,IF(Results!$N$16=D47,1,IF(Results!$N$16=F47,1,IF(Results!$N$16=H47,1,IF(Results!$N$16=J47,1,0))))) -> 1 | Q47: 333 | R47: 9101 | S47: 225 | T47: 320 | U47: 9566 | W47: 320 | X47: 9101 | Z47: 0 | AA47: 9101 | AC47: 21 | AD47: 23 | AE47: 4 | AF47: 67 | AG47: 72 | AH47: 6 | AI47: 65 | AJ47: 71 | AK47: 7 | AL47: 30 | AM47: 33 | AN47: 1 | AO47: 59 | AP47: 60 | AQ47: 18 | AR47: 0 | AS47: 0 | AT47: 0 | AU47: 128 | AV47: 128 | AW47: 320 | AX47: 19.2 | AY47: 128 | AZ47: 128 | BA47: 11.328 | BB47: 128 | BC47: 19.2 | BD47: 8.04288 | BE47: 128 | BF47: 11.328 | BG47: 119.95712 | BH47: 128 | BI47: 128 | BJ47: 8.04288 | BK47: 128 | BL47: 128 | BM47: 2.540745792 | BN47: 8.04288 | BP47: 63.5712 | BQ47: 119.95712 | BS47: 66.11194579 | BT47: 128 | BV47: 62.11744944 | BW47: 128 | BY47: 14.39755949 | BZ47: 8.04288 | CB47: 337.6013207 | CC47: 119.95712 | CE47: 351.9988802 | CF47: 128 | CH47: 351.9988802 | CI47: 128 | CJ47: 0
B48: A81042 | C48: SOUTH GRANGE MEDICAL GROUP PRACTICE | D48: E38000162 | E48: NHS SOUTH TEES CCG | F48: E39000002 | G48: DURHAM, DARLINGTON AND TEES AREA TEAM | H48: E40000001 | I48: NORTH OF ENGLAND COMMISSIONING REGION | J48: Eng | K48: England | L48: UK | M48: =IF(LEFT(Results!$N$16,3)="All",1,IF(Results!$N$16=D48,1,IF(Results!$N$16=F48,1,IF(Results!$N$16=H48,1,IF(Results!$N$16=J48,1,0))))) -> 1 | Q48: 246 | R48: 6000 | S48: 134 | T48: 181 | U48: 6044 | W48: 181 | X48: 6000 | Z48: 0 | AA48: 6000 | AC48: 18 | AD48: 21 | AE48: 1 | AF48: 29 | AG48: 32 | AH48: 8 | AI48: 30 | AJ48: 33 | AK48: 7 | AL48: 26 | AM48: 26 | AN48: 0 | AO48: 37 | AP48: 37 | AQ48: 3 | AR48: 0 | AS48: 0 | AT48: 0 | AU48: 72.4 | AV48: 72.4 | AW48: 181 | AX48: 10.86 | AY48: 72.4 | AZ48: 72.4 | BA48: 6.4074 | BB48: 72.4 | BC48: 10.86 | BD48: 4.549254 | BE48: 72.4 | BF48: 6.4074 | BG48: 67.850746 | BH48: 72.4 | BI48: 72.4 | BJ48: 4.549254 | BK48: 72.4 | BL48: 72.4 | BM48: 1.437109339 | BN48: 4.549254 | BP48: 35.95746 | BQ48: 67.850746 | BS48: 37.39456934 | BT48: 72.4 | BV48: 35.13518234 | BW48: 72.4 | BY48: 8.143619585 | BZ48: 4.549254 | CB48: 190.955747 | CC48: 67.850746 | CE48: 199.0993666 | CF48: 72.4 | CH48: 199.0993666 | CI48: 72.4 | CJ48: 0
B49: A81043 | C49: THE MANOR HOUSE SURGERY | D49: E38000162 | E49: NHS SOUTH TEES CCG | F49: E39000002 | G49: DURHAM, DARLINGTON AND TEES AREA TEAM | H49: E40000001 | I49: NORTH OF ENGLAND COMMISSIONING REGION | J49: Eng | K49: England | L49: UK | M49: =IF(LEFT(Results!$N$16,3)="All",1,IF(Results!$N$16=D49,1,IF(Results!$N$16=F49,1,IF(Results!$N$16=H49,1,IF(Results!$N$16=J49,1,0))))) -> 1 | Q49: 194 | R49: 7967 | S49: 89 | T49: 250 | U49: 7993 | W49: 250 | X49: 7967 | Z49: 56 | AA49: 7967 | AC49: 19 | AD49: 20 | AE49: 0 | AF49: 55 | AG49: 59 | AH49: 1 | AI49: 49 | AJ49: 59 | AK49: 1 | AL49: 15 | AM49: 15 | AN49: 0 | AO49: 49 | AP49: 50 | AQ49: 10 | AR49: 0 | AS49: 0 | AT49: 0 | AU49: 100 | AV49: 100 | AW49: 250 | AX49: 15 | AY49: 100 | AZ49: 100 | BA49: 8.85 | BB49: 100 | BC49: 15 | BD49: 6.2835 | BE49: 100 | BF49: 8.85 | BG49: 93.7165 | BH49: 100 | BI49: 100 | BJ49: 6.2835 | BK49: 100 | BL49: 100 | BM49: 1.98495765 | BN49: 6.2835 | BP49: 49.665 | BQ49: 93.7165 | BS49: 51.64995765 | BT49: 100 | BV49: 48.52925738 | BW49: 100 | BY49: 11.24809335 | BZ49: 6.2835 | CB49: 263.7510318 | CC49: 93.7165 | CE49: 274.9991251 | CF49: 100 | CH49: 274.9991251 | CI49: 100 | CJ49: 0
B50: A81044 | C50: MCKENZIE HOUSE SURGERY | D50: E38000075 | E50: NHS HARTLEPOOL AND STOCKTON-ON-TEES CCG | F50: E39000002 | G50: DURHAM, DARLINGTON AND TEES AREA TEAM | H50: E40000001 | I50: NORTH OF ENGLAND COMMISSIONING REGION | J50: Eng | K50: England | L50: UK | M50: =IF(LEFT(Results!$N$16,3)="All",1,IF(Results!$N$16=D50,1,IF(Results!$N$16=F50,1,IF(Results!$N$16=H50,1,IF(Results!$N$16=J50,1,0))))) -> 1 | Q50: 405 | R50: 14153 | S50: 152 | T50: 431 | U50: 15109 | W50: 431 | X50: 14153 | Z50: 26 | AA50: 14153 | AC50: 4 | AD50: 5 | AE50: 1 | AF50: 20 | AG50: 21 | AH50: 6 | AI50: 21 | AJ50: 22 | AK50: 5 | AL50: 14 | AM50: 15 | AN50: 0 | AO50: 23 | AP50: 23 | AQ50: 4 | AR50: 0 | AS50: 0 | AT50: 0 | AU50: 172.4 | AV50: 172.4 | AW50: 431 | AX50: 25.86 | AY50: 172.4 | AZ50: 172.4 | BA50: 15.2574 | BB50: 172.4 | BC50: 25.86 | BD50: 10.832754 | BE50: 172.4 | BF50: 15.2574 | BG50: 161.567246 | BH50: 172.4 | BI50: 172.4 | BJ50: 10.832754 | BK50: 172.4 | BL50: 172.4 | BM50: 3.422066989 | BN50: 10.832754 | BP50: 85.62246 | BQ50: 161.567246 | BS50: 89.04452699 | BT50: 172.4 | BV50: 83.66443971 | BW50: 172.4 | BY50: 19.39171294 | BZ50: 10.832754 | CB50: 454.7067788 | CC50: 161.567246 | CE50: 474.0984917 | CF50: 172.4 | CH50: 474.0984917 | CI50: 172.4 | CJ50: 0
B51: A81045 | C51: THE COATHAM SURGERY | D51: E38000162 | E51: NHS SOUTH TEES CCG | F51: E39000002 | G51: DURHAM, DARLINGTON AND TEES AREA TEAM | H51: E40000001 | I51: NORTH OF ENGLAND COMMISSIONING REGION | J51: Eng | K51: England | L51: UK | M51: =IF(LEFT(Results!$N$16,3)="All",1,IF(Results!$N$16=D51,1,IF(Results!$N$16=F51,1,IF(Results!$N$16=H51,1,IF(Results!$N$16=J51,1,0))))) -> 1 | Q51: 254 | R51: 7567 | S51: 136 | T51: 231 | U51: 7366 | W51: 237.3034211 | X51: 7567 | Z51: 0 | AA51: 7567 | AC51: 29 | AD51: 39 | AE51: 6 | AF51: 115 | AG51: 132 | AH51: 19 | AI51: 75 | AJ51: 118 | AK51: 33 | AL51: 49 | AM51: 53 | AN51: 2 | AO51: 130 | AP51: 138 | AQ51: 13 | AR51: 0 | AS51: 0 | AT51: 0 | AU51: 94.92136845 | AV51: 94.92136845 | AW51: 237.3034211 | AX51: 14.23820527 | AY51: 94.92136845 | AZ51: 94.92136845 | BA51: 8.400541108 | BB51: 94.92136845 | BC51: 14.23820527 | BD51: 5.964384187 | BE51: 94.92136845 | BF51: 8.400541108 | BG51: 88.95698426 | BH51: 94.92136845 | BI51: 94.92136845 | BJ51: 5.964384187 | BK51: 94.92136845 | BL51: 94.92136845 | BM51: 1.884148965 | BN51: 5.964384187 | BP51: 47.14269764 | BQ51: 88.95698426 | BS51: 49.02684661 | BT51: 94.92136845 | BV51: 46.0646352 | BW51: 94.92136845 | BY51: 10.67684413 | BZ51: 5.964384187 | CB51: 250.3560887 | CC51: 88.95698426 | CE51: 261.0329328 | CF51: 94.92136845 | CH51: 261.0329328 | CI51: 94.92136845 | CJ51: 0
B52: A81046 | C52: WOODLANDS FAMILY MEDICAL CENTRE | D52: E38000075 | E52: NHS HARTLEPOOL AND STOCKTON-ON-TEES CCG | F52: E39000002 | G52: DURHAM, DARLINGTON AND TEES AREA TEAM | H52: E40000001 | I52: NORTH OF ENGLAND COMMISSIONING REGION | J52: Eng | K52: England | L52: UK | M52: =IF(LEFT(Results!$N$16,3)="All",1,IF(Results!$N$16=D52,1,IF(Results!$N$16=F52,1,IF(Results!$N$16=H52,1,IF(Results!$N$16=J52,1,0))))) -> 1 | Q52: 305 | R52: 12888 | S52: 351 | T52: 549 | U52: 12948 | W52: 549 | X52: 12888 | Z52: 244 | AA52: 12888 | AC52: 37 | AD52: 39 | AE52: 0 | AF52: 93 | AG52: 103 | AH52: 4 | AI52: 93 | AJ52: 103 | AK52: 4 | AL52: 40 | AM52: 40 | AN52: 0 | AO52: 91 | AP52: 93 | AQ52: 14 | AR52: 0 | AS52: 0 | AT52: 0 | AU52: 219.6 | AV52: 219.6 | AW52: 549 | AX52: 32.94 | AY52: 219.6 | AZ52: 219.6 | BA52: 19.4346 | BB52: 219.6 | BC52: 32.94 | BD52: 13.798566 | BE52: 219.6 | BF52: 19.4346 | BG52: 205.801434 | BH52: 219.6 | BI52: 219.6 | BJ52: 13.798566 | BK52: 219.6 | BL52: 219.6 | BM52: 4.358966999 | BN52: 13.798566 | BP52: 109.06434 | BQ52: 205.801434 | BS52: 113.423307 | BT52: 219.6 | BV52: 106.5702492 | BW52: 219.6 | BY52: 24.700813 | BZ52: 13.798566 | CB52: 579.1972658 | CC52: 205.801434 | CE52: 603.8980788 | CF52: 219.6 | CH52: 603.8980788 | CI52: 219.6 | CJ52: 0
B53: A81047 | C53: MARSKE MEDICAL CENTRE | D53: E38000162 | E53: NHS SOUTH TEES CCG | F53: E39000002 | G53: DURHAM, DARLINGTON AND TEES AREA TEAM | H53: E40000001 | I53: NORTH OF ENGLAND COMMISSIONING REGION | J53: Eng | K53: England | L53: UK | M53: =IF(LEFT(Results!$N$16,3)="All",1,IF(Results!$N$16=D53,1,IF(Results!$N$16=F53,1,IF(Results!$N$16=H53,1,IF(Results!$N$16=J53,1,0))))) -> 1 | Q53: 183 | R53: 5709 | S53: 134 | T53: 192 | U53: 6148 | W53: 192 | X53: 5709 | Z53: 9 | AA53: 5709 | AC53: 98 | AD53: 98 | AE53: 2 | AF53: 123 | AG53: 132 | AH53: 20 | AI53: 124 | AJ53: 134 | AK53: 18 | AL53: 38 | AM53: 38 | AN53: 3 | AO53: 126 | AP53: 127 | AQ53: 25 | AR53: 0 | AS53: 0 | AT53: 0 | AU53: 76.8 | AV53: 76.8 | AW53: 192 | AX53: 11.52 | AY53: 76.8 | AZ53: 76.8 | BA53: 6.7968 | BB53: 76.8 | BC53: 11.52 | BD53: 4.825728 | BE53: 76.8 | BF53: 6.7968 | BG53: 71.974272 | BH53: 76.8 | BI53: 76.8 | BJ53: 4.825728 | BK53: 76.8 | BL53: 76.8 | BM53: 1.524447475 | BN53: 4.825728 | BP53: 38.14272 | BQ53: 71.974272 | BS53: 39.66716748 | BT53: 76.8 | BV53: 37.27046966 | BW53: 76.8 | BY53: 8.638535693 | BZ53: 4.825728 | CB53: 202.5607924 | CC53: 71.974272 | CE53: 211.1993281 | CF53: 76.8 | CH53: 211.1993281 | CI53: 76.8 | CJ53: 0
B54: A81048 | C54: ZETLAND MEDICAL PRACTICE | D54: E38000162 | E54: NHS SOUTH TEES CCG | F54: E39000002 | G54: DURHAM, DARLINGTON AND TEES AREA TEAM | H54: E40000001 | I54: NORTH OF ENGLAND COMMISSIONING REGION | J54: Eng | K54: England | L54: UK | M54: =IF(LEFT(Results!$N$16,3)="All",1,IF(Results!$N$16=D54,1,IF(Results!$N$16=F54,1,IF(Results!$N$16=H54,1,IF(Results!$N$16=J54,1,0))))) -> 1 | Q54: 129 | R54: 5053 | S54: 97 | T54: 158 | U54: 5202 | W54: 158 | X54: 5053 | Z54: 29 | AA54: 5053 | AC54: 18 | AD54: 19 | AE54: 3 | AF54: 45 | AG54: 48 | AH54: 7 | AI54: 40 | AJ54: 44 | AK54: 11 | AL54: 17 | AM54: 19 | AN54: 1 | AO54: 43 | AP54: 46 | AQ54: 9 | AR54: 0 | AS54: 0 | AT54: 0 | AU54: 63.2 | AV54: 63.2 | AW54: 158 | AX54: 9.48 | AY54: 63.2 | AZ54: 63.2 | BA54: 5.5932 | BB54: 63.2 | BC54: 9.48 | BD54: 3.971172 | BE54: 63.2 | BF54: 5.5932 | BG54: 59.228828 | BH54: 63.2 | BI54: 63.2 | BJ54: 3.971172 | BK54: 63.2 | BL54: 63.2 | BM54: 1.254493235 | BN54: 3.971172 | BP54: 31.38828 | BQ54: 59.228828 | BS54: 32.64277323 | BT54: 63.2 | BV54: 30.67049066 | BW54: 63.2 | BY54: 7.108794997 | BZ54: 3.971172 | CB54: 166.6906521 | CC54: 59.228828 | CE54: 173.7994471 | CF54: 63.2 | CH54: 173.7994471 | CI54: 63.2 | CJ54: 0
B55: A81049 | C55: KINGS MEDICAL CENTRE | D55: E38000162 | E55: NHS SOUTH TEES CCG | F55: E39000002 | G55: DURHAM, DARLINGTON AND TEES AREA TEAM | H55: E40000001 | I55: NORTH OF ENGLAND COMMISSIONING REGION | J55: Eng | K55: England | L55: UK | M55: =IF(LEFT(Results!$N$16,3)="All",1,IF(Results!$N$16=D55,1,IF(Results!$N$16=F55,1,IF(Results!$N$16=H55,1,IF(Results!$N$16=J55,1,0))))) -> 1 | Q55: 190 | R55: 5468 | S55: 71 | T55: 237 | U55: 5339 | W55: 242.7263532 | X55: 5468 | Z55: 52.72635325 | AA55: 5468 | AC55: 7 | AD55: 8 | AE55: 7 | AF55: 33 | AG55: 36 | AH55: 4 | AI55: 34 | AJ55: 36 | AK55: 4 | AL55: 19 | AM55: 19 | AN55: 0 | AO55: 34 | AP55: 35 | AQ55: 5 | AR55: 0 | AS55: 0 | AT55: 0 | AU55: 97.0905413 | AV55: 97.0905413 | AW55: 242.7263532 | AX55: 14.56358119 | AY55: 97.0905413 | AZ55: 97.0905413 | BA55: 8.592512905 | BB55: 97.0905413 | BC55: 14.56358119 | BD55: 6.100684163 | BE55: 97.0905413 | BF55: 8.592512905 | BG55: 90.98985714 | BH55: 97.0905413 | BI55: 97.0905413 | BJ55: 6.100684163 | BK55: 97.0905413 | BL55: 97.0905413 | BM55: 1.927206127 | BN55: 6.100684163 | BP55: 48.22001734 | BQ55: 90.98985714 | BS55: 50.14722346 | BT55: 97.0905413 | BV55: 47.11731867 | BW55: 97.0905413 | BY55: 10.92083472 | BZ55: 6.100684163 | CB55: 256.0773044 | CC55: 90.98985714 | CE55: 266.9981392 | CF55: 97.0905413 | CH55: 266.9981392 | CI55: 97.0905413 | CJ55: 0
B56: A81051 | C56: THE CAMBRIDGE MEDICAL GROUP | D56: E38000162 | E56: NHS SOUTH TEES CCG | F56: E39000002 | G56: DURHAM, DARLINGTON AND TEES AREA TEAM | H56: E40000001 | I56: NORTH OF ENGLAND COMMISSIONING REGION | J56: Eng | K56: England | L56: UK | M56: =IF(LEFT(Results!$N$16,3)="All",1,IF(Results!$N$16=D56,1,IF(Results!$N$16=F56,1,IF(Results!$N$16=H56,1,IF(Results!$N$16=J56,1,0))))) -> 1 | Q56: 126 | R56: 7449 | S56: 58 | T56: 310 | U56: 7297 | W56: 316.4574483 | X56: 7449 | Z56: 190.4574483 | AA56: 7449 | AC56: 6 | AD56: 6 | AE56: 0 | AF56: 17 | AG56: 17 | AH56: 1 | AI56: 17 | AJ56: 17 | AK56: 1 | AL56: 9 | AM56: 9 | AN56: 0 | AO56: 17 | AP56: 17 | AQ56: 1 | AR56: 0 | AS56: 0 | AT56: 0 | AU56: 126.5829793 | AV56: 126.5829793 | AW56: 316.4574483 | AX56: 18.9874469 | AY56: 126.5829793 | AZ56: 126.5829793 | BA56: 11.20259367 | BB56: 126.5829793 | BC56: 18.9874469 | BD56: 7.953841505 | BE56: 126.5829793 | BF56: 11.20259367 | BG56: 118.6291378 | BH56: 126.5829793 | BI56: 126.5829793 | BJ56: 7.953841505 | BK56: 126.5829793 | BL56: 126.5829793 | BM56: 2.512618531 | BN56: 7.953841505 | BP56: 62.86743667 | BQ56: 118.6291378 | BS56: 65.3800552 | BT56: 126.5829793 | BV56: 61.42977982 | BW56: 126.5829793 | BY56: 14.23817168 | BZ56: 7.953841505 | CB56: 333.863914 | CC56: 118.6291378 | CE56: 348.1020857 | CF56: 126.5829793 | CH56: 348.1020857 | CI56: 126.5829793 | CJ56: 0
B57: A81052 | C57: THE GREEN HOUSE SURGERY | D57: E38000162 | E57: NHS SOUTH TEES CCG | F57: E39000002 | G57: DURHAM, DARLINGTON AND TEES AREA TEAM | H57: E40000001 | I57: NORTH OF ENGLAND COMMISSIONING REGION | J57: Eng | K57: England | L57: UK | M57: =IF(LEFT(Results!$N$16,3)="All",1,IF(Results!$N$16=D57,1,IF(Results!$N$16=F57,1,IF(Results!$N$16=H57,1,IF(Results!$N$16=J57,1,0))))) -> 1 | Q57: 216 | R57: 7346 | S57: 169 | T57: 231 | U57: 7462 | W57: 231 | X57: 7346 | Z57: 15 | AA57: 7346 | AC57: 10 | AD57: 10 | AE57: 6 | AF57: 19 | AG57: 19 | AH57: 4 | AI57: 20 | AJ57: 20 | AK57: 3 | AL57: 12 | AM57: 12 | AN57: 0 | AO57: 18 | AP57: 18 | AQ57: 5 | AR57: 0 | AS57: 0 | AT57: 0 | AU57: 92.4 | AV57: 92.4 | AW57: 231 | AX57: 13.86 | AY57: 92.4 | AZ57: 92.4 | BA57: 8.1774 | BB57: 92.4 | BC57: 13.86 | BD57: 5.805954 | BE57: 92.4 | BF57: 8.1774 | BG57: 86.594046 | BH57: 92.4 | BI57: 92.4 | BJ57: 5.805954 | BK57: 92.4 | BL57: 92.4 | BM57: 1.834100869 | BN57: 5.805954 | BP57: 45.89046 | BQ57: 86.594046 | BS57: 47.72456087 | BT57: 92.4 | BV57: 44.84103381 | BW57: 92.4 | BY57: 10.39323826 | BZ57: 5.805954 | CB57: 243.7059534 | CC57: 86.594046 | CE57: 254.0991916 | CF57: 92.4 | CH57: 254.0991916 | CI57: 92.4 | CJ57: 0
B58: A81053 | C58: WOODSIDE SURGERY | D58: E38000162 | E58: NHS SOUTH TEES CCG | F58: E39000002 | G58: DURHAM, DARLINGTON AND TEES AREA TEAM | H58: E40000001 | I58: NORTH OF ENGLAND COMMISSIONING REGION | J58: Eng | K58: England | L58: UK | M58: =IF(LEFT(Results!$N$16,3)="All",1,IF(Results!$N$16=D58,1,IF(Results!$N$16=F58,1,IF(Results!$N$16=H58,1,IF(Results!$N$16=J58,1,0))))) -> 1 | Q58: 227 | R58: 6602 | S58: 123 | T58: 241 | U58: 6875 | W58: 241 | X58: 6602 | Z58: 14 | AA58: 6602 | AC58: 13 | AD58: 15 | AE58: 2 | AF58: 33 | AG58: 36 | AH58: 0 | AI58: 33 | AJ58: 36 | AK58: 0 | AL58: 16 | AM58: 16 | AN58: 0 | AO58: 35 | AP58: 36 | AQ58: 0 | AR58: 0 | AS58: 0 | AT58: 0 | AU58: 96.4 | AV58: 96.4 | AW58: 241 | AX58: 14.46 | AY58: 96.4 | AZ58: 96.4 | BA58: 8.5314 | BB58: 96.4 | BC58: 14.46 | BD58: 6.057294 | BE58: 96.4 | BF58: 8.5314 | BG58: 90.342706 | BH58: 96.4 | BI58: 96.4 | BJ58: 6.057294 | BK58: 96.4 | BL58: 96.4 | BM58: 1.913499175 | BN58: 6.057294 | BP58: 47.87706 | BQ58: 90.342706 | BS58: 49.79055917 | BT58: 96.4 | BV58: 46.78220411 | BW58: 96.4 | BY58: 10.84316199 | BZ58: 6.057294 | CB58: 254.2559946 | CC58: 90.342706 | CE58: 265.0991566 | CF58: 96.4 | CH58: 265.0991566 | CI58: 96.4 | CJ58: 0
B59: A81054 | C59: THE SALTSCAR SURGERY | D59: E38000162 | E59: NHS SOUTH TEES CCG | F59: E39000002 | G59: DURHAM, DARLINGTON AND TEES AREA TEAM | H59: E40000001 | I59: NORTH OF ENGLAND COMMISSIONING REGION | J59: Eng | K59: England | L59: UK | M59: =IF(LEFT(Results!$N$16,3)="All",1,IF(Results!$N$16=D59,1,IF(Results!$N$16=F59,1,IF(Results!$N$16=H59,1,IF(Results!$N$16=J59,1,0))))) -> 1 | Q59: 224 | R59: 7963 | S59: 158 | T59: 235 | U59: 8352 | W59: 235 | X59: 7963 | Z59: 11 | AA59: 7963 | AC59: 18 | AD59: 18 | AE59: 1 | AF59: 50 | AG59: 53 | AH59: 1 | AI59: 49 | AJ59: 52 | AK59: 2 | AL59: 32 | AM59: 33 | AN59: 0 | AO59: 45 | AP59: 46 | AQ59: 8 | AR59: 0 | AS59: 0 | AT59: 0 | AU59: 94 | AV59: 94 | AW59: 235 | AX59: 14.1 | AY59: 94 | AZ59: 94 | BA59: 8.319 | BB59: 94 | BC59: 14.1 | BD59: 5.90649 | BE59: 94 | BF59: 8.319 | BG59: 88.09351 | BH59: 94 | BI59: 94 | BJ59: 5.90649 | BK59: 94 | BL59: 94 | BM59: 1.865860191 | BN59: 5.90649 | BP59: 46.6851 | BQ59: 88.09351 | BS59: 48.55096019 | BT59: 94 | BV59: 45.61750193 | BW59: 94 | BY59: 10.57320775 | BZ59: 5.90649 | CB59: 247.9259699 | CC59: 88.09351 | CE59: 258.4991776 | CF59: 94 | CH59: 258.4991776 | CI59: 94 | CJ59: 0
B60: A81056 | C60: MELROSE SURGERY | D60: E38000075 | E60: NHS HARTLEPOOL AND STOCKTON-ON-TEES CCG | F60: E39000002 | G60: DURHAM, DARLINGTON AND TEES AREA TEAM | H60: E40000001 | I60: NORTH OF ENGLAND COMMISSIONING REGION | J60: Eng | K60: England | L60: UK | M60: =IF(LEFT(Results!$N$16,3)="All",1,IF(Results!$N$16=D60,1,IF(Results!$N$16=F60,1,IF(Results!$N$16=H60,1,IF(Results!$N$16=J60,1,0))))) -> 1 | Q60: 75 | R60: 2584 | S60: 48 | T60: 111 | U60: 2595 | W60: 111 | X60: 2584 | Z60: 36 | AA60: 2584 | AC60: 16 | AD60: 16 | AE60: 2 | AF60: 32 | AG60: 58 | AH60: 4 | AI60: 37 | AJ60: 58 | AK60: 4 | AL60: 25 | AM60: 26 | AN60: 0 | AO60: 47 | AP60: 50 | AQ60: 12 | AR60: 0 | AS60: 0 | AT60: 0 | AU60: 44.4 | AV60: 44.4 | AW60: 111 | AX60: 6.66 | AY60: 44.4 | AZ60: 44.4 | BA60: 3.9294 | BB60: 44.4 | BC60: 6.66 | BD60: 2.789874 | BE60: 44.4 | BF60: 3.9294 | BG60: 41.610126 | BH60: 44.4 | BI60: 44.4 | BJ60: 2.789874 | BK60: 44.4 | BL60: 44.4 | BM60: 0.8813211966 | BN60: 2.789874 | BP60: 22.05126 | BQ60: 41.610126 | BS60: 22.9325812 | BT60: 44.4 | BV60: 21.54699027 | BW60: 44.4 | BY60: 4.994153447 | BZ60: 2.789874 | CB60: 117.1054581 | CC60: 41.610126 | CE60: 122.0996116 | CF60: 44.4 | CH60: 122.0996116 | CI60: 44.4 | CJ60: 0
B61: A81057 | C61: KINGSWAY MEDICAL CENTRE | D61: E38000075 | E61: NHS HARTLEPOOL AND STOCKTON-ON-TEES CCG | F61: E39000002 | G61: DURHAM, DARLINGTON AND TEES AREA TEAM | H61: E40000001 | I61: NORTH OF ENGLAND COMMISSIONING REGION | J61: Eng | K61: England | L61: UK | M61: =IF(LEFT(Results!$N$16,3)="All",1,IF(Results!$N$16=D61,1,IF(Results!$N$16=F61,1,IF(Results!$N$16=H61,1,IF(Results!$N$16=J61,1,0))))) -> 1 | Q61: 237 | R61: 8707 | S61: 100 | T61: 281 | U61: 7796 | W61: 313.8361981 | X61: 8707 | Z61: 76.83619805 | AA61: 8707 | AC61: 9 | AD61: 9 | AE61: 0 | AF61: 22 | AG61: 22 | AH61: 0 | AI61: 17 | AJ61: 19 | AK61: 3 | AL61: 10 | AM61: 10 | AN61: 0 | AO61: 21 | AP61: 21 | AQ61: 1 | AR61: 0 | AS61: 0 | AT61: 0 | AU61: 125.5344792 | AV61: 125.5344792 | AW61: 313.8361981 | AX61: 18.83017188 | AY61: 125.5344792 | AZ61: 125.5344792 | BA61: 11.10980141 | BB61: 125.5344792 | BC61: 18.83017188 | BD61: 7.887959002 | BE61: 125.5344792 | BF61: 11.10980141 | BG61: 117.6465202 | BH61: 125.5344792 | BI61: 125.5344792 | BJ61: 7.887959002 | BK61: 125.5344792 | BL61: 125.5344792 | BM61: 2.491806249 | BN61: 7.887959002 | BP61: 62.3466991 | BQ61: 117.6465202 | BS61: 64.83850535 | BT61: 125.5344792 | BV61: 60.92095052 | BW61: 125.5344792 | BY61: 14.12023541 | BZ61: 7.887959002 | CB61: 331.0984842 | CC61: 117.6465202 | CE61: 345.2187196 | CF61: 125.5344792 | CH61: 345.2187196 | CI61: 125.5344792 | CJ61: 0
B62: A81058 | C62: COULBY MEDICAL PRACTICE | D62: E38000162 | E62: NHS SOUTH TEES CCG | F62: E39000002 | G62: DURHAM, DARLINGTON AND TEES AREA TEAM | H62: E40000001 | I62: NORTH OF ENGLAND COMMISSIONING REGION | J62: Eng | K62: England | L62: UK | M62: =IF(LEFT(Results!$N$16,3)="All",1,IF(Results!$N$16=D62,1,IF(Results!$N$16=F62,1,IF(Results!$N$16=H62,1,IF(Results!$N$16=J62,1,0))))) -> 1 | Q62: 181 | R62: 7513 | S62: 58 | T62: 275 | U62: 7393 | W62: 279.4636819 | X62: 7513 | Z62: 98.46368186 | AA62: 7513 | AC62: 21 | AD62: 24 | AE62: 3 | AF62: 43 | AG62: 47 | AH62: 3 | AI62: 42 | AJ62: 46 | AK62: 4 | AL62: 20 | AM62: 20 | AN62: 0 | AO62: 42 | AP62: 43 | AQ62: 7 | AR62: 0 | AS62: 0 | AT62: 0 | AU62: 111.7854727 | AV62: 111.7854727 | AW62: 279.4636819 | AX62: 16.76782091 | AY62: 111.7854727 | AZ62: 111.7854727 | BA62: 9.893014338 | BB62: 111.7854727 | BC62: 16.76782091 | BD62: 7.02404018 | BE62: 111.7854727 | BF62: 9.893014338 | BG62: 104.7614326 | BH62: 111.7854727 | BI62: 111.7854727 | BJ62: 7.02404018 | BK62: 111.7854727 | BL62: 111.7854727 | BM62: 2.218894293 | BN62: 7.02404018 | BP62: 55.51825504 | BQ62: 104.7614326 | BS62: 57.73714933 | BT62: 111.7854727 | BV62: 54.24865978 | BW62: 111.7854727 | BY62: 12.57373433 | BZ62: 7.02404018 | CB62: 294.8353377 | CC62: 104.7614326 | CE62: 307.4090721 | CF62: 111.7854727 | CH62: 307.4090721 | CI62: 111.7854727 | CJ62: 0
B63: A81060 | C63: THE KOH PRACTICE | D63: E38000075 | E63: NHS HARTLEPOOL AND STOCKTON-ON-TEES CCG | F63: E39000002 | G63: DURHAM, DARLINGTON AND TEES AREA TEAM | H63: E40000001 | I63: NORTH OF ENGLAND COMMISSIONING REGION | J63: Eng | K63: England | L63: UK | M63: =IF(LEFT(Results!$N$16,3)="All",1,IF(Results!$N$16=D63,1,IF(Results!$N$16=F63,1,IF(Results!$N$16=H63,1,IF(Results!$N$16=J63,1,0))))) -> 1 | Q63: 147 | R63: 5331 | S63: 64 | T63: 156 | U63: 5341 | W63: 156 | X63: 5331 | Z63: 9 | AA63: 5331 | AC63: 21 | AD63: 22 | AE63: 1 | AF63: 45 | AG63: 47 | AH63: 4 | AI63: 46 | AJ63: 49 | AK63: 2 | AL63: 13 | AM63: 14 | AN63: 1 | AO63: 44 | AP63: 45 | AQ63: 6 | AR63: 0 | AS63: 0 | AT63: 0 | AU63: 62.4 | AV63: 62.4 | AW63: 156 | AX63: 9.36 | AY63: 62.4 | AZ63: 62.4 | BA63: 5.5224 | BB63: 62.4 | BC63: 9.36 | BD63: 3.920904 | BE63: 62.4 | BF63: 5.5224 | BG63: 58.479096 | BH63: 62.4 | BI63: 62.4 | BJ63: 3.920904 | BK63: 62.4 | BL63: 62.4 | BM63: 1.238613574 | BN63: 3.920904 | BP63: 30.99096 | BQ63: 58.479096 | BS63: 32.22957357 | BT63: 62.4 | BV63: 30.2822566 | BW63: 62.4 | BY63: 7.01881025 | BZ63: 3.920904 | CB63: 164.5806438 | CC63: 58.479096 | CE63: 171.5994541 | CF63: 62.4 | CH63: 171.5994541 | CI63: 62.4 | CJ63: 0
B64: A81063 | C64: THE HEADLAND MEDICAL CENTRE | D64: E38000075 | E64: NHS HARTLEPOOL AND STOCKTON-ON-TEES CCG | F64: E39000002 | G64: DURHAM, DARLINGTON AND TEES AREA TEAM | H64: E40000001 | I64: NORTH OF ENGLAND COMMISSIONING REGION | J64: Eng | K64: England | L64: UK | M64: =IF(LEFT(Results!$N$16,3)="All",1,IF(Results!$N$16=D64,1,IF(Results!$N$16=F64,1,IF(Results!$N$16=H64,1,IF(Results!$N$16=J64,1,0))))) -> 1 | Q64: 229 | R64: 5319 | S64: 56 | T64: 190 | U64: 5859 | W64: 190 | X64: 5319 | Z64: 0 | AA64: 5319 | AC64: 15 | AD64: 16 | AE64: 0 | AF64: 25 | AG64: 27 | AH64: 2 | AI64: 24 | AJ64: 27 | AK64: 2 | AL64: 9 | AM64: 9 | AN64: 0 | AO64: 20 | AP64: 20 | AQ64: 9 | AR64: 0 | AS64: 0 | AT64: 0 | AU64: 76 | AV64: 76 | AW64: 190 | AX64: 11.4 | AY64: 76 | AZ64: 76 | BA64: 6.726 | BB64: 76 | BC64: 11.4 | BD64: 4.77546 | BE64: 76 | BF64: 6.726 | BG64: 71.22454 | BH64: 76 | BI64: 76 | BJ64: 4.77546 | BK64: 76 | BL64: 76 | BM64: 1.508567814 | BN64: 4.77546 | BP64: 37.7454 | BQ64: 71.22454 | BS64: 39.25396781 | BT64: 76 | BV64: 36.8822356 | BW64: 76 | BY64: 8.548550946 | BZ64: 4.77546 | CB64: 200.4507841 | CC64: 71.22454 | CE64: 208.9993351 | CF64: 76 | CH64: 208.9993351 | CI64: 76 | CJ64: 0
B65: A81064 | C65: THE DISCOVERY PRACTICE | D65: E38000162 | E65: NHS SOUTH TEES CCG | F65: E39000002 | G65: DURHAM, DARLINGTON AND TEES AREA TEAM | H65: E40000001 | I65: NORTH OF ENGLAND COMMISSIONING REGION | J65: Eng | K65: England | L65: UK | M65: =IF(LEFT(Results!$N$16,3)="All",1,IF(Results!$N$16=D65,1,IF(Results!$N$16=F65,1,IF(Results!$N$16=H65,1,IF(Results!$N$16=J65,1,0))))) -> 1 | Q65: 125 | R65: 6263 | S65: 57 | T65: 235 | U65: 6220 | W65: 236.6245981 | X65: 6263 | Z65: 111.6245981 | AA65: 6263 | AC65: 28 | AD65: 28 | AE65: 6 | AF65: 101 | AG65: 111 | AH65: 14 | AI65: 100 | AJ65: 110 | AK65: 15 | AL65: 75 | AM65: 75 | AN65: 2 | AO65: 103 | AP65: 105 | AQ65: 20 | AR65: 0 | AS65: 0 | AT65: 0 | AU65: 94.64983923 | AV65: 94.64983923 | AW65: 236.6245981 | AX65: 14.19747588 | AY65: 94.64983923 | AZ65: 94.64983923 | BA65: 8.376510772 | BB65: 94.64983923 | BC65: 14.19747588 | BD65: 5.947322648 | BE65: 94.64983923 | BF65: 8.376510772 | BG65: 88.70251658 | BH65: 94.64983923 | BI65: 94.64983923 | BJ65: 5.947322648 | BK65: 94.64983923 | BL65: 94.64983923 | BM65: 1.878759224 | BN65: 5.947322648 | BP65: 47.00784265 | BQ65: 88.70251658 | BS65: 48.88660188 | BT65: 94.64983923 | BV65: 45.93286408 | BW65: 94.64983923 | BY65: 10.64630227 | BZ65: 5.947322648 | CB65: 249.6399275 | CC65: 88.70251658 | CE65: 260.2862298 | CF65: 94.64983923 | CH65: 260.2862298 | CI65: 94.64983923 | CJ65: 0
B66: A81065 | C66: THE ESTON SURGERY | D66: E38000162 | E66: NHS SOUTH TEES CCG | F66: E39000002 | G66: DURHAM, DARLINGTON AND TEES AREA TEAM | H66: E40000001 | I66: NORTH OF ENGLAND COMMISSIONING REGION | J66: Eng | K66: England | L66: UK | M66: =IF(LEFT(Results!$N$16,3)="All",1,IF(Results!$N$16=D66,1,IF(Results!$N$16=F66,1,IF(Results!$N$16=H66,1,IF(Results!$N$16=J66,1,0))))) -> 1 | Q66: 133 | R66: 3368 | S66: 41 | T66: 90 | U66: 2975 | W66: 101.8890756 | X66: 3368 | Z66: 0 | AA66: 3368 | AC66: 37 | AD66: 37 | AE66: 2 | AF66: 111 | AG66: 122 | AH66: 11 | AI66: 114 | AJ66: 124 | AK66: 9 | AL66: 73 | AM66: 76 | AN66: 0 | AO66: 113 | AP66: 114 | AQ66: 19 | AR66: 0 | AS66: 0 | AT66: 0 | AU66: 40.75563025 | AV66: 40.75563025 | AW66: 101.8890756 | AX66: 6.113344538 | AY66: 40.75563025 | AZ66: 40.75563025 | BA66: 3.606873277 | BB66: 40.75563025 | BC66: 6.113344538 | BD66: 2.560880027 | BE66: 40.75563025 | BF66: 3.606873277 | BG66: 38.19475023 | BH66: 40.75563025 | BI66: 40.75563025 | BJ66: 2.560880027 | BK66: 40.75563025 | BL66: 40.75563025 | BM66: 0.8089820005 | BN66: 2.560880027 | BP66: 20.24128376 | BQ66: 38.19475023 | BS66: 21.05026577 | BT66: 40.75563025 | BV66: 19.7784047 | BW66: 40.75563025 | BY66: 4.584231336 | BZ66: 2.560880027 | CB66: 107.4933953 | CC66: 38.19475023 | CE66: 112.0776266 | CF66: 40.75563025 | CH66: 112.0776266 | CI66: 40.75563025 | CJ66: 0
B67: A81066 | C67: PARK LANE SURGERY | D67: E38000075 | E67: NHS HARTLEPOOL AND STOCKTON-ON-TEES CCG | F67: E39000002 | G67: DURHAM, DARLINGTON AND TEES AREA TEAM | H67: E40000001 | I67: NORTH OF ENGLAND COMMISSIONING REGION | J67: Eng | K67: England | L67: UK | M67: =IF(LEFT(Results!$N$16,3)="All",1,IF(Results!$N$16=D67,1,IF(Results!$N$16=F67,1,IF(Results!$N$16=H67,1,IF(Results!$N$16=J67,1,0))))) -> 1 | Q67: 85 | R67: 4194 | S67: 64 | T67: 106 | U67: 4105 | W67: 108.298173 | X67: 4194 | Z67: 23.29817296 | AA67: 4194 | AC67: 31 | AD67: 32 | AE67: 8 | AF67: 70 | AG67: 72 | AH67: 13 | AI67: 45 | AJ67: 54 | AK67: 31 | AL67: 34 | AM67: 34 | AN67: 0 | AO67: 73 | AP67: 73 | AQ67: 12 | AR67: 0 | AS67: 0 | AT67: 0 | AU67: 43.31926918 | AV67: 43.31926918 | AW67: 108.298173 | AX67: 6.497890378 | AY67: 43.31926918 | AZ67: 43.31926918 | BA67: 3.833755323 | BB67: 43.31926918 | BC67: 6.497890378 | BD67: 2.721966279 | BE67: 43.31926918 | BF67: 3.833755323 | BG67: 40.5973029 | BH67: 43.31926918 | BI67: 43.31926918 | BJ67: 2.721966279 | BK67: 43.31926918 | BL67: 43.31926918 | BM67: 0.8598691476 | BN67: 2.721966279 | BP67: 21.51451504 | BQ67: 40.5973029 | BS67: 22.37438419 | BT67: 43.31926918 | BV67: 21.02251964 | BW67: 43.31926918 | BY67: 4.872591836 | BZ67: 2.721966279 | CB67: 114.2550194 | CC67: 40.5973029 | CE67: 119.1276113 | CF67: 43.31926918 | CH67: 119.1276113 | CI67: 43.31926918 | CJ67: 0
B68: A81067 | C68: ALMA MEDICAL CENTRE | D68: E38000075 | E68: NHS HARTLEPOOL AND STOCKTON-ON-TEES CCG | F68: E39000002 | G68: DURHAM, DARLINGTON AND TEES AREA TEAM | H68: E40000001 | I68: NORTH OF ENGLAND COMMISSIONING REGION | J68: Eng | K68: England | L68: UK | M68: =IF(LEFT(Results!$N$16,3)="All",1,IF(Results!$N$16=D68,1,IF(Results!$N$16=F68,1,IF(Results!$N$16=H68,1,IF(Results!$N$16=J68,1,0))))) -> 1 | Q68: 399 | R68: 10550 | S68: 356 | T68: 334 | U68: 9683 | W68: 363.9058143 | X68: 10550 | Z68: 0 | AA68: 10550 | AC68: 75 | AD68: 77 | AE68: 66 | AF68: 294 | AG68: 316 | AH68: 83 | AI68: 254 | AJ68: 274 | AK68: 125 | AL68: 85 | AM68: 87 | AN68: 2 | AO68: 314 | AP68: 319 | AQ68: 80 | AR68: 0 | AS68: 0 | AT68: 0 | AU68: 145.5623257 | AV68: 145.5623257 | AW68: 363.9058143 | AX68: 21.83434886 | AY68: 145.5623257 | AZ68: 145.5623257 | BA68: 12.88226583 | BB68: 145.5623257 | BC68: 21.83434886 | BD68: 9.146408737 | BE68: 145.5623257 | BF68: 12.88226583 | BG68: 136.415917 | BH68: 145.5623257 | BI68: 145.5623257 | BJ68: 9.146408737 | BK68: 145.5623257 | BL68: 145.5623257 | BM68: 2.88935052 | BN68: 9.146408737 | BP68: 72.29352907 | BQ68: 136.415917 | BS68: 75.18287959 | BT68: 145.5623257 | BV68: 70.64031569 | BW68: 145.5623257 | BY68: 16.37298628 | BZ68: 9.146408737 | CB68: 383.922136 | CC68: 136.415917 | CE68: 400.2951223 | CF68: 145.5623257 | CH68: 400.2951223 | CI68: 145.5623257 | CJ68: 0
B69: A81069 | C69: RAINBOW SURGERY | D69: E38000162 | E69: NHS SOUTH TEES CCG | F69: E39000002 | G69: DURHAM, DARLINGTON AND TEES AREA TEAM | H69: E40000001 | I69: NORTH OF ENGLAND COMMISSIONING REGION | J69: Eng | K69: England | L69: UK | M69: =IF(LEFT(Results!$N$16,3)="All",1,IF(Results!$N$16=D69,1,IF(Results!$N$16=F69,1,IF(Results!$N$16=H69,1,IF(Results!$N$16=J69,1,0))))) -> 1 | Q69: 86 | R69: 1581 | S69: 26 | T69: 65 | U69: 1794 | W69: 65 | X69: 1581 | Z69: 0 | AA69: 1581 | AC69: 14 | AD69: 28 | AE69: 2 | AF69: 61 | AG69: 84 | AH69: 2 | AI69: 18 | AJ69: 79 | AK69: 7 | AL69: 30 | AM69: 32 | AN69: 0 | AO69: 63 | AP69: 71 | AQ69: 15 | AR69: 0 | AS69: 0 | AT69: 0 | AU69: 26 | AV69: 26 | AW69: 65 | AX69: 3.9 | AY69: 26 | AZ69: 26 | BA69: 2.301 | BB69: 26 | BC69: 3.9 | BD69: 1.63371 | BE69: 26 | BF69: 2.301 | BG69: 24.36629 | BH69: 26 | BI69: 26 | BJ69: 1.63371 | BK69: 26 | BL69: 26 | BM69: 0.516088989 | BN69: 1.63371 | BP69: 12.9129 | BQ69: 24.36629 | BS69: 13.42898899 | BT69: 26 | BV69: 12.61760692 | BW69: 26 | BY69: 2.924504271 | BZ69: 1.63371 | CB69: 68.57526826 | CC69: 24.36629 | CE69: 71.49977253 | CF69: 26 | CH69: 71.49977253 | CI69: 26 | CJ69: 0
B70: A81070 | C70: WYNYARD ROAD PRIMARY CARE CENTRE | D70: E38000075 | E70: NHS HARTLEPOOL AND STOCKTON-ON-TEES CCG | F70: E39000002 | G70: DURHAM, DARLINGTON AND TEES AREA TEAM | H70: E40000001 | I70: NORTH OF ENGLAND COMMISSIONING REGION | J70: Eng | K70: England | L70: UK | M70: =IF(LEFT(Results!$N$16,3)="All",1,IF(Results!$N$16=D70,1,IF(Results!$N$16=F70,1,IF(Results!$N$16=H70,1,IF(Results!$N$16=J70,1,0))))) -> 1 | Q70: 73 | R70: 1993 | S70: 72 | T70: 40 | U70: 1759 | W70: 45.32120523 | X70: 1993 | Z70: 0 | AA70: 1993 | AC70: 26 | AD70: 28 | AE70: 4 | AF70: 41 | AG70: 47 | AH70: 26 | AI70: 40 | AJ70: 47 | AK70: 26 | AL70: 19 | AM70: 20 | AN70: 1 | AO70: 58 | AP70: 58 | AQ70: 15 | AR70: 0 | AS70: 0 | AT70: 0 | AU70: 18.12848209 | AV70: 18.12848209 | AW70: 45.32120523 | AX70: 2.719272314 | AY70: 18.12848209 | AZ70: 18.12848209 | BA70: 1.604370665 | BB70: 18.12848209 | BC70: 2.719272314 | BD70: 1.139103172 | BE70: 18.12848209 | BF70: 1.604370665 | BG70: 16.98937892 | BH70: 18.12848209 | BI70: 18.12848209 | BJ70: 1.139103172 | BK70: 18.12848209 | BL70: 18.12848209 | BM70: 0.3598426921 | BN70: 1.139103172 | BP70: 9.003510631 | BQ70: 16.98937892 | BS70: 9.363353323 | BT70: 18.12848209 | BV70: 8.797617733 | BW70: 18.12848209 | BY70: 2.039108589 | BZ70: 1.139103172 | CB70: 47.81405856 | CC70: 16.98937892 | CE70: 49.85316715 | CF70: 18.12848209 | CH70: 49.85316715 | CI70: 18.12848209 | CJ70: 0
B71: A81602 | C71: DR RASOOL | D71: E38000075 | E71: NHS HARTLEPOOL AND STOCKTON-ON-TEES CCG | F71: E39000002 | G71: DURHAM, DARLINGTON AND TEES AREA TEAM | H71: E40000001 | I71: NORTH OF ENGLAND COMMISSIONING REGION | J71: Eng | K71: England | L71: UK | M71: =IF(LEFT(Results!$N$16,3)="All",1,IF(Results!$N$16=D71,1,IF(Results!$N$16=F71,1,IF(Results!$N$16=H71,1,IF(Results!$N$16=J71,1,0))))) -> 1 | Q71: 67 | R71: 2523 | S71: 30 | T71: 102 | U71: 2582 | W71: 102 | X71: 2523 | Z71: 35 | AA71: 2523 | AC71: 24 | AD71: 25 | AE71: 7 | AF71: 61 | AG71: 64 | AH71: 3 | AI71: 61 | AJ71: 64 | AK71: 3 | AL71: 5 | AM71: 5 | AN71: 0 | AO71: 49 | AP71: 50 | AQ71: 17 | AR71: 0 | AS71: 0 | AT71: 0 | AU71: 40.8 | AV71: 40.8 | AW71: 102 | AX71: 6.12 | AY71: 40.8 | AZ71: 40.8 | BA71: 3.6108 | BB71: 40.8 | BC71: 6.12 | BD71: 2.563668 | BE71: 40.8 | BF71: 3.6108 | BG71: 38.236332 | BH71: 40.8 | BI71: 40.8 | BJ71: 2.563668 | BK71: 40.8 | BL71: 40.8 | BM71: 0.8098627212 | BN71: 2.563668 | BP71: 20.26332 | BQ71: 38.236332 | BS71: 21.07318272 | BT71: 40.8 | BV71: 19.79993701 | BW71: 40.8 | BY71: 4.589222087 | BZ71: 2.563668 | CB71: 107.610421 | CC71: 38.236332 | CE71: 112.1996431 | CF71: 40.8 | CH71: 112.1996431 | CI71: 40.8 | CJ71: 0
B72: A81605 | C72: PARK AVENUE SURGERY | D72: E38000162 | E72: NHS SOUTH TEES CCG | F72: E39000002 | G72: DURHAM, DARLINGTON AND TEES AREA TEAM | H72: E40000001 | I72: NORTH OF ENGLAND COMMISSIONING REGION | J72: Eng | K72: England | L72: UK | M72: =IF(LEFT(Results!$N$16,3)="All",1,IF(Results!$N$16=D72,1,IF(Results!$N$16=F72,1,IF(Results!$N$16=H72,1,IF(Results!$N$16=J72,1,0))))) -> 1 | Q72: 87 | R72: 2438 | S72: 36 | T72: 74 | U72: 2356 | W72: 76.57555178 | X72: 2438 | Z72: 0 | AA72: 2438 | AC72: 27 | AD72: 27 | AE72: 1 | AF72: 75 | AG72: 80 | AH72: 7 | AI72: 54 | AJ72: 68 | AK72: 19 | AL72: 29 | AM72: 30 | AN72: 0 | AO72: 77 | AP72: 78 | AQ72: 9 | AR72: 0 | AS72: 0 | AT72: 0 | AU72: 30.63022071 | AV72: 30.63022071 | AW72: 76.57555178 | AX72: 4.594533107 | AY72: 30.63022071 | AZ72: 30.63022071 | BA72: 2.710774533 | BB72: 30.63022071 | BC72: 4.594533107 | BD72: 1.924649919 | BE72: 30.63022071 | BF72: 2.710774533 | BG72: 28.70557079 | BH72: 30.63022071 | BI72: 30.63022071 | BJ72: 1.924649919 | BK72: 30.63022071 | BL72: 30.63022071 | BM72: 0.6079969093 | BN72: 1.924649919 | BP72: 15.21249912 | BQ72: 28.70557079 | BS72: 15.82049603 | BT72: 30.63022071 | BV72: 14.86461864 | BW72: 30.63022071 | BY72: 3.445315819 | BZ72: 1.924649919 | CB72: 80.78752317 | CC72: 28.70557079 | CE72: 84.23283898 | CF72: 30.63022071 | CH72: 84.23283898 | CI72: 30.63022071 | CJ72: 0
B73: A81608 | C73: ELM TREE MEDICAL CENTRE | D73: E38000075 | E73: NHS HARTLEPOOL AND STOCKTON-ON-TEES CCG | F73: E39000002 | G73: DURHAM, DARLINGTON AND TEES AREA TEAM | H73: E40000001 | I73: NORTH OF ENGLAND COMMISSIONING REGION | J73: Eng | K73: England | L73: UK | M73: =IF(LEFT(Results!$N$16,3)="All",1,IF(Results!$N$16=D73,1,IF(Results!$N$16=F73,1,IF(Results!$N$16=H73,1,IF(Results!$N$16=J73,1,0))))) -> 1 | Q73: 84 | R73: 2625 | S73: 29 | T73: 57 | U73: 1637 | W73: 91.4019548 | X73: 2625 | Z73: 7.401954795 | AA73: 2625 | AC73: 29 | AD73: 31 | AE73: 5 | AF73: 74 | AG73: 79 | AH73: 5 | AI73: 71 | AJ73: 79 | AK73: 5 | AL73: 45 | AM73: 45 | AN73: 0 | AO73: 69 | AP73: 70 | AQ73: 14 | AR73: 0 | AS73: 0 | AT73: 0 | AU73: 36.56078192 | AV73: 36.56078192 | AW73: 91.4019548 | AX73: 5.484117288 | AY73: 36.56078192 | AZ73: 36.56078192 | BA73: 3.2356292 | BB73: 36.56078192 | BC73: 5.484117288 | BD73: 2.297296732 | BE73: 36.56078192 | BF73: 3.2356292 | BG73: 34.26348519 | BH73: 36.56078192 | BI73: 36.56078192 | BJ73: 2.297296732 | BK73: 36.56078192 | BL73: 36.56078192 | BM73: 0.7257160376 | BN73: 2.297296732 | BP73: 18.15791234 | BQ73: 34.26348519 | BS73: 18.88362838 | BT73: 36.56078192 | BV73: 17.74267596 | BW73: 36.56078192 | BY73: 4.11239088 | BZ73: 2.297296732 | CB73: 96.42943953 | CC73: 34.26348519 | CE73: 100.5418304 | CF73: 36.56078192 | CH73: 100.5418304 | CI73: 36.56078192 | CJ73: 0
B74: A81609 | C74: A & B MEDICAL PRACTICE | D74: E38000075 | E74: NHS HARTLEPOOL AND STOCKTON-ON-TEES CCG | F74: E39000002 | G74: DURHAM, DARLINGTON AND TEES AREA TEAM | H74: E40000001 | I74: NORTH OF ENGLAND COMMISSIONING REGION | J74: Eng | K74: England | L74: UK | M74: =IF(LEFT(Results!$N$16,3)="All",1,IF(Results!$N$16=D74,1,IF(Results!$N$16=F74,1,IF(Results!$N$16=H74,1,IF(Results!$N$16=J74,1,0))))) -> 1 | Q74: 81 | R74: 1452 | S74: 20 | T74: 45 | U74: 1294 | W74: 50.49459042 | X74: 1452 | Z74: 0 | AA74: 1452 | AC74: 30 | AD74: 31 | AE74: 3 | AF74: 76 | AG74: 78 | AH74: 3 | AI74: 64 | AJ74: 68 | AK74: 13 | AL74: 37 | AM74: 39 | AN74: 0 | AO74: 80 | AP74: 80 | AQ74: 1 | AR74: 0 | AS74: 0 | AT74: 0 | AU74: 20.19783617 | AV74: 20.19783617 | AW74: 50.49459042 | AX74: 3.029675425 | AY74: 20.19783617 | AZ74: 20.19783617 | BA74: 1.787508501 | BB74: 20.19783617 | BC74: 3.029675425 | BD74: 1.269131036 | BE74: 20.19783617 | BF74: 1.787508501 | BG74: 18.92870513 | BH74: 20.19783617 | BI74: 20.19783617 | BJ74: 1.269131036 | BK74: 20.19783617 | BL74: 20.19783617 | BM74: 0.4009184941 | BN74: 1.269131036 | BP74: 10.03125533 | BQ74: 18.92870513 | BS74: 10.43217383 | BT74: 20.19783617 | BV74: 9.801859898 | BW74: 20.19783617 | BY74: 2.271871467 | BZ74: 1.269131036 | CB74: 53.27200129 | CC74: 18.92870513 | CE74: 55.54387275 | CF74: 20.19783617 | CH74: 55.54387275 | CI74: 20.19783617 | CJ74: 0
B75: A81610 | C75: THE ROSEBERRY PRACTICE | D75: E38000075 | E75: NHS HARTLEPOOL AND STOCKTON-ON-TEES CCG | F75: E39000002 | G75: DURHAM, DARLINGTON AND TEES AREA TEAM | H75: E40000001 | I75: NORTH OF ENGLAND COMMISSIONING REGION | J75: Eng | K75: England | L75: UK | M75: =IF(LEFT(Results!$N$16,3)="All",1,IF(Results!$N$16=D75,1,IF(Results!$N$16=F75,1,IF(Results!$N$16=H75,1,IF(Results!$N$16=J75,1,0))))) -> 1 | Q75: 170 | R75: 8338 | S75: 61 | T75: 287 | U75: 8015 | W75: 298.5659389 | X75: 8338 | Z75: 128.5659389 | AA75: 8338 | AC75: 64 | AD75: 73 | AE75: 2 | AF75: 141 | AG75: 153 | AH75: 17 | AI75: 143 | AJ75: 155 | AK75: 15 | AL75: 65 | AM75: 67 | AN75: 2 | AO75: 143 | AP75: 145 | AQ75: 25 | AR75: 0 | AS75: 0 | AT75: 0 | AU75: 119.4263755 | AV75: 119.4263755 | AW75: 298.5659389 | AX75: 17.91395633 | AY75: 119.4263755 | AZ75: 119.4263755 | BA75: 10.56923424 | BB75: 119.4263755 | BC75: 17.91395633 | BD75: 7.504156307 | BE75: 119.4263755 | BF75: 10.56923424 | BG75: 111.9222192 | BH75: 119.4263755 | BI75: 119.4263755 | BJ75: 7.504156307 | BK75: 119.4263755 | BL75: 119.4263755 | BM75: 2.370562978 | BN75: 7.504156307 | BP75: 59.31310941 | BQ75: 111.9222192 | BS75: 61.68367239 | BT75: 119.4263755 | BV75: 57.95673316 | BW75: 119.4263755 | BY75: 13.43319021 | BZ75: 7.504156307 | CB75: 314.9882977 | CC75: 111.9222192 | CE75: 328.4214879 | CF75: 119.4263755 | CH75: 328.4214879 | CI75: 119.4263755 | CJ75: 0
B76: A81611 | C76: PARKWAY MEDICAL CENTRE | D76: E38000162 | E76: NHS SOUTH TEES CCG | F76: E39000002 | G76: DURHAM, DARLINGTON AND TEES AREA TEAM | H76: E40000001 | I76: NORTH OF ENGLAND COMMISSIONING REGION | J76: Eng | K76: England | L76: UK | M76: =IF(LEFT(Results!$N$16,3)="All",1,IF(Results!$N$16=D76,1,IF(Results!$N$16=F76,1,IF(Results!$N$16=H76,1,IF(Results!$N$16=J76,1,0))))) -> 1 | Q76: 122 | R76: 5060 | S76: 74 | T76: 171 | U76: 4777 | W76: 181.1304166 | X76: 5060 | Z76: 59.13041658 | AA76: 5060 | AC76: 39 | AD76: 45 | AE76: 5 | AF76: 95 | AG76: 105 | AH76: 17 | AI76: 83 | AJ76: 96 | AK76: 26 | AL76: 47 | AM76: 51 | AN76: 2 | AO76: 95 | AP76: 98 | AQ76: 24 | AR76: 0 | AS76: 0 | AT76: 0 | AU76: 72.45216663 | AV76: 72.45216663 | AW76: 181.1304166 | AX76: 10.86782499 | AY76: 72.45216663 | AZ76: 72.45216663 | BA76: 6.412016747 | BB76: 72.45216663 | BC76: 10.86782499 | BD76: 4.55253189 | BE76: 72.45216663 | BF76: 6.412016747 | BG76: 67.89963474 | BH76: 72.45216663 | BI76: 72.45216663 | BJ76: 4.55253189 | BK76: 72.45216663 | BL76: 72.45216663 | BM76: 1.438144824 | BN76: 4.55253189 | BP76: 35.98336856 | BQ76: 67.89963474 | BS76: 37.42151338 | BT76: 72.45216663 | BV76: 35.16049842 | BW76: 72.45216663 | BY76: 8.149487337 | BZ76: 4.55253189 | CB76: 191.093337 | CC76: 67.89963474 | CE76: 199.2428244 | CF76: 72.45216663 | CH76: 199.2428244 | CI76: 72.45216663 | CJ76: 0
B77: A81612 | C77: THE PATEL PRACTICE | D77: E38000075 | E77: NHS HARTLEPOOL AND STOCKTON-ON-TEES CCG | F77: E39000002 | G77: DURHAM, DARLINGTON AND TEES AREA TEAM | H77: E40000001 | I77: NORTH OF ENGLAND COMMISSIONING REGION | J77: Eng | K77: England | L77: UK | M77: =IF(LEFT(Results!$N$16,3)="All",1,IF(Results!$N$16=D77,1,IF(Results!$N$16=F77,1,IF(Results!$N$16=H77,1,IF(Results!$N$16=J77,1,0))))) -> 1 | Q77: 79 | R77: 2962 | S77: 51 | T77: 80 | U77: 2749 | W77: 86.19861768 | X77: 2962 | Z77: 7.198617679 | AA77: 2962 | AC77: 24 | AD77: 27 | AE77: 7 | AF77: 57 | AG77: 62 | AH77: 17 | AI77: 57 | AJ77: 63 | AK77: 16 | AL77: 7 | AM77: 7 | AN77: 0 | AO77: 67 | AP77: 68 | AQ77: 11 | AR77: 0 | AS77: 0 | AT77: 0 | AU77: 34.47944707 | AV77: 34.47944707 | AW77: 86.19861768 | AX77: 5.171917061 | AY77: 34.47944707 | AZ77: 34.47944707 | BA77: 3.051431066 | BB77: 34.47944707 | BC77: 5.171917061 | BD77: 2.166516057 | BE77: 34.47944707 | BF77: 3.051431066 | BG77: 32.31293101 | BH77: 34.47944707 | BI77: 34.47944707 | BJ77: 2.166516057 | BK77: 34.47944707 | BL77: 34.47944707 | BM77: 0.6844024223 | BN77: 2.166516057 | BP77: 17.12421739 | BQ77: 32.31293101 | BS77: 17.80861981 | BT77: 34.47944707 | BV77: 16.73261961 | BW77: 34.47944707 | BY77: 3.878280393 | BZ77: 2.166516057 | CB77: 90.9398974 | CC77: 32.31293101 | CE77: 94.8181778 | CF77: 34.47944707 | CH77: 94.8181778 | CI77: 34.47944707 | CJ77: 0
B78: A81613 | C78: JOURNEE MEDICAL PRACTICE | D78: E38000075 | E78: NHS HARTLEPOOL AND STOCKTON-ON-TEES CCG | F78: E39000002 | G78: DURHAM, DARLINGTON AND TEES AREA TEAM | H78: E40000001 | I78: NORTH OF ENGLAND COMMISSIONING REGION | J78: Eng | K78: England | L78: UK | M78: =IF(LEFT(Results!$N$16,3)="All",1,IF(Results!$N$16=D78,1,IF(Results!$N$16=F78,1,IF(Results!$N$16=H78,1,IF(Results!$N$16=J78,1,0))))) -> 1 | Q78: 74 | R78: 3369 | S78: 52 | T78: 107 | U78: 3519 | W78: 107 | X78: 3369 | Z78: 33 | AA78: 3369 | AC78: 20 | AD78: 27 | AE78: 3 | AF78: 54 | AG78: 57 | AH78: 17 | AI78: 54 | AJ78: 57 | AK78: 17 | AL78: 30 | AM78: 32 | AN78: 0 | AO78: 59 | AP78: 59 | AQ78: 15 | AR78: 0 | AS78: 0 | AT78: 0 | AU78: 42.8 | AV78: 42.8 | AW78: 107 | AX78: 6.42 | AY78: 42.8 | AZ78: 42.8 | BA78: 3.7878 | BB78: 42.8 | BC78: 6.42 | BD78: 2.689338 | BE78: 42.8 | BF78: 3.7878 | BG78: 40.110662 | BH78: 42.8 | BI78: 42.8 | BJ78: 2.689338 | BK78: 42.8 | BL78: 42.8 | BM78: 0.8495618742 | BN78: 2.689338 | BP78: 21.25662 | BQ78: 40.110662 | BS78: 22.10618187 | BT78: 42.8 | BV78: 20.77052216 | BW78: 42.8 | BY78: 4.814183954 | BZ78: 2.689338 | CB78: 112.8854416 | CC78: 40.110662 | CE78: 117.6996256 | CF78: 42.8 | CH78: 117.6996256 | CI78: 42.8 | CJ78: 0
B79: A81618 | C79: HUNTCLIFF SURGERY | D79: E38000162 | E79: NHS SOUTH TEES CCG | F79: E39000002 | G79: DURHAM, DARLINGTON AND TEES AREA TEAM | H79: E40000001 | I79: NORTH OF ENGLAND COMMISSIONING REGION | J79: Eng | K79: England | L79: UK | M79: =IF(LEFT(Results!$N$16,3)="All",1,IF(Results!$N$16=D79,1,IF(Results!$N$16=F79,1,IF(Results!$N$16=H79,1,IF(Results!$N$16=J79,1,0))))) -> 1 | Q79: 204 | R79: 7586 | S79: 204 | T79: 226 | U79: 6962 | W79: 246.2562482 | X79: 7586 | Z79: 42.2562482 | AA79: 7586 | AC79: 75 | AD79: 77 | AE79: 19 | AF79: 138 | AG79: 142 | AH79: 62 | AI79: 130 | AJ79: 142 | AK79: 62 | AL79: 28 | AM79: 30 | AN79: 2 | AO79: 144 | AP79: 145 | AQ79: 59 | AR79: 0 | AS79: 0 | AT79: 0 | AU79: 98.50249928 | AV79: 98.50249928 | AW79: 246.2562482 | AX79: 14.77537489 | AY79: 98.50249928 | AZ79: 98.50249928 | BA79: 8.717471186 | BB79: 98.50249928 | BC79: 14.77537489 | BD79: 6.189404542 | BE79: 98.50249928 | BF79: 8.717471186 | BG79: 92.31309474 | BH79: 98.50249928 | BI79: 98.50249928 | BJ79: 6.189404542 | BK79: 98.50249928 | BL79: 98.50249928 | BM79: 1.955232895 | BN79: 6.189404542 | BP79: 48.92126627 | BQ79: 92.31309474 | BS79: 50.87649916 | BT79: 98.50249928 | BV79: 47.8025314 | BW79: 98.50249928 | BY79: 11.07965307 | BZ79: 6.189404542 | CB79: 259.8013582 | CC79: 92.31309474 | CE79: 270.8810113 | CF79: 98.50249928 | CH79: 270.8810113 | CI79: 98.50249928 | CJ79: 0
B80: A81621 | C80: THORNTREE SURGERY | D80: E38000162 | E80: NHS SOUTH TEES CCG | F80: E39000002 | G80: DURHAM, DARLINGTON AND TEES AREA TEAM | H80: E40000001 | I80: NORTH OF ENGLAND COMMISSIONING REGION | J80: Eng | K80: England | L80: UK | M80: =IF(LEFT(Results!$N$16,3)="All",1,IF(Results!$N$16=D80,1,IF(Results!$N$16=F80,1,IF(Results!$N$16=H80,1,IF(Results!$N$16=J80,1,0))))) -> 1 | Q80: 72 | R80: 2286 | S80: 65 | T80: 59 | U80: 2261 | W80: 59.65236621 | X80: 2286 | Z80: 0 | AA80: 2286 | AC80: 12 | AD80: 14 | AE80: 4 | AF80: 44 | AG80: 51 | AH80: 21 | AI80: 41 | AJ80: 45 | AK80: 27 | AL80: 33 | AM80: 34 | AN80: 0 | AO80: 56 | AP80: 59 | AQ80: 13 | AR80: 0 | AS80: 0 | AT80: 0 | AU80: 23.86094648 | AV80: 23.86094648 | AW80: 59.65236621 | AX80: 3.579141973 | AY80: 23.86094648 | AZ80: 23.86094648 | BA80: 2.111693764 | BB80: 23.86094648 | BC80: 3.579141973 | BD80: 1.499302572 | BE80: 23.86094648 | BF80: 2.111693764 | BG80: 22.36164391 | BH80: 23.86094648 | BI80: 23.86094648 | BJ80: 1.499302572 | BK80: 23.86094648 | BL80: 23.86094648 | BM80: 0.4736296826 | BN80: 1.499302572 | BP80: 11.85053907 | BQ80: 22.36164391 | BS80: 12.32416875 | BT80: 23.86094648 | BV80: 11.57954013 | BW80: 23.86094648 | BY80: 2.683901535 | BZ80: 1.499302572 | CB80: 62.93349254 | CC80: 22.36164391 | CE80: 65.61739408 | CF80: 23.86094648 | CH80: 65.61739408 | CI80: 23.86094648 | CJ80: 0
B81: A81622 | C81: GLADSTONE HOUSE SURGERY | D81: E38000075 | E81: NHS HARTLEPOOL AND STOCKTON-ON-TEES CCG | F81: E39000002 | G81: DURHAM, DARLINGTON AND TEES AREA TEAM | H81: E40000001 | I81: NORTH OF ENGLAND COMMISSIONING REGION | J81: Eng | K81: England | L81: UK | M81: =IF(LEFT(Results!$N$16,3)="All",1,IF(Results!$N$16=D81,1,IF(Results!$N$16=F81,1,IF(Results!$N$16=H81,1,IF(Results!$N$16=J81,1,0))))) -> 1 | Q81: 218 | R81: 5165 | S81: 148 | T81: 155 | U81: 5262 | W81: 155 | X81: 5165 | Z81: 0 | AA81: 5165 | AC81: 90 | AD81: 90 | AE81: 10 | AF81: 182 | AG81: 192 | AH81: 26 | AI81: 154 | AJ81: 181 | AK81: 37 | AL81: 82 | AM81: 87 | AN81: 1 | AO81: 143 | AP81: 144 | AQ81: 74 | AR81: 0 | AS81: 0 | AT81: 0 | AU81: 62 | AV81: 62 | AW81: 155 | AX81: 9.3 | AY81: 62 | AZ81: 62 | BA81: 5.487 | BB81: 62 | BC81: 9.3 | BD81: 3.89577 | BE81: 62 | BF81: 5.487 | BG81: 58.10423 | BH81: 62 | BI81: 62 | BJ81: 3.89577 | BK81: 62 | BL81: 62 | BM81: 1.230673743 | BN81: 3.89577 | BP81: 30.7923 | BQ81: 58.10423 | BS81: 32.02297374 | BT81: 62 | BV81: 30.08813957 | BW81: 62 | BY81: 6.973817877 | BZ81: 3.89577 | CB81: 163.5256397 | CC81: 58.10423 | CE81: 170.4994576 | CF81: 62 | CH81: 170.4994576 | CI81: 62 | CJ81: 0
B82: A81623 | C82: DR SYED | D82: E38000075 | E82: NHS HARTLEPOOL AND STOCKTON-ON-TEES CCG | F82: E39000002 | G82: DURHAM, DARLINGTON AND TEES AREA TEAM | H82: E40000001 | I82: NORTH OF ENGLAND COMMISSIONING REGION | J82: Eng | K82: England | L82: UK | M82: =IF(LEFT(Results!$N$16,3)="All",1,IF(Results!$N$16=D82,1,IF(Results!$N$16=F82,1,IF(Results!$N$16=H82,1,IF(Results!$N$16=J82,1,0))))) -> 1 | Q82: 86 | R82: 1634 | S82: 33 | T82: 49 | U82: 1403 | W82: 57.06771205 | X82: 1634 | Z82: 0 | AA82: 1634 | AC82: 57 | AD82: 66 | AE82: 0 | AF82: 73 | AG82: 80 | AH82: 6 | AI82: 81 | AJ82: 84 | AK82: 2 | AL82: 26 | AM82: 27 | AN82: 0 | AO82: 60 | AP82: 61 | AQ82: 25 | AR82: 0 | AS82: 0 | AT82: 0 | AU82: 22.82708482 | AV82: 22.82708482 | AW82: 57.06771205 | AX82: 3.424062723 | AY82: 22.82708482 | AZ82: 22.82708482 | BA82: 2.020197006 | BB82: 22.82708482 | BC82: 3.424062723 | BD82: 1.434339875 | BE82: 22.82708482 | BF82: 2.020197006 | BG82: 21.39274494 | BH82: 22.82708482 | BI82: 22.82708482 | BJ82: 1.434339875 | BK82: 22.82708482 | BL82: 22.82708482 | BM82: 0.4531079664 | BN82: 1.434339875 | BP82: 11.33707167 | BQ82: 21.39274494 | BS82: 11.79017964 | BT82: 22.82708482 | BV82: 11.07781474 | BW82: 22.82708482 | BY82: 2.567611809 | BZ82: 1.434339875 | CB82: 60.20667173 | CC82: 21.39274494 | CE82: 62.77428354 | CF82: 22.82708482 | CH82: 62.77428354 | CI82: 22.82708482 | CJ82: 0
B83: A81629 | C83: RIVERSIDE MEDICAL PRACTICE | D83: E38000075 | E83: NHS HARTLEPOOL AND STOCKTON-ON-TEES CCG | F83: E39000002 | G83: DURHAM, DARLINGTON AND TEES AREA TEAM | H83: E40000001 | I83: NORTH OF ENGLAND COMMISSIONING REGION | J83: Eng | K83: England | L83: UK | M83: =IF(LEFT(Results!$N$16,3)="All",1,IF(Results!$N$16=D83,1,IF(Results!$N$16=F83,1,IF(Results!$N$16=H83,1,IF(Results!$N$16=J83,1,0))))) -> 1 | Q83: 132 | R83: 3886 | S83: 114 | T83: 149 | U83: 3449 | W83: 167.8788055 | X83: 3886 | Z83: 35.87880545 | AA83: 3886 | AC83: 34 | AD83: 40 | AE83: 10 | AF83: 91 | AG83: 94 | AH83: 38 | AI83: 92 | AJ83: 98 | AK83: 34 | AL83: 33 | AM83: 34 | AN83: 3 | AO83: 102 | AP83: 103 | AQ83: 29 | AR83: 0 | AS83: 0 | AT83: 0 | AU83: 67.15152218 | AV83: 67.15152218 | AW83: 167.8788055 | AX83: 10.07272833 | AY83: 67.15152218 | AZ83: 67.15152218 | BA83: 5.942909713 | BB83: 67.15152218 | BC83: 10.07272833 | BD83: 4.219465896 | BE83: 67.15152218 | BF83: 5.942909713 | BG83: 62.93205628 | BH83: 67.15152218 | BI83: 67.15152218 | BJ83: 4.219465896 | BK83: 67.15152218 | BL83: 67.15152218 | BM83: 1.332929277 | BN83: 4.219465896 | BP83: 33.35080349 | BQ83: 62.93205628 | BS83: 34.68373277 | BT83: 67.15152218 | BV83: 32.58813503 | BW83: 67.15152218 | BY83: 7.553265901 | BZ83: 4.219465896 | CB83: 177.1128326 | CC83: 62.93205628 | CE83: 184.6660985 | CF83: 67.15152218 | CH83: 184.6660985 | CI83: 67.15152218 | CJ83: 0
B84: A81630 | C84: FULCRUM MEDICAL PRACTICE | D84: E38000162 | E84: NHS SOUTH TEES CCG | F84: E39000002 | G84: DURHAM, DARLINGTON AND TEES AREA TEAM | H84: E40000001 | I84: NORTH OF ENGLAND COMMISSIONING REGION | J84: Eng | K84: England | L84: UK | M84: =IF(LEFT(Results!$N$16,3)="All",1,IF(Results!$N$16=D84,1,IF(Results!$N$16=F84,1,IF(Results!$N$16=H84,1,IF(Results!$N$16=J84,1,0))))) -> 1 | Q84: 13 | R84: 735 | S84: 13 | T84: 0 | U84: 0 | W84: 0 | X84: 735 | Z84: 0 | AA84: 735 | AC84: 4 | AD84: 6 | AE84: 3 | AF84: 6 | AG84: 10 | AH84: 3 | AI84: 2 | AJ84: 10 | AK84: 3 | AL84: 4 | AM84: 4 | AN84: 0 | AO84: 7 | AP84: 9 | AQ84: 4 | AR84: 0 | AS84: 0 | AT84: 0 | AU84: 0 | AV84: 0 | AW84: 0 | AX84: 0 | AY84: 0 | AZ84: 0 | BA84: 0 | BB84: 0 | BC84: 0 | BD84: 0 | BE84: 0 | BF84: 0 | BG84: 0 | BH84: 0 | BI84: 0 | BJ84: 0 | BK84: 0 | BL84: 0 | BM84: 0 | BN84: 0 | BP84: 0 | BQ84: 0 | BS84: 0 | BT84: 0 | BV84: 0 | BW84: 0 | BY84: 0 | BZ84: 0 | CB84: 0 | CC84: 0 | CE84: 0 | CF84: 0 | CH84: 0 | CI84: 0 | CJ84: 0
B85: A81631 | C85: WEST VIEW MILLENNIUM SURGERY (AWAD) | D85: E38000075 | E85: NHS HARTLEPOOL AND STOCKTON-ON-TEES CCG | F85: E39000002 | G85: DURHAM, DARLINGTON AND TEES AREA TEAM | H85: E40000001 | I85: NORTH OF ENGLAND COMMISSIONING REGION | J85: Eng | K85: England | L85: UK | M85: =IF(LEFT(Results!$N$16,3)="All",1,IF(Results!$N$16=D85,1,IF(Results!$N$16=F85,1,IF(Results!$N$16=H85,1,IF(Results!$N$16=J85,1,0))))) -> 1 | Q85: 217 | R85: 6385 | S85: 84 | T85: 174 | U85: 6030 | W85: 184.2437811 | X85: 6385 | Z85: 0 | AA85: 6385 | AC85: 76 | AD85: 76 | AE85: 4 | AF85: 184 | AG85: 190 | AH85: 27 | AI85: 189 | AJ85: 194 | AK85: 23 | AL85: 87 | AM85: 87 | AN85: 0 | AO85: 185 | AP85: 187 | AQ85: 30 | AR85: 0 | AS85: 0 | AT85: 0 | AU85: 73.69751244 | AV85: 73.69751244 | AW85: 184.2437811 | AX85: 11.05462687 | AY85: 73.69751244 | AZ85: 73.69751244 | BA85: 6.522229851 | BB85: 73.69751244 | BC85: 11.05462687 | BD85: 4.630783194 | BE85: 73.69751244 | BF85: 6.522229851 | BG85: 69.06672924 | BH85: 73.69751244 | BI85: 73.69751244 | BJ85: 4.630783194 | BK85: 73.69751244 | BL85: 73.69751244 | BM85: 1.462864411 | BN85: 4.630783194 | BP85: 36.60186955 | BQ85: 69.06672924 | BS85: 38.06473396 | BT85: 73.69751244 | BV85: 35.76485549 | BW85: 73.69751244 | BY85: 8.289564996 | BZ85: 4.630783194 | CB85: 194.3779494 | CC85: 69.06672924 | CE85: 202.6675144 | CF85: 73.69751244 | CH85: 202.6675144 | CI85: 73.69751244 | CJ85: 0
B86: A81632 | C86: LAWSON STREET PRACTICE | D86: E38000075 | E86: NHS HARTLEPOOL AND STOCKTON-ON-TEES CCG | F86: E39000002 | G86: DURHAM, DARLINGTON AND TEES AREA TEAM | H86: E40000001 | I86: NORTH OF ENGLAND COMMISSIONING REGION | J86: Eng | K86: England | L86: UK | M86: =IF(LEFT(Results!$N$16,3)="All",1,IF(Results!$N$16=D86,1,IF(Results!$N$16=F86,1,IF(Results!$N$16=H86,1,IF(Results!$N$16=J86,1,0))))) -> 1 | Q86: 22 | R86: 694 | S86: 11 | T86: 0 | U86: 0 | W86: 0 | X86: 694 | Z86: 0 | AA86: 694 | AC86: 11 | AD86: 13 | AE86: 4 | AF86: 19 | AG86: 19 | AH86: 3 | AI86: 20 | AJ86: 22 | AK86: 0 | AL86: 4 | AM86: 4 | AN86: 0 | AO86: 18 | AP86: 18 | AQ86: 4 | AR86: 0 | AS86: 0 | AT86: 0 | AU86: 0 | AV86: 0 | AW86: 0 | AX86: 0 | AY86: 0 | AZ86: 0 | BA86: 0 | BB86: 0 | BC86: 0 | BD86: 0 | BE86: 0 | BF86: 0 | BG86: 0 | BH86: 0 | BI86: 0 | BJ86: 0 | BK86: 0 | BL86: 0 | BM86: 0 | BN86: 0 | BP86: 0 | BQ86: 0 | BS86: 0 | BT86: 0 | BV86: 0 | BW86: 0 | BY86: 0 | BZ86: 0 | CB86: 0 | CC86: 0 | CE86: 0 | CF86: 0 | CH86: 0 | CI86: 0 | CJ86: 0
B87: A81633 | C87: HAVEN MEDICAL PRACTICE | D87: E38000162 | E87: NHS SOUTH TEES CCG | F87: E39000002 | G87: DURHAM, DARLINGTON AND TEES AREA TEAM | H87: E40000001 | I87: NORTH OF ENGLAND COMMISSIONING REGION | J87: Eng | K87: England | L87: UK | M87: =IF(LEFT(Results!$N$16,3)="All",1,IF(Results!$N$16=D87,1,IF(Results!$N$16=F87,1,IF(Results!$N$16=H87,1,IF(Results!$N$16=J87,1,0))))) -> 1 | Q87: 2 | R87: 660 | S87: 3 | T87: 0 | U87: 0 | W87: 0 | X87: 660 | Z87: 0 | AA87: 660 | AC87: 1 | AD87: 1 | AE87: 1 | AF87: 1 | AG87: 1 | AH87: 1 | AI87: 2 | AJ87: 2 | AK87: 0 | AL87: 0 | AM87: 0 | AN87: 0 | AO87: 1 | AP87: 1 | AQ87: 1 | AR87: 0 | AS87: 0 | AT87: 0 | AU87: 0 | AV87: 0 | AW87: 0 | AX87: 0 | AY87: 0 | AZ87: 0 | BA87: 0 | BB87: 0 | BC87: 0 | BD87: 0 | BE87: 0 | BF87: 0 | BG87: 0 | BH87: 0 | BI87: 0 | BJ87: 0 | BK87: 0 | BL87: 0 | BM87: 0 | BN87: 0 | BP87: 0 | BQ87: 0 | BS87: 0 | BT87: 0 | BV87: 0 | BW87: 0 | BY87: 0 | BZ87: 0 | CB87: 0 | CC87: 0 | CE87: 0 | CF87: 0 | CH87: 0 | CI87: 0 | CJ87: 0
B88: A81634 | C88: THE ARRIVAL PRACTICE | D88: E38000075 | E88: NHS HARTLEPOOL AND STOCKTON-ON-TEES CCG | F88: E39000002 | G88: DURHAM, DARLINGTON AND TEES AREA TEAM | H88: E40000001 | I88: NORTH OF ENGLAND COMMISSIONING REGION | J88: Eng | K88: England | L88: UK | M88: =IF(LEFT(Results!$N$16,3)="All",1,IF(Results!$N$16=D88,1,IF(Results!$N$16=F88,1,IF(Results!$N$16=H88,1,IF(Results!$N$16=J88,1,0))))) -> 1 | Q88: 2 | R88: 1495 | S88: 0 | T88: 19 | U88: 1195 | W88: 23.76987448 | X88: 1495 | Z88: 21.76987448 | AA88: 1495 | AC88: 2 | AD88: 2 | AE88: 0 | AF88: 2 | AG88: 2 | AH88: 0 | AI88: 2 | AJ88: 2 | AK88: 0 | AL88: 2 | AM88: 2 | AN88: 0 | AO88: 2 | AP88: 2 | AQ88: 0 | AR88: 0 | AS88: 0 | AT88: 0 | AU88: 9.507949791 | AV88: 9.507949791 | AW88: 23.76987448 | AX88: 1.426192469 | AY88: 9.507949791 | AZ88: 9.507949791 | BA88: 0.8414535565 | BB88: 9.507949791 | BC88: 1.426192469 | BD88: 0.5974320251 | BE88: 9.507949791 | BF88: 0.8414535565 | BG88: 8.910517766 | BH88: 9.507949791 | BI88: 9.507949791 | BJ88: 0.5974320251 | BK88: 9.507949791 | BL88: 9.507949791 | BM88: 0.1887287767 | BN88: 0.5974320251 | BP88: 4.722123264 | BQ88: 8.910517766 | BS88: 4.91085204 | BT88: 9.507949791 | BV88: 4.614137425 | BW88: 9.507949791 | BY88: 1.069463068 | BZ88: 0.5974320251 | CB88: 25.07731567 | CC88: 8.910517766 | CE88: 26.14677874 | CF88: 9.507949791 | CH88: 26.14677874 | CI88: 9.507949791 | CJ88: 0
B89: A82003 | C89: DR G R MURRAY & PARTNERS | D89: E38000041 | E89: NHS CUMBRIA CCG | F89: E39000006 | G89: CUMBRIA, NORTHUMBERLAND, TYNE AND WEAR AREA TEAM | H89: E40000001 | I89: NORTH OF ENGLAND COMMISSIONING REGION | J89: Eng | K89: England | L89: UK | M89: =IF(LEFT(Results!$N$16,3)="All",1,IF(Results!$N$16=D89,1,IF(Results!$N$16=F89,1,IF(Results!$N$16=H89,1,IF(Results!$N$16=J89,1,0))))) -> 1 | Q89: 276 | R89: 10624 | S89: 51 | T89: 292 | U89: 10633 | W89: 292 | X89: 10624 | Z89: 16 | AA89: 10624 | AC89: 81 | AD89: 95 | AE89: 3 | AF89: 230 | AG89: 270 | AH89: 6 | AI89: 211 | AJ89: 253 | AK89: 23 | AL89: 115 | AM89: 119 | AN89: 0 | AO89: 224 | AP89: 257 | AQ89: 19 | AR89: 0 | AS89: 0 | AT89: 0 | AU89: 116.8 | AV89: 116.8 | AW89: 292 | AX89: 17.52 | AY89: 116.8 | AZ89: 116.8 | BA89: 10.3368 | BB89: 116.8 | BC89: 17.52 | BD89: 7.339128 | BE89: 116.8 | BF89: 10.3368 | BG89: 109.460872 | BH89: 116.8 | BI89: 116.8 | BJ89: 7.339128 | BK89: 116.8 | BL89: 116.8 | BM89: 2.318430535 | BN89: 7.339128 | BP89: 58.00872 | BQ89: 109.460872 | BS89: 60.32715054 | BT89: 116.8 | BV89: 56.68217261 | BW89: 116.8 | BY89: 13.13777303 | BZ89: 7.339128 | CB89: 308.0612051 | CC89: 109.460872 | CE89: 321.1989781 | CF89: 116.8 | CH89: 321.1989781 | CI89: 116.8 | CJ89: 0
B90: A82004 | C90: ALSTON MEDICAL PRACTICE | D90: E38000041 | E90: NHS CUMBRIA CCG | F90: E39000006 | G90: CUMBRIA, NORTHUMBERLAND, TYNE AND WEAR AREA TEAM | H90: E40000001 | I90: NORTH OF ENGLAND COMMISSIONING REGION | J90: Eng | K90: England | L90: UK | M90: =IF(LEFT(Results!$N$16,3)="All",1,IF(Results!$N$16=D90,1,IF(Results!$N$16=F90,1,IF(Results!$N$16=H90,1,IF(Results!$N$16=J90,1,0))))) -> 1 | Q90: 64 | R90: 2330 | S90: 21 | T90: 62 | U90: 2320 | W90: 62.26724138 | X90: 2330 | Z90: 0 | AA90: 2330 | AC90: 13 | AD90: 17 | AE90: 1 | AF90: 55 | AG90: 60 | AH90: 4 | AI90: 45 | AJ90: 52 | AK90: 12 | AL90: 11 | AM90: 11 | AN90: 0 | AO90: 53 | AP90: 60 | AQ90: 4 | AR90: 0 | AS90: 0 | AT90: 0 | AU90: 24.90689655 | AV90: 24.90689655 | AW90: 62.26724138 | AX90: 3.736034483 | AY90: 24.90689655 | AZ90: 24.90689655 | BA90: 2.204260345 | BB90: 24.90689655 | BC90: 3.736034483 | BD90: 1.565024845 | BE90: 24.90689655 | BF90: 2.204260345 | BG90: 23.34187171 | BH90: 24.90689655 | BI90: 24.90689655 | BJ90: 1.565024845 | BK90: 24.90689655 | BL90: 24.90689655 | BM90: 0.4943913485 | BN90: 1.565024845 | BP90: 12.37001017 | BQ90: 23.34187171 | BS90: 12.86440152 | BT90: 24.90689655 | BV90: 12.08713193 | BW90: 24.90689655 | BY90: 2.801550975 | BZ90: 1.565024845 | CB90: 65.69219664 | CC90: 23.34187171 | CE90: 68.49374761 | CF90: 24.90689655 | CH90: 68.49374761 | CI90: 24.90689655 | CJ90: 0
B91: A82005 | C91: AMBLESIDE HEALTH CENTRE | D91: E38000041 | E91: NHS CUMBRIA CCG | F91: E39000006 | G91: CUMBRIA, NORTHUMBERLAND, TYNE AND WEAR AREA TEAM | H91: E40000001 | I91: NORTH OF ENGLAND COMMISSIONING REGION | J91: Eng | K91: England | L91: UK | M91: =IF(LEFT(Results!$N$16,3)="All",1,IF(Results!$N$16=D91,1,IF(Results!$N$16=F91,1,IF(Results!$N$16=H91,1,IF(Results!$N$16=J91,1,0))))) -> 1 | Q91: 59 | R91: 5131 | S91: 29 | T91: 126 | U91: 5501 | W91: 126 | X91: 5131 | Z91: 67 | AA91: 5131 | AC91: 13 | AD91: 16 | AE91: 2 | AF91: 48 | AG91: 52 | AH91: 7 | AI91: 42 | AJ91: 50 | AK91: 9 | AL91: 21 | AM91: 21 | AN91: 1 | AO91: 48 | AP91: 49 | AQ91: 10 | AR91: 0 | AS91: 0 | AT91: 0 | AU91: 50.4 | AV91: 50.4 | AW91: 126 | AX91: 7.56 | AY91: 50.4 | AZ91: 50.4 | BA91: 4.4604 | BB91: 50.4 | BC91: 7.56 | BD91: 3.166884 | BE91: 50.4 | BF91: 4.4604 | BG91: 47.233116 | BH91: 50.4 | BI91: 50.4 | BJ91: 3.166884 | BK91: 50.4 | BL91: 50.4 | BM91: 1.000418656 | BN91: 3.166884 | BP91: 25.03116 | BQ91: 47.233116 | BS91: 26.03157866 | BT91: 50.4 | BV91: 24.45874572 | BW91: 50.4 | BY91: 5.669039048 | BZ91: 3.166884 | CB91: 132.93052 | CC91: 47.233116 | CE91: 138.5995591 | CF91: 50.4 | CH91: 138.5995591 | CI91: 50.4 | CJ91: 0
B92: A82006 | C92: APPLEBY MEDICAL PRACTICE | D92: E38000041 | E92: NHS CUMBRIA CCG | F92: E39000006 | G92: CUMBRIA, NORTHUMBERLAND, TYNE AND WEAR AREA TEAM | H92: E40000001 | I92: NORTH OF ENGLAND COMMISSIONING REGION | J92: Eng | K92: England | L92: UK | M92: =IF(LEFT(Results!$N$16,3)="All",1,IF(Results!$N$16=D92,1,IF(Results!$N$16=F92,1,IF(Results!$N$16=H92,1,IF(Results!$N$16=J92,1,0))))) -> 1 | Q92: 123 | R92: 4842 | S92: 90 | T92: 125 | U92: 5052 | W92: 125 | X92: 4842 | Z92: 2 | AA92: 4842 | AC92: 40 | AD92: 47 | AE92: 9 | AF92: 98 | AG92: 105 | AH92: 18 | AI92: 75 | AJ92: 83 | AK92: 40 | AL92: 31 | AM92: 32 | AN92: 5 | AO92: 105 | AP92: 105 | AQ92: 18 | AR92: 0 | AS92: 0 | AT92: 0 | AU92: 50 | AV92: 50 | AW92: 125 | AX92: 7.5 | AY92: 50 | AZ92: 50 | BA92: 4.425 | BB92: 50 | BC92: 7.5 | BD92: 3.14175 | BE92: 50 | BF92: 4.425 | BG92: 46.85825 | BH92: 50 | BI92: 50 | BJ92: 3.14175 | BK92: 50 | BL92: 50 | BM92: 0.992478825 | BN92: 3.14175 | BP92: 24.8325 | BQ92: 46.85825 | BS92: 25.82497882 | BT92: 50 | BV92: 24.26462869 | BW92: 50 | BY92: 5.624046675 | BZ92: 3.14175 | CB92: 131.8755159 | CC92: 46.85825 | CE92: 137.4995626 | CF92: 50 | CH92: 137.4995626 | CI92: 50 | CJ92: 0
B93: A82007 | C93: DR I J WEAR & PARTNERS | D93: E38000041 | E93: NHS CUMBRIA CCG | F93: E39000006 | G93: CUMBRIA, NORTHUMBERLAND, TYNE AND WEAR AREA TEAM | H93: E40000001 | I93: NORTH OF ENGLAND COMMISSIONING REGION | J93: Eng | K93: England | L93: UK | M93: =IF(LEFT(Results!$N$16,3)="All",1,IF(Results!$N$16=D93,1,IF(Results!$N$16=F93,1,IF(Results!$N$16=H93,1,IF(Results!$N$16=J93,1,0))))) -> 1 | Q93: 193 | R93: 9391 | S93: 155 | T93: 337 | U93: 9906 | W93: 337 | X93: 9391 | Z93: 144 | AA93: 9391 | AC93: 51 | AD93: 57 | AE93: 15 | AF93: 148 | AG93: 157 | AH93: 36 | AI93: 112 | AJ93: 122 | AK93: 71 | AL93: 114 | AM93: 117 | AN93: 1 | AO93: 160 | AP93: 161 | AQ93: 32 | AR93: 0 | AS93: 0 | AT93: 0 | AU93: 134.8 | AV93: 134.8 | AW93: 337 | AX93: 20.22 | AY93: 134.8 | AZ93: 134.8 | BA93: 11.9298 | BB93: 134.8 | BC93: 20.22 | BD93: 8.470158 | BE93: 134.8 | BF93: 11.9298 | BG93: 126.329842 | BH93: 134.8 | BI93: 134.8 | BJ93: 8.470158 | BK93: 134.8 | BL93: 134.8 | BM93: 2.675722912 | BN93: 8.470158 | BP93: 66.94842 | BQ93: 126.329842 | BS93: 69.62414291 | BT93: 134.8 | BV93: 65.41743894 | BW93: 134.8 | BY93: 15.16242984 | BZ93: 8.470158 | CB93: 355.5363908 | CC93: 126.329842 | CE93: 370.6988207 | CF93: 134.8 | CH93: 370.6988207 | CI93: 134.8 | CJ93: 0
B94: A82008 | C94: DR J C YOUNG & PARTNERS | D94: E38000041 | E94: NHS CUMBRIA CCG | F94: E39000006 | G94: CUMBRIA, NORTHUMBERLAND, TYNE AND WEAR AREA TEAM | H94: E40000001 | I94: NORTH OF ENGLAND COMMISSIONING REGION | J94: Eng | K94: England | L94: UK | M94: =IF(LEFT(Results!$N$16,3)="All",1,IF(Results!$N$16=D94,1,IF(Results!$N$16=F94,1,IF(Results!$N$16=H94,1,IF(Results!$N$16=J94,1,0))))) -> 1 | Q94: 238 | R94: 11044 | S94: 149 | T94: 385 | U94: 11519 | W94: 385 | X94: 11044 | Z94: 147 | AA94: 11044 | AC94: 48 | AD94: 49 | AE94: 11 | AF94: 201 | AG94: 216 | AH94: 22 | AI94: 134 | AJ94: 165 | AK94: 73 | AL94: 123 | AM94: 129 | AN94: 2 | AO94: 197 | AP94: 197 | AQ94: 41 | AR94: 0 | AS94: 0 | AT94: 0 | AU94: 154 | AV94: 154 | AW94: 385 | AX94: 23.1 | AY94: 154 | AZ94: 154 | BA94: 13.629 | BB94: 154 | BC94: 23.1 | BD94: 9.67659 | BE94: 154 | BF94: 13.629 | BG94: 144.32341 | BH94: 154 | BI94: 154 | BJ94: 9.67659 | BK94: 154 | BL94: 154 | BM94: 3.056834781 | BN94: 9.67659 | BP94: 76.4841 | BQ94: 144.32341 | BS94: 79.54093478 | BT94: 154 | BV94: 74.73505636 | BW94: 154 | BY94: 17.32206376 | BZ94: 9.67659 | CB94: 406.1765889 | CC94: 144.32341 | CE94: 423.4986527 | CF94: 154 | CH94: 423.4986527 | CI94: 154 | CJ94: 0
B95: A82009 | C95: BRIDGEGATE MEDICAL CENTRE | D95: E38000041 | E95: NHS CUMBRIA CCG | F95: E39000006 | G95: CUMBRIA, NORTHUMBERLAND, TYNE AND WEAR AREA TEAM | H95: E40000001 | I95: NORTH OF ENGLAND COMMISSIONING REGION | J95: Eng | K95: England | L95: UK | M95: =IF(LEFT(Results!$N$16,3)="All",1,IF(Results!$N$16=D95,1,IF(Results!$N$16=F95,1,IF(Results!$N$16=H95,1,IF(Results!$N$16=J95,1,0))))) -> 1 | Q95: 263 | R95: 8775 | S95: 118 | T95: 313 | U95: 8670 | W95: 316.7906574 | X95: 8775 | Z95: 53.79065744 | AA95: 8775 | AC95: 79 | AD95: 81 | AE95: 2 | AF95: 202 | AG95: 221 | AH95: 42 | AI95: 203 | AJ95: 222 | AK95: 41 | AL95: 113 | AM95: 113 | AN95: 0 | AO95: 229 | AP95: 230 | AQ95: 33 | AR95: 0 | AS95: 0 | AT95: 0 | AU95: 126.716263 | AV95: 126.716263 | AW95: 316.7906574 | AX95: 19.00743945 | AY95: 126.716263 | AZ95: 126.716263 | BA95: 11.21438927 | BB95: 126.716263 | BC95: 19.00743945 | BD95: 7.962216384 | BE95: 126.716263 | BF95: 11.21438927 | BG95: 118.7540466 | BH95: 126.716263 | BI95: 126.716263 | BJ95: 7.962216384 | BK95: 126.716263 | BL95: 126.716263 | BM95: 2.515264156 | BN95: 7.962216384 | BP95: 62.93363201 | BQ95: 118.7540466 | BS95: 65.44889616 | BT95: 126.716263 | BV95: 61.4944614 | BW95: 126.716263 | BY95: 14.25316355 | BZ95: 7.962216384 | CB95: 334.215451 | CC95: 118.7540466 | CE95: 348.4686146 | CF95: 126.716263 | CH95: 348.4686146 | CI95: 126.716263 | CJ95: 0
B96: A82010 | C96: DR H J HEARN & PARTNERS | D96: E38000041 | E96: NHS CUMBRIA CCG | F96: E39000006 | G96: CUMBRIA, NORTHUMBERLAND, TYNE AND WEAR AREA TEAM | H96: E40000001 | I96: NORTH OF ENGLAND COMMISSIONING REGION | J96: Eng | K96: England | L96: UK | M96: =IF(LEFT(Results!$N$16,3)="All",1,IF(Results!$N$16=D96,1,IF(Results!$N$16=F96,1,IF(Results!$N$16=H96,1,IF(Results!$N$16=J96,1,0))))) -> 1 | Q96: 143 | R96: 6505 | S96: 49 | T96: 203 | U96: 6852 | W96: 203 | X96: 6505 | Z96: 60 | AA96: 6505 | AC96: 44 | AD96: 52 | AE96: 4 | AF96: 122 | AG96: 135 | AH96: 8 | AI96: 109 | AJ96: 127 | AK96: 16 | AL96: 47 | AM96: 50 | AN96: 0 | AO96: 109 | AP96: 122 | AQ96: 21 | AR96: 0 | AS96: 0 | AT96: 0 | AU96: 81.2 | AV96: 81.2 | AW96: 203 | AX96: 12.18 | AY96: 81.2 | AZ96: 81.2 | BA96: 7.1862 | BB96: 81.2 | BC96: 12.18 | BD96: 5.102202 | BE96: 81.2 | BF96: 7.1862 | BG96: 76.097798 | BH96: 81.2 | BI96: 81.2 | BJ96: 5.102202 | BK96: 81.2 | BL96: 81.2 | BM96: 1.611785612 | BN96: 5.102202 | BP96: 40.32798 | BQ96: 76.097798 | BS96: 41.93976561 | BT96: 81.2 | BV96: 39.40575699 | BW96: 81.2 | BY96: 9.1334518 | BZ96: 5.102202 | CB96: 214.1658378 | CC96: 76.097798 | CE96: 223.2992896 | CF96: 81.2 | CH96: 223.2992896 | CI96: 81.2 | CJ96: 0
B97: A82012 | C97: BRAMPTON MEDICAL PRACTICE | D97: E38000041 | E97: NHS CUMBRIA CCG | F97: E39000006 | G97: CUMBRIA, NORTHUMBERLAND, TYNE AND WEAR AREA TEAM | H97: E40000001 | I97: NORTH OF ENGLAND COMMISSIONING REGION | J97: Eng | K97: England | L97: UK | M97: =IF(LEFT(Results!$N$16,3)="All",1,IF(Results!$N$16=D97,1,IF(Results!$N$16=F97,1,IF(Results!$N$16=H97,1,IF(Results!$N$16=J97,1,0))))) -> 1 | Q97: 385 | R97: 15223 | S97: 171 | T97: 454 | U97: 15066 | W97: 458.73105 | X97: 15223 | Z97: 73.73105005 | AA97: 15223 | AC97: 157 | AD97: 164 | AE97: 6 | AF97: 300 | AG97: 325 | AH97: 60 | AI97: 284 | AJ97: 324 | AK97: 61 | AL97: 186 | AM97: 188 | AN97: 1 | AO97: 342 | AP97: 342 | AQ97: 43 | AR97: 0 | AS97: 0 | AT97: 0 | AU97: 183.49242 | AV97: 183.49242 | AW97: 458.73105 | AX97: 27.523863 | AY97: 183.49242 | AZ97: 183.49242 | BA97: 16.23907917 | BB97: 183.49242 | BC97: 27.523863 | BD97: 11.52974621 | BE97: 183.49242 | BF97: 16.23907917 | BG97: 171.9626738 | BH97: 183.49242 | BI97: 183.49242 | BJ97: 11.52974621 | BK97: 183.49242 | BL97: 183.49242 | BM97: 3.642246828 | BN97: 11.52974621 | BP97: 91.1315104 | BQ97: 171.9626738 | BS97: 94.77375723 | BT97: 183.49242 | BV97: 89.04750877 | BW97: 183.49242 | BY97: 20.63939869 | BZ97: 11.52974621 | CB97: 483.963151 | CC97: 171.9626738 | CE97: 504.6025497 | CF97: 183.49242 | CH97: 504.6025497 | CI97: 183.49242 | CJ97: 0
B98: A82013 | C98: UPPER EDEN MEDICAL PRACTICE | D98: E38000041 | E98: NHS CUMBRIA CCG | F98: E39000006 | G98: CUMBRIA, NORTHUMBERLAND, TYNE AND WEAR AREA TEAM | H98: E40000001 | I98: NORTH OF ENGLAND COMMISSIONING REGION | J98: Eng | K98: England | L98: UK | M98: =IF(LEFT(Results!$N$16,3)="All",1,IF(Results!$N$16=D98,1,IF(Results!$N$16=F98,1,IF(Results!$N$16=H98,1,IF(Results!$N$16=J98,1,0))))) -> 1 | Q98: 108 | R98: 6687 | S98: 44 | T98: 190 | U98: 6686 | W98: 190.0284176 | X98: 6687 | Z98: 82.02841759 | AA98: 6687 | AC98: 35 | AD98: 37 | AE98: 1 | AF98: 84 | AG98: 95 | AH98: 13 | AI98: 82 | AJ98: 94 | AK98: 14 | AL98: 35 | AM98: 37 | AN98: 1 | AO98: 90 | AP98: 93 | AQ98: 15 | AR98: 0 | AS98: 0 | AT98: 0 | AU98: 76.01136704 | AV98: 76.01136704 | AW98: 190.0284176 | AX98: 11.40170506 | AY98: 76.01136704 | AZ98: 76.01136704 | BA98: 6.727005983 | BB98: 76.01136704 | BC98: 11.40170506 | BD98: 4.776174248 | BE98: 76.01136704 | BF98: 6.727005983 | BG98: 71.23519279 | BH98: 76.01136704 | BI98: 76.01136704 | BJ98: 4.776174248 | BK98: 76.01136704 | BL98: 76.01136704 | BM98: 1.508793445 | BN98: 4.776174248 | BP98: 37.75104544 | BQ98: 71.23519279 | BS98: 39.25983888 | BT98: 76.01136704 | BV98: 36.88775194 | BW98: 76.01136704 | BY98: 8.549829521 | BZ98: 4.776174248 | CB98: 200.4807648 | CC98: 71.23519279 | CE98: 209.0305943 | CF98: 76.01136704 | CH98: 209.0305943 | CI98: 76.01136704 | CJ98: 0
B99: A82014 | C99: CALDBECK SURGERY | D99: E38000041 | E99: NHS CUMBRIA CCG | F99: E39000006 | G99: CUMBRIA, NORTHUMBERLAND, TYNE AND WEAR AREA TEAM | H99: E40000001 | I99: NORTH OF ENGLAND COMMISSIONING REGION | J99: Eng | K99: England | L99: UK | M99: =IF(LEFT(Results!$N$16,3)="All",1,IF(Results!$N$16=D99,1,IF(Results!$N$16=F99,1,IF(Results!$N$16=H99,1,IF(Results!$N$16=J99,1,0))))) -> 1 | Q99: 82 | R99: 4305 | S99: 41 | T99: 117 | U99: 4420 | W99: 117 | X99: 4305 | Z99: 35 | AA99: 4305 | AC99: 17 | AD99: 17 | AE99: 7 | AF99: 67 | AG99: 69 | AH99: 13 | AI99: 64 | AJ99: 66 | AK99: 16 | AL99: 44 | AM99: 44 | AN99: 0 | AO99: 77 | AP99: 77 | AQ99: 5 | AR99: 0 | AS99: 0 | AT99: 0 | AU99: 46.8 | AV99: 46.8 | AW99: 117 | AX99: 7.02 | AY99: 46.8 | AZ99: 46.8 | BA99: 4.1418 | BB99: 46.8 | BC99: 7.02 | BD99: 2.940678 | BE99: 46.8 | BF99: 4.1418 | BG99: 43.859322 | BH99: 46.8 | BI99: 46.8 | BJ99: 2.940678 | BK99: 46.8 | BL99: 46.8 | BM99: 0.9289601802 | BN99: 2.940678 | BP99: 23.24322 | BQ99: 43.859322 | BS99: 24.17218018 | BT99: 46.8 | BV99: 22.71169245 | BW99: 46.8 | BY99: 5.264107688 | BZ99: 2.940678 | CB99: 123.4354829 | CC99: 43.859322 | CE99: 128.6995906 | CF99: 46.8 | CH99: 128.6995906 | CI99: 46.8 | CJ99: 0
B100: A82015 | C100: WARWICK ROAD SURGERY | D100: E38000041 | E100: NHS CUMBRIA CCG | F100: E39000006 | G100: CUMBRIA, NORTHUMBERLAND, TYNE AND WEAR AREA TEAM | H100: E40000001 | I100: NORTH OF ENGLAND COMMISSIONING REGION | J100: Eng | K100: England | L100: UK | M100: =IF(LEFT(Results!$N$16,3)="All",1,IF(Results!$N$16=D100,1,IF(Results!$N$16=F100,1,IF(Results!$N$16=H100,1,IF(Results!$N$16=J100,1,0))))) -> 1 | Q100: 170 | R100: 5901 | S100: 147 | T100: 172 | U100: 5926 | W100: 172 | X100: 5901 | Z100: 2 | AA100: 5901 | AC100: 59 | AD100: 59 | AE100: 1 | AF100: 109 | AG100: 119 | AH100: 51 | AI100: 106 | AJ100: 116 | AK100: 54 | AL100: 40 | AM100: 40 | AN100: 1 | AO100: 129 | AP100: 130 | AQ100: 40 | AR100: 0 | AS100: 0 | AT100: 0 | AU100: 68.8 | AV100: 68.8 | AW100: 172 | AX100: 10.32 | AY100: 68.8 | AZ100: 68.8 | BA100: 6.0888 | BB100: 68.8 | BC100: 10.32 | BD100: 4.323048 | BE100: 68.8 | BF100: 6.0888 | BG100: 64.476952 | BH100: 68.8 | BI100: 68.8 | BJ100: 4.323048 | BK100: 68.8 | BL100: 68.8 | BM100: 1.365650863 | BN100: 4.323048 | BP100: 34.16952 | BQ100: 64.476952 | BS100: 35.53517086 | BT100: 68.8 | BV100: 33.38812907 | BW100: 68.8 | BY100: 7.738688225 | BZ100: 4.323048 | CB100: 181.4607099 | CC100: 64.476952 | CE100: 189.1993981 | CF100: 68.8 | CH100: 189.1993981 | CI100: 68.8 | CJ100: 0
B101: A82016 | C101: ST PAUL'S MEDICAL PRACTICE | D101: E38000041 | E101: NHS CUMBRIA CCG | F101: E39000006 | G101: CUMBRIA, NORTHUMBERLAND, TYNE AND WEAR AREA TEAM | H101: E40000001 | I101: NORTH OF ENGLAND COMMISSIONING REGION | J101: Eng | K101: England | L101: UK | M101: =IF(LEFT(Results!$N$16,3)="All",1,IF(Results!$N$16=D101,1,IF(Results!$N$16=F101,1,IF(Results!$N$16=H101,1,IF(Results!$N$16=J101,1,0))))) -> 1 | Q101: 251 | R101: 14376 | S101: 183 | T101: 446 | U101: 14814 | W101: 446 | X101: 14376 | Z101: 195 | AA101: 14376 | AC101: 99 | AD101: 102 | AE101: 20 | AF101: 203 | AG101: 216 | AH101: 35 | AI101: 148 | AJ101: 162 | AK101: 89 | AL101: 104 | AM101: 109 | AN101: 1 | AO101: 213 | AP101: 213 | AQ101: 38 | AR101: 0 | AS101: 0 | AT101: 0 | AU101: 178.4 | AV101: 178.4 | AW101: 446 | AX101: 26.76 | AY101: 178.4 | AZ101: 178.4 | BA101: 15.7884 | BB101: 178.4 | BC101: 26.76 | BD101: 11.209764 | BE101: 178.4 | BF101: 15.7884 | BG101: 167.190236 | BH101: 178.4 | BI101: 178.4 | BJ101: 11.209764 | BK101: 178.4 | BL101: 178.4 | BM101: 3.541164448 | BN101: 11.209764 | BP101: 88.60236 | BQ101: 167.190236 | BS101: 92.14352445 | BT101: 178.4 | BV101: 86.57619516 | BW101: 178.4 | BY101: 20.06659854 | BZ101: 11.209764 | CB101: 470.5318407 | CC101: 167.190236 | CE101: 490.5984392 | CF101: 178.4 | CH101: 490.5984392 | CI101: 178.4 | CJ101: 0
B102: A82017 | C102: BRUNSWICK HOUSE MEDICAL GROUP | D102: E38000041 | E102: NHS CUMBRIA CCG | F102: E39000006 | G102: CUMBRIA, NORTHUMBERLAND, TYNE AND WEAR AREA TEAM | H102: E40000001 | I102: NORTH OF ENGLAND COMMISSIONING REGION | J102: Eng | K102: England | L102: UK | M102: =IF(LEFT(Results!$N$16,3)="All",1,IF(Results!$N$16=D102,1,IF(Results!$N$16=F102,1,IF(Results!$N$16=H102,1,IF(Results!$N$16=J102,1,0))))) -> 1 | Q102: 470 | R102: 14636 | S102: 291 | T102: 353 | U102: 13362 | W102: 386.6567879 | X102: 14636 | Z102: 0 | AA102: 14636 | AC102: 94 | AD102: 96 | AE102: 9 | AF102: 335 | AG102: 370 | AH102: 100 | AI102: 309 | AJ102: 361 | AK102: 109 | AL102: 209 | AM102: 214 | AN102: 5 | AO102: 399 | AP102: 402 | AQ102: 68 | AR102: 0 | AS102: 0 | AT102: 0 | AU102: 154.6627152 | AV102: 154.6627152 | AW102: 386.6567879 | AX102: 23.19940727 | AY102: 154.6627152 | AZ102: 154.6627152 | BA102: 13.68765029 | BB102: 154.6627152 | BC102: 23.19940727 | BD102: 9.718231707 | BE102: 154.6627152 | BF102: 13.68765029 | BG102: 144.9444835 | BH102: 154.6627152 | BI102: 154.6627152 | BJ102: 9.718231707 | BK102: 154.6627152 | BL102: 154.6627152 | BM102: 3.069989396 | BN102: 9.718231707 | BP102: 76.81323749 | BQ102: 144.9444835 | BS102: 79.88322688 | BT102: 154.6627152 | BV102: 75.0566671 | BW102: 154.6627152 | BY102: 17.39660658 | BZ102: 9.718231707 | CB102: 407.924507 | CC102: 144.9444835 | CE102: 425.3211136 | CF102: 154.6627152 | CH102: 425.3211136 | CI102: 154.6627152 | CJ102: 0
B103: A82018 | C103: SPENCER STREET SURGERY | D103: E38000041 | E103: NHS CUMBRIA CCG | F103: E39000006 | G103: CUMBRIA, NORTHUMBERLAND, TYNE AND WEAR AREA TEAM | H103: E40000001 | I103: NORTH OF ENGLAND COMMISSIONING REGION | J103: Eng | K103: England | L103: UK | M103: =IF(LEFT(Results!$N$16,3)="All",1,IF(Results!$N$16=D103,1,IF(Results!$N$16=F103,1,IF(Results!$N$16=H103,1,IF(Results!$N$16=J103,1,0))))) -> 1 | Q103: 229 | R103: 11766 | S103: 139 | T103: 327 | U103: 11436 | W103: 336.4359916 | X103: 11766 | Z103: 107.4359916 | AA103: 11766 | AC103: 78 | AD103: 88 | AE103: 8 | AF103: 165 | AG103: 187 | AH103: 42 | AI103: 154 | AJ103: 177 | AK103: 52 | AL103: 62 | AM103: 65 | AN103: 0 | AO103: 191 | AP103: 192 | AQ103: 37 | AR103: 0 | AS103: 0 | AT103: 0 | AU103: 134.5743966 | AV103: 134.5743966 | AW103: 336.4359916 | AX103: 20.1861595 | AY103: 134.5743966 | AZ103: 134.5743966 | BA103: 11.9098341 | BB103: 134.5743966 | BC103: 20.1861595 | BD103: 8.455982213 | BE103: 134.5743966 | BF103: 11.9098341 | BG103: 126.1184144 | BH103: 134.5743966 | BI103: 134.5743966 | BJ103: 8.455982213 | BK103: 134.5743966 | BL103: 134.5743966 | BM103: 2.671244781 | BN103: 8.455982213 | BP103: 66.83637409 | BQ103: 126.1184144 | BS103: 69.50761887 | BT103: 134.5743966 | BV103: 65.30795531 | BW103: 134.5743966 | BY103: 15.13705376 | BZ103: 8.455982213 | CB103: 354.9413596 | CC103: 126.1184144 | CE103: 370.0784134 | CF103: 134.5743966 | CH103: 370.0784134 | CI103: 134.5743966 | CJ103: 0
B104: A82019 | C104: FUSEHILL MEDICAL PRACTICE | D104: E38000041 | E104: NHS CUMBRIA CCG | F104: E39000006 | G104: CUMBRIA, NORTHUMBERLAND, TYNE AND WEAR AREA TEAM | H104: E40000001 | I104: NORTH OF ENGLAND COMMISSIONING REGION | J104: Eng | K104: England | L104: UK | M104: =IF(LEFT(Results!$N$16,3)="All",1,IF(Results!$N$16=D104,1,IF(Results!$N$16=F104,1,IF(Results!$N$16=H104,1,IF(Results!$N$16=J104,1,0))))) -> 1 | Q104: 162 | R104: 8339 | S104: 138 | T104: 239 | U104: 8260 | W104: 241.2858354 | X104: 8339 | Z104: 79.28583535 | AA104: 8339 | AC104: 39 | AD104: 42 | AE104: 7 | AF104: 118 | AG104: 134 | AH104: 28 | AI104: 85 | AJ104: 106 | AK104: 56 | AL104: 62 | AM104: 65 | AN104: 3 | AO104: 117 | AP104: 118 | AQ104: 44 | AR104: 0 | AS104: 0 | AT104: 0 | AU104: 96.51433414 | AV104: 96.51433414 | AW104: 241.2858354 | AX104: 14.47715012 | AY104: 96.51433414 | AZ104: 96.51433414 | BA104: 8.541518571 | BB104: 96.51433414 | BC104: 14.47715012 | BD104: 6.064478186 | BE104: 96.51433414 | BF104: 8.541518571 | BG104: 90.44985595 | BH104: 96.51433414 | BI104: 96.51433414 | BJ104: 6.064478186 | BK104: 96.51433414 | BL104: 96.51433414 | BM104: 1.915768659 | BN104: 6.064478186 | BP104: 47.93384405 | BQ104: 90.44985595 | BS104: 49.84961271 | BT104: 96.51433414 | BV104: 46.83768962 | BW104: 96.51433414 | BY104: 10.8560224 | BZ104: 6.064478186 | CB104: 254.5575521 | CC104: 90.44985595 | CE104: 265.4135745 | CF104: 96.51433414 | CH104: 265.4135745 | CI104: 96.51433414 | CJ104: 0
B105: A82020 | C105: EDEN MEDICAL GROUP | D105: E38000041 | E105: NHS CUMBRIA CCG | F105: E39000006 | G105: CUMBRIA, NORTHUMBERLAND, TYNE AND WEAR AREA TEAM | H105: E40000001 | I105: NORTH OF ENGLAND COMMISSIONING REGION | J105: Eng | K105: England | L105: UK | M105: =IF(LEFT(Results!$N$16,3)="All",1,IF(Results!$N$16=D105,1,IF(Results!$N$16=F105,1,IF(Results!$N$16=H105,1,IF(Results!$N$16=J105,1,0))))) -> 1 | Q105: 340 | R105: 14702 | S105: 217 | T105: 411 | U105: 14161 | W105: 426.7016454 | X105: 14702 | Z105: 86.70164536 | AA105: 14702 | AC105: 119 | AD105: 132 | AE105: 9 | AF105: 256 | AG105: 284 | AH105: 56 | AI105: 190 | AJ105: 223 | AK105: 117 | AL105: 200 | AM105: 201 | AN105: 1 | AO105: 273 | AP105: 306 | AQ105: 34 | AR105: 0 | AS105: 0 | AT105: 0 | AU105: 170.6806581 | AV105: 170.6806581 | AW105: 426.7016454 | AX105: 25.60209872 | AY105: 170.6806581 | AZ105: 170.6806581 | BA105: 15.10523825 | BB105: 170.6806581 | BC105: 25.60209872 | BD105: 10.72471915 | BE105: 170.6806581 | BF105: 15.10523825 | BG105: 159.955939 | BH105: 170.6806581 | BI105: 170.6806581 | BJ105: 10.72471915 | BK105: 170.6806581 | BL105: 170.6806581 | BM105: 3.387938781 | BN105: 10.72471915 | BP105: 84.76854887 | BQ105: 159.955939 | BS105: 88.15648765 | BT105: 170.6806581 | BV105: 82.83005588 | BW105: 170.6806581 | BY105: 19.19831976 | BZ105: 10.72471915 | CB105: 450.1719969 | CC105: 159.955939 | CE105: 469.3703167 | CF105: 170.6806581 | CH105: 469.3703167 | CI105: 170.6806581 | CJ105: 0
B106: A82021 | C106: CASTLEGATE SURGERY | D106: E38000041 | E106: NHS CUMBRIA CCG | F106: E39000006 | G106: CUMBRIA, NORTHUMBERLAND, TYNE AND WEAR AREA TEAM | H106: E40000001 | I106: NORTH OF ENGLAND COMMISSIONING REGION | J106: Eng | K106: England | L106: UK | M106: =IF(LEFT(Results!$N$16,3)="All",1,IF(Results!$N$16=D106,1,IF(Results!$N$16=F106,1,IF(Results!$N$16=H106,1,IF(Results!$N$16=J106,1,0))))) -> 1 | Q106: 159 | R106: 10467 | S106: 71 | T106: 188 | U106: 7592 | W106: 259.1933614 | X106: 10467 | Z106: 100.1933614 | AA106: 10467 | AC106: 54 | AD106: 61 | AE106: 8 | AF106: 139 | AG106: 141 | AH106: 18 | AI106: 134 | AJ106: 136 | AK106: 23 | AL106: 39 | AM106: 40 | AN106: 1 | AO106: 138 | AP106: 138 | AQ106: 21 | AR106: 0 | AS106: 0 | AT106: 0 | AU106: 103.6773446 | AV106: 103.6773446 | AW106: 259.1933614 | AX106: 15.55160169 | AY106: 103.6773446 | AZ106: 103.6773446 | BA106: 9.175444995 | BB106: 103.6773446 | BC106: 15.55160169 | BD106: 6.514565946 | BE106: 103.6773446 | BF106: 9.175444995 | BG106: 97.16277863 | BH106: 103.6773446 | BI106: 103.6773446 | BJ106: 6.514565946 | BK106: 103.6773446 | BL106: 103.6773446 | BM106: 2.057951382 | BN106: 6.514565946 | BP106: 51.49135318 | BQ106: 97.16277863 | BS106: 53.54930456 | BT106: 103.6773446 | BV106: 50.31384539 | BW106: 103.6773446 | BY106: 11.6617245 | BZ106: 6.514565946 | CB106: 273.450066 | CC106: 97.16277863 | CE106: 285.1117905 | CF106: 103.6773446 | CH106: 285.1117905 | CI106: 103.6773446 | CJ106: 0
B107: A82022 | C107: DALSTON MEDICAL GROUP | D107: E38000041 | E107: NHS CUMBRIA CCG | F107: E39000006 | G107: CUMBRIA, NORTHUMBERLAND, TYNE AND WEAR AREA TEAM | H107: E40000001 | I107: NORTH OF ENGLAND COMMISSIONING REGION | J107: Eng | K107: England | L107: UK | M107: =IF(LEFT(Results!$N$16,3)="All",1,IF(Results!$N$16=D107,1,IF(Results!$N$16=F107,1,IF(Results!$N$16=H107,1,IF(Results!$N$16=J107,1,0))))) -> 1 | Q107: 89 | R107: 5039 | S107: 21 | T107: 154 | U107: 5413 | W107: 154 | X107: 5039 | Z107: 65 | AA107: 5039 | AC107: 19 | AD107: 23 | AE107: 3 | AF107: 67 | AG107: 85 | AH107: 4 | AI107: 68 | AJ107: 85 | AK107: 4 | AL107: 23 | AM107: 25 | AN107: 0 | AO107: 79 | AP107: 79 | AQ107: 10 | AR107: 0 | AS107: 0 | AT107: 0 | AU107: 61.6 | AV107: 61.6 | AW107: 154 | AX107: 9.24 | AY107: 61.6 | AZ107: 61.6 | BA107: 5.4516 | BB107: 61.6 | BC107: 9.24 | BD107: 3.870636 | BE107: 61.6 | BF107: 5.4516 | BG107: 57.729364 | BH107: 61.6 | BI107: 61.6 | BJ107: 3.870636 | BK107: 61.6 | BL107: 61.6 | BM107: 1.222733912 | BN107: 3.870636 | BP107: 30.59364 | BQ107: 57.729364 | BS107: 31.81637391 | BT107: 61.6 | BV107: 29.89402254 | BW107: 61.6 | BY107: 6.928825504 | BZ107: 3.870636 | CB107: 162.4706356 | CC107: 57.729364 | CE107: 169.3994611 | CF107: 61.6 | CH107: 169.3994611 | CI107: 61.6 | CJ107: 0
B108: A82023 | C108: DISTINGTON SURGERY | D108: E38000041 | E108: NHS CUMBRIA CCG | F108: E39000006 | G108: CUMBRIA, NORTHUMBERLAND, TYNE AND WEAR AREA TEAM | H108: E40000001 | I108: NORTH OF ENGLAND COMMISSIONING REGION | J108: Eng | K108: England | L108: UK | M108: =IF(LEFT(Results!$N$16,3)="All",1,IF(Results!$N$16=D108,1,IF(Results!$N$16=F108,1,IF(Results!$N$16=H108,1,IF(Results!$N$16=J108,1,0))))) -> 1 | Q108: 137 | R108: 3807 | S108: 36 | T108: 125 | U108: 3794 | W108: 125.4283079 | X108: 3807 | Z108: 0 | AA108: 3807 | AC108: 63 | AD108: 63 | AE108: 3 | AF108: 122 | AG108: 132 | AH108: 5 | AI108: 118 | AJ108: 130 | AK108: 7 | AL108: 24 | AM108: 26 | AN108: 0 | AO108: 116 | AP108: 116 | AQ108: 21 | AR108: 0 | AS108: 0 | AT108: 0 | AU108: 50.17132314 | AV108: 50.17132314 | AW108: 125.4283079 | AX108: 7.525698471 | AY108: 50.17132314 | AZ108: 50.17132314 | BA108: 4.440162098 | BB108: 50.17132314 | BC108: 7.525698471 | BD108: 3.15251509 | BE108: 50.17132314 | BF108: 4.440162098 | BG108: 47.01880805 | BH108: 50.17132314 | BI108: 50.17132314 | BJ108: 3.15251509 | BK108: 50.17132314 | BL108: 50.17132314 | BM108: 0.9958795168 | BN108: 3.15251509 | BP108: 24.91758764 | BQ108: 47.01880805 | BS108: 25.91346716 | BT108: 50.17132314 | BV108: 24.34777054 | BW108: 50.17132314 | BY108: 5.643317262 | BZ108: 3.15251509 | CB108: 132.3273824 | CC108: 47.01880805 | CE108: 137.9706997 | CF108: 50.17132314 | CH108: 137.9706997 | CI108: 50.17132314 | CJ108: 0
B109: A82024 | C109: SEASCALE HEALTH CENTRE | D109: E38000041 | E109: NHS CUMBRIA CCG | F109: E39000006 | G109: CUMBRIA, NORTHUMBERLAND, TYNE AND WEAR AREA TEAM | H109: E40000001 | I109: NORTH OF ENGLAND COMMISSIONING REGION | J109: Eng | K109: England | L109: UK | M109: =IF(LEFT(Results!$N$16,3)="All",1,IF(Results!$N$16=D109,1,IF(Results!$N$16=F109,1,IF(Results!$N$16=H109,1,IF(Results!$N$16=J109,1,0))))) -> 1 | Q109: 130 | R109: 5632 | S109: 60 | T109: 194 | U109: 5699 | W109: 194 | X109: 5632 | Z109: 64 | AA109: 5632 | AC109: 43 | AD109: 43 | AE109: 5 | AF109: 101 | AG109: 112 | AH109: 18 | AI109: 90 | AJ109: 105 | AK109: 25 | AL109: 52 | AM109: 53 | AN109: 0 | AO109: 117 | AP109: 118 | AQ109: 12 | AR109: 0 | AS109: 0 | AT109: 0 | AU109: 77.6 | AV109: 77.6 | AW109: 194 | AX109: 11.64 | AY109: 77.6 | AZ109: 77.6 | BA109: 6.8676 | BB109: 77.6 | BC109: 11.64 | BD109: 4.875996 | BE109: 77.6 | BF109: 6.8676 | BG109: 72.724004 | BH109: 77.6 | BI109: 77.6 | BJ109: 4.875996 | BK109: 77.6 | BL109: 77.6 | BM109: 1.540327136 | BN109: 4.875996 | BP109: 38.54004 | BQ109: 72.724004 | BS109: 40.08036714 | BT109: 77.6 | BV109: 37.65870372 | BW109: 77.6 | BY109: 8.72852044 | BZ109: 4.875996 | CB109: 204.6708007 | CC109: 72.724004 | CE109: 213.3993211 | CF109: 77.6 | CH109: 213.3993211 | CI109: 77.6 | CJ109: 0
B110: A82025 | C110: CAPTAIN FRENCH LANE SURGERY | D110: E38000041 | E110: NHS CUMBRIA CCG | F110: E39000006 | G110: CUMBRIA, NORTHUMBERLAND, TYNE AND WEAR AREA TEAM | H110: E40000001 | I110: NORTH OF ENGLAND COMMISSIONING REGION | J110: Eng | K110: England | L110: UK | M110: =IF(LEFT(Results!$N$16,3)="All",1,IF(Results!$N$16=D110,1,IF(Results!$N$16=F110,1,IF(Results!$N$16=H110,1,IF(Results!$N$16=J110,1,0))))) -> 1 | Q110: 145 | R110: 9317 | S110: 60 | T110: 215 | U110: 8908 | W110: 224.8714639 | X110: 9317 | Z110: 79.87146385 | AA110: 9317 | AC110: 77 | AD110: 81 | AE110: 3 | AF110: 81 | AG110: 127 | AH110: 18 | AI110: 76 | AJ110: 123 | AK110: 22 | AL110: 19 | AM110: 21 | AN110: 3 | AO110: 127 | AP110: 131 | AQ110: 14 | AR110: 0 | AS110: 0 | AT110: 0 | AU110: 89.94858554 | AV110: 89.94858554 | AW110: 224.8714639 | AX110: 13.49228783 | AY110: 89.94858554 | AZ110: 89.94858554 | BA110: 7.96044982 | BB110: 89.94858554 | BC110: 13.49228783 | BD110: 5.651919372 | BE110: 89.94858554 | BF110: 7.96044982 | BG110: 84.29666617 | BH110: 89.94858554 | BI110: 89.94858554 | BJ110: 5.651919372 | BK110: 89.94858554 | BL110: 89.94858554 | BM110: 1.78544133 | BN110: 5.651919372 | BP110: 44.67296501 | BQ110: 84.29666617 | BS110: 46.45840634 | BT110: 89.94858554 | BV110: 43.65138058 | BW110: 89.94858554 | BY110: 10.11750087 | BZ110: 5.651919372 | CB110: 237.2403224 | CC110: 84.29666617 | CE110: 247.3578233 | CF110: 89.94858554 | CH110: 247.3578233 | CI110: 89.94858554 | CJ110: 0
B111: A82026 | C111: THE JAMES COCHRANE PRACTICE | D111: E38000041 | E111: NHS CUMBRIA CCG | F111: E39000006 | G111: CUMBRIA, NORTHUMBERLAND, TYNE AND WEAR AREA TEAM | H111: E40000001 | I111: NORTH OF ENGLAND COMMISSIONING REGION | J111: Eng | K111: England | L111: UK | M111: =IF(LEFT(Results!$N$16,3)="All",1,IF(Results!$N$16=D111,1,IF(Results!$N$16=F111,1,IF(Results!$N$16=H111,1,IF(Results!$N$16=J111,1,0))))) -> 1 | Q111: 331 | R111: 16179 | S111: 107 | T111: 352 | U111: 15771 | W111: 361.1063344 | X111: 16179 | Z111: 30.10633441 | AA111: 16179 | AC111: 105 | AD111: 113 | AE111: 11 | AF111: 285 | AG111: 306 | AH111: 25 | AI111: 269 | AJ111: 303 | AK111: 28 | AL111: 72 | AM111: 74 | AN111: 1 | AO111: 286 | AP111: 289 | AQ111: 42 | AR111: 0 | AS111: 0 | AT111: 0 | AU111: 144.4425338 | AV111: 144.4425338 | AW111: 361.1063344 | AX111: 21.66638006 | AY111: 144.4425338 | AZ111: 144.4425338 | BA111: 12.78316424 | BB111: 144.4425338 | BC111: 21.66638006 | BD111: 9.076046609 | BE111: 144.4425338 | BF111: 12.78316424 | BG111: 135.3664872 | BH111: 144.4425338 | BI111: 144.4425338 | BJ111: 9.076046609 | BK111: 144.4425338 | BL111: 144.4425338 | BM111: 2.867123124 | BN111: 9.076046609 | BP111: 71.73738439 | BQ111: 135.3664872 | BS111: 74.60450752 | BT111: 144.4425338 | BV111: 70.09688897 | BW111: 144.4425338 | BY111: 16.24703103 | BZ111: 9.076046609 | CB111: 380.9686731 | CC111: 135.3664872 | CE111: 397.2157042 | CF111: 144.4425338 | CH111: 397.2157042 | CI111: 144.4425338 | CJ111: 0
B112: A82027 | C112: DR J PAYNE & PARTNERS | D112: E38000041 | E112: NHS CUMBRIA CCG | F112: E39000006 | G112: CUMBRIA, NORTHUMBERLAND, TYNE AND WEAR AREA TEAM | H112: E40000001 | I112: NORTH OF ENGLAND COMMISSIONING REGION | J112: Eng | K112: England | L112: UK | M112: =IF(LEFT(Results!$N$16,3)="All",1,IF(Results!$N$16=D112,1,IF(Results!$N$16=F112,1,IF(Results!$N$16=H112,1,IF(Results!$N$16=J112,1,0))))) -> 1 | Q112: 194 | R112: 10968 | S112: 37 | T112: 275 | U112: 11706 | W112: 275 | X112: 10968 | Z112: 81 | AA112: 10968 | AC112: 29 | AD112: 40 | AE112: 2 | AF112: 156 | AG112: 187 | AH112: 7 | AI112: 125 | AJ112: 187 | AK112: 7 | AL112: 65 | AM112: 73 | AN112: 0 | AO112: 164 | AP112: 173 | AQ112: 21 | AR112: 0 | AS112: 0 | AT112: 0 | AU112: 110 | AV112: 110 | AW112: 275 | AX112: 16.5 | AY112: 110 | AZ112: 110 | BA112: 9.735 | BB112: 110 | BC112: 16.5 | BD112: 6.91185 | BE112: 110 | BF112: 9.735 | BG112: 103.08815 | BH112: 110 | BI112: 110 | BJ112: 6.91185 | BK112: 110 | BL112: 110 | BM112: 2.183453415 | BN112: 6.91185 | BP112: 54.6315 | BQ112: 103.08815 | BS112: 56.81495341 | BT112: 110 | BV112: 53.38218311 | BW112: 110 | BY112: 12.37290268 | BZ112: 6.91185 | CB112: 290.126135 | CC112: 103.08815 | CE112: 302.4990376 | CF112: 110 | CH112: 302.4990376 | CI112: 110 | CJ112: 0
B113: A82028 | C113: CASTLEHEAD MEDICAL CENTRE | D113: E38000041 | E113: NHS CUMBRIA CCG | F113: E39000006 | G113: CUMBRIA, NORTHUMBERLAND, TYNE AND WEAR AREA TEAM | H113: E40000001 | I113: NORTH OF ENGLAND COMMISSIONING REGION | J113: Eng | K113: England | L113: UK | M113: =IF(LEFT(Results!$N$16,3)="All",1,IF(Results!$N$16=D113,1,IF(Results!$N$16=F113,1,IF(Results!$N$16=H113,1,IF(Results!$N$16=J113,1,0))))) -> 1 | Q113: 84 | R113: 6484 | S113: 27 | T113: 165 | U113: 6106 | W113: 175.2145431 | X113: 6484 | Z113: 91.21454307 | AA113: 6484 | AC113: 23 | AD113: 26 | AE113: 3 | AF113: 72 | AG113: 77 | AH113: 7 | AI113: 65 | AJ113: 76 | AK113: 8 | AL113: 40 | AM113: 40 | AN113: 0 | AO113: 74 | AP113: 75 | AQ113: 9 | AR113: 0 | AS113: 0 | AT113: 0 | AU113: 70.08581723 | AV113: 70.08581723 | AW113: 175.2145431 | AX113: 10.51287258 | AY113: 70.08581723 | AZ113: 70.08581723 | BA113: 6.202594825 | BB113: 70.08581723 | BC113: 10.51287258 | BD113: 4.403842326 | BE113: 70.08581723 | BF113: 6.202594825 | BG113: 65.6819749 | BH113: 70.08581723 | BI113: 70.08581723 | BJ113: 4.403842326 | BK113: 70.08581723 | BL113: 70.08581723 | BM113: 1.391173791 | BN113: 4.403842326 | BP113: 34.80812113 | BQ113: 65.6819749 | BS113: 36.19929492 | BT113: 70.08581723 | BV113: 34.01212663 | BW113: 70.08581723 | BY113: 7.883318147 | BZ113: 4.403842326 | CB113: 184.8520661 | CC113: 65.6819749 | CE113: 192.7353842 | CF113: 70.08581723 | CH113: 192.7353842 | CI113: 70.08581723 | CJ113: 0
B114: A82029 | C114: THE CROFT SURGERY | D114: E38000041 | E114: NHS CUMBRIA CCG | F114: E39000006 | G114: CUMBRIA, NORTHUMBERLAND, TYNE AND WEAR AREA TEAM | H114: E40000001 | I114: NORTH OF ENGLAND COMMISSIONING REGION | J114: Eng | K114: England | L114: UK | M114: =IF(LEFT(Results!$N$16,3)="All",1,IF(Results!$N$16=D114,1,IF(Results!$N$16=F114,1,IF(Results!$N$16=H114,1,IF(Results!$N$16=J114,1,0))))) -> 1 | Q114: 75 | R114: 3372 | S114: 29 | T114: 96 | U114: 3314 | W114: 97.68014484 | X114: 3372 | Z114: 22.68014484 | AA114: 3372 | AC114: 20 | AD114: 27 | AE114: 3 | AF114: 69 | AG114: 73 | AH114: 2 | AI114: 42 | AJ114: 68 | AK114: 7 | AL114: 23 | AM114: 25 | AN114: 0 | AO114: 53 | AP114: 58 | AQ114: 17 | AR114: 0 | AS114: 0 | AT114: 0 | AU114: 39.07205794 | AV114: 39.07205794 | AW114: 97.68014484 | AX114: 5.86080869 | AY114: 39.07205794 | AZ114: 39.07205794 | BA114: 3.457877127 | BB114: 39.07205794 | BC114: 5.86080869 | BD114: 2.45509276 | BE114: 39.07205794 | BF114: 3.457877127 | BG114: 36.61696518 | BH114: 39.07205794 | BI114: 39.07205794 | BJ114: 2.45509276 | BK114: 39.07205794 | BL114: 39.07205794 | BM114: 0.775563803 | BN114: 2.45509276 | BP114: 19.40513757 | BQ114: 36.61696518 | BS114: 20.18070138 | BT114: 39.07205794 | BV114: 18.96137956 | BW114: 39.07205794 | BY114: 4.39486155 | BZ114: 2.45509276 | CB114: 103.0529559 | CC114: 36.61696518 | CE114: 107.4478175 | CF114: 39.07205794 | CH114: 107.4478175 | CI114: 39.07205794 | CJ114: 0
B115: A82030 | C115: DR P J I HALL & PARTNERS | D115: E38000041 | E115: NHS CUMBRIA CCG | F115: E39000006 | G115: CUMBRIA, NORTHUMBERLAND, TYNE AND WEAR AREA TEAM | H115: E40000001 | I115: NORTH OF ENGLAND COMMISSIONING REGION | J115: Eng | K115: England | L115: UK | M115: =IF(LEFT(Results!$N$16,3)="All",1,IF(Results!$N$16=D115,1,IF(Results!$N$16=F115,1,IF(Results!$N$16=H115,1,IF(Results!$N$16=J115,1,0))))) -> 1 | Q115: 68 | R115: 5980 | S115: 21 | T115: 155 | U115: 6124 | W115: 155 | X115: 5980 | Z115: 87 | AA115: 5980 | AC115: 20 | AD115: 24 | AE115: 2 | AF115: 59 | AG115: 62 | AH115: 6 | AI115: 55 | AJ115: 62 | AK115: 6 | AL115: 12 | AM115: 14 | AN115: 0 | AO115: 58 | AP115: 61 | AQ115: 7 | AR115: 0 | AS115: 0 | AT115: 0 | AU115: 62 | AV115: 62 | AW115: 155 | AX115: 9.3 | AY115: 62 | AZ115: 62 | BA115: 5.487 | BB115: 62 | BC115: 9.3 | BD115: 3.89577 | BE115: 62 | BF115: 5.487 | BG115: 58.10423 | BH115: 62 | BI115: 62 | BJ115: 3.89577 | BK115: 62 | BL115: 62 | BM115: 1.230673743 | BN115: 3.89577 | BP115: 30.7923 | BQ115: 58.10423 | BS115: 32.02297374 | BT115: 62 | BV115: 30.08813957 | BW115: 62 | BY115: 6.973817877 | BZ115: 3.89577 | CB115: 163.5256397 | CC115: 58.10423 | CE115: 170.4994576 | CF115: 62 | CH115: 170.4994576 | CI115: 62 | CJ115: 0
B116: A82031 | C116: SHAP MEDICAL PRACTICE | D116: E38000041 | E116: NHS CUMBRIA CCG | F116: E39000006 | G116: CUMBRIA, NORTHUMBERLAND, TYNE AND WEAR AREA TEAM | H116: E40000001 | I116: NORTH OF ENGLAND COMMISSIONING REGION | J116: Eng | K116: England | L116: UK | M116: =IF(LEFT(Results!$N$16,3)="All",1,IF(Results!$N$16=D116,1,IF(Results!$N$16=F116,1,IF(Results!$N$16=H116,1,IF(Results!$N$16=J116,1,0))))) -> 1 | Q116: 64 | R116: 2847 | S116: 26 | T116: 68 | U116: 2809 | W116: 68.91990032 | X116: 2847 | Z116: 4.91990032 | AA116: 2847 | AC116: 17 | AD116: 19 | AE116: 3 | AF116: 57 | AG116: 60 | AH116: 4 | AI116: 54 | AJ116: 60 | AK116: 4 | AL116: 49 | AM116: 53 | AN116: 0 | AO116: 49 | AP116: 49 | AQ116: 15 | AR116: 0 | AS116: 0 | AT116: 0 | AU116: 27.56796013 | AV116: 27.56796013 | AW116: 68.91990032 | AX116: 4.135194019 | AY116: 27.56796013 | AZ116: 27.56796013 | BA116: 2.439764471 | BB116: 27.56796013 | BC116: 4.135194019 | BD116: 1.732232775 | BE116: 27.56796013 | BF116: 2.439764471 | BG116: 25.83572735 | BH116: 27.56796013 | BI116: 27.56796013 | BJ116: 1.732232775 | BK116: 27.56796013 | BL116: 27.56796013 | BM116: 0.5472123335 | BN116: 1.732232775 | BP116: 13.6916274 | BQ116: 25.83572735 | BS116: 14.23883973 | BT116: 27.56796013 | BV116: 13.37852632 | BW116: 27.56796013 | BY116: 3.10086989 | BZ116: 1.732232775 | CB116: 72.71077928 | CC116: 25.83572735 | CE116: 75.81164917 | CF116: 27.56796013 | CH116: 75.81164917 | CI116: 27.56796013 | CJ116: 0
B117: A82032 | C117: MARYPORT HEALTH SERVICES | D117: E38000041 | E117: NHS CUMBRIA CCG | F117: E39000006 | G117: CUMBRIA, NORTHUMBERLAND, TYNE AND WEAR AREA TEAM | H117: E40000001 | I117: NORTH OF ENGLAND COMMISSIONING REGION | J117: Eng | K117: England | L117: UK | M117: =IF(LEFT(Results!$N$16,3)="All",1,IF(Results!$N$16=D117,1,IF(Results!$N$16=F117,1,IF(Results!$N$16=H117,1,IF(Results!$N$16=J117,1,0))))) -> 1 | Q117: 481 | R117: 13663 | S117: 269 | T117: 419 | U117: 13421 | W117: 426.5551747 | X117: 13663 | Z117: 0 | AA117: 13663 | AC117: 180 | AD117: 183 | AE117: 2 | AF117: 395 | AG117: 419 | AH117: 62 | AI117: 313 | AJ117: 369 | AK117: 112 | AL117: 230 | AM117: 236 | AN117: 1 | AO117: 383 | AP117: 389 | AQ117: 92 | AR117: 0 | AS117: 0 | AT117: 0 | AU117: 170.6220699 | AV117: 170.6220699 | AW117: 426.5551747 | AX117: 25.59331048 | AY117: 170.6220699 | AZ117: 170.6220699 | BA117: 15.10005319 | BB117: 170.6220699 | BC117: 25.59331048 | BD117: 10.72103776 | BE117: 170.6220699 | BF117: 15.10005319 | BG117: 159.9010321 | BH117: 170.6220699 | BI117: 170.6220699 | BJ117: 10.72103776 | BK117: 170.6220699 | BL117: 170.6220699 | BM117: 3.386775829 | BN117: 10.72103776 | BP117: 84.73945101 | BQ117: 159.9010321 | BS117: 88.12622684 | BT117: 170.6220699 | BV117: 82.80162344 | BW117: 170.6220699 | BY117: 19.1917297 | BZ117: 10.72103776 | CB117: 450.0174698 | CC117: 159.9010321 | CE117: 469.2091995 | CF117: 170.6220699 | CH117: 469.2091995 | CI117: 170.6220699 | CJ117: 0
B118: A82033 | C118: WATERLOO HOUSE SURGERY | D118: E38000041 | E118: NHS CUMBRIA CCG | F118: E39000006 | G118: CUMBRIA, NORTHUMBERLAND, TYNE AND WEAR AREA TEAM | H118: E40000001 | I118: NORTH OF ENGLAND COMMISSIONING REGION | J118: Eng | K118: England | L118: UK | M118: =IF(LEFT(Results!$N$16,3)="All",1,IF(Results!$N$16=D118,1,IF(Results!$N$16=F118,1,IF(Results!$N$16=H118,1,IF(Results!$N$16=J118,1,0))))) -> 1 | Q118: 159 | R118: 8417 | S118: 67 | T118: 288 | U118: 8529 | W118: 288 | X118: 8417 | Z118: 129 | AA118: 8417 | AC118: 36 | AD118: 47 | AE118: 4 | AF118: 89 | AG118: 152 | AH118: 7 | AI118: 70 | AJ118: 142 | AK118: 17 | AL118: 83 | AM118: 88 | AN118: 1 | AO118: 120 | AP118: 121 | AQ118: 38 | AR118: 0 | AS118: 0 | AT118: 0 | AU118: 115.2 | AV118: 115.2 | AW118: 288 | AX118: 17.28 | AY118: 115.2 | AZ118: 115.2 | BA118: 10.1952 | BB118: 115.2 | BC118: 17.28 | BD118: 7.238592 | BE118: 115.2 | BF118: 10.1952 | BG118: 107.961408 | BH118: 115.2 | BI118: 115.2 | BJ118: 7.238592 | BK118: 115.2 | BL118: 115.2 | BM118: 2.286671213 | BN118: 7.238592 | BP118: 57.21408 | BQ118: 107.961408 | BS118: 59.50075121 | BT118: 115.2 | BV118: 55.9057045 | BW118: 115.2 | BY118: 12.95780354 | BZ118: 7.238592 | CB118: 303.8411886 | CC118: 107.961408 | CE118: 316.7989921 | CF118: 115.2 | CH118: 316.7989921 | CI118: 115.2 | CJ118: 0
B119: A82034 | C119: STONELEIGH SURGERY | D119: E38000041 | E119: NHS CUMBRIA CCG | F119: E39000006 | G119: CUMBRIA, NORTHUMBERLAND, TYNE AND WEAR AREA TEAM | H119: E40000001 | I119: NORTH OF ENGLAND COMMISSIONING REGION | J119: Eng | K119: England | L119: UK | M119: =IF(LEFT(Results!$N$16,3)="All",1,IF(Results!$N$16=D119,1,IF(Results!$N$16=F119,1,IF(Results!$N$16=H119,1,IF(Results!$N$16=J119,1,0))))) -> 1 | Q119: 128 | R119: 6611 | S119: 74 | T119: 182 | U119: 6734 | W119: 182 | X119: 6611 | Z119: 54 | AA119: 6611 | AC119: 27 | AD119: 28 | AE119: 6 | AF119: 91 | AG119: 99 | AH119: 29 | AI119: 89 | AJ119: 97 | AK119: 31 | AL119: 50 | AM119: 52 | AN119: 2 | AO119: 119 | AP119: 122 | AQ119: 6 | AR119: 0 | AS119: 0 | AT119: 0 | AU119: 72.8 | AV119: 72.8 | AW119: 182 | AX119: 10.92 | AY119: 72.8 | AZ119: 72.8 | BA119: 6.4428 | BB119: 72.8 | BC119: 10.92 | BD119: 4.574388 | BE119: 72.8 | BF119: 6.4428 | BG119: 68.225612 | BH119: 72.8 | BI119: 72.8 | BJ119: 4.574388 | BK119: 72.8 | BL119: 72.8 | BM119: 1.445049169 | BN119: 4.574388 | BP119: 36.15612 | BQ119: 68.225612 | BS119: 37.60116917 | BT119: 72.8 | BV119: 35.32929937 | BW119: 72.8 | BY119: 8.188611959 | BZ119: 4.574388 | CB119: 192.0107511 | CC119: 68.225612 | CE119: 200.1993631 | CF119: 72.8 | CH119: 200.1993631 | CI119: 72.8 | CJ119: 0
B120: A82035 | C120: BIRBECK MEDICAL GROUP | D120: E38000041 | E120: NHS CUMBRIA CCG | F120: E39000006 | G120: CUMBRIA, NORTHUMBERLAND, TYNE AND WEAR AREA TEAM | H120: E40000001 | I120: NORTH OF ENGLAND COMMISSIONING REGION | J120: Eng | K120: England | L120: UK | M120: =IF(LEFT(Results!$N$16,3)="All",1,IF(Results!$N$16=D120,1,IF(Results!$N$16=F120,1,IF(Results!$N$16=H120,1,IF(Results!$N$16=J120,1,0))))) -> 1 | Q120: 233 | R120: 15890 | S120: 207 | T120: 422 | U120: 16004 | W120: 422 | X120: 15890 | Z120: 189 | AA120: 15890 | AC120: 63 | AD120: 65 | AE120: 6 | AF120: 141 | AG120: 146 | AH120: 87 | AI120: 140 | AJ120: 147 | AK120: 86 | AL120: 47 | AM120: 47 | AN120: 0 | AO120: 204 | AP120: 205 | AQ120: 28 | AR120: 0 | AS120: 0 | AT120: 0 | AU120: 168.8 | AV120: 168.8 | AW120: 422 | AX120: 25.32 | AY120: 168.8 | AZ120: 168.8 | BA120: 14.9388 | BB120: 168.8 | BC120: 25.32 | BD120: 10.606548 | BE120: 168.8 | BF120: 14.9388 | BG120: 158.193452 | BH120: 168.8 | BI120: 168.8 | BJ120: 10.606548 | BK120: 168.8 | BL120: 168.8 | BM120: 3.350608513 | BN120: 10.606548 | BP120: 83.83452 | BQ120: 158.193452 | BS120: 87.18512851 | BT120: 168.8 | BV120: 81.91738645 | BW120: 168.8 | BY120: 18.98678157 | BZ120: 10.606548 | CB120: 445.2117416 | CC120: 158.193452 | CE120: 464.1985232 | CF120: 168.8 | CH120: 464.1985232 | CI120: 168.8 | CJ120: 0
B121: A82036 | C121: THE LAKES MEDICAL PRACTICE | D121: E38000041 | E121: NHS CUMBRIA CCG | F121: E39000006 | G121: CUMBRIA, NORTHUMBERLAND, TYNE AND WEAR AREA TEAM | H121: E40000001 | I121: NORTH OF ENGLAND COMMISSIONING REGION | J121: Eng | K121: England | L121: UK | M121: =IF(LEFT(Results!$N$16,3)="All",1,IF(Results!$N$16=D121,1,IF(Results!$N$16=F121,1,IF(Results!$N$16=H121,1,IF(Results!$N$16=J121,1,0))))) -> 1 | Q121: 242 | R121: 9108 | S121: 159 | T121: 265 | U121: 9349 | W121: 265 | X121: 9108 | Z121: 23 | AA121: 9108 | AC121: 68 | AD121: 72 | AE121: 5 | AF121: 177 | AG121: 190 | AH121: 52 | AI121: 153 | AJ121: 171 | AK121: 71 | AL121: 59 | AM121: 61 | AN121: 1 | AO121: 211 | AP121: 212 | AQ121: 30 | AR121: 0 | AS121: 0 | AT121: 0 | AU121: 106 | AV121: 106 | AW121: 265 | AX121: 15.9 | AY121: 106 | AZ121: 106 | BA121: 9.381 | BB121: 106 | BC121: 15.9 | BD121: 6.66051 | BE121: 106 | BF121: 9.381 | BG121: 99.33949 | BH121: 106 | BI121: 106 | BJ121: 6.66051 | BK121: 106 | BL121: 106 | BM121: 2.104055109 | BN121: 6.66051 | BP121: 52.6449 | BQ121: 99.33949 | BS121: 54.74895511 | BT121: 106 | BV121: 51.44101282 | BW121: 106 | BY121: 11.92297895 | BZ121: 6.66051 | CB121: 279.5760937 | CC121: 99.33949 | CE121: 291.4990726 | CF121: 106 | CH121: 291.4990726 | CI121: 106 | CJ121: 0
B122: A82037 | C122: SILLOTH GROUP MEDICAL PRACTICE | D122: E38000041 | E122: NHS CUMBRIA CCG | F122: E39000006 | G122: CUMBRIA, NORTHUMBERLAND, TYNE AND WEAR AREA TEAM | H122: E40000001 | I122: NORTH OF ENGLAND COMMISSIONING REGION | J122: Eng | K122: England | L122: UK | M122: =IF(LEFT(Results!$N$16,3)="All",1,IF(Results!$N$16=D122,1,IF(Results!$N$16=F122,1,IF(Results!$N$16=H122,1,IF(Results!$N$16=J122,1,0))))) -> 1 | Q122: 128 | R122: 4237 | S122: 75 | T122: 158 | U122: 4198 | W122: 159.4678418 | X122: 4237 | Z122: 31.46784183 | AA122: 4237 | AC122: 56 | AD122: 59 | AE122: 1 | AF122: 99 | AG122: 101 | AH122: 27 | AI122: 100 | AJ122: 104 | AK122: 24 | AL122: 46 | AM122: 46 | AN122: 0 | AO122: 103 | AP122: 105 | AQ122: 23 | AR122: 0 | AS122: 0 | AT122: 0 | AU122: 63.78713673 | AV122: 63.78713673 | AW122: 159.4678418 | AX122: 9.56807051 | AY122: 63.78713673 | AZ122: 63.78713673 | BA122: 5.645161601 | BB122: 63.78713673 | BC122: 9.56807051 | BD122: 4.008064737 | BE122: 63.78713673 | BF122: 5.645161601 | BG122: 59.779072 | BH122: 63.78713673 | BI122: 63.78713673 | BJ122: 4.008064737 | BK122: 63.78713673 | BL122: 63.78713673 | BM122: 1.26614765 | BN122: 4.008064737 | BP122: 31.67988146 | BQ122: 59.779072 | BS122: 32.94602911 | BT122: 63.78713673 | BV122: 30.95542376 | BW122: 63.78713673 | BY122: 7.174836685 | BZ122: 4.008064737 | CB122: 168.2392313 | CC122: 59.779072 | CE122: 175.414068 | CF122: 63.78713673 | CH122: 175.414068 | CI122: 63.78713673 | CJ122: 0
B123: A82038 | C123: TEMPLE SOWERBY MEDICAL PRACTICE | D123: E38000041 | E123: NHS CUMBRIA CCG | F123: E39000006 | G123: CUMBRIA, NORTHUMBERLAND, TYNE AND WEAR AREA TEAM | H123: E40000001 | I123: NORTH OF ENGLAND COMMISSIONING REGION | J123: Eng | K123: England | L123: UK | M123: =IF(LEFT(Results!$N$16,3)="All",1,IF(Results!$N$16=D123,1,IF(Results!$N$16=F123,1,IF(Results!$N$16=H123,1,IF(Results!$N$16=J123,1,0))))) -> 1 | Q123: 61 | R123: 4470 | S123: 34 | T123: 106 | U123: 4234 | W123: 111.9083609 | X123: 4470 | Z123: 50.90836089 | AA123: 4470 | AC123: 12 | AD123: 15 | AE123: 3 | AF123: 48 | AG123: 52 | AH123: 9 | AI123: 44 | AJ123: 49 | AK123: 12 | AL123: 21 | AM123: 22 | AN123: 2 | AO123: 53 | AP123: 53 | AQ123: 8 | AR123: 0 | AS123: 0 | AT123: 0 | AU123: 44.76334436 | AV123: 44.76334436 | AW123: 111.9083609 | AX123: 6.714501653 | AY123: 44.76334436 | AZ123: 44.76334436 | BA123: 3.961555975 | BB123: 44.76334436 | BC123: 6.714501653 | BD123: 2.812704743 | BE123: 44.76334436 | BF123: 3.961555975 | BG123: 41.95063961 | BH123: 44.76334436 | BI123: 44.76334436 | BJ123: 2.812704743 | BK123: 44.76334436 | BL123: 44.76334436 | BM123: 0.8885334282 | BN123: 2.812704743 | BP123: 22.23171497 | BQ123: 41.95063961 | BS123: 23.1202484 | BT123: 44.76334436 | BV123: 21.72331859 | BW123: 44.76334436 | BY123: 5.03502276 | BZ123: 2.812704743 | CB123: 118.0637826 | CC123: 41.95063961 | CE123: 123.0988054 | CF123: 44.76334436 | CH123: 123.0988054 | CI123: 44.76334436 | CJ123: 0
B124: A82039 | C124: DR J J O'DONOVAN & PARTNERS | D124: E38000041 | E124: NHS CUMBRIA CCG | F124: E39000006 | G124: CUMBRIA, NORTHUMBERLAND, TYNE AND WEAR AREA TEAM | H124: E40000001 | I124: NORTH OF ENGLAND COMMISSIONING REGION | J124: Eng | K124: England | L124: UK | M124: =IF(LEFT(Results!$N$16,3)="All",1,IF(Results!$N$16=D124,1,IF(Results!$N$16=F124,1,IF(Results!$N$16=H124,1,IF(Results!$N$16=J124,1,0))))) -> 1 | Q124: 162 | R124: 7597 | S124: 55 | T124: 222 | U124: 7578 | W124: 222.5566112 | X124: 7597 | Z124: 60.55661124 | AA124: 7597 | AC124: 42 | AD124: 44 | AE124: 2 | AF124: 132 | AG124: 145 | AH124: 17 | AI124: 122 | AJ124: 139 | AK124: 23 | AL124: 49 | AM124: 51 | AN124: 0 | AO124: 144 | AP124: 149 | AQ124: 13 | AR124: 0 | AS124: 0 | AT124: 0 | AU124: 89.0226445 | AV124: 89.0226445 | AW124: 222.5566112 | AX124: 13.35339667 | AY124: 89.0226445 | AZ124: 89.0226445 | BA124: 7.878504038 | BB124: 89.0226445 | BC124: 13.35339667 | BD124: 5.593737867 | BE124: 89.0226445 | BF124: 7.878504038 | BG124: 83.42890663 | BH124: 89.0226445 | BI124: 89.0226445 | BJ124: 5.593737867 | BK124: 89.0226445 | BL124: 89.0226445 | BM124: 1.767061792 | BN124: 5.593737867 | BP124: 44.21309639 | BQ124: 83.42890663 | BS124: 45.98015818 | BT124: 89.0226445 | BV124: 43.20202827 | BW124: 89.0226445 | BY124: 10.01335016 | BZ124: 5.593737867 | CB124: 234.7981434 | CC124: 83.42890663 | CE124: 244.8114935 | CF124: 89.0226445 | CH124: 244.8114935 | CI124: 89.0226445 | CJ124: 0
B125: A82040 | C125: CATHERINE STREET SURGERY | D125: E38000041 | E125: NHS CUMBRIA CCG | F125: E39000006 | G125: CUMBRIA, NORTHUMBERLAND, TYNE AND WEAR AREA TEAM | H125: E40000001 | I125: NORTH OF ENGLAND COMMISSIONING REGION | J125: Eng | K125: England | L125: UK | M125: =IF(LEFT(Results!$N$16,3)="All",1,IF(Results!$N$16=D125,1,IF(Results!$N$16=F125,1,IF(Results!$N$16=H125,1,IF(Results!$N$16=J125,1,0))))) -> 1 | Q125: 105 | R125: 2687 | S125: 119 | T125: 99 | U125: 3020 | W125: 99 | X125: 2687 | Z125: 0 | AA125: 2687 | AC125: 21 | AD125: 22 | AE125: 11 | AF125: 59 | AG125: 71 | AH125: 34 | AI125: 41 | AJ125: 48 | AK125: 57 | AL125: 35 | AM125: 35 | AN125: 0 | AO125: 88 | AP125: 88 | AQ125: 17 | AR125: 0 | AS125: 0 | AT125: 0 | AU125: 39.6 | AV125: 39.6 | AW125: 99 | AX125: 5.94 | AY125: 39.6 | AZ125: 39.6 | BA125: 3.5046 | BB125: 39.6 | BC125: 5.94 | BD125: 2.488266 | BE125: 39.6 | BF125: 3.5046 | BG125: 37.111734 | BH125: 39.6 | BI125: 39.6 | BJ125: 2.488266 | BK125: 39.6 | BL125: 39.6 | BM125: 0.7860432294 | BN125: 2.488266 | BP125: 19.66734 | BQ125: 37.111734 | BS125: 20.45338323 | BT125: 39.6 | BV125: 19.21758592 | BW125: 39.6 | BY125: 4.454244967 | BZ125: 2.488266 | CB125: 104.4454086 | CC125: 37.111734 | CE125: 108.8996535 | CF125: 39.6 | CH125: 108.8996535 | CI125: 39.6 | CJ125: 0
B126: A82041 | C126: LOWTHER MEDICAL CENTRE | D126: E38000041 | E126: NHS CUMBRIA CCG | F126: E39000006 | G126: CUMBRIA, NORTHUMBERLAND, TYNE AND WEAR AREA TEAM | H126: E40000001 | I126: NORTH OF ENGLAND COMMISSIONING REGION | J126: Eng | K126: England | L126: UK | M126: =IF(LEFT(Results!$N$16,3)="All",1,IF(Results!$N$16=D126,1,IF(Results!$N$16=F126,1,IF(Results!$N$16=H126,1,IF(Results!$N$16=J126,1,0))))) -> 1 | Q126: 280 | R126: 10663 | S126: 255 | T126: 316 | U126: 10970 | W126: 316 | X126: 10663 | Z126: 36 | AA126: 10663 | AC126: 64 | AD126: 73 | AE126: 15 | AF126: 230 | AG126: 244 | AH126: 36 | AI126: 103 | AJ126: 139 | AK126: 141 | AL126: 60 | AM126: 64 | AN126: 7 | AO126: 224 | AP126: 224 | AQ126: 56 | AR126: 0 | AS126: 0 | AT126: 0 | AU126: 126.4 | AV126: 126.4 | AW126: 316 | AX126: 18.96 | AY126: 126.4 | AZ126: 126.4 | BA126: 11.1864 | BB126: 126.4 | BC126: 18.96 | BD126: 7.942344 | BE126: 126.4 | BF126: 11.1864 | BG126: 118.457656 | BH126: 126.4 | BI126: 126.4 | BJ126: 7.942344 | BK126: 126.4 | BL126: 126.4 | BM126: 2.50898647 | BN126: 7.942344 | BP126: 62.77656 | BQ126: 118.457656 | BS126: 65.28554647 | BT126: 126.4 | BV126: 61.34098132 | BW126: 126.4 | BY126: 14.21758999 | BZ126: 7.942344 | CB126: 333.3813042 | CC126: 118.457656 | CE126: 347.5988942 | CF126: 126.4 | CH126: 347.5988942 | CI126: 126.4 | CJ126: 0
B127: A82044 | C127: FELLVIEW HEALTHCARE LTD | D127: E38000041 | E127: NHS CUMBRIA CCG | F127: E39000006 | G127: CUMBRIA, NORTHUMBERLAND, TYNE AND WEAR AREA TEAM | H127: E40000001 | I127: NORTH OF ENGLAND COMMISSIONING REGION | J127: Eng | K127: England | L127: UK | M127: =IF(LEFT(Results!$N$16,3)="All",1,IF(Results!$N$16=D127,1,IF(Results!$N$16=F127,1,IF(Results!$N$16=H127,1,IF(Results!$N$16=J127,1,0))))) -> 1 | Q127: 612 | R127: 22183 | S127: 483 | T127: 364 | U127: 11332 | W127: 712.5495941 | X127: 22183 | Z127: 100.5495941 | AA127: 22183 | AC127: 197 | AD127: 212 | AE127: 31 | AF127: 387 | AG127: 442 | AH127: 170 | AI127: 397 | AJ127: 448 | AK127: 164 | AL127: 205 | AM127: 205 | AN127: 3 | AO127: 484 | AP127: 497 | AQ127: 115 | AR127: 0 | AS127: 0 | AT127: 0 | AU127: 285.0198376 | AV127: 285.0198376 | AW127: 712.5495941 | AX127: 42.75297564 | AY127: 285.0198376 | AZ127: 285.0198376 | BA127: 25.22425563 | BB127: 285.0198376 | BC127: 42.75297564 | BD127: 17.9092215 | BE127: 285.0198376 | BF127: 25.22425563 | BG127: 267.1106161 | BH127: 285.0198376 | BI127: 285.0198376 | BJ127: 17.9092215 | BK127: 285.0198376 | BL127: 285.0198376 | BM127: 5.657523071 | BN127: 17.9092215 | BP127: 141.5551024 | BQ127: 267.1106161 | BS127: 147.2126254 | BT127: 285.0198376 | BV127: 138.3180106 | BW127: 285.0198376 | BY127: 32.0592974 | BZ127: 17.9092215 | CB127: 751.7427625 | CC127: 267.1106161 | CE127: 783.8020599 | CF127: 285.0198376 | CH127: 783.8020599 | CI127: 285.0198376 | CJ127: 0
B128: A82045 | C128: WIGTON MEDICAL PRACTICE | D128: E38000041 | E128: NHS CUMBRIA CCG | F128: E39000006 | G128: CUMBRIA, NORTHUMBERLAND, TYNE AND WEAR AREA TEAM | H128: E40000001 | I128: NORTH OF ENGLAND COMMISSIONING REGION | J128: Eng | K128: England | L128: UK | M128: =IF(LEFT(Results!$N$16,3)="All",1,IF(Results!$N$16=D128,1,IF(Results!$N$16=F128,1,IF(Results!$N$16=H128,1,IF(Results!$N$16=J128,1,0))))) -> 1 | Q128: 201 | R128: 8183 | S128: 132 | T128: 211 | U128: 7707 | W128: 224.0317893 | X128: 8183 | Z128: 23.03178928 | AA128: 8183 | AC128: 57 | AD128: 65 | AE128: 5 | AF128: 155 | AG128: 168 | AH128: 33 | AI128: 110 | AJ128: 121 | AK128: 80 | AL128: 57 | AM128: 63 | AN128: 1 | AO128: 188 | AP128: 188 | AQ128: 13 | AR128: 0 | AS128: 0 | AT128: 0 | AU128: 89.61271571 | AV128: 89.61271571 | AW128: 224.0317893 | AX128: 13.44190736 | AY128: 89.61271571 | AZ128: 89.61271571 | BA128: 7.930725341 | BB128: 89.61271571 | BC128: 13.44190736 | BD128: 5.630814992 | BE128: 89.61271571 | BF128: 7.930725341 | BG128: 83.98190072 | BH128: 89.61271571 | BI128: 89.61271571 | BJ128: 5.630814992 | BK128: 89.61271571 | BL128: 89.61271571 | BM128: 1.778774456 | BN128: 5.630814992 | BP128: 44.50615526 | BQ128: 83.98190072 | BS128: 46.28492971 | BT128: 89.61271571 | BV128: 43.48838545 | BW128: 89.61271571 | BY128: 10.07972192 | BZ128: 5.630814992 | CB128: 236.3544623 | CC128: 83.98190072 | CE128: 246.4341842 | CF128: 89.61271571 | CH128: 246.4341842 | CI128: 89.61271571 | CJ128: 0
B129: A82046 | C129: DR C S STOKES & PARTNERS | D129: E38000041 | E129: NHS CUMBRIA CCG | F129: E39000006 | G129: CUMBRIA, NORTHUMBERLAND, TYNE AND WEAR AREA TEAM | H129: E40000001 | I129: NORTH OF ENGLAND COMMISSIONING REGION | J129: Eng | K129: England | L129: UK | M129: =IF(LEFT(Results!$N$16,3)="All",1,IF(Results!$N$16=D129,1,IF(Results!$N$16=F129,1,IF(Results!$N$16=H129,1,IF(Results!$N$16=J129,1,0))))) -> 1 | Q129: 83 | R129: 5737 | S129: 42 | T129: 128 | U129: 5838 | W129: 128 | X129: 5737 | Z129: 45 | AA129: 5737 | AC129: 26 | AD129: 29 | AE129: 4 | AF129: 68 | AG129: 72 | AH129: 11 | AI129: 61 | AJ129: 66 | AK129: 17 | AL129: 31 | AM129: 31 | AN129: 0 | AO129: 72 | AP129: 73 | AQ129: 10 | AR129: 0 | AS129: 0 | AT129: 0 | AU129: 51.2 | AV129: 51.2 | AW129: 128 | AX129: 7.68 | AY129: 51.2 | AZ129: 51.2 | BA129: 4.5312 | BB129: 51.2 | BC129: 7.68 | BD129: 3.217152 | BE129: 51.2 | BF129: 4.5312 | BG129: 47.982848 | BH129: 51.2 | BI129: 51.2 | BJ129: 3.217152 | BK129: 51.2 | BL129: 51.2 | BM129: 1.016298317 | BN129: 3.217152 | BP129: 25.42848 | BQ129: 47.982848 | BS129: 26.44477832 | BT129: 51.2 | BV129: 24.84697978 | BW129: 51.2 | BY129: 5.759023795 | BZ129: 3.217152 | CB129: 135.0405283 | CC129: 47.982848 | CE129: 140.7995521 | CF129: 51.2 | CH129: 140.7995521 | CI129: 51.2 | CJ129: 0
B130: A82047 | C130: JAMES STREET GROUP PRACT | D130: E38000041 | E130: NHS CUMBRIA CCG | F130: E39000006 | G130: CUMBRIA, NORTHUMBERLAND, TYNE AND WEAR AREA TEAM | H130: E40000001 | I130: NORTH OF ENGLAND COMMISSIONING REGION | J130: Eng | K130: England | L130: UK | M130: =IF(LEFT(Results!$N$16,3)="All",1,IF(Results!$N$16=D130,1,IF(Results!$N$16=F130,1,IF(Results!$N$16=H130,1,IF(Results!$N$16=J130,1,0))))) -> 1 | Q130: 220 | R130: 8999 | S130: 104 | T130: 285 | U130: 9277 | W130: 285 | X130: 8999 | Z130: 65 | AA130: 8999 | AC130: 71 | AD130: 81 | AE130: 14 | AF130: 186 | AG130: 203 | AH130: 17 | AI130: 151 | AJ130: 176 | AK130: 44 | AL130: 100 | AM130: 101 | AN130: 1 | AO130: 176 | AP130: 192 | AQ130: 28 | AR130: 0 | AS130: 0 | AT130: 0 | AU130: 114 | AV130: 114 | AW130: 285 | AX130: 17.1 | AY130: 114 | AZ130: 114 | BA130: 10.089 | BB130: 114 | BC130: 17.1 | BD130: 7.16319 | BE130: 114 | BF130: 10.089 | BG130: 106.83681 | BH130: 114 | BI130: 114 | BJ130: 7.16319 | BK130: 114 | BL130: 114 | BM130: 2.262851721 | BN130: 7.16319 | BP130: 56.6181 | BQ130: 106.83681 | BS130: 58.88095172 | BT130: 114 | BV130: 55.32335341 | BW130: 114 | BY130: 12.82282642 | BZ130: 7.16319 | CB130: 300.6761762 | CC130: 106.83681 | CE130: 313.4990026 | CF130: 114 | CH130: 313.4990026 | CI130: 114 | CJ130: 0
B131: A82048 | C131: BEECHWOOD GROUP PRACTICE | D131: E38000041 | E131: NHS CUMBRIA CCG | F131: E39000006 | G131: CUMBRIA, NORTHUMBERLAND, TYNE AND WEAR AREA TEAM | H131: E40000001 | I131: NORTH OF ENGLAND COMMISSIONING REGION | J131: Eng | K131: England | L131: UK | M131: =IF(LEFT(Results!$N$16,3)="All",1,IF(Results!$N$16=D131,1,IF(Results!$N$16=F131,1,IF(Results!$N$16=H131,1,IF(Results!$N$16=J131,1,0))))) -> 1 | Q131: 144 | R131: 6656 | S131: 19 | T131: 190 | U131: 6708 | W131: 190 | X131: 6656 | Z131: 46 | AA131: 6656 | AC131: 37 | AD131: 38 | AE131: 0 | AF131: 129 | AG131: 143 | AH131: 1 | AI131: 129 | AJ131: 140 | AK131: 4 | AL131: 82 | AM131: 82 | AN131: 0 | AO131: 124 | AP131: 130 | AQ131: 14 | AR131: 0 | AS131: 0 | AT131: 0 | AU131: 76 | AV131: 76 | AW131: 190 | AX131: 11.4 | AY131: 76 | AZ131: 76 | BA131: 6.726 | BB131: 76 | BC131: 11.4 | BD131: 4.77546 | BE131: 76 | BF131: 6.726 | BG131: 71.22454 | BH131: 76 | BI131: 76 | BJ131: 4.77546 | BK131: 76 | BL131: 76 | BM131: 1.508567814 | BN131: 4.77546 | BP131: 37.7454 | BQ131: 71.22454 | BS131: 39.25396781 | BT131: 76 | BV131: 36.8822356 | BW131: 76 | BY131: 8.548550946 | BZ131: 4.77546 | CB131: 200.4507841 | CC131: 71.22454 | CE131: 208.9993351 | CF131: 76 | CH131: 208.9993351 | CI131: 76 | CJ131: 0
B132: A82049 | C132: ORCHARD HOUSE SURGERY | D132: E38000041 | E132: NHS CUMBRIA CCG | F132: E39000006 | G132: CUMBRIA, NORTHUMBERLAND, TYNE AND WEAR AREA TEAM | H132: E40000001 | I132: NORTH OF ENGLAND COMMISSIONING REGION | J132: Eng | K132: England | L132: UK | M132: =IF(LEFT(Results!$N$16,3)="All",1,IF(Results!$N$16=D132,1,IF(Results!$N$16=F132,1,IF(Results!$N$16=H132,1,IF(Results!$N$16=J132,1,0))))) -> 1 | Q132: 129 | R132: 5327 | S132: 57 | T132: 158 | U132: 5235 | W132: 160.7766953 | X132: 5327 | Z132: 31.77669532 | AA132: 5327 | AC132: 37 | AD132: 38 | AE132: 2 | AF132: 109 | AG132: 118 | AH132: 11 | AI132: 94 | AJ132: 105 | AK132: 24 | AL132: 53 | AM132: 58 | AN132: 3 | AO132: 109 | AP132: 112 | AQ132: 17 | AR132: 0 | AS132: 0 | AT132: 0 | AU132: 64.31067813 | AV132: 64.31067813 | AW132: 160.7766953 | AX132: 9.646601719 | AY132: 64.31067813 | AZ132: 64.31067813 | BA132: 5.691495014 | BB132: 64.31067813 | BC132: 9.646601719 | BD132: 4.04096146 | BE132: 64.31067813 | BF132: 5.691495014 | BG132: 60.26971667 | BH132: 64.31067813 | BI132: 64.31067813 | BJ132: 4.04096146 | BK132: 64.31067813 | BL132: 64.31067813 | BM132: 1.276539725 | BN132: 4.04096146 | BP132: 31.93989829 | BQ132: 60.26971667 | BS132: 33.21643802 | BT132: 64.31067813 | BV132: 31.20949451 | BW132: 64.31067813 | BY132: 7.23372511 | BZ132: 4.04096146 | CB132: 169.6200771 | CC132: 60.26971667 | CE132: 176.8538022 | CF132: 64.31067813 | CH132: 176.8538022 | CI132: 64.31067813 | CJ132: 0
B133: A82050 | C133: OXFORD STREET SURGERY | D133: E38000041 | E133: NHS CUMBRIA CCG | F133: E39000006 | G133: CUMBRIA, NORTHUMBERLAND, TYNE AND WEAR AREA TEAM | H133: E40000001 | I133: NORTH OF ENGLAND COMMISSIONING REGION | J133: Eng | K133: England | L133: UK | M133: =IF(LEFT(Results!$N$16,3)="All",1,IF(Results!$N$16=D133,1,IF(Results!$N$16=F133,1,IF(Results!$N$16=H133,1,IF(Results!$N$16=J133,1,0))))) -> 1 | Q133: 205 | R133: 7097 | S133: 204 | T133: 213 | U133: 7140 | W133: 213 | X133: 7097 | Z133: 8 | AA133: 7097 | AC133: 31 | AD133: 33 | AE133: 21 | AF133: 131 | AG133: 152 | AH133: 53 | AI133: 105 | AJ133: 129 | AK133: 76 | AL133: 74 | AM133: 76 | AN133: 9 | AO133: 156 | AP133: 160 | AQ133: 45 | AR133: 0 | AS133: 0 | AT133: 0 | AU133: 85.2 | AV133: 85.2 | AW133: 213 | AX133: 12.78 | AY133: 85.2 | AZ133: 85.2 | BA133: 7.5402 | BB133: 85.2 | BC133: 12.78 | BD133: 5.353542 | BE133: 85.2 | BF133: 7.5402 | BG133: 79.846458 | BH133: 85.2 | BI133: 85.2 | BJ133: 5.353542 | BK133: 85.2 | BL133: 85.2 | BM133: 1.691183918 | BN133: 5.353542 | BP133: 42.31458 | BQ133: 79.846458 | BS133: 44.00576392 | BT133: 85.2 | BV133: 41.34692728 | BW133: 85.2 | BY133: 9.583375534 | BZ133: 5.353542 | CB133: 224.7158791 | CC133: 79.846458 | CE133: 234.2992546 | CF133: 85.2 | CH133: 234.2992546 | CI133: 85.2 | CJ133: 0
B134: A82052 | C134: NORTH CARLISLE MEDICAL CENTRE | D134: E38000041 | E134: NHS CUMBRIA CCG | F134: E39000006 | G134: CUMBRIA, NORTHUMBERLAND, TYNE AND WEAR AREA TEAM | H134: E40000001 | I134: NORTH OF ENGLAND COMMISSIONING REGION | J134: Eng | K134: England | L134: UK | M134: =IF(LEFT(Results!$N$16,3)="All",1,IF(Results!$N$16=D134,1,IF(Results!$N$16=F134,1,IF(Results!$N$16=H134,1,IF(Results!$N$16=J134,1,0))))) -> 1 | Q134: 106 | R134: 7428 | S134: 99 | T134: 156 | U134: 6893 | W134: 168.1079356 | X134: 7428 | Z134: 62.10793559 | AA134: 7428 | AC134: 19 | AD134: 23 | AE134: 5 | AF134: 64 | AG134: 68 | AH134: 38 | AI134: 61 | AJ134: 66 | AK134: 40 | AL134: 26 | AM134: 27 | AN134: 0 | AO134: 90 | AP134: 90 | AQ134: 16 | AR134: 0 | AS134: 0 | AT134: 0 | AU134: 67.24317423 | AV134: 67.24317423 | AW134: 168.1079356 | AX134: 10.08647614 | AY134: 67.24317423 | AZ134: 67.24317423 | BA134: 5.95102092 | BB134: 67.24317423 | BC134: 10.08647614 | BD134: 4.225224853 | BE134: 67.24317423 | BF134: 5.95102092 | BG134: 63.01794938 | BH134: 67.24317423 | BI134: 67.24317423 | BJ134: 4.225224853 | BK134: 67.24317423 | BL134: 67.24317423 | BM134: 1.334748531 | BN134: 4.225224853 | BP134: 33.39632248 | BQ134: 63.01794938 | BS134: 34.73107101 | BT134: 67.24317423 | BV134: 32.63261309 | BW134: 67.24317423 | BY134: 7.563575009 | BZ134: 4.225224853 | CB134: 177.3545658 | CC134: 63.01794938 | CE134: 184.9181409 | CF134: 67.24317423 | CH134: 184.9181409 | CI134: 67.24317423 | CJ134: 0
